Workbook

Sheet INTRO
A3: This is the main workbook for Republic Services' General Rate Case submission to the Washington Utilities & Transporation Commission
A5: The subject company of this filing is : | B5: 4176 - Fiorito Enterprises, Inc. & Rabanco Companies (G-60, Tariff # 27)
A7: This file will need to be submitted through the WUTC eFile web portal is it's size before adding 'filing/division/test period specific' tabs is too large for email.
A8: This file is to be completed seperately from the Payroll model in order to keep the pay data confidential. Once both models are complete, this model
A9: will be transferred to a protected folder with the Payroll model which will then be moved into this model right after the "PF Adj" tab.
A11: Tab Color Legend
A12: Auditor Narrative & Internal Instructions
A13: SQL Source Data | C13: *Print Margin for All SQL Tabs are set to first 100 pages to avoid extremely large accidental print jobs
A14: Reference Tables
A15: Cost of Service
A16: Oracle Essbase Data Extraction from Lawson
A18: Note to auditor: Detailed SQL data is available upon request. We summarize some of the SQL data reports within this model as the filesize of full
A19: reports with every transaction is often 15+ MB and discusstions with WUTC staff has concluded that summarizing when possible is the best option.
A21: Table of Contents | B21: Tab # | C21: Formula Driven / Hardcode / HC with Formulas / Written | D21: Source of Hardcode (if any)
A22: G Cert Financial | B22: 2 | C22: Formulas
A23: RS Cap Structure | B23: 3 | C23: Hardcode | D23: Annual Reports
A24: Combined LG | B24: 4 | C24: Formulas
A25: MSW | B25: 5 | C25: Formulas
A26: RCY | B26: 6 | C26: Formulas
A27: YW | B27: 7 | C27: Formulas
A28: MF RCY | B28: 8 | C28: Formulas
A29: Alloc Summary | B29: 9 | C29: Formulas
A30: Proforma | B30: 10 | C30: Formulas
A31: PR Restate | B31: 11 | C31: Formulas
A32: PF Adj | B32: 12 | C32: Formulas
A33: PR Narrative | B33: 13 | C33: Written
A34: Summary & PF | B34: 14 | C34: Formulas
A35: PR vs. GL | B35: 15 | C35: Formulas
A36: Summary Calc & Lookup | B36: 16 | C36: Formulas & Hardcode ee Data | D36: Payroll employee reports
A37: PR Instructions | B37: 17 | C37: Written
A38: Summary PR Data | B38: 18 | C38: Hardcode | D38: PR295 from Lawson
A39: Lookup Data | B39: 19 | C39: Hardcode Tables
A40: Union Wage & Pension | B40: 20 | C40: Hardcode | D40: Union Contracts
A41: H&W | B41: 21 | C41: Hardcode | D41: Union Contracts
A42: L&I | B42: 22 | C42: Hardcode | D42: WA Dept. of Labor & Industries
A43: Rev Narrative & Instructions | B43: 23 | C43: Written
A44: Revenue Lookup | B44: 24 | C44: Formulas
A45: SQL Revenue Analysis | B45: 25 | C45: Hardcode with Formulas | D45: SQL Extract from Infopro
A46: Rev Ref Tables | B46: 26 | C46: Hardcode Tables | D46: Lookup info for Infopro
A47: Price Out Summ | B47: 27 | C47: Formulas
A48: Residential Price Out | B48: 28 | C48: Formulas and Hardcode Rate Data | D48: Tariff Pages
A49: Commercial (+MF) Price Out | B49: 29 | C49: Formulas and Hardcode Rate Data | D49: Tariff Pages
A50: Commercial Lift Instructions | B50: 30 | C50: Written
A51: Commercial Lifts | B51: 31 | C51: Hardcode with Formulas | D51: SQL Extract from Infopro
A52: IND (+MF) Price Out | B52: 32 | C52: Formulas and Hardcode Rate Data | D52: Tariff Pages
A53: Truck Hrs Sum | B53: 33 | C53: Formulas
A54: RESI WUTC Hrs | B54: 34 | C54: Formulas with Hardcode | D54: See "Route Detail Residential"
A55: RES Rt Hr Instructions | B55: EXTERNAL | C55: Written
A56: RES Pivot | B56: EXTERNAL | C56: Formulas - Pivot
A57: RES Route Detail | B57: EXTERNAL | C57: Hardcode with Formulas | D57: SQL Extract from Infopro
A58: Sample Routes | B58: EXTERNAL | C58: Formulas
A59: COM WUTC Hrs | B59: 35 | C59: Formulas
A60: COM Rt Hr Instructions | B60: 36 | C60: Written
A61: COM Pivot | B61: 37 | C61: Formulas - Pivot
A62: COM Route Detail | B62: 38 | C62: Hardcode with Formulas | D62: SQL Extract from Infopro
A63: IND Hrs Sum | B63: 39 | C63: Formulas
A64: IND Data | B64: 40 | C64: Hardcode with Formulas | D64: Report from Infopro
A65: Route Analysis - IND | B65: 41 | C65: Hardcode | D65: SQL Extract from Infopro
A66: Route Analysis - COM | B66: 42 | C66: Hardcode | D66: SQL Extract from Infopro
A67: Route Analysis - RESI | B67: 43 | C67: Hardcode | D67: SQL Extract from Infopro
A68: Contract Ref | B68: 44 | C68: Hardcode Tables | D68: Lookup info for Infopro
A69: Fuel Calc | B69: 45 | C69: Formulas
A70: Fuel Invoice Data Entry | B70: 46 | C70: Hardcode with Formulas | D70: Fuel Invoices
A71: Disposal Instructions | B71: 47 | C71: Written
A72: Disposal Summary (with IC) | B72: 48 | C72: Formulas
A73: Summary Disposal Data | B73: 49 | C73: Hardcode with Formulas
A74: Industrial Summary Data Confirmation | B74: 50 | C74: Hardcode with Formulas
A75: Non-Regulated Operations | B75: 51 | C75: Written
A76: Disposal Ref Tables | B76: 52 | C76: Hardcode Tables | D76: Lookup info for Infopro
A77: Ave Inv. Narrative | B77: 53 | C77: Written
A78: Ave Inv. Summary | B78: 54 | C78: Formulas
A79: AM260 Asset Listing | B79: 55 | C79: Formulas
A80: AM260 Data | B80: 56 | C80: Hardcode with Formulas | D80: Report from Lawson
A81: Asset Type Tables | B81: 57 | C81: Hardcode Tables | D81: Lookup info for Lawson
A82: Narrative | B82: 58 | C82: Written
A83: Container Counts | B83: 59 | C83: Formulas
A84: Container Data | B84: 60 | C84: Hardcode with Formulas | D84: SQL Extract from Infopro
A85: Container Ref Tables | B85: 61 | C85: Hardcode Tables | D85: Lookup info for Infopro
A86: Cost of Service | B86: 62 | C86: Formulas
A87: Meeks Data | B87: 63 | C87: Hardcode | D87: WUTC Data
A88: Essbase Narrative | B88: 64 | C88: Written
A89: P&L - ITD3 (Acct Desc) | B89: 65 | C89: Hardcode | D89: Essbase Extract from Lawson
A90: BS - BTD3 | B90: 66 | C90: Hardcode | D90: Essbase Extract from Lawson
A91: P&L - ITD3 (Acct #) | B91: 67 | C91: Hardcode | D91: Essbase Extract from Lawson
A92: STATS - XOST (IND, COM, RES) | B92: 68 | C92: Hardcode | D92: Essbase Extract from Lawson
A93: P&L - ITD2 Aff. Co. MRF | B93: 69 | C93: Hardcode | D93: Essbase Extract from Lawson
A94: G-12 FS | B94: 70 | C94: Hardcode | D94: Essbase Extract from Lawson
A95: BS - BTD2 Aff. Co. MRF | B95: 71 | C95: Hardcode | D95: Essbase Extract from Lawson
A96: MGmt Fee2014 Budget Pull | B96: 72 | C96: Hardcode | D96: Essbase Extract from Lawson
A97: Mgmt Fee - 2014 A53 Division Expense | B97: 73 | C97: Hardcode | D97: Essbase Extract from Lawson
A98: Filing Specific Tabs > | B98: 74 | C98: Written
A99: 176 v 183 CNG Trucks | B99: 75 | C99: Hardcode | D99: JE Backup from Fleet management system - Doissier
A100: Fuel Allocations | B100: 76 | C100: Hardcode with Formulas | D100: Essbase Extract from Lawson
A101: 4183-SeaTac-AM260 | B101: 77 | C101: Hardcode | D101: Report from Lawson
A102: L&I RETRO Credit JE | B102: 78 | C102: Hardcode | D102: Journal Entry
A103: Truck Depreciation Summary | B103: 79 | C103: Formulas
A104: Jan - Dec | B104: 80 - 92 | C104: Hardcode with Formulas | D104: Report from Lawson
A105: Tons Master Report > | B105: 93 | C105: Written
A106: Division Tons (XXX Tons) | B106: 94 | C106: Hardcode with Formulas | D106: Billing and County / Municipality Reporting Document
A107: MSW Tons | B107: 95 | C107: Hardcode with Formulas
A108: Recycle Tons | B108: 96 | C108: Hardcode with Formulas
A109: YW Tons | B109: 97 | C109: Hardcode with Formulas

Sheet G-12 Cert Financial
A1: If this rate case pertains to G Certificate # 60, of which the only company is Division 4176, tariff # 27, Fiorito Enterprises, Inc. & Rabanco Companies, dba Kent-Meridian Disposal Company the only financials you need are in the Essbase Data workbook or provided in PDF form.
A2: If this rate case pertains to G Certificate # 12 (varios division info below) this tab will be populated with summarized financial data for each operating division to calculate total Certificate financial data.
A3: See Source Data: 4XXXITD2
A5: Division # | B5: 4183 | E5: 4172 | H5: 4197 | K5: 4487 | N5: 4175 | Q5: 4584 | T5: TOTAL
A6: Division Name | B6: Sea Tac Disposal | E6: Eastside Disposal | H6: Lynnwood Disposal | K6: Tri-County Disposal | N6: AW of Seattle | Q6: Robanco Recycling MRF | T6: Regulated / Unregulated
A7: Certificate & Tariff Number | B7: G-12 / Tariff 27 | E7: G-12 / Tariff 11 | H7: G-12 / Tariff 4 | K7: G-12 / Tariff 8 | N7: G-12 | Q7: G-12 | T7: G-12
A8: Regulated / Unregulated % | C8: =1-B8 -> 1 | F8: =1-E8 -> 1 | I8: =1-H8 -> 1 | L8: =1-K8 -> 1 | N8: 0 | O8: =1-N8 -> 1 | Q8: 0 | R8: =1-Q8 -> 1 | T8: =+T59/SUM(T59:U59) -> 0 | U8: =1-T8 -> 1
A11: Industrial O/S Total | B11: ='G-12 FS'!B6*B$8 -> 0 | C11: ='G-12 FS'!B6*C$8 -> 3379225.51 | E11: ='G-12 FS'!E6*E$8 -> 0 | F11: ='G-12 FS'!E6*F$8 -> 9079734.27 | H11: ='G-12 FS'!H6*H$8 -> 0 | I11: ='G-12 FS'!H6*I$8 -> 3113837.03 | K11: ='G-12 FS'!K6*K$8 -> 0 | L11: ='G-12 FS'!K6*L$8 -> 397626.87 | N11: ='G-12 FS'!N6*N$8 -> 0 | O11: ='G-12 FS'!N6*O$8 -> 8812552.65 | Q11: ='G-12 FS'!Q6*Q$8 -> 0 | R11: ='G-12 FS'!Q6*R$8 -> 0 | T11: =+B11+E11+H11+K11+N11+Q11 -> 0 | U11: =+C11+F11+I11+L11+O11+R11 -> 24782976.33
A12: Commercial O/S Total | B12: ='G-12 FS'!B7*B$8 -> 0 | C12: ='G-12 FS'!B7*C$8 -> 4328366.13 | E12: ='G-12 FS'!E7*E$8 -> 0 | F12: ='G-12 FS'!E7*F$8 -> 15991640.31 | H12: ='G-12 FS'!H7*H$8 -> 0 | I12: ='G-12 FS'!H7*I$8 -> 7487240.8 | K12: ='G-12 FS'!K7*K$8 -> 0 | L12: ='G-12 FS'!K7*L$8 -> 811366.53 | N12: ='G-12 FS'!N7*N$8 -> 0 | O12: ='G-12 FS'!N7*O$8 -> 11523573.26 | Q12: ='G-12 FS'!Q7*Q$8 -> 0 | R12: ='G-12 FS'!Q7*R$8 -> 0 | T12: =+B12+E12+H12+K12+N12+Q12 -> 0 | U12: =+C12+F12+I12+L12+O12+R12 -> 40142187.03
A13: Residential O/S Total | B13: ='G-12 FS'!B8*B$8 -> 0 | C13: ='G-12 FS'!B8*C$8 -> 8338912.57 | E13: ='G-12 FS'!E8*E$8 -> 0 | F13: ='G-12 FS'!E8*F$8 -> 25542485.9 | H13: ='G-12 FS'!H8*H$8 -> 0 | I13: ='G-12 FS'!H8*I$8 -> 9986100.13 | K13: ='G-12 FS'!K8*K$8 -> 0 | L13: ='G-12 FS'!K8*L$8 -> 639502.94 | N13: ='G-12 FS'!N8*N$8 -> 0 | O13: ='G-12 FS'!N8*O$8 -> 0 | Q13: ='G-12 FS'!Q8*Q$8 -> 0 | R13: ='G-12 FS'!Q8*R$8 -> 0 | T13: 0 | U13: 44507001.54
A15: Industrial SOM RCY Revenue I/C | B15: ='G-12 FS'!B17*B$8 -> 0 | C15: ='G-12 FS'!B17*C$8 -> -1137483.41 | E15: ='G-12 FS'!E17*E$8 -> 0 | F15: ='G-12 FS'!E17*F$8 -> -164422.4 | H15: ='G-12 FS'!H17*H$8 -> 0 | I15: ='G-12 FS'!H17*I$8 -> -4984.56 | K15: ='G-12 FS'!K17*K$8 -> 0 | L15: ='G-12 FS'!K17*L$8 -> 106941.95 | N15: ='G-12 FS'!N17*N$8 -> 0 | O15: ='G-12 FS'!N17*O$8 -> -1836670.36 | Q15: ='G-12 FS'!Q17*Q$8 -> 0 | R15: ='G-12 FS'!Q17*R$8 -> 0 | T15: =+B15+E15+H15+K15+N15+Q15 -> 0 | U15: =+C15+F15+I15+L15+O15+R15 -> -3036618.78
A16: Commercial SOM RCY Revenue I/C | B16: ='G-12 FS'!B18*B$8 -> 0 | C16: ='G-12 FS'!B18*C$8 -> -267698.01 | E16: ='G-12 FS'!E18*E$8 -> 0 | F16: ='G-12 FS'!E18*F$8 -> -809168.59 | H16: ='G-12 FS'!H18*H$8 -> 0 | I16: ='G-12 FS'!H18*I$8 -> -219176.34 | K16: ='G-12 FS'!K18*K$8 -> 0 | L16: ='G-12 FS'!K18*L$8 -> 7489.2 | N16: ='G-12 FS'!N18*N$8 -> 0 | O16: ='G-12 FS'!N18*O$8 -> -664444.65 | Q16: ='G-12 FS'!Q18*Q$8 -> 0 | R16: ='G-12 FS'!Q18*R$8 -> 0 | T16: 0 | U16: =+C16+F16+I16+L16+O16+R16 -> -1952998.39
A17: Residential SOM RCY Revenue I/C | B17: ='G-12 FS'!B19*B$8 -> 0 | C17: ='G-12 FS'!B19*C$8 -> -704804.07 | E17: ='G-12 FS'!E19*E$8 -> 0 | F17: ='G-12 FS'!E19*F$8 -> -1815274.22 | H17: ='G-12 FS'!H19*H$8 -> 0 | I17: ='G-12 FS'!H19*I$8 -> -649597.41 | K17: ='G-12 FS'!K19*K$8 -> 0 | L17: ='G-12 FS'!K19*L$8 -> 1599.48 | N17: ='G-12 FS'!N19*N$8 -> 0 | O17: ='G-12 FS'!N19*O$8 -> 0 | Q17: ='G-12 FS'!Q19*Q$8 -> 0 | R17: ='G-12 FS'!Q19*R$8 -> 0 | T17: 0 | U17: -3168076.22
A19: Total Revenue | B19: =SUM(B10:B18) -> 0 | C19: =SUM(C10:C18) -> 13936518.72 | E19: =SUM(E10:E18) -> 0 | F19: =SUM(F10:F18) -> 47824995.27 | H19: =SUM(H10:H18) -> 0 | I19: =SUM(I10:I18) -> 19713419.65 | K19: =SUM(K10:K18) -> 0 | L19: =SUM(L10:L18) -> 1964526.97 | N19: =SUM(N10:N18) -> 0 | O19: =SUM(O10:O18) -> 17835010.9 | Q19: ='G-12 FS'!$Q29*Q$8 -> 0 | R19: ='G-12 FS'!$Q29*R$8 -> 20375577.27 | T19: =+B19+E19+H19+K19+N19+Q19 -> 0 | U19: =+C19+F19+I19+L19+O19+R19 -> 121650048.8
A21: Tipping & Disposal Costs | B21: =SUM('G-12 FS'!B31*B$8) -> 0 | C21: =SUM('G-12 FS'!B31*C$8) -> 1970772.68 | E21: =SUM('G-12 FS'!E31*E$8) -> 0 | F21: =SUM('G-12 FS'!E31*F$8) -> 18028167.72 | H21: =SUM('G-12 FS'!H31*H$8) -> 0 | I21: =SUM('G-12 FS'!H31*I$8) -> 6926637.27 | K21: =SUM('G-12 FS'!K31*K$8) -> 0 | L21: =SUM('G-12 FS'!K31*L$8) -> 97333.67 | N21: =SUM('G-12 FS'!N31*N$8) -> 0 | O21: =SUM('G-12 FS'!N31*O$8) -> 2792952.36 | Q21: =SUM('G-12 FS'!Q31*Q$8) -> 0 | R21: =SUM('G-12 FS'!Q31*R$8) -> 1853860.39 | T21: =+B21+E21+H21+K21+N21+Q21 -> 0 | U21: =+C21+F21+I21+L21+O21+R21 -> 31669724.09
A22: Cost of Goods Sold | B22: =SUM('G-12 FS'!B32*B$8) -> 0 | C22: =SUM('G-12 FS'!B32*C$8) -> 0 | E22: =SUM('G-12 FS'!E32*E$8) -> 0 | F22: =SUM('G-12 FS'!E32*F$8) -> 0 | H22: =SUM('G-12 FS'!H32*H$8) -> 0 | I22: =SUM('G-12 FS'!H32*I$8) -> 0 | K22: =SUM('G-12 FS'!K32*K$8) -> 0 | L22: =SUM('G-12 FS'!K32*L$8) -> 0 | N22: =SUM('G-12 FS'!N32*N$8) -> 0 | O22: =SUM('G-12 FS'!N32*O$8) -> 0 | Q22: =SUM('G-12 FS'!Q32*Q$8) -> 0 | R22: =SUM('G-12 FS'!Q32*R$8) -> 0 | T22: 0 | U22: 0
A23: Transportation | B23: =SUM('G-12 FS'!B33*B$8) -> 0 | C23: =SUM('G-12 FS'!B33*C$8) -> 1088.75 | E23: =SUM('G-12 FS'!E33*E$8) -> 0 | F23: =SUM('G-12 FS'!E33*F$8) -> 3542.57 | H23: =SUM('G-12 FS'!H33*H$8) -> 0 | I23: =SUM('G-12 FS'!H33*I$8) -> 104.58 | K23: =SUM('G-12 FS'!K33*K$8) -> 0 | L23: =SUM('G-12 FS'!K33*L$8) -> 0 | N23: =SUM('G-12 FS'!N33*N$8) -> 0 | O23: =SUM('G-12 FS'!N33*O$8) -> 2348.48 | Q23: =SUM('G-12 FS'!Q33*Q$8) -> 0 | R23: =SUM('G-12 FS'!Q33*R$8) -> 0 | T23: 0 | U23: 7084.38
A24: Subcontract | B24: =SUM('G-12 FS'!B34*B$8) -> 0 | C24: =SUM('G-12 FS'!B34*C$8) -> 0 | E24: =SUM('G-12 FS'!E34*E$8) -> 0 | F24: =SUM('G-12 FS'!E34*F$8) -> 0 | H24: =SUM('G-12 FS'!H34*H$8) -> 0 | I24: =SUM('G-12 FS'!H34*I$8) -> 0 | K24: =SUM('G-12 FS'!K34*K$8) -> 0 | L24: =SUM('G-12 FS'!K34*L$8) -> 0 | N24: =SUM('G-12 FS'!N34*N$8) -> 0 | O24: =SUM('G-12 FS'!N34*O$8) -> 0 | Q24: =SUM('G-12 FS'!Q34*Q$8) -> 0 | R24: =SUM('G-12 FS'!Q34*R$8) -> 284811.75 | T24: 0 | U24: 284811.75
A25: Franchise Fees / Taxes | B25: =SUM('G-12 FS'!B35*B$8) -> 0 | C25: =SUM('G-12 FS'!B35*C$8) -> 0 | E25: =SUM('G-12 FS'!E35*E$8) -> 0 | F25: =SUM('G-12 FS'!E35*F$8) -> 0 | H25: =SUM('G-12 FS'!H35*H$8) -> 0 | I25: =SUM('G-12 FS'!H35*I$8) -> 0 | K25: =SUM('G-12 FS'!K35*K$8) -> 0 | L25: =SUM('G-12 FS'!K35*L$8) -> 0 | N25: =SUM('G-12 FS'!N35*N$8) -> 0 | O25: =SUM('G-12 FS'!N35*O$8) -> 0 | Q25: =SUM('G-12 FS'!Q35*Q$8) -> 0 | R25: =SUM('G-12 FS'!Q35*R$8) -> 0 | T25: 0 | U25: 0
A26: COGS Other | B26: =SUM('G-12 FS'!B36*B$8) -> 0 | C26: =SUM('G-12 FS'!B36*C$8) -> 0 | E26: =SUM('G-12 FS'!E36*E$8) -> 0 | F26: =SUM('G-12 FS'!E36*F$8) -> 0 | H26: =SUM('G-12 FS'!H36*H$8) -> 0 | I26: =SUM('G-12 FS'!H36*I$8) -> 0 | K26: =SUM('G-12 FS'!K36*K$8) -> 0 | L26: =SUM('G-12 FS'!K36*L$8) -> 0 | N26: =SUM('G-12 FS'!N36*N$8) -> 0 | O26: =SUM('G-12 FS'!N36*O$8) -> 0 | Q26: =SUM('G-12 FS'!Q36*Q$8) -> 0 | R26: =SUM('G-12 FS'!Q36*R$8) -> 0 | T26: 0 | U26: 0
A27: Total Revenue Reductions | B27: =SUM(B20:B26) -> 0 | C27: =SUM(C20:C26) -> 1971861.43 | E27: =SUM(E20:E26) -> 0 | F27: =SUM(F20:F26) -> 18031710.29 | H27: =SUM(H20:H26) -> 0 | I27: =SUM(I20:I26) -> 6926741.85 | K27: =SUM(K20:K26) -> 0 | L27: =SUM(L20:L26) -> 97333.67 | N27: =SUM(N20:N26) -> 0 | O27: =SUM(O20:O26) -> 2795300.84 | Q27: =SUM(Q20:Q26) -> 0 | R27: =SUM(R20:R26) -> 2138672.14 | T27: 0 | U27: 31961620.22
A29: Net Revenue | B29: =+B19-B27 -> 0 | C29: =+C19-C27 -> 11964657.29 | E29: =+E19-E27 -> 0 | F29: =+F19-F27 -> 29793284.98 | H29: =+H19-H27 -> 0 | I29: =+I19-I27 -> 12786677.8 | K29: =+K19-K27 -> 0 | L29: =+L19-L27 -> 1867193.3 | N29: =+N19-N27 -> 0 | O29: =+O19-O27 -> 15039710.06 | Q29: =+Q19-Q27 -> 0 | R29: =+R19-R27 -> 18236905.13 | T29: =+B29+E29+H29+K29+N29+Q29 -> 0 | U29: =+C29+F29+I29+L29+O29+R29 -> 89688428.56
A31: Operating Labor | B31: ='G-12 FS'!B41*B$8 -> 0 | C31: ='G-12 FS'!B41*C$8 -> 5174284.49 | E31: ='G-12 FS'!E41*E$8 -> 0 | F31: ='G-12 FS'!E41*F$8 -> 12761202.98 | H31: ='G-12 FS'!H41*H$8 -> 0 | I31: ='G-12 FS'!H41*I$8 -> 4942594.05 | K31: ='G-12 FS'!K41*K$8 -> 0 | L31: ='G-12 FS'!K41*L$8 -> 651644.81 | N31: ='G-12 FS'!N41*N$8 -> 0 | O31: ='G-12 FS'!N41*O$8 -> 2973579.87 | Q31: ='G-12 FS'!Q41*Q$8 -> 0 | R31: ='G-12 FS'!Q41*R$8 -> 8144720.78 | T31: =+B31+E31+H31+K31+N31+Q31 -> 0 | U31: =+C31+F31+I31+L31+O31+R31 -> 34648026.98
A32: Supervisor Labor | B32: ='G-12 FS'!B42*B$8 -> 0 | C32: ='G-12 FS'!B42*C$8 -> 543212.81 | E32: ='G-12 FS'!E42*E$8 -> 0 | F32: ='G-12 FS'!E42*F$8 -> 1274932.94 | H32: ='G-12 FS'!H42*H$8 -> 0 | I32: ='G-12 FS'!H42*I$8 -> 447088.7 | K32: ='G-12 FS'!K42*K$8 -> 0 | L32: ='G-12 FS'!K42*L$8 -> 102040.36 | N32: ='G-12 FS'!N42*N$8 -> 0 | O32: ='G-12 FS'!N42*O$8 -> 601406.15 | Q32: ='G-12 FS'!Q42*Q$8 -> 0 | R32: ='G-12 FS'!Q42*R$8 -> 434634.97 | T32: 0 | U32: 3403315.93
A33: Equipment Operating | B33: ='G-12 FS'!B43*B$8 -> 0 | C33: ='G-12 FS'!B43*C$8 -> 688166.82 | E33: ='G-12 FS'!E43*E$8 -> 0 | F33: ='G-12 FS'!E43*F$8 -> 1462045.02 | H33: ='G-12 FS'!H43*H$8 -> 0 | I33: ='G-12 FS'!H43*I$8 -> 909143.11 | K33: ='G-12 FS'!K43*K$8 -> 0 | L33: ='G-12 FS'!K43*L$8 -> 233341.9 | N33: ='G-12 FS'!N43*N$8 -> 0 | O33: ='G-12 FS'!N43*O$8 -> 418589.87 | Q33: ='G-12 FS'!Q43*Q$8 -> 0 | R33: ='G-12 FS'!Q43*R$8 -> 575467.21 | T33: 0 | U33: 4286753.93
A34: Equipment Maintenance | B34: ='G-12 FS'!B44*B$8 -> 0 | C34: ='G-12 FS'!B44*C$8 -> 1303753.88 | E34: ='G-12 FS'!E44*E$8 -> 0 | F34: ='G-12 FS'!E44*F$8 -> 3243929.4 | H34: ='G-12 FS'!H44*H$8 -> 0 | I34: ='G-12 FS'!H44*I$8 -> 1470580.06 | K34: ='G-12 FS'!K44*K$8 -> 0 | L34: ='G-12 FS'!K44*L$8 -> 208500.17 | N34: ='G-12 FS'!N44*N$8 -> 0 | O34: ='G-12 FS'!N44*O$8 -> 734404.9 | Q34: ='G-12 FS'!Q44*Q$8 -> 0 | R34: ='G-12 FS'!Q44*R$8 -> 2693315.6
A35: Container Maintenance | B35: ='G-12 FS'!B45*B$8 -> 0 | C35: ='G-12 FS'!B45*C$8 -> 143775.25 | E35: ='G-12 FS'!E45*E$8 -> 0 | F35: ='G-12 FS'!E45*F$8 -> 368791.57 | H35: ='G-12 FS'!H45*H$8 -> 0 | I35: ='G-12 FS'!H45*I$8 -> 87657.68 | K35: ='G-12 FS'!K45*K$8 -> 0 | L35: ='G-12 FS'!K45*L$8 -> 0 | N35: ='G-12 FS'!N45*N$8 -> 0 | O35: ='G-12 FS'!N45*O$8 -> 277635.11 | Q35: ='G-12 FS'!Q45*Q$8 -> 0 | R35: ='G-12 FS'!Q45*R$8 -> 0 | T35: =+B35+E35+H35+K35+N35+Q35 -> 0 | U35: =+C35+F35+I35+L35+O35+R35 -> 877859.61
A36: Insurance Expense | B36: ='G-12 FS'!B46*B$8 -> 0 | C36: ='G-12 FS'!B46*C$8 -> 599046.84 | E36: ='G-12 FS'!E46*E$8 -> 0 | F36: ='G-12 FS'!E46*F$8 -> 1440327.88 | H36: ='G-12 FS'!H46*H$8 -> 0 | I36: ='G-12 FS'!H46*I$8 -> 450053.8 | K36: ='G-12 FS'!K46*K$8 -> 0 | L36: ='G-12 FS'!K46*L$8 -> 81842.99 | N36: ='G-12 FS'!N46*N$8 -> 0 | O36: ='G-12 FS'!N46*O$8 -> 329502.43 | Q36: ='G-12 FS'!Q46*Q$8 -> 0 | R36: ='G-12 FS'!Q46*R$8 -> 455019.31 | T36: 0 | U36: 3355793.25
A37: Occupancy / Facilty Expense | B37: ='G-12 FS'!B47*B$8 -> 0 | C37: ='G-12 FS'!B47*C$8 -> 191300.67 | E37: ='G-12 FS'!E47*E$8 -> 0 | F37: ='G-12 FS'!E47*F$8 -> 1190052.17 | H37: ='G-12 FS'!H47*H$8 -> 0 | I37: ='G-12 FS'!H47*I$8 -> 443239.5 | K37: ='G-12 FS'!K47*K$8 -> 0 | L37: ='G-12 FS'!K47*L$8 -> 2005.97 | N37: ='G-12 FS'!N47*N$8 -> 0 | O37: ='G-12 FS'!N47*O$8 -> 520452.96 | Q37: ='G-12 FS'!Q47*Q$8 -> 0 | R37: ='G-12 FS'!Q47*R$8 -> 1181321.35 | T37: 0 | U37: 3528372.62
A38: Other Operating Expense | B38: ='G-12 FS'!B48*B$8 -> 0 | C38: ='G-12 FS'!B48*C$8 -> 551420.3 | E38: ='G-12 FS'!E48*E$8 -> 0 | F38: ='G-12 FS'!E48*F$8 -> 2952061.19 | H38: ='G-12 FS'!H48*H$8 -> 0 | I38: ='G-12 FS'!H48*I$8 -> 502588.45 | K38: ='G-12 FS'!K48*K$8 -> 0 | L38: ='G-12 FS'!K48*L$8 -> 48853.55 | N38: ='G-12 FS'!N48*N$8 -> 0 | O38: ='G-12 FS'!N48*O$8 -> 458409.3 | Q38: ='G-12 FS'!Q48*Q$8 -> 0 | R38: ='G-12 FS'!Q48*R$8 -> 786117.36 | T38: 0 | U38: 5299450.15
A39: Pre-DD&A GOE | B39: =SUM(B30:B38) -> 0 | C39: =SUM(C30:C38) -> 9194961.06 | E39: =SUM(E30:E38) -> 0 | F39: =SUM(F30:F38) -> 24693343.15 | H39: =SUM(H30:H38) -> 0 | I39: =SUM(I30:I38) -> 9252945.35 | K39: =SUM(K30:K38) -> 0 | L39: =SUM(L30:L38) -> 1328229.75 | N39: =SUM(N30:N38) -> 0 | O39: =SUM(O30:O38) -> 6313980.59 | Q39: =SUM(Q30:Q38) -> 0 | R39: =SUM(R30:R38) -> 14270596.58 | T39: 0 | U39: 65054056.48
A41: Depreciation Total | B41: ='G-12 FS'!B51*B$8 -> 0 | C41: ='G-12 FS'!B51*C$8 -> 1708729.57 | E41: ='G-12 FS'!E51*E$8 -> 0 | F41: ='G-12 FS'!E51*F$8 -> 3553168.82 | H41: ='G-12 FS'!H51*H$8 -> 0 | I41: ='G-12 FS'!H51*I$8 -> 1186106.83 | K41: ='G-12 FS'!K51*K$8 -> 0 | L41: ='G-12 FS'!K51*L$8 -> 198397.34 | N41: ='G-12 FS'!N51*N$8 -> 0 | O41: ='G-12 FS'!N51*O$8 -> 344572.93 | Q41: ='G-12 FS'!Q51*Q$8 -> 0 | R41: ='G-12 FS'!Q51*R$8 -> 1349818.55 | T41: =+B41+E41+H41+K41+N41+Q41 -> 0 | U41: =+C41+F41+I41+L41+O41+R41 -> 8340794.04
A42: Amortization Total | T42: 0 | U42: 0
A43: Total DD&A | B43: =SUM(B40:B42) -> 0 | C43: =SUM(C40:C42) -> 1708729.57 | E43: =SUM(E40:E42) -> 0 | F43: =SUM(F40:F42) -> 3553168.82 | H43: =SUM(H40:H42) -> 0 | I43: =SUM(I40:I42) -> 1186106.83 | K43: =SUM(K40:K42) -> 0 | L43: =SUM(L40:L42) -> 198397.34 | N43: =SUM(N40:N42) -> 0 | O43: =SUM(O40:O42) -> 344572.93 | Q43: =SUM(Q40:Q42) -> 0 | R43: =SUM(R40:R42) -> 1349818.55 | T43: 0 | U43: 8340794.04
A45: GOE | B45: =+B39+B43 -> 0 | C45: =+C39+C43 -> 10903690.63 | E45: =+E39+E43 -> 0 | F45: =+F39+F43 -> 28246511.97 | H45: =+H39+H43 -> 0 | I45: =+I39+I43 -> 10439052.18 | K45: =+K39+K43 -> 0 | L45: =+L39+L43 -> 1526627.09 | N45: =+N39+N43 -> 0 | O45: =+O39+O43 -> 6658553.52 | Q45: =+Q39+Q43 -> 0 | R45: =+R39+R43 -> 15620415.13 | T45: =+B45+E45+H45+K45+N45+Q45 -> 0 | U45: =+C45+F45+I45+L45+O45+R45 -> 73394850.52
A47: Gross Operating Profit | B47: =+B29-B45 -> 0 | C47: =+C29-C45 -> 1060966.66 | E47: =+E29-E45 -> 0 | F47: =+F29-F45 -> 1546773.01 | H47: =+H29-H45 -> 0 | I47: =+I29-I45 -> 2347625.62 | K47: =+K29-K45 -> 0 | L47: =+L29-L45 -> 340566.21 | N47: =+N29-N45 -> 0 | O47: =+O29-O45 -> 8381156.54 | Q47: =+Q29-Q45 -> 0 | R47: =+R29-R45 -> 2616490 | T47: =+B47+E47+H47+K47+N47+Q47 -> 0 | U47: =+C47+F47+I47+L47+O47+R47 -> 16293578.04
A49: Sales & Cust Svc Payroll & Related | B49: ='G-12 FS'!B59*B$8 -> 0 | C49: ='G-12 FS'!B59*C$8 -> 270104.43 | E49: ='G-12 FS'!E59*E$8 -> 0 | F49: ='G-12 FS'!E59*F$8 -> 911621.83 | H49: ='G-12 FS'!H59*H$8 -> 0 | I49: ='G-12 FS'!H59*I$8 -> 398724.5 | K49: ='G-12 FS'!K59*K$8 -> 0 | L49: ='G-12 FS'!K59*L$8 -> 0 | N49: ='G-12 FS'!N59*N$8 -> 0 | O49: ='G-12 FS'!N59*O$8 -> 1012018.94 | Q49: ='G-12 FS'!Q59*Q$8 -> 0 | R49: ='G-12 FS'!Q59*R$8 -> 0 | T49: =+B49+E49+H49+K49+N49+Q49 -> 0 | U49: =+C49+F49+I49+L49+O49+R49 -> 2592469.7
A50: Sales Expense | B50: ='G-12 FS'!B60*B$8 -> 0 | C50: ='G-12 FS'!B60*C$8 -> 37606.99 | E50: ='G-12 FS'!E60*E$8 -> 0 | F50: ='G-12 FS'!E60*F$8 -> 49601.39 | H50: ='G-12 FS'!H60*H$8 -> 0 | I50: ='G-12 FS'!H60*I$8 -> 21979.69 | K50: ='G-12 FS'!K60*K$8 -> 0 | L50: ='G-12 FS'!K60*L$8 -> 0 | N50: ='G-12 FS'!N60*N$8 -> 0 | O50: ='G-12 FS'!N60*O$8 -> 43038.69 | Q50: ='G-12 FS'!Q60*Q$8 -> 0 | R50: ='G-12 FS'!Q60*R$8 -> 0 | T50: 0 | U50: 152226.76
A51: Total Sales & Customer Svc Exp | B51: =SUM(B48:B50) -> 0 | C51: =SUM(C48:C50) -> 307711.42 | E51: =SUM(E48:E50) -> 0 | F51: =SUM(F48:F50) -> 961223.22 | H51: =SUM(H48:H50) -> 0 | I51: =SUM(I48:I50) -> 420704.19 | K51: =SUM(K48:K50) -> 0 | L51: =SUM(L48:L50) -> 0 | N51: =SUM(N48:N50) -> 0 | O51: =SUM(O48:O50) -> 1055057.63 | Q51: =SUM(Q48:Q50) -> 0 | R51: =SUM(R48:R50) -> 0 | T51: 0 | U51: 2744696.46
A53: G&A Payroll & Related | B53: ='G-12 FS'!B63*B$8 -> 0 | C53: ='G-12 FS'!B63*C$8 -> 848567.46 | E53: ='G-12 FS'!E63*E$8 -> 0 | F53: ='G-12 FS'!E63*F$8 -> 822252.66 | H53: ='G-12 FS'!H63*H$8 -> 0 | I53: ='G-12 FS'!H63*I$8 -> 273657.72 | K53: ='G-12 FS'!K63*K$8 -> 0 | L53: ='G-12 FS'!K63*L$8 -> 136888.29 | N53: ='G-12 FS'!N63*N$8 -> 0 | O53: ='G-12 FS'!N63*O$8 -> 280524.93 | Q53: ='G-12 FS'!Q63*Q$8 -> 0 | R53: ='G-12 FS'!Q63*R$8 -> 411422.9 | T53: =+B53+E53+H53+K53+N53+Q53 -> 0 | U53: =+C53+F53+I53+L53+O53+R53 -> 2773313.96
A54: G&E Expense | B54: =SUM('G-12 FS'!B64:B66)*B$8 -> 0 | C54: =SUM('G-12 FS'!B64:B66)*C$8 -> 703977.74 | E54: =SUM('G-12 FS'!E64:E66)*E$8 -> 0 | F54: =SUM('G-12 FS'!E64:E66)*F$8 -> 2587804.62 | H54: =SUM('G-12 FS'!H64:H66)*H$8 -> 0 | I54: =SUM('G-12 FS'!H64:H66)*I$8 -> 1061806.33 | K54: =SUM('G-12 FS'!K64:K66)*K$8 -> 0 | L54: =SUM('G-12 FS'!K64:K66)*L$8 -> 137801.16 | N54: =SUM('G-12 FS'!N64:N66)*N$8 -> 0 | O54: =SUM('G-12 FS'!N64:N66)*O$8 -> 1034370.4 | Q54: =SUM('G-12 FS'!Q64:Q66)*Q$8 -> 0 | R54: =SUM('G-12 FS'!Q64:Q66)*R$8 -> 1016787.49 | T54: 0 | U54: 6542547.74
A55: Total G&A Expense | B55: =SUM(B52:B54) -> 0 | C55: =SUM(C52:C54) -> 1552545.2 | E55: =SUM(E52:E54) -> 0 | F55: =SUM(F52:F54) -> 3410057.28 | H55: =SUM(H52:H54) -> 0 | I55: =SUM(I52:I54) -> 1335464.05 | K55: =SUM(K52:K54) -> 0 | L55: =SUM(L52:L54) -> 274689.45 | N55: =SUM(N52:N54) -> 0 | O55: =SUM(O52:O54) -> 1314895.33 | Q55: =SUM(Q52:Q54) -> 0 | R55: =SUM(R52:R54) -> 1428210.39 | T55: 0 | U55: 9315861.7
A57: Total SG&A | B57: =+B51+B55 -> 0 | C57: =+C51+C55 -> 1860256.62 | E57: =+E51+E55 -> 0 | F57: =+F51+F55 -> 4371280.5 | H57: =+H51+H55 -> 0 | I57: =+I51+I55 -> 1756168.24 | K57: =+K51+K55 -> 0 | L57: =+L51+L55 -> 274689.45 | N57: =+N51+N55 -> 0 | O57: =+O51+O55 -> 2369952.96 | Q57: =+Q51+Q55 -> 0 | R57: =+R51+R55 -> 1428210.39 | T57: =+B57+E57+H57+K57+N57+Q57 -> 0 | U57: =+C57+F57+I57+L57+O57+R57 -> 12060558.16
A59: Operating Income | B59: =+B47-B57 -> 0 | C59: =+C47-C57 -> -799289.96 | E59: =+E47-E57 -> 0 | F59: =+F47-F57 -> -2824507.49 | H59: =+H47-H57 -> 0 | I59: =+I47-I57 -> 591457.38 | K59: =+K47-K57 -> 0 | L59: =+L47-L57 -> 65876.76 | N59: =+N47-N57 -> 0 | O59: =+O47-O57 -> 6011203.58 | Q59: =+Q47-Q57 -> 0 | R59: =+R47-R57 -> 1188279.61 | T59: =+B59+E59+H59+K59+N59+Q59 -> 0 | U59: =+C59+F59+I59+L59+O59+R59 -> 4233019.88

Sheet RS Cap Struct.
A2: CAPITAL STRUCTURE CALCULATION | B2: 2017 | C2: 2016 | D2: 2015
A3: Source: Republic Services, Inc Annual Report
A4: http://www.republicservices.com/investors
A5: Generally published each Feb/Mar of following year
A6: (in millions)
A8: Accounts Payable | B8: 598.1 | C8: 553.8 | D8: 577.4 | E8: (pg 82)
A9: Notes Payable and current maturities of LTD | B9: 706.7 | C9: 5.8 | D9: 5.5
A10: Deferred Revenue | B10: 312.1 | C10: 312.9 | D10: 313.9
A11: Accrued Landfill and Environmental costs, current portion | B11: 135.2 | C11: 142.7 | D11: 149.8
A12: Accrued Interest | B12: 74.5 | C12: 71.8 | D12: 71.6
A13: Other Accrued Liabilities | B13: 808.2 | C13: 725 | D13: 716.6
A14: Total Current Liabilities | B14: =SUM(B8:B13) -> 2634.8 | C14: =SUM(C8:C13) -> 1812 | D14: =SUM(D8:D13) -> 1834.8
A16: Long-term Debt, net of current maturities | B16: 7480.7 | C16: 7653.1 | D16: 7527.4
A17: Accrued Landfill and Environmental costs, net of current portion | B17: 1686.5 | C17: 1684.8 | D17: 1677.9
A18: Deferred Income Taxes and other long-term liabilities | B18: 796.4 | C18: 1210.2 | D18: 1131.8
A19: Self-insurance reserves, net of current portion | B19: 275.4 | C19: 274.6 | D19: 278.1
A20: Other long-term liabilities | B20: 312.1 | C20: 301.2 | D20: 309.3
A22: Total Liabilities | B22: =SUM(B14:B21) -> 13185.9 | C22: =SUM(C14:C21) -> 12935.9 | D22: =SUM(D14:D21) -> 12759.3
A24: Preferred Stock | B24: 0 | C24: 0
A25: Common Stock | B25: 3.5 | C25: 3.5 | D25: 3.5
A26: Additional Paid-in Capital | B26: 4839.6 | C26: 4764.5 | D26: 4677.7
A27: Retained Earnings | B27: 4152.5 | C27: 3324 | D27: 3138.3
A28: Treasury stock | B28: -1059.4 | C28: -414.9 | D28: -14.9
A29: Accumulated other comprehensive income (loss), net of tax | B29: 22.6 | C29: 14.2 | D29: -30.5
A31: Non-controlling Interest | B31: 2.3 | C31: 2.4 | D31: 2.5
A33: Total Stockholder's Equity | B33: =SUM(B23:B32) -> 7961.1 | C33: =SUM(C23:C32) -> 7693.7 | D33: =SUM(D23:D32) -> 7776.6
A35: Total Liabilities & Equity | B35: =+B22+B33 -> 21147 | C35: =+C22+C33 -> 20629.6 | D35: =+D22+D33 -> 20535.9
A37: Total Debt | B37: =B9+B16 -> 8187.4 | C37: =C9+C16 -> 7658.9 | D37: =D9+D16 -> 7532.9
A38: Total Net Equity | B38: =+B33-B29 -> 7938.5 | C38: =+C33-C29 -> 7679.5 | D38: =+D33-D29 -> 7807.1
A41: Debt Ratio | B41: =B37/SUM(B37:B38) -> 0.5077173987 | C41: =C37/SUM(C37:C38) -> 0.4993284828 | D41: =D37/SUM(D37:D38) -> 0.4910625815
A42: Equity Ratio | B42: =1-B41 -> 0.4922826013 | C42: =1-C41 -> 0.5006715172 | D42: =1-D41 -> 0.5089374185
A45: COST of DEBT CALCULATION
A46: Source: Republic Services, Inc Annual Report
A47: (in millions)
A49: As of: | B49: 43100 | C49: 42735 | D49: 42369
A50: Total Debt (Carrying Value) | B50: 8187.4 | C50: 7658.9 | D50: 7532.9 | E50: (pg 113)
A51: Interest paid | B51: 326.9 | C51: 330.2 | D51: 327.6 | E51: (pg 116)
A52: Effective Interest Rate | B52: =B51/B50 -> 0.03992720522 | C52: =C51/C50 -> 0.0431132408 | D52: =D51/D50 -> 0.04348922726
A56: TAX RATE
A57: Source: Republic Services, Inc Annual Report
A59: Effective Income Tax Rate | B59: 0.002 | C59: 0.365 | D59: 0.373 | E59: (pg 118)

Sheet Combined LG 2018 V5.0c
B2: Public Companies | F2: Public Co | I2: LURITO - GALLAGHER FORMULA MODEL 2018 V5.0a | M2: Public Co | R2: CALCULATION TABLES | AH2: Revenue Senstive Taxes (RevS)
K3: (b) + (c) | M3: (d) + (e) | T3: Regession | V3: Regession | W3: Regession | X3: Regession | Z3: Adjusted | AA3: Hauler | AB3: Hauler | AC3: Hauler | AD3: Hauler | AE3: Hauler | AF3: Hauler | AG3: Revenue Req | AH3: Revenue | AI3: Revenue
B4: INPUTS - Test Year | H4: (a) | I4: (b) | J4: (c) | K4: (d) | L4: (e) | M4: (f) | T4: Before Tax | V4: Less | W4: Adjusted | X4: After Tax | Y4: Flotation Costs | Z4: After Tax | AA4: Weighted Cost | AB4: Weighted Cost | AC4: Weighted Cost | AD4: Adjusted | AE4: Before Tax | AF4: Before Tax | AG4: Before RevS | AH4: Increase Before | AI4: Increase After | AJ4: RevS | AK4: Total
B5: Operating Revenue | C5: 10050943.46 | F5: Line | I5: Historical | J5: Revenue | K5: Proforma | L5: Add: Revenue | M5: Revenue | T5: Profit Ratio | U5: BTROI | V5: WCDebt | W5: BTROE | X5: ROE | Y5: Basis Points | Z5: ROE | AA5: Equity | AB5: Equity BFT | AC5: Debt | AD5: BTROR | AE5: Profit Ratio | AF5: Operating Ratio | AG5: Taxes | AH5: RevS Taxes | AI5: RevS Taxes | AJ5: Taxes | AK5: Revenue Req
B6: Operating Expenses | C6: 10406344.08 | F6: No. | J6: Change | L6: Sensitive Taxes | M6: Requirement | R6: 1 | S6: =Revenue/Investment*100 -> 599.4159799 | T6: =EXP(y_inter1-(slope*LN(+S6))) -> 3.856950666 | U6: =(+S6*T6/100)/100 -> 0.2311917863 | V6: =regDebt_weighted -> 0.03586 | W6: =+U6-V6 -> 0.1953317863 | X6: =+((W6*(1-0.34))-Pfd_weighted)/Equity_percent -> 0.3567702876 | Y6: =+C15 -> 0.25 | Z6: =+X6+Y6 -> 0.6067702876 | AA6: =Z6*equityP -> 0.2985309815 | AB6: =+AA6/(1-taxrate) -> 0.29912924 | AC6: =debtP*Debt_Rate -> 0.02028302025 | AD6: =AC6+AB6 -> 0.3194122603 | AE6: =AD6/(S6/100) -> 0.05328724475 | AF6: =1-AE6 -> 0.9467127553 | AG6: =expenses/(AF6) -> 10992081.84 | AH6: =+AG6-Revenue -> 941138.3813 | AI6: =+AH6/$J$49 -> 1016260.502 | AJ6: =+AI6*$J$47 -> 25685.98418 | AK6: =ROUND(+AJ6+AG6,5) -> 11017767.82
B7: Investment | C7: 1676789.374 | F7: 1 | H7: Operating Revenue | I7: =IF(A64=TRUE,C5,0) -> 10050943.46 | J7: =(+$I8/($R50))-I7 -> 888743.1681 | K7: =+I7+J7 -> 10939686.62 | L7: =((+J7/J49*K35)-J7) -> 24255.98978 | M7: =IFERROR(+K7+L7,0.00001) -> 10963942.61 | R7: 2 | S7: =Revenue/Investment*100 -> 599.4159799 | T7: =EXP(y_inter1-(slope*LN(+S7))) -> 3.856950666 | U7: =(+S7*T7/100)/100 -> 0.2311917863 | V7: =regDebt_weighted -> 0.03586 | W7: =+U7-V7 -> 0.1953317863 | X7: =+((W7*(1-0.34))-Pfd_weighted)/Equity_percent -> 0.3567702876 | Y7: =+Y6 -> 0.25 | Z7: =+X7+Y7 -> 0.6067702876 | AA7: =Z7*equityP -> 0.2985309815 | AB7: =+AA7/(1-taxrate) -> 0.29912924 | AC7: =debtP*Debt_Rate -> 0.02028302025 | AD7: =AC7+AB7 -> 0.3194122603 | AE7: =AD7/(S7/100) -> 0.05328724475 | AF7: =1-AE7 -> 0.9467127553 | AG7: =expenses/(AF7) -> 10992081.84 | AH7: =+AG7-Revenue -> 941138.3813 | AI7: =+AH7/$J$49 -> 1016260.502 | AJ7: =+AI7*$J$47 -> 25685.98418 | AK7: =ROUND(+AJ7+AG7,5) -> 11017767.82
B8: Capital Structure-Debt % | C8: 0.508 | F8: =+F7+1 -> 2 | H8: Operating Expenses | I8: =IF(A64=TRUE,C6,0) -> 10406344.08 | K8: =+I8 -> 10406344.08 | L8: =+L7 -> 24255.98978 | M8: =IFERROR(+K8+L8,0.00001) -> 10430600.07 | R8: 3 | S8: =Revenue/Investment*100 -> 599.4159799 | T8: =EXP(y_inter1-(slope*LN(+S8))) -> 3.856950666 | U8: 0.2311917863 | V8: =regDebt_weighted -> 0.03586 | W8: 0.1953317863 | X8: =+((W8*(1-0.34))-Pfd_weighted)/Equity_percent -> 0.3567702876 | Y8: =+Y7 -> 0.25 | Z8: =+X8+Y8 -> 0.6067702876 | AA8: =Z8*equityP -> 0.2985309815 | AB8: =+AA8/(1-taxrate) -> 0.29912924 | AC8: =debtP*Debt_Rate -> 0.02028302025 | AD8: 0.3194122603 | AE8: 0.05328724475 | AF8: 0.9467127553 | AG8: =expenses/(AF8) -> 10992081.84 | AH8: =+AG8-Revenue -> 941138.3813 | AI8: =+AH8/$J$49 -> 1016260.502 | AJ8: =+AI8*$J$47 -> 25685.98418 | AK8: 11017767.82
B9: Capital Structure-Debt Rate | C9: 0.03992720522 | F9: =+F8+1 -> 3 | H9: Operating Income | I9: =+I7-I8 -> -355400.6262 | K9: =+K7-K8 -> 533342.542 | M9: =+M7-M8 -> 533342.542 | R9: 4 | S9: =Revenue/Investment*100 -> 599.4159799 | T9: =EXP(y_inter1-(slope*LN(+S9))) -> 3.856950666 | U9: 0.2311917863 | V9: =regDebt_weighted -> 0.03586 | W9: 0.1953317863 | X9: =+((W9*(1-0.34))-Pfd_weighted)/Equity_percent -> 0.3567702876 | Y9: =+Y8 -> 0.25 | Z9: 0.6067702876 | AA9: =Z9*equityP -> 0.2985309815 | AB9: =+AA9/(1-taxrate) -> 0.29912924 | AC9: =debtP*Debt_Rate -> 0.02028302025 | AD9: 0.3194122603 | AE9: 0.05328724475 | AF9: 0.9467127553 | AG9: =expenses/(AF9) -> 10992081.84 | AH9: =+AG9-Revenue -> 941138.3813 | AI9: =+AH9/$J$49 -> 1016260.502 | AJ9: =+AI9*$J$47 -> 25685.98418 | AK9: 11017767.82
B10: Federal Income Tax Rate | C10: 0.002 | F10: 4 | R10: 2nd Iteration
B11: B&O Tax Rate | C11: 0.015 | F11: 5 | H11: Interest Expense | I11: =+K11 -> 34010.35283 | K11: =+M27 -> 34010.35283 | M11: =+K11 -> 34010.35283 | R11: 1 | S11: =IF((AK6/Investment*100)>0,(AK6/Investment*100),0) -> 657.0752411 | T11: =EXP(y_inter1-(slope*LN(S11))) -> 3.622218836 | U11: =(+S11*T11/100)/100 -> 0.2380070315 | V11: =regDebt_weighted -> 0.03586 | W11: =+U11-V11 -> 0.2021470315 | X11: =+((W11*(1-0.34))-Pfd_weighted)/Equity_percent -> 0.3698460488 | Y11: =+Y9 -> 0.25 | Z11: =+X11+Y11 -> 0.6198460488 | AA11: =Z11*equityP -> 0.304964256 | AB11: =+AA11/(1-taxrate) -> 0.3055754068 | AC11: =debtP*Debt_Rate -> 0.02028302025 | AD11: =+AC11+AB11 -> 0.3258584271 | AE11: =+AD11/(S11/100) -> 0.04959225469 | AF11: =1-AE11 -> 0.9504077453 | AG11: =expenses/(AF11) -> 10949346.88 | AH11: =+AG11-Revenue -> 898403.4254 | AI11: =+AH11/$J$49 -> 970114.4208 | AJ11: =+AI11*$J$47 -> 24519.64199 | AK11: =ROUND(+AJ11+AG11,5) -> 10973866.52
B12: WUTC Fee | C12: 0.004275 | F12: 6 | H12: Income Tax Expense | I12: =IF(I14<0,0,+J38*I14) -> 0 | J12: =+K12-I12 -> 998.6643783 | K12: =+(K9-K11)*taxrate -> 998.6643783 | M12: =+K12 -> 998.6643783 | R12: 2 | S12: =IF((AK7/Investment*100)>0,(AK7/Investment*100),0) -> 657.0752411 | T12: =EXP(y_inter2-(slope*LN(+S12))) -> 3.570682579 | U12: =(+S12*T12/100)/100 -> 0.2346207117 | V12: =regDebt_weighted -> 0.03586 | W12: =+U12-V12 -> 0.1987607117 | X12: =+((W12*(1-0.34))-Pfd_weighted)/Equity_percent -> 0.3633490398 | Y12: =+Y11 -> 0.25 | Z12: =+X12+Y12 -> 0.6133490398 | AA12: =Z12*equityP -> 0.3017677276 | AB12: =+AA12/(1-taxrate) -> 0.3023724725 | AC12: =debtP*Debt_Rate -> 0.02028302025 | AD12: =+AC12+AB12 -> 0.3226554928 | AE12: =+AD12/(S12/100) -> 0.04910480149 | AF12: =1-AE12 -> 0.9508951985 | AG12: =expenses/(AF12) -> 10943733.97 | AH12: =+AG12-Revenue -> 892790.5101 | AI12: =+AH12/$J$49 -> 964053.48 | AJ12: =+AI12*$J$47 -> 24366.45171 | AK12: =ROUND(+AJ12+AG12,5) -> 10968100.42
B13: City Tax | C13: 0 | F13: 7 | R13: 3 | S13: =IF((AK8/Investment*100)>0,(AK8/Investment*100),0) -> 657.0752411 | T13: =EXP(y_inter3-(slope*LN(S13))) -> 3.535966873 | U13: =(+S13*T13/100)/100 -> 0.2323396285 | V13: =regDebt_weighted -> 0.03586 | W13: =+U13-V13 -> 0.1964796285 | X13: =+((W13*(1-0.34))-Pfd_weighted)/Equity_percent -> 0.3589725431 | Y13: =+Y12 -> 0.25 | Z13: =+X13+Y13 -> 0.6089725431 | AA13: =Z13*equityP -> 0.2996144912 | AB13: =+AA13/(1-taxrate) -> 0.3002149211 | AC13: =debtP*Debt_Rate -> 0.02028302025 | AD13: =+AC13+AB13 -> 0.3204979413 | AE13: =+AD13/(S13/100) -> 0.04877644466 | AF13: =1-AE13 -> 0.9512235553 | AG13: =expenses/(AF13) -> 10939956.25 | AH13: =+AG13-Revenue -> 889012.7969 | AI13: =+AH13/$J$49 -> 959974.2278 | AJ13: =+AI13*$J$47 -> 24263.34861 | AK13: 10964219.6
B14: Bad Debts | C14: 0.006 | F14: 8 | H14: Net Income | I14: =+I9-SUM(I11:I13) -> -389410.979 | K14: =+K9-SUM(K11:K13) -> 498333.5248 | M14: =+M9-SUM(M11:M13) -> 498333.5248 | R14: 4 | S14: =IF((AK9/Investment*100)>0,(AK9/Investment*100),0) -> 657.0752411 | T14: =EXP(y_inter4-(slope*LN(S14))) -> 3.513760306 | U14: =(+S14*T14/100)/100 -> 0.23088049 | V14: =regDebt_weighted -> 0.03586 | W14: =+U14-V14 -> 0.19502049 | X14: =+((W14*(1-0.34))-Pfd_weighted)/Equity_percent -> 0.3561730331 | Y14: =+Y13 -> 0.25 | Z14: 0.6061730331 | AA14: =Z14*equityP -> 0.2982371323 | AB14: =+AA14/(1-taxrate) -> 0.2988348019 | AC14: =debtP*Debt_Rate -> 0.02028302025 | AD14: =+AC14+AB14 -> 0.3191178222 | AE14: =+AD14/(S14/100) -> 0.04856640491 | AF14: =1-AE14 -> 0.9514335951 | AG14: =expenses/(AF14) -> 10937541.13 | AH14: =+AG14-Revenue -> 886597.6776 | AI14: =+AH14/$J$49 -> 957366.3325 | AJ14: =+AI14*$J$47 -> 24197.43405 | AK14: 10961738.57
B15: Basis Points - Flotation | C15: 0.25 | F15: 9 | R15: 3rd Iteration
D16: Yes | F16: 10 | H16: Operating Ratio | I16: =+I8/I7 -> 1.035359927 | K16: =+K8/K7 -> 0.951247 | M16: =+M8/M7 -> 0.9513548583 | R16: 1 | S16: =AK11/Investment*100 -> 654.457065 | T16: =EXP(y_inter1-(slope*LN(+S16))) -> 3.632119504 | U16: =(+S16*T16/100)/100 -> 0.237706627 | V16: =regDebt_weighted -> 0.03586 | W16: =+U16-V16 -> 0.201846627 | X16: =+((W16*(1-0.34))-Pfd_weighted)/Equity_percent -> 0.3692696914 | Y16: =+Y14 -> 0.25 | Z16: =+X16+Y16 -> 0.6192696914 | AA16: =Z16*equityP -> 0.3046806882 | AB16: =+AA16/(1-taxrate) -> 0.3052912707 | AC16: =debtP*Debt_Rate -> 0.02028302025 | AD16: =+AC16+AB16 -> 0.325574291 | AE16: =+AD16/(S16/100) -> 0.04974723452 | AF16: =1-AE16 -> 0.9502527655 | AG16: =expenses/(AF16) -> 10951132.65 | AH16: =+AG16-Revenue -> 900189.1901 | AI16: =+AH16/$J$49 -> 972042.7262 | AJ16: =+AI16*$J$47 -> 24568.3799 | AK16: =ROUND(+AJ16+AG16,5) -> 10975701.03
B17: Check when input is complete | D17: No | F17: 11 | R17: 2 | S17: =AK12/Investment*100 -> 654.1131873 | T17: =EXP(y_inter2-(slope*LN(+S17))) -> 3.581729144 | U17: =(+S17*T17/100)/100 -> 0.2342856267 | V17: =regDebt_weighted -> 0.03586 | W17: =+U17-V17 -> 0.1984256267 | X17: =+((W17*(1-0.34))-Pfd_weighted)/Equity_percent -> 0.3627061442 | Y17: =+Y16 -> 0.25 | Z17: =+X17+Y17 -> 0.6127061442 | AA17: =Z17*equityP -> 0.3014514229 | AB17: =+AA17/(1-taxrate) -> 0.302055534 | AC17: =debtP*Debt_Rate -> 0.02028302025 | AD17: =+AC17+AB17 -> 0.3223385542 | AE17: =+AD17/(S17/100) -> 0.04927871208 | AF17: =1-AE17 -> 0.9507212879 | AG17: =expenses/(AF17) -> 10945735.85 | AH17: =+AG17-Revenue -> 894792.3915 | AI17: =+AH17/$J$49 -> 966215.1525 | AJ17: =+AI17*$J$47 -> 24421.08798 | AK17: =ROUND(+AJ17+AG17,5) -> 10970156.94
F18: 12 | H18: Revenue Requirement | R18: 3 | S18: =AK13/Investment*100 -> 653.881744 | T18: =EXP(y_inter3-(slope*LN(S18))) -> 3.547764295 | U18: =(+S18*T18/100)/100 -> 0.2319818305 | V18: =regDebt_weighted -> 0.03586 | W18: =+U18-V18 -> 0.1961218305 | X18: =+((W18*(1-0.34))-Pfd_weighted)/Equity_percent -> 0.3582860701 | Y18: =+Y17 -> 0.25 | Z18: =+X18+Y18 -> 0.6082860701 | AA18: =Z18*equityP -> 0.2992767465 | AB18: =+AA18/(1-taxrate) -> 0.2998764995 | AC18: =debtP*Debt_Rate -> 0.02028302025 | AD18: =+AC18+AB18 -> 0.3201595197 | AE18: =+AD18/(S18/100) -> 0.04896290846 | AF18: =1-AE18 -> 0.9510370915 | AG18: =expenses/(AF18) -> 10942101.18 | AH18: =+AG18-Revenue -> 891157.7246 | AI18: =+AH18/$J$49 -> 962290.3647 | AJ18: =+AI18*$J$47 -> 24321.88897 | AK18: 10966423.07
B19: For Intial input: Uncheck Checkbox Until Completed | F19: 13 | I19: Historical Revenue | J19: =+Revenue -> 10050943.46 | L19: Revenue Increase before taxes | M19: =+J7 -> 888743.1681 | R19: 4 | S19: =AK14/Investment*100 -> 653.7337806 | T19: =EXP(y_inter4-(slope*LN(S19))) -> 3.526029148 | U19: =(+S19*T19/100)/100 -> 0.2305084366 | V19: =regDebt_weighted -> 0.03586 | W19: =+U19-V19 -> 0.1946484366 | X19: =+((W19*(1-0.34))-Pfd_weighted)/Equity_percent -> 0.3554592097 | Y19: =+Y18 -> 0.25 | Z19: 0.6054592097 | AA19: =Z19*equityP -> 0.2978859312 | AB19: =+AA19/(1-taxrate) -> 0.298482897 | AC19: =debtP*Debt_Rate -> 0.02028302025 | AD19: =+AC19+AB19 -> 0.3187659172 | AE19: =+AD19/(S19/100) -> 0.04876081467 | AF19: =1-AE19 -> 0.9512391853 | AG19: =expenses/(AF19) -> 10939776.5 | AH19: =+AG19-Revenue -> 888833.0404 | AI19: =+AH19/$J$49 -> 959780.1231 | AJ19: =+AI19*$J$47 -> 24258.44261 | AK19: 10964034.94
F20: 14 | I20: Rate Increase | J20: =+J21-J19 -> 912999.1579 | L20: Rev Sensitive Taxes | M20: =+L8 -> 24255.98978 | R20: 4th Iteration
F21: 15 | I21: Revenue Requirement | J21: =+M7 -> 10963942.61 | L21: Rate Increase | M21: =+M19+M20 -> 912999.1579 | R21: 1 | S21: =AK16/Investment*100 -> 654.5664707 | T21: =EXP(y_inter1-(slope*LN(+S21))) -> 3.63170445 | U21: =(+S21*T21/100)/100 -> 0.2377191965 | V21: =regDebt_weighted -> 0.03586 | W21: =+U21-V21 -> 0.2018591965 | X21: =+((W21*(1-0.34))-Pfd_weighted)/Equity_percent -> 0.3692938072 | Y21: =+Y19 -> 0.25 | Z21: =+X21+Y21 -> 0.6192938072 | AA21: =Z21*equityP -> 0.3046925531 | AB21: =+AA21/(1-taxrate) -> 0.3053031594 | AC21: =debtP*Debt_Rate -> 0.02028302025 | AD21: =+AC21+AB21 -> 0.3255861797 | AE21: =+AD21/(S21/100) -> 0.04974073593 | AF21: =1-AE21 -> 0.9502592641 | AG21: =expenses/(AF21) -> 10951057.75 | AH21: =+AG21-Revenue -> 900114.2981 | AI21: =+AH21/$J$49 -> 971961.8562 | AJ21: =+AI21*$J$47 -> 24566.33592 | AK21: =ROUND(+AJ21+AG21,5) -> 10975624.09
F22: 16 | R22: 2 | S22: =AK17/Investment*100 -> 654.2358334 | T22: =EXP(y_inter2-(slope*LN(+S22))) -> 3.581270082 | U22: =(+S22*T22/100)/100 -> 0.2342995217 | V22: =regDebt_weighted -> 0.03586 | W22: =+U22-V22 -> 0.1984395217 | X22: =+((W22*(1-0.34))-Pfd_weighted)/Equity_percent -> 0.3627328032 | Y22: =+Y21 -> 0.25 | Z22: =+X22+Y22 -> 0.6127328032 | AA22: =Z22*equityP -> 0.3014645392 | AB22: =+AA22/(1-taxrate) -> 0.3020686765 | AC22: =debtP*Debt_Rate -> 0.02028302025 | AD22: =+AC22+AB22 -> 0.3223516968 | AE22: =+AD22/(S22/100) -> 0.0492714829 | AF22: =1-AE22 -> 0.9507285171 | AG22: =expenses/(AF22) -> 10945652.62 | AH22: =+AG22-Revenue -> 894709.1619 | AI22: =+AH22/$J$49 -> 966125.2795 | AJ22: =+AI22*$J$47 -> 24418.81644 | AK22: =ROUND(+AJ22+AG22,5) -> 10970071.43
B23: 2018 Version Update Changes | F23: 17 | R23: 3 | S23: =AK18/Investment*100 -> 654.0131539 | T23: =EXP(y_inter3-(slope*LN(S23))) -> 3.547276928 | U23: =(+S23*T23/100)/100 -> 0.2319965771 | V23: =regDebt_weighted -> 0.03586 | W23: =+U23-V23 -> 0.1961365771 | X23: =+((W23*(1-0.34))-Pfd_weighted)/Equity_percent -> 0.3583143631 | Y23: =+Y22 -> 0.25 | Z23: =+X23+Y23 -> 0.6083143631 | AA23: =Z23*equityP -> 0.2992906666 | AB23: =+AA23/(1-taxrate) -> 0.2998904475 | AC23: =debtP*Debt_Rate -> 0.02028302025 | AD23: =+AC23+AB23 -> 0.3201734678 | AE23: =+AD23/(S23/100) -> 0.0489552031 | AF23: =1-AE23 -> 0.9510447969 | AG23: =expenses/(AF23) -> 10942012.53 | AH23: =+AG23-Revenue -> 891069.0717 | AI23: =+AH23/$J$49 -> 962194.6355 | AJ23: =+AI23*$J$47 -> 24319.46941 | AK23: 10966332
B24: ● Allows Income Tax Rate Changes, | F24: 18 | H24: Captial Structure Financing Investment | K24: Financing Cost | R24: 4 | S24: =AK19/Investment*100 -> 653.8707311 | T24: =EXP(y_inter4-(slope*LN(S24))) -> 3.525524233 | U24: =(+S24*T24/100)/100 -> 0.2305237108 | V24: =regDebt_weighted -> 0.03586 | W24: =+U24-V24 -> 0.1946637108 | X24: =+((W24*(1-0.34))-Pfd_weighted)/Equity_percent -> 0.3554885149 | Y24: =+Y23 -> 0.25 | Z24: 0.6054885149 | AA24: =Z24*equityP -> 0.2979003493 | AB24: =+AA24/(1-taxrate) -> 0.298497344 | AC24: =debtP*Debt_Rate -> 0.02028302025 | AD24: =+AC24+AB24 -> 0.3187803643 | AE24: =+AD24/(S24/100) -> 0.04875281139 | AF24: =1-AE24 -> 0.9512471886 | AG24: =expenses/(AF24) -> 10939684.45 | AH24: =+AG24-Revenue -> 888740.999 | AI24: =+AH24/$J$49 -> 959680.7349 | AJ24: =+AI24*$J$47 -> 24255.93058 | AK24: 10963940.39
B25: ● Minimizes impact of changes in test-year revenue from | F25: 19 | H25: Type | I25: Percent | J25: Amount | K25: Cost of Capital | L25: Weighted | M25: Amount | R25: 5th Iteration
B26: resulting revenue requirment, | F26: 20 | H26: Equity | I26: =1-I27 -> 0.492 | J26: =+I26*J28 -> 824980.372 | K26: =+K34 -> 0.6040550075 | L26: =+K26*I26 -> 0.2971950637 | M26: =+J26*K26 -> 498333.5248 | R26: 1 | S26: =AK21/Investment*100 -> 654.5618824 | T26: =EXP(y_inter1-(slope*LN(+S26))) -> 3.631721855 | U26: =(+S26*T26/100)/100 -> 0.2377186693 | V26: =regDebt_weighted -> 0.03586 | W26: =+U26-V26 -> 0.2018586693 | X26: =+((W26*(1-0.34))-Pfd_weighted)/Equity_percent -> 0.3692927958 | Y26: =+Y24 -> 0.25 | Z26: =+X26+Y26 -> 0.6192927958 | AA26: =Z26*equityP -> 0.3046920556 | AB26: =+AA26/(1-taxrate) -> 0.3053026609 | AC26: =debtP*Debt_Rate -> 0.02028302025 | AD26: =+AC26+AB26 -> 0.3255856811 | AE26: =+AD26/(S26/100) -> 0.04974100843 | AF26: =1-AE26 -> 0.9502589916 | AG26: =expenses/(AF26) -> 10951060.89 | AH26: =+AG26-Revenue -> 900117.4385 | AI26: =+AH26/$J$49 -> 971965.2473 | AJ26: =+AI26*$J$47 -> 24566.42162 | AK26: =ROUND(+AJ26+AG26,5) -> 10975627.32
B27: ● Corrects interest rate transposition in LG. | F27: 21 | H27: Debt | I27: =IF(A64=TRUE,C8,0) -> 0.508 | J27: =+I27*J28 -> 851809.002 | K27: =IF(A64=TRUE,C9,0) -> 0.03992720522 | L27: =+K27*I27 -> 0.02028302025 | M27: =+K27*J27 -> 34010.35283 | R27: 2 | S27: =AK22/Investment*100 -> 654.2307343 | T27: =EXP(y_inter2-(slope*LN(+S27))) -> 3.581289165 | U27: =(+S27*T27/100)/100 -> 0.234298944 | V27: =regDebt_weighted -> 0.03586 | W27: =+U27-V27 -> 0.198438944 | X27: =+((W27*(1-0.34))-Pfd_weighted)/Equity_percent -> 0.3627316949 | Y27: =+Y26 -> 0.25 | Z27: =+X27+Y27 -> 0.6127316949 | AA27: =Z27*equityP -> 0.3014639939 | AB27: =+AA27/(1-taxrate) -> 0.3020681302 | AC27: =debtP*Debt_Rate -> 0.02028302025 | AD27: =+AC27+AB27 -> 0.3223511504 | AE27: =+AD27/(S27/100) -> 0.04927178341 | AF27: =1-AE27 -> 0.9507282166 | AG27: =expenses/(AF27) -> 10945656.08 | AH27: =+AG27-Revenue -> 894712.6217 | AI27: =+AH27/$J$49 -> 966129.0154 | AJ27: =+AI27*$J$47 -> 24418.91086 | AK27: =ROUND(+AJ27+AG27,5) -> 10970074.99
F28: 22 | H28: Total | I28: =SUM(I26:I27) -> 1 | J28: =IF(A64=TRUE,C7,0) -> 1676789.374 | L28: =SUM(L26:L27) -> 0.3174780839 | M28: =SUM(M26:M27) -> 532343.8776 | R28: 3 | S28: =AK23/Investment*100 -> 654.0077226 | T28: =EXP(y_inter3-(slope*LN(S28))) -> 3.547297068 | U28: =(+S28*T28/100)/100 -> 0.2319959677 | V28: =regDebt_weighted -> 0.03586 | W28: =+U28-V28 -> 0.1961359677 | X28: =+((W28*(1-0.34))-Pfd_weighted)/Equity_percent -> 0.3583131938 | Y28: =+Y27 -> 0.25 | Z28: =+X28+Y28 -> 0.6083131938 | AA28: =Z28*equityP -> 0.2992900913 | AB28: =+AA28/(1-taxrate) -> 0.2998898711 | AC28: =debtP*Debt_Rate -> 0.02028302025 | AD28: =+AC28+AB28 -> 0.3201728913 | AE28: =+AD28/(S28/100) -> 0.04895552151 | AF28: =1-AE28 -> 0.9510444785 | AG28: =expenses/(AF28) -> 10942016.19 | AH28: =+AG28-Revenue -> 891072.7352 | AI28: =+AH28/$J$49 -> 962198.5914 | AJ28: =+AI28*$J$47 -> 24319.5694 | AK28: 10966335.76
F29: 23 | R29: 4 | S29: =AK24/Investment*100 -> 653.8650922 | T29: =EXP(y_inter4-(slope*LN(S29))) -> 3.525545019 | U29: =(+S29*T29/100)/100 -> 0.2305230819 | V29: =regDebt_weighted -> 0.03586 | W29: =+U29-V29 -> 0.1946630819 | X29: =+((W29*(1-0.34))-Pfd_weighted)/Equity_percent -> 0.3554873083 | Y29: =+Y28 -> 0.25 | Z29: 0.6054873083 | AA29: =Z29*equityP -> 0.2978997557 | AB29: =+AA29/(1-taxrate) -> 0.2984967492 | AC29: =debtP*Debt_Rate -> 0.02028302025 | AD29: =+AC29+AB29 -> 0.3187797694 | AE29: =+AD29/(S29/100) -> 0.04875314086 | AF29: =1-AE29 -> 0.9512468591 | AG29: =expenses/(AF29) -> 10939688.24 | AH29: =+AG29-Revenue -> 888744.7881 | AI29: =+AH29/$J$49 -> 959684.8265 | AJ29: =+AI29*$J$47 -> 24256.03399 | AK29: 10963944.28
F30: 24 | J30: Before | K30: After | R30: 6th Iteration
F31: 25 | H31: Operating Statistics | J31: Income Tax | K31: Income Tax | R31: 1 | S31: =AK26/Investment*100 -> 654.5620748 | T31: =EXP(y_inter1-(slope*LN(+S31))) -> 3.631721125 | U31: =(+S31*T31/100)/100 -> 0.2377186914 | V31: =regDebt_weighted -> 0.03586 | W31: =+U31-V31 -> 0.2018586914 | X31: =+((W31*(1-0.34))-Pfd_weighted)/Equity_percent -> 0.3692928382 | Y31: =+Y29 -> 0.25 | Z31: =+X31+Y31 -> 0.6192928382 | AA31: =Z31*equityP -> 0.3046920764 | AB31: =+AA31/(1-taxrate) -> 0.3053026818 | AC31: =debtP*Debt_Rate -> 0.02028302025 | AD31: =+AC31+AB31 -> 0.325585702 | AE31: =+AD31/(S31/100) -> 0.04974099701 | AF31: =1-AE31 -> 0.950259003 | AG31: =expenses/(AF31) -> 10951060.76 | AH31: =+AG31-Revenue -> 900117.3068 | AI31: =+AH31/$J$49 -> 971965.1051 | AJ31: =+AI31*$J$47 -> 24566.41803 | AK31: =ROUND(+AJ31+AG31,5) -> 10975627.18
F32: 26 | R32: 2 | S32: =AK27/Investment*100 -> 654.2309463 | T32: =EXP(y_inter2-(slope*LN(+S32))) -> 3.581288372 | U32: =(+S32*T32/100)/100 -> 0.234298968 | V32: =regDebt_weighted -> 0.03586 | W32: =+U32-V32 -> 0.198438968 | X32: =+((W32*(1-0.34))-Pfd_weighted)/Equity_percent -> 0.362731741 | Y32: =+Y31 -> 0.25 | Z32: =+X32+Y32 -> 0.612731741 | AA32: =Z32*equityP -> 0.3014640166 | AB32: =+AA32/(1-taxrate) -> 0.3020681529 | AC32: =debtP*Debt_Rate -> 0.02028302025 | AD32: =+AC32+AB32 -> 0.3223511731 | AE32: =+AD32/(S32/100) -> 0.04927177092 | AF32: =1-AE32 -> 0.9507282291 | AG32: =expenses/(AF32) -> 10945655.93 | AH32: =+AG32-Revenue -> 894712.4779 | AI32: =+AH32/$J$49 -> 966128.8601 | AJ32: =+AI32*$J$47 -> 24418.90694 | AK32: =ROUND(+AJ32+AG32,5) -> 10970074.84
F33: 27 | H33: Return on Investment | J33: =+K9/J28 -> 0.3180736652 | K33: =+(M14+M11)/J28 -> 0.3174780839 | R33: 3 | S33: =AK28/Investment*100 -> 654.007947 | T33: =EXP(y_inter3-(slope*LN(S33))) -> 3.547296236 | U33: =(+S33*T33/100)/100 -> 0.2319959929 | V33: =regDebt_weighted -> 0.03586 | W33: =+U33-V33 -> 0.1961359929 | X33: =+((W33*(1-0.34))-Pfd_weighted)/Equity_percent -> 0.3583132421 | Y33: =+Y32 -> 0.25 | Z33: =+X33+Y33 -> 0.6083132421 | AA33: =Z33*equityP -> 0.2992901151 | AB33: =+AA33/(1-taxrate) -> 0.2998898949 | AC33: =debtP*Debt_Rate -> 0.02028302025 | AD33: =+AC33+AB33 -> 0.3201729152 | AE33: =+AD33/(S33/100) -> 0.04895550836 | AF33: =1-AE33 -> 0.9510444916 | AG33: =expenses/(AF33) -> 10942016.04 | AH33: =+AG33-Revenue -> 891072.5838 | AI33: =+AH33/$J$49 -> 962198.428 | AJ33: =+AI33*$J$47 -> 24319.56527 | AK33: 10966335.61
F34: 28 | H34: Return on Equity | J34: =+(M9-M11)/J26 -> 0.6052655386 | K34: =+M14/J26 -> 0.6040550075 | R34: 4 | S34: =AK29/Investment*100 -> 653.8653243 | T34: =EXP(y_inter4-(slope*LN(S34))) -> 3.525544164 | U34: =(+S34*T34/100)/100 -> 0.2305231078 | V34: =regDebt_weighted -> 0.03586 | W34: =+U34-V34 -> 0.1946631078 | X34: =+((W34*(1-0.34))-Pfd_weighted)/Equity_percent -> 0.355487358 | Y34: =+Y33 -> 0.25 | Z34: 0.605487358 | AA34: =Z34*equityP -> 0.2978997801 | AB34: =+AA34/(1-taxrate) -> 0.2984967737 | AC34: =debtP*Debt_Rate -> 0.02028302025 | AD34: =+AC34+AB34 -> 0.3187797939 | AE34: =+AD34/(S34/100) -> 0.0487531273 | AF34: =1-AE34 -> 0.9512468727 | AG34: =expenses/(AF34) -> 10939688.09 | AH34: =+AG34-Revenue -> 888744.6321 | AI34: =+AH34/$J$49 -> 959684.658 | AJ34: =+AI34*$J$47 -> 24256.02973 | AK34: 10963944.12
F35: 29 | H35: Operating Ratio | J35: =+K8/K7 -> 0.951247 | K35: =+M8/M7 -> 0.9513548583 | R35: 7th Iteration
F36: 30 | H36: Profit Margin | J36: =+K9/K7 -> 0.048753 | K36: =+J36 -> 0.048753 | R36: 1 | S36: =AK31/Investment*100 -> 654.5620667 | T36: =EXP(y_inter1-(slope*LN(+S36))) -> 3.631721155 | U36: =(+S36*T36/100)/100 -> 0.2377186905 | V36: =regDebt_weighted -> 0.03586 | W36: =+U36-V36 -> 0.2018586905 | X36: =+((W36*(1-0.34))-Pfd_weighted)/Equity_percent -> 0.3692928365 | Y36: =+Y34 -> 0.25 | Z36: =+X36+Y36 -> 0.6192928365 | AA36: =Z36*equityP -> 0.3046920755 | AB36: =+AA36/(1-taxrate) -> 0.3053026809 | AC36: =debtP*Debt_Rate -> 0.02028302025 | AD36: =+AC36+AB36 -> 0.3255857012 | AE36: =+AD36/(S36/100) -> 0.04974099749 | AF36: =1-AE36 -> 0.9502590025 | AG36: =expenses/(AF36) -> 10951060.77 | AH36: =+AG36-Revenue -> 900117.3123 | AI36: =+AH36/$J$49 -> 971965.111 | AJ36: =+AI36*$J$47 -> 24566.41818 | AK36: =ROUND(+AJ36+AG36,5) -> 10975627.19
F37: 31 | H37: Final turnover | J37: =+S39/100 -> 6.538653148 | K37: =+J37 -> 6.538653148 | R37: 2 | S37: =AK32/Investment*100 -> 654.2309375 | T37: =EXP(y_inter2-(slope*LN(+S37))) -> 3.581288405 | U37: =(+S37*T37/100)/100 -> 0.234298967 | V37: =regDebt_weighted -> 0.03586 | W37: =+U37-V37 -> 0.198438967 | X37: =+((W37*(1-0.34))-Pfd_weighted)/Equity_percent -> 0.3627317391 | Y37: =+Y36 -> 0.25 | Z37: =+X37+Y37 -> 0.6127317391 | AA37: =Z37*equityP -> 0.3014640156 | AB37: =+AA37/(1-taxrate) -> 0.3020681519 | AC37: =debtP*Debt_Rate -> 0.02028302025 | AD37: =+AC37+AB37 -> 0.3223511722 | AE37: =+AD37/(S37/100) -> 0.04927177144 | AF37: =1-AE37 -> 0.9507282286 | AG37: =expenses/(AF37) -> 10945655.94 | AH37: =+AG37-Revenue -> 894712.4838 | AI37: =+AH37/$J$49 -> 966128.8666 | AJ37: =+AI37*$J$47 -> 24418.9071 | AK37: =ROUND(+AJ37+AG37,5) -> 10970074.85
F38: 32 | H38: Tax Rate | J38: =+C10 -> 0.002 | K38: =+J38 -> 0.002 | R38: 3 | S38: =AK33/Investment*100 -> 654.0079378 | T38: =EXP(y_inter3-(slope*LN(S38))) -> 3.54729627 | U38: =(+S38*T38/100)/100 -> 0.2319959918 | V38: =regDebt_weighted -> 0.03586 | W38: =+U38-V38 -> 0.1961359918 | X38: =+((W38*(1-0.34))-Pfd_weighted)/Equity_percent -> 0.3583132401 | Y38: =+Y37 -> 0.25 | Z38: =+X38+Y38 -> 0.6083132401 | AA38: =Z38*equityP -> 0.2992901141 | AB38: =+AA38/(1-taxrate) -> 0.2998898939 | AC38: =debtP*Debt_Rate -> 0.02028302025 | AD38: =+AC38+AB38 -> 0.3201729142 | AE38: =+AD38/(S38/100) -> 0.0489555089 | AF38: =1-AE38 -> 0.9510444911 | AG38: =expenses/(AF38) -> 10942016.05 | AH38: =+AG38-Revenue -> 891072.5901 | AI38: =+AH38/$J$49 -> 962198.4347 | AJ38: =+AI38*$J$47 -> 24319.56544 | AK38: 10966335.61
F39: 33 | R39: 4 | S39: =AK34/Investment*100 -> 653.8653148 | T39: =EXP(y_inter4-(slope*LN(S39))) -> 3.525544199 | U39: =(+S39*T39/100)/100 -> 0.2305231067 | V39: =regDebt_weighted -> 0.03586 | W39: =+U39-V39 -> 0.1946631067 | X39: =+((W39*(1-0.34))-Pfd_weighted)/Equity_percent -> 0.3554873559 | Y39: =+Y38 -> 0.25 | Z39: 0.6054873559 | AA39: =Z39*equityP -> 0.2978997791 | AB39: =+AA39/(1-taxrate) -> 0.2984967727 | AC39: =debtP*Debt_Rate -> 0.02028302025 | AD39: =+AC39+AB39 -> 0.3187797929 | AE39: =+AD39/(S39/100) -> 0.04875312786 | AF39: =1-AE39 -> 0.9512468721 | AG39: =expenses/(AF39) -> 10939688.09 | AH39: =+AG39-Revenue -> 888744.6386 | AI39: =+AH39/$J$49 -> 959684.665 | AJ39: =+AI39*$J$47 -> 24256.02991 | AK39: 10963944.12
F40: 34
F41: 35 | H41: Revenue Sensitive Taxes Charges | R41: Curve
F42: 36 | J42: Rate | K42: Taxes | R42: Lookup Table
F43: 37 | H43: B & O Tax | J43: =IF(A64=TRUE,C11,0) -> 0.015 | K43: =+J43*($J$7/$J$49) -> 14395.24616 | R43: 0 | S43: 1 | U43: Profit Margin | V43: =VLOOKUP(R48,R36:AG39,14) -> 0.04875312786
F44: 38 | H44: WUTC Fee | J44: =IF(A64=TRUE,C12,0) -> 0.004275 | K44: =+J44*($J$7/$J$49) -> 4102.645155 | R44: 50 | S44: 2 | U44: Operating Ratio | V44: =ROUND(1-V43,6) -> 0.951247
F45: 39 | H45: City Tax | J45: =IF(A64=TRUE,C13,0) -> 0 | K45: =+J45*($J$7/$J$49) -> 0 | R45: 125 | S45: 3 | U45: Percent Chg | V45: =+M7/Revenue-1 -> 0.09083715991
F46: 40 | H46: Bad Debts | J46: =IF(A64=TRUE,C14,0) -> 0.006 | K46: =+J46*($J$7/$J$49) -> 5758.098463 | R46: 401 | S46: 4
F47: 41 | H47: Revenue Sensitive | J47: =SUM(J43:J46) -> 0.025275 | K47: =+K43+K44+K45+K46 -> 24255.98978 | R47: =VLOOKUP(R48,R36:S39,2) -> 653.8653148 | S47: Curve turnover | X47: @EXP(5.72260-(.68367*@LN(T)))
F48: 42 | R48: =VLOOKUP(S36,R43:S46,2) -> 4 | S48: Curve No. Used | X48: @EXP(5.70827-(.68367*@LN(T)))
F49: 43 | H49: Conversion Factor | J49: =((K35)-J47) -> 0.9260798583 | X49: @EXP(5.69850-(.68367*@LN(T)))
R50: =+V44 -> 0.951247 | S50: Operating Ratio | X50: @EXP(5.69220-(.68367*@LN(T)))
S53: Base Utility from LG Sample Study | W53: Regression Results
S54: Percent | T54: Cost | U54: Weighted | W54: Y intercept (1) | X54: 5.7226 | Y54: Y intercept (3) | Z54: 5.6985
R55: Debt | S55: 0.562 | T55: 0.0638 | U55: =ROUND(+S55*T55,5) -> 0.03586 | W55: Y intercept (2) | X55: 5.70827 | Y55: Y intercept (4) | Z55: 5.6922
R56: Pfd. | S56: 0.094 | T56: 0.0659 | U56: =ROUND(+S56*T56,5) -> 0.00619
R57: Equity | S57: 0.344 | X57: Slope | Y57: 0.68367
S58: =SUM(S55:S57) -> 1
X60: Operating Statistics | Y60: Pre-tax | Z60: After Tax
X62: Return on Investment | Y62: =+J33 -> 0.3180736652 | Z62: 0.3174780839
X63: Return on Equity | Y63: 0.6052655386 | Z63: 0.6040550075
A64: TRUE | X64: Operating Ratio | Y64: 0.951247 | Z64: 0.9513548583
X65: Profit Margin | Y65: 0.048753 | Z65: 0.048753
X66: Final turnover | Y66: 6.538653148 | Z66: 6.538653148
X67: Tax Rate | Y67: 0.002 | Z67: 0.002

Sheet Combined LG
B1: NEW IMPROVED LURITO - GALLAGHER FORMULA | AE1: !??! | AF1: OP/RATIO | AI1: curve
G2: NOTE: | N2: FORMULAS | U2: 1st Revenue | V2: 1st Turnover | W2: M | X2: ROR | Y2: ROE | AA2: Adj ROE | AB2: Pre Tax ROE | AC2: Adj M | AD2: Revenues | AE2: Decision | AI2: lookup table
B3: !!! | C3: Revenue Requirement | E3: =E5+E4 -> 10962216.68 | F3: !!!<-- | H3: Red numbers are linked fields. | N3: 1. less than 50 | Q3: @EXP(5.72260-(.68367*@LN(T))) | U3: =$E$6*1.25 -> 13007930.1 | V3: ='Combined LG 2018 V5.0c'!S6 -> 599.4159799 | W3: =EXP(5.7226-(0.68367*LN(+V3))) -> 3.856950666 | X3: =(+W3*V3)/100 -> 23.11917863 | Y3: ='Combined LG 2018 V5.0c'!X6*100 -> 35.67702876 | Z3: ='Combined LG 2018 V5.0c'!Y6*100 -> 25 | AA3: =Y3+Z3 -> 60.67702876 | AB3: =100*($E$15*$E$17+($E$16*(AA3/100))/(1-$E$19)) -> 31.95727945 | AC3: ='Combined LG 2018 V5.0c'!AE6 -> 0.05328724475 | AD3: =$E$6/(1-AC3) -> 10992081.84 | AE3: =IF(AD3=$U$3,"yes","not yet") -> not yet | AF3: =100*(1-AC3) -> 94.67127553 | AI3: 0 | AJ3: 1
B4: !!! | C4: Revenue Deficiency | E4: =SUM('MSW:MF RCY'!E4) -> 911273.2263 | F4: !!!<-- | H4: Yellow cells are input fields. | N4: 2. Between 50 and 125 | Q4: @EXP(5.70827-(.68367*@LN(T))) | U4: =$E$6*1.25 -> 13007930.1 | V4: ='Combined LG 2018 V5.0c'!S7 -> 599.4159799 | W4: ='Combined LG 2018 V5.0c'!T7 -> 3.856950666 | X4: =(+W4*V4)/100 -> 23.11917863 | Y4: ='Combined LG 2018 V5.0c'!X7*100 -> 35.67702876 | Z4: ='Combined LG 2018 V5.0c'!Y7*100 -> 25 | AA4: =Y4+Z4 -> 60.67702876 | AB4: =100*($E$15*$E$17+($E$16*(AA4/100))/(1-$E$19)) -> 31.95727945 | AC4: ='Combined LG 2018 V5.0c'!AE7 -> 0.05328724475 | AD4: =$E$6/(1-AC4) -> 10992081.84 | AE4: =IF(AD4=$U$4,"yes","not yet") -> not yet | AF4: =100*(1-AC4) -> 94.67127553 | AI4: 50 | AJ4: 2
B5: * | C5: Revenue | E5: =SUM('MSW:MF RCY'!E5) -> 10050943.46 | F5: * p/f before rates | H5: Black are formula calculations | N5: 3. Between 125 and 140 | Q5: @EXP(5.69850-(.68367*@LN(T))) | U5: =$E$6*1.25 -> 13007930.1 | V5: ='Combined LG 2018 V5.0c'!S8 -> 599.4159799 | W5: ='Combined LG 2018 V5.0c'!T8 -> 3.856950666 | X5: =(+W5*V5)/100 -> 23.11917863 | Y5: ='Combined LG 2018 V5.0c'!X8*100 -> 35.67702876 | Z5: ='Combined LG 2018 V5.0c'!Y8*100 -> 25 | AA5: =Y5+Z5 -> 60.67702876 | AB5: =100*($E$15*$E$17+($E$16*(AA5/100))/(1-$E$19)) -> 31.95727945 | AC5: ='Combined LG 2018 V5.0c'!AE8 -> 0.05328724475 | AD5: =$E$6/(1-AC5) -> 10992081.84 | AE5: =IF(AD5=$U$5,"yes","not yet") -> not yet | AF5: =100*(1-AC5) -> 94.67127553 | AI5: 125 | AJ5: 3
B6: * | C6: Expenses | E6: =SUM('MSW:MF RCY'!E6) -> 10406344.08 | F6: * p/f before rates | N6: 4. greater than 400 | Q6: @EXP(5.69220-(.68367*@LN(T))) | U6: =$E$6*1.25 -> 13007930.1 | V6: ='Combined LG 2018 V5.0c'!S9 -> 599.4159799 | W6: ='Combined LG 2018 V5.0c'!T9 -> 3.856950666 | X6: =(+W6*V6)/100 -> 23.11917863 | Y6: ='Combined LG 2018 V5.0c'!X9*100 -> 35.67702876 | Z6: ='Combined LG 2018 V5.0c'!Y9*100 -> 25 | AA6: =Y6+Z6 -> 60.67702876 | AB6: =100*($E$15*$E$17+($E$16*(AA6/100))/(1-$E$19)) -> 31.95727945 | AC6: ='Combined LG 2018 V5.0c'!AE9 -> 0.05328724475 | AD6: =$E$6/(1-AC6) -> 10992081.84 | AE6: =IF(AD6=$U$6,"yes","not yet") -> not yet | AF6: =100*(1-AC6) -> 94.67127553 | AI6: 401 | AJ6: 4
B7: * | C7: Avg. Investment - | E7: =SUM('MSW:MF RCY'!E7) -> 1676789.374 | F7: * p/f before rates
C8: curve turnover | E8: =V3 -> 599.4159799 | F8: (calculated) | V8: 2nd Turnover | W8: M | X8: ROR | Y8: ROE | AI8: lookup tables
C9: final turnover | E9: =HLOOKUP($AJ$32,$AJ$26:$AR$30,$E$10+1) -> 653.8653148 | F9: (calculated) | V9: ='Combined LG 2018 V5.0c'!S11 -> 657.0752411 | W9: =EXP(5.7226-(0.68367*LN(+V9))) -> 3.622218836 | X9: =(+W9*V9)/100 -> 23.80070315 | Y9: ='Combined LG 2018 V5.0c'!X11*100 -> 36.98460488 | Z9: ='Combined LG 2018 V5.0c'!Y11*100 -> 25 | AA9: =Y9+Z9 -> 61.98460488 | AB9: =100*($E$15*$E$17+($E$16*(AA9/100))/(1-$E$19)) -> 32.60226639 | AC9: ='Combined LG 2018 V5.0c'!AE11 -> 0.04959225469 | AD9: =$E$6/(1-AC9) -> 10949346.88 | AE9: =IF(OR(OR(AD9=AD3,AD9=(AD3+1)),AD9=(AD8187-1)),"yes","not yet") -> not yet | AF9: =100*(1-AC9) -> 95.04077453
C10: curve No. used | E10: =VLOOKUP(E8,AI3:AJ6,2) -> 4 | F10: (calculated) | V10: ='Combined LG 2018 V5.0c'!S12 -> 657.0752411 | W10: =EXP(5.70827-(0.68367*LN(+V10))) -> 3.570682579 | X10: =(+W10*V10)/100 -> 23.46207117 | Y10: ='Combined LG 2018 V5.0c'!X12*100 -> 36.33490398 | Z10: ='Combined LG 2018 V5.0c'!Y12*100 -> 25 | AA10: =Y10+Z10 -> 61.33490398 | AB10: =100*($E$15*$E$17+($E$16*(AA10/100))/(1-$E$19)) -> 32.28178899 | AC10: ='Combined LG 2018 V5.0c'!AE12 -> 0.04910480149 | AD10: =$E$6/(1-AC10) -> 10943733.97 | AE10: =IF(OR(OR(AD10=AD4,AD10=(AD4+1)),AD10=(AD4-1)),"yes","not yet") -> not yet | AF10: =100*(1-AC10) -> 95.08951985
V11: ='Combined LG 2018 V5.0c'!S13 -> 657.0752411 | W11: =EXP(5.6985-(0.68367*LN(V11))) -> 3.535966873 | X11: =(+W11*V11)/100 -> 23.23396285 | Y11: ='Combined LG 2018 V5.0c'!X13*100 -> 35.89725431 | Z11: ='Combined LG 2018 V5.0c'!Y13*100 -> 25 | AA11: =Y11+Z11 -> 60.89725431 | AB11: =100*($E$15*$E$17+($E$16*(AA11/100))/(1-$E$19)) -> 32.06590991 | AC11: ='Combined LG 2018 V5.0c'!AE13 -> 0.04877644466 | AD11: =$E$6/(1-AC11) -> 10939956.25 | AE11: =IF(OR(OR(AD11=AD5,AD11=(AD5+1)),AD11=(AD5-1)),"yes","not yet") -> not yet | AF11: =100*(1-AC11) -> 95.12235553 | AJ11: 1 | AK11: 2 | AL11: 3 | AM11: 4 | AN11: 5 | AO11: 6 | AP11: 7 | AQ11: 8 | AR11: 9
C12: Company actual | V12: ='Combined LG 2018 V5.0c'!S14 -> 657.0752411 | W12: =EXP(5.6922-(0.68367*LN(V12))) -> 3.513760306 | X12: =(+W12*V12)/100 -> 23.088049 | Y12: ='Combined LG 2018 V5.0c'!X14*100 -> 35.61730331 | Z12: ='Combined LG 2018 V5.0c'!Y14*100 -> 25 | AA12: =Y12+Z12 -> 60.61730331 | AB12: =100*($E$15*$E$17+($E$16*(AA12/100))/(1-$E$19)) -> 31.92781872 | AC12: ='Combined LG 2018 V5.0c'!AE14 -> 0.04856640491 | AD12: =$E$6/(1-AC12) -> 10937541.13 | AE12: =IF(OR(OR(AD12=AD6,AD12=(AD6+1)),AD12=(AD6-1)),"yes","not yet") -> not yet | AF12: =100*(1-AC12) -> 95.14335951 | AJ12: =AE3 -> not yet | AK12: =AE9 -> not yet | AL12: =AE15 -> not yet | AM12: =AE21 -> not yet | AN12: =AE27 -> not yet | AO12: =AE33 -> not yet | AP12: =AE39 -> yes | AQ12: =AE45 -> 0 | AR12: =AE51 -> 0
C13: capital structure: | E13: !!! | F13: OPERATING RATIO -> | H13: =HLOOKUP($AJ$23,$AJ$17:$AR$21,$E$10+1) -> 95.12468721 | I13: !!!<-- | AJ13: =AE4 -> not yet | AK13: =AE10 -> not yet | AL13: =AE16 -> not yet | AM13: =AE22 -> not yet | AN13: =AE28 -> not yet | AO13: =AE34 -> not yet | AP13: =AE40 -> yes | AQ13: =AE46 -> 0 | AR13: =AE52 -> 0
C14: - | D14: - | H14: = | V14: 3rd Turnover | W14: M | X14: ROR | Y14: ROE | AJ14: =AE5 -> not yet | AK14: =AE11 -> not yet | AL14: =AE17 -> not yet | AM14: =AE23 -> not yet | AN14: =AE29 -> not yet | AO14: =AE35 -> not yet | AP14: =AE41 -> yes | AQ14: =AE47 -> 0 | AR14: =AE53 -> 0
B15: * | C15: Actual Debt Ratio | E15: =+'RS Cap Struct.'!B41 -> 0.5077173987 | F15: Conversion factor data: | V15: ='Combined LG 2018 V5.0c'!S16 -> 654.457065 | W15: =EXP(5.7226-(0.68367*LN(+V15))) -> 3.632119504 | X15: =(+W15*V15)/100 -> 23.7706627 | Y15: ='Combined LG 2018 V5.0c'!X16*100 -> 36.92696914 | Z15: ='Combined LG 2018 V5.0c'!Y16*100 -> 25 | AA15: =Y15+Z15 -> 61.92696914 | AB15: =100*($E$15*$E$17+($E$16*(AA15/100))/(1-$E$19)) -> 32.57383646 | AC15: ='Combined LG 2018 V5.0c'!AE16 -> 0.04974723452 | AD15: =$E$6/(1-AC15) -> 10951132.65 | AE15: =IF(OR(OR(AD15=AD9,AD15=(AD9+1)),AD15=(AD1-1)),"yes","not yet") -> not yet | AF15: =100*(1-AC15) -> 95.02527655 | AJ15: =AE6 -> not yet | AK15: =AE12 -> not yet | AL15: =AE18 -> not yet | AM15: =AE24 -> not yet | AN15: =AE30 -> not yet | AO15: =AE36 -> not yet | AP15: =AE42 -> yes | AQ15: =AE48 -> 0 | AR15: =AE54 -> 0
B16: * | C16: Actual Equity Ratio | E16: =1-E15 -> 0.4922826013 | F16: B & O Tax | H16: 0.015 | I16: * | V16: ='Combined LG 2018 V5.0c'!S17 -> 654.1131873 | W16: =EXP(5.70827-(0.68367*LN(+V16))) -> 3.581729144 | X16: =(+W16*V16)/100 -> 23.42856267 | Y16: ='Combined LG 2018 V5.0c'!X17*100 -> 36.27061442 | Z16: ='Combined LG 2018 V5.0c'!Y17*100 -> 25 | AA16: =Y16+Z16 -> 61.27061442 | AB16: =100*($E$15*$E$17+($E$16*(AA16/100))/(1-$E$19)) -> 32.25007693 | AC16: ='Combined LG 2018 V5.0c'!AE17 -> 0.04927871208 | AD16: =$E$6/(1-AC16) -> 10945735.85 | AE16: =IF(OR(OR(AD16=AD10,AD16=(AD10+1)),AD16=(AD10-1)),"yes","not yet") -> not yet | AF16: =100*(1-AC16) -> 95.07212879
B17: * | C17: Actual Cost of Debt | E17: =+'RS Cap Struct.'!B52 -> 0.03992720522 | F17: WUTC Fee | H17: 0.004275 | I17: * | V17: ='Combined LG 2018 V5.0c'!S18 -> 653.881744 | W17: =EXP(5.6985-(0.68367*LN(V17))) -> 3.547764295 | X17: =(+W17*V17)/100 -> 23.19818305 | Y17: ='Combined LG 2018 V5.0c'!X18*100 -> 35.82860701 | Z17: ='Combined LG 2018 V5.0c'!Y18*100 -> 25 | AA17: =Y17+Z17 -> 60.82860701 | AB17: =100*($E$15*$E$17+($E$16*(AA17/100))/(1-$E$19)) -> 32.03204832 | AC17: ='Combined LG 2018 V5.0c'!AE18 -> 0.04896290846 | AD17: =$E$6/(1-AC17) -> 10942101.18 | AE17: =IF(OR(OR(AD17=AD11,AD17=(AD11+1)),AD17=(AD11-1)),"yes","not yet") -> not yet | AF17: =100*(1-AC17) -> 95.10370915 | AJ17: =HLOOKUP(1,$AJ$11:$AR$15,$E$10+1) -> not yet | AK17: =HLOOKUP(2,$AJ$11:$AR$15,$E$10+1) -> not yet | AL17: =HLOOKUP(3,$AJ$11:$AR$15,$E$10+1) -> not yet | AM17: =HLOOKUP(4,$AJ$11:$AR$15,$E$10+1) -> not yet | AN17: =HLOOKUP(5,$AJ$11:$AR$15,$E$10+1) -> not yet | AO17: =HLOOKUP(6,$AJ$11:$AR$15,$E$10+1) -> not yet | AP17: =HLOOKUP(7,$AJ$11:$AR$15,$E$10+1) -> yes | AQ17: =HLOOKUP(8,$AJ$11:$AR$15,$E$10+1) -> 0 | AR17: =HLOOKUP(9,$AJ$11:$AR$15,$E$10+1) -> 0
B18: * | C18: Basis Points | E18: 0.25 | F18: City Tax | H18: 0 | I18: * | V18: ='Combined LG 2018 V5.0c'!S19 -> 653.7337806 | W18: =EXP(5.6922-(0.68367*LN(V18))) -> 3.526029148 | X18: =(+W18*V18)/100 -> 23.05084366 | Y18: ='Combined LG 2018 V5.0c'!X19*100 -> 35.54592097 | Z18: ='Combined LG 2018 V5.0c'!Y19*100 -> 25 | AA18: =Y18+Z18 -> 60.54592097 | AB18: =100*($E$15*$E$17+($E$16*(AA18/100))/(1-$E$19)) -> 31.89260802 | AC18: ='Combined LG 2018 V5.0c'!AE19 -> 0.04876081467 | AD18: =$E$6/(1-AC18) -> 10939776.5 | AE18: =IF(OR(OR(AD18=AD12,AD18=(AD12+1)),AD18=(AD12-1)),"yes","not yet") -> not yet | AF18: =100*(1-AC18) -> 95.12391853 | AI18: 1 | AJ18: =AF3 -> 94.67127553 | AK18: =AF9 -> 95.04077453 | AL18: =AF15 -> 95.02527655 | AM18: =AF21 -> 95.02592641 | AN18: =AF27 -> 95.02589916 | AO18: =AF33 -> 95.0259003 | AP18: =AF39 -> 95.02590025 | AQ18: =AF45 -> 0 | AR18: =AF51 -> 0
B19: * | C19: Tax Rate | E19: =+'RS Cap Struct.'!B59 -> 0.002 | F19: Bad Debts | H19: 0.006 | I19: * | AI19: 2 | AJ19: =AF4 -> 94.67127553 | AK19: =AF10 -> 95.08951985 | AL19: =AF16 -> 95.07212879 | AM19: =AF22 -> 95.07285171 | AN19: =AF28 -> 95.07282166 | AO19: =AF34 -> 95.07282291 | AP19: =AF40 -> 95.07282286 | AQ19: =AF46 -> 0 | AR19: =AF52 -> 0
H20: - | V20: 4th Turnover | W20: M | X20: ROR | Y20: ROE | AI20: 3 | AJ20: =AF5 -> 94.67127553 | AK20: =AF11 -> 95.12235553 | AL20: =AF17 -> 95.10370915 | AM20: =AF23 -> 95.10447969 | AN20: =AF29 -> 95.10444785 | AO20: =AF35 -> 95.10444916 | AP20: =AF41 -> 95.10444911 | AQ20: =AF47 -> 0 | AR20: =AF53 -> 0
F21: Revenue Sensitive | H21: =SUM(H16:H19) -> 0.025275 | V21: ='Combined LG 2018 V5.0c'!S21 -> 654.5664707 | W21: =EXP(5.7226-(0.68367*LN(+V21))) -> 3.63170445 | X21: =(+W21*V21)/100 -> 23.77191965 | Y21: ='Combined LG 2018 V5.0c'!X21*100 -> 36.92938072 | Z21: ='Combined LG 2018 V5.0c'!Y21*100 -> 25 | AA21: =Y21+Z21 -> 61.92938072 | AB21: =100*($E$15*$E$17+($E$16*(AA21/100))/(1-$E$19)) -> 32.57502602 | AC21: ='Combined LG 2018 V5.0c'!AE21 -> 0.04974073593 | AD21: =$E$6/(1-AC21) -> 10951057.75 | AE21: =IF(OR(OR(AD21=AD15,AD21=(AD15+1)),AD21=(AD7-1)),"yes","not yet") -> not yet | AF21: =100*(1-AC21) -> 95.02592641 | AI21: 4 | AJ21: =AF6 -> 94.67127553 | AK21: =AF12 -> 95.14335951 | AL21: =AF18 -> 95.12391853 | AM21: =AF24 -> 95.12471886 | AN21: =AF30 -> 95.12468591 | AO21: =AF36 -> 95.12468727 | AP21: =AF42 -> 95.12468721 | AQ21: =AF48 -> 0 | AR21: =AF54 -> 0
V22: ='Combined LG 2018 V5.0c'!S22 -> 654.2358334 | W22: =EXP(5.70827-(0.68367*LN(+V22))) -> 3.581270082 | X22: =(+W22*V22)/100 -> 23.42995217 | Y22: ='Combined LG 2018 V5.0c'!X22*100 -> 36.27328032 | Z22: ='Combined LG 2018 V5.0c'!Y22*100 -> 25 | AA22: =Y22+Z22 -> 61.27328032 | AB22: =100*($E$15*$E$17+($E$16*(AA22/100))/(1-$E$19)) -> 32.25139194 | AC22: ='Combined LG 2018 V5.0c'!AE22 -> 0.0492714829 | AD22: =$E$6/(1-AC22) -> 10945652.62 | AE22: =IF(OR(OR(AD22=AD16,AD22=(AD16+1)),AD22=(AD16-1)),"yes","not yet") -> not yet | AF22: =100*(1-AC22) -> 95.07285171
F23: Conversion Factor | H23: =((+H13/100)-H21) -> 0.9259718721 | V23: ='Combined LG 2018 V5.0c'!S23 -> 654.0131539 | W23: =EXP(5.6985-(0.68367*LN(V23))) -> 3.547276928 | X23: =(+W23*V23)/100 -> 23.19965771 | Y23: ='Combined LG 2018 V5.0c'!X23*100 -> 35.83143631 | Z23: ='Combined LG 2018 V5.0c'!Y23*100 -> 25 | AA23: =Y23+Z23 -> 60.83143631 | AB23: =100*($E$15*$E$17+($E$16*(AA23/100))/(1-$E$19)) -> 32.03344392 | AC23: ='Combined LG 2018 V5.0c'!AE23 -> 0.0489552031 | AD23: =$E$6/(1-AC23) -> 10942012.53 | AE23: =IF(OR(OR(AD23=AD17,AD23=(AD17+1)),AD23=(AD17-1)),"yes","not yet") -> not yet | AF23: =100*(1-AC23) -> 95.10447969 | AJ23: yes
V24: ='Combined LG 2018 V5.0c'!S24 -> 653.8707311 | W24: =EXP(5.6922-(0.68367*LN(V24))) -> 3.525524233 | X24: =(+W24*V24)/100 -> 23.05237108 | Y24: ='Combined LG 2018 V5.0c'!X24*100 -> 35.54885149 | Z24: ='Combined LG 2018 V5.0c'!Y24*100 -> 25 | AA24: =Y24+Z24 -> 60.54885149 | AB24: =100*($E$15*$E$17+($E$16*(AA24/100))/(1-$E$19)) -> 31.89405355 | AC24: ='Combined LG 2018 V5.0c'!AE24 -> 0.04875281139 | AD24: =$E$6/(1-AC24) -> 10939684.45 | AE24: =IF(OR(OR(AD24=AD18,AD24=(AD18+1)),AD24=(AD18-1)),"yes","not yet") -> not yet | AF24: =100*(1-AC24) -> 95.12471886 | AJ24: =HLOOKUP($AJ$23,$AJ$17:$AR$21,$E$10+1) -> 95.12468721
C26: Company Reference | V26: 5th Turnover | W26: M | X26: ROR | Y26: ROE | AJ26: =HLOOKUP(1,$AJ$11:$AR$15,$E$10+1) -> not yet | AK26: =HLOOKUP(2,$AJ$11:$AR$15,$E$10+1) -> not yet | AL26: =HLOOKUP(3,$AJ$11:$AR$15,$E$10+1) -> not yet | AM26: =HLOOKUP(4,$AJ$11:$AR$15,$E$10+1) -> not yet | AN26: =HLOOKUP(5,$AJ$11:$AR$15,$E$10+1) -> not yet | AO26: =HLOOKUP(6,$AJ$11:$AR$15,$E$10+1) -> not yet | AP26: =HLOOKUP(7,$AJ$11:$AR$15,$E$10+1) -> yes | AQ26: =HLOOKUP(8,$AJ$11:$AR$15,$E$10+1) -> 0 | AR26: =HLOOKUP(9,$AJ$11:$AR$15,$E$10+1) -> 0
C27: Annl Price Increase (PI) $ | E27: =+E4 -> 911273.2263 | V27: ='Combined LG 2018 V5.0c'!S26 -> 654.5618824 | W27: =EXP(5.7226-(0.68367*LN(+V27))) -> 3.631721855 | X27: =(+W27*V27)/100 -> 23.77186693 | Y27: ='Combined LG 2018 V5.0c'!X26*100 -> 36.92927958 | Z27: ='Combined LG 2018 V5.0c'!Y26*100 -> 25 | AA27: =Y27+Z27 -> 61.92927958 | AB27: =100*($E$15*$E$17+($E$16*(AA27/100))/(1-$E$19)) -> 32.57497613 | AC27: ='Combined LG 2018 V5.0c'!AE26 -> 0.04974100843 | AD27: =$E$6/(1-AC27) -> 10951060.89 | AE27: =IF(OR(OR(AD27=AD21,AD27=(AD21+1)),AD27=(AD13-1)),"yes","not yet") -> not yet | AF27: =100*(1-AC27) -> 95.02589916 | AI27: 1 | AJ27: =V3 -> 599.4159799 | AK27: =V9 -> 657.0752411 | AL27: =V15 -> 654.457065 | AM27: =V21 -> 654.5664707 | AN27: =V27 -> 654.5618824 | AO27: =V33 -> 654.5620748 | AP27: =V39 -> 654.5620667 | AQ27: =V45 -> 0 | AR27: =V51 -> 0
C28: Monthly PI $ | E28: =+E27/12 -> 75939.43553 | V28: ='Combined LG 2018 V5.0c'!S27 -> 654.2307343 | W28: =EXP(5.70827-(0.68367*LN(+V28))) -> 3.581289165 | X28: =(+W28*V28)/100 -> 23.4298944 | Y28: ='Combined LG 2018 V5.0c'!X27*100 -> 36.27316949 | Z28: ='Combined LG 2018 V5.0c'!Y27*100 -> 25 | AA28: =Y28+Z28 -> 61.27316949 | AB28: =100*($E$15*$E$17+($E$16*(AA28/100))/(1-$E$19)) -> 32.25133727 | AC28: ='Combined LG 2018 V5.0c'!AE27 -> 0.04927178341 | AD28: =$E$6/(1-AC28) -> 10945656.08 | AE28: =IF(OR(OR(AD28=AD22,AD28=(AD22+1)),AD28=(AD22-1)),"yes","not yet") -> not yet | AF28: =100*(1-AC28) -> 95.07282166 | AI28: 2 | AJ28: =V4 -> 599.4159799 | AK28: =V10 -> 657.0752411 | AL28: =V16 -> 654.1131873 | AM28: =V22 -> 654.2358334 | AN28: =V28 -> 654.2307343 | AO28: =V34 -> 654.2309463 | AP28: =V40 -> 654.2309375 | AQ28: =V46 -> 0 | AR28: =V52 -> 0
C29: Percentage PI | E29: =+E4/E5 -> 0.09066544154 | V29: ='Combined LG 2018 V5.0c'!S28 -> 654.0077226 | W29: =EXP(5.6985-(0.68367*LN(V29))) -> 3.547297068 | X29: =(+W29*V29)/100 -> 23.19959677 | Y29: ='Combined LG 2018 V5.0c'!X28*100 -> 35.83131938 | Z29: ='Combined LG 2018 V5.0c'!Y28*100 -> 25 | AA29: =Y29+Z29 -> 60.83131938 | AB29: =100*($E$15*$E$17+($E$16*(AA29/100))/(1-$E$19)) -> 32.03338624 | AC29: ='Combined LG 2018 V5.0c'!AE28 -> 0.04895552151 | AD29: =$E$6/(1-AC29) -> 10942016.19 | AE29: =IF(OR(OR(AD29=AD23,AD29=(AD23+1)),AD29=(AD23-1)),"yes","not yet") -> not yet | AF29: =100*(1-AC29) -> 95.10444785 | AI29: 3 | AJ29: =V5 -> 599.4159799 | AK29: =V11 -> 657.0752411 | AL29: =V17 -> 653.881744 | AM29: =V23 -> 654.0131539 | AN29: =V29 -> 654.0077226 | AO29: =V35 -> 654.007947 | AP29: =V41 -> 654.0079378 | AQ29: =V47 -> 0 | AR29: =V53 -> 0
V30: ='Combined LG 2018 V5.0c'!S29 -> 653.8650922 | W30: =EXP(5.6922-(0.68367*LN(V30))) -> 3.525545019 | X30: =(+W30*V30)/100 -> 23.05230819 | Y30: ='Combined LG 2018 V5.0c'!X29*100 -> 35.54873083 | Z30: ='Combined LG 2018 V5.0c'!Y29*100 -> 25 | AA30: =Y30+Z30 -> 60.54873083 | AB30: =100*($E$15*$E$17+($E$16*(AA30/100))/(1-$E$19)) -> 31.89399404 | AC30: ='Combined LG 2018 V5.0c'!AE29 -> 0.04875314086 | AD30: =$E$6/(1-AC30) -> 10939688.24 | AE30: =IF(OR(OR(AD30=AD24,AD30=(AD24+1)),AD30=(AD24-1)),"yes","not yet") -> not yet | AF30: =100*(1-AC30) -> 95.12468591 | AI30: 4 | AJ30: =V6 -> 599.4159799 | AK30: =V12 -> 657.0752411 | AL30: =V18 -> 653.7337806 | AM30: =V24 -> 653.8707311 | AN30: =V30 -> 653.8650922 | AO30: =V36 -> 653.8653243 | AP30: =V42 -> 653.8653148 | AQ30: =V48 -> 0 | AR30: =V54 -> 0
V32: 6th Turnover | W32: M | X32: ROR | Y32: ROE | AJ32: yes
C33: SLOBs | V33: ='Combined LG 2018 V5.0c'!S31 -> 654.5620748 | W33: =EXP(5.7226-(0.68367*LN(+V33))) -> 3.631721125 | X33: =(+W33*V33)/100 -> 23.77186914 | Y33: ='Combined LG 2018 V5.0c'!X31*100 -> 36.92928382 | Z33: ='Combined LG 2018 V5.0c'!Y31*100 -> 25 | AA33: =Y33+Z33 -> 61.92928382 | AB33: =100*($E$15*$E$17+($E$16*(AA33/100))/(1-$E$19)) -> 32.57497822 | AC33: ='Combined LG 2018 V5.0c'!AE31 -> 0.04974099701 | AD33: =ROUND($E$6/(1-AC33),0) -> 10951061 | AE33: =IF(OR(OR(AD33=AD27,AD33=(AD27+1)),AD33=(AD19-1)),"yes","not yet") -> not yet | AF33: =100*(1-AC33) -> 95.0259003 | AJ33: =HLOOKUP($AJ$32,$AJ$26:$AR$30,$E$10+1) -> 653.8653148
C34: MSW | E34: =MSW!E4 -> 294296.7722 | V34: ='Combined LG 2018 V5.0c'!S32 -> 654.2309463 | W34: =EXP(5.70827-(0.68367*LN(+V34))) -> 3.581288372 | X34: =(+W34*V34)/100 -> 23.4298968 | Y34: ='Combined LG 2018 V5.0c'!X32*100 -> 36.2731741 | Z34: ='Combined LG 2018 V5.0c'!Y32*100 -> 25 | AA34: =Y34+Z34 -> 61.2731741 | AB34: =100*($E$15*$E$17+($E$16*(AA34/100))/(1-$E$19)) -> 32.25133954 | AC34: ='Combined LG 2018 V5.0c'!AE32 -> 0.04927177092 | AD34: =ROUND($E$6/(1-AC34),0) -> 10945656 | AE34: =IF(OR(OR(AD34=AD28,AD34=(AD28+1)),AD34=(AD28-1)),"yes","not yet") -> not yet | AF34: =100*(1-AC34) -> 95.07282291
C35: RCY | E35: =RCY!E4 -> 651317.0739 | V35: ='Combined LG 2018 V5.0c'!S33 -> 654.007947 | W35: =EXP(5.6985-(0.68367*LN(V35))) -> 3.547296236 | X35: =(+W35*V35)/100 -> 23.19959929 | Y35: ='Combined LG 2018 V5.0c'!X33*100 -> 35.83132421 | Z35: ='Combined LG 2018 V5.0c'!Y33*100 -> 25 | AA35: =Y35+Z35 -> 60.83132421 | AB35: =100*($E$15*$E$17+($E$16*(AA35/100))/(1-$E$19)) -> 32.03338863 | AC35: ='Combined LG 2018 V5.0c'!AE33 -> 0.04895550836 | AD35: =ROUND($E$6/(1-AC35),0) -> 10942016 | AE35: =IF(OR(OR(AD35=AD29,AD35=(AD29+1)),AD35=(AD29-1)),"yes","not yet") -> not yet | AF35: =100*(1-AC35) -> 95.10444916 | AJ35: =HLOOKUP(1,$AJ$11:$AR$15,$E$10+1) -> not yet | AK35: =HLOOKUP(2,$AJ$11:$AR$15,$E$10+1) -> not yet | AL35: =HLOOKUP(3,$AJ$11:$AR$15,$E$10+1) -> not yet | AM35: =HLOOKUP(4,$AJ$11:$AR$15,$E$10+1) -> not yet | AN35: =HLOOKUP(5,$AJ$11:$AR$15,$E$10+1) -> not yet | AO35: =HLOOKUP(6,$AJ$11:$AR$15,$E$10+1) -> not yet | AP35: =HLOOKUP(7,$AJ$11:$AR$15,$E$10+1) -> yes | AQ35: =HLOOKUP(8,$AJ$11:$AR$15,$E$10+1) -> 0 | AR35: =HLOOKUP(9,$AJ$11:$AR$15,$E$10+1) -> 0
C36: YW | E36: =YW!E4 -> -38494.82245 | V36: ='Combined LG 2018 V5.0c'!S34 -> 653.8653243 | W36: =EXP(5.6922-(0.68367*LN(V36))) -> 3.525544164 | X36: =(+W36*V36)/100 -> 23.05231078 | Y36: ='Combined LG 2018 V5.0c'!X34*100 -> 35.5487358 | Z36: ='Combined LG 2018 V5.0c'!Y34*100 -> 25 | AA36: =Y36+Z36 -> 60.5487358 | AB36: =100*($E$15*$E$17+($E$16*(AA36/100))/(1-$E$19)) -> 31.89399649 | AC36: ='Combined LG 2018 V5.0c'!AE34 -> 0.0487531273 | AD36: =ROUND($E$6/(1-AC36),0) -> 10939688 | AE36: =IF(OR(OR(AD36=AD30,AD36=(AD30+1)),AD36=(AD30-1)),"yes","not yet") -> not yet | AF36: =100*(1-AC36) -> 95.12468727 | AI36: 1 | AJ36: =AD3 -> 10992081.84 | AK36: =AD9 -> 10949346.88 | AL36: =AD15 -> 10951132.65 | AM36: =AD21 -> 10951057.75 | AN36: =AD27 -> 10951060.89 | AO36: =AD33 -> 10951061 | AP36: =AD39 -> 10951061 | AQ36: =AD45 -> 0 | AR36: =AD51 -> 0
C37: MF RCY | E37: ='MF RCY'!E4 -> 4154.202608 | AI37: 2 | AJ37: =AD4 -> 10992081.84 | AK37: =AD10 -> 10943733.97 | AL37: =AD16 -> 10945735.85 | AM37: =AD22 -> 10945652.62 | AN37: =AD28 -> 10945656.08 | AO37: =AD34 -> 10945656 | AP37: =AD40 -> 10945656 | AQ37: =AD46 -> 0 | AR37: =AD52 -> 0
C38: Combined | E38: =+E4 -> 911273.2263 | V38: 7th turnover | W38: M | X38: ROR | Y38: ROE | AI38: 3 | AJ38: =AD5 -> 10992081.84 | AK38: =AD11 -> 10939956.25 | AL38: =AD17 -> 10942101.18 | AM38: =AD23 -> 10942012.53 | AN38: =AD29 -> 10942016.19 | AO38: =AD35 -> 10942016 | AP38: =AD41 -> 10942016 | AQ38: =AD47 -> 0 | AR38: =AD53 -> 0
E39: =+E38-SUM(E34:E37) -> 0 | V39: ='Combined LG 2018 V5.0c'!S36 -> 654.5620667 | W39: =EXP(5.7226-(0.68367*LN(+V39))) -> 3.631721155 | X39: =(+W39*V39)/100 -> 23.77186905 | Y39: ='Combined LG 2018 V5.0c'!X36*100 -> 36.92928365 | Z39: ='Combined LG 2018 V5.0c'!Y36*100 -> 25 | AA39: =Y39+Z39 -> 61.92928365 | AB39: =100*($E$15*$E$17+($E$16*(AA39/100))/(1-$E$19)) -> 32.57497813 | AC39: ='Combined LG 2018 V5.0c'!AE36 -> 0.04974099749 | AD39: =ROUND($E$6/(1-AC39),0) -> 10951061 | AE39: =IF(OR(OR(AD39=AD33,AD39=(AD33+1)),AD39=(AD25-1)),"yes","not yet") -> yes | AF39: =100*(1-AC39) -> 95.02590025 | AI39: 4 | AJ39: =AD6 -> 10992081.84 | AK39: =AD12 -> 10937541.13 | AL39: =AD18 -> 10939776.5 | AM39: =AD24 -> 10939684.45 | AN39: =AD30 -> 10939688.24 | AO39: =AD36 -> 10939688 | AP39: =AD42 -> 10939688 | AQ39: =AD48 -> 0 | AR39: =AD54 -> 0
V40: ='Combined LG 2018 V5.0c'!S37 -> 654.2309375 | W40: =EXP(5.70827-(0.68367*LN(+V40))) -> 3.581288405 | X40: =(+W40*V40)/100 -> 23.4298967 | Y40: ='Combined LG 2018 V5.0c'!X37*100 -> 36.27317391 | Z40: ='Combined LG 2018 V5.0c'!Y37*100 -> 25 | AA40: =Y40+Z40 -> 61.27317391 | AB40: =100*($E$15*$E$17+($E$16*(AA40/100))/(1-$E$19)) -> 32.25133945 | AC40: ='Combined LG 2018 V5.0c'!AE37 -> 0.04927177144 | AD40: =ROUND($E$6/(1-AC40),0) -> 10945656 | AE40: =IF(OR(OR(AD40=AD34,AD40=(AD34+1)),AD40=(AD34-1)),"yes","not yet") -> yes | AF40: =100*(1-AC40) -> 95.07282286
V41: ='Combined LG 2018 V5.0c'!S38 -> 654.0079378 | W41: =EXP(5.6985-(0.68367*LN(V41))) -> 3.54729627 | X41: =(+W41*V41)/100 -> 23.19959918 | Y41: ='Combined LG 2018 V5.0c'!X38*100 -> 35.83132401 | Z41: ='Combined LG 2018 V5.0c'!Y38*100 -> 25 | AA41: =Y41+Z41 -> 60.83132401 | AB41: =100*($E$15*$E$17+($E$16*(AA41/100))/(1-$E$19)) -> 32.03338853 | AC41: ='Combined LG 2018 V5.0c'!AE38 -> 0.0489555089 | AD41: =ROUND($E$6/(1-AC41),0) -> 10942016 | AE41: =IF(OR(OR(AD41=AD35,AD41=(AD35+1)),AD41=(AD35-1)),"yes","not yet") -> yes | AF41: =100*(1-AC41) -> 95.10444911 | AJ41: yes
V42: ='Combined LG 2018 V5.0c'!S39 -> 653.8653148 | W42: =EXP(5.6922-(0.68367*LN(V42))) -> 3.525544199 | X42: =(+W42*V42)/100 -> 23.05231067 | Y42: ='Combined LG 2018 V5.0c'!X39*100 -> 35.54873559 | Z42: ='Combined LG 2018 V5.0c'!Y39*100 -> 25 | AA42: =Y42+Z42 -> 60.54873559 | AB42: =100*($E$15*$E$17+($E$16*(AA42/100))/(1-$E$19)) -> 31.89399639 | AC42: ='Combined LG 2018 V5.0c'!AE39 -> 0.04875312786 | AD42: =ROUND($E$6/(1-AC42),0) -> 10939688 | AE42: =IF(OR(OR(AD42=AD36,AD42=(AD36+1)),AD42=(AD36-1)),"yes","not yet") -> yes | AF42: =100*(1-AC42) -> 95.12468721 | AJ42: =HLOOKUP($AJ$32,$AJ$35:$AR$39,$E$10+1) -> 10939688

Sheet MSW LG 2018 V5.0C
B2: Public Companies | F2: Public Co | I2: LURITO - GALLAGHER FORMULA MODEL 2018 V5.0a | M2: Public Co | R2: CALCULATION TABLES | AH2: Revenue Senstive Taxes (RevS)
K3: (b) + (c) | M3: (d) + (e) | T3: Regession | V3: Regession | W3: Regession | X3: Regession | Z3: Adjusted | AA3: Hauler | AB3: Hauler | AC3: Hauler | AD3: Hauler | AE3: Hauler | AF3: Hauler | AG3: Revenue Req | AH3: Revenue | AI3: Revenue
B4: INPUTS - Test Year | H4: (a) | I4: (b) | J4: (c) | K4: (d) | L4: (e) | M4: (f) | T4: Before Tax | V4: Less | W4: Adjusted | X4: After Tax | Y4: Flotation Costs | Z4: After Tax | AA4: Weighted Cost | AB4: Weighted Cost | AC4: Weighted Cost | AD4: Adjusted | AE4: Before Tax | AF4: Before Tax | AG4: Before RevS | AH4: Increase Before | AI4: Increase After | AJ4: RevS | AK4: Total
B5: Operating Revenue | C5: 6936415.956 | F5: Line | I5: Historical | J5: Revenue | K5: Proforma | L5: Add: Revenue | M5: Revenue | T5: Profit Ratio | U5: BTROI | V5: WCDebt | W5: BTROE | X5: ROE | Y5: Basis Points | Z5: ROE | AA5: Equity | AB5: Equity BFT | AC5: Debt | AD5: BTROR | AE5: Profit Ratio | AF5: Operating Ratio | AG5: Taxes | AH5: RevS Taxes | AI5: RevS Taxes | AJ5: Taxes | AK5: Revenue Req
B6: Operating Expenses | C6: 6920903.844 | F6: No. | J6: Change | L6: Sensitive Taxes | M6: Requirement | R6: 1 | S6: =Revenue/Investment*100 -> 763.3370303 | T6: =EXP(y_inter1-(slope*LN(+S6))) -> 3.269391492 | U6: =(+S6*T6/100)/100 -> 0.2495647593 | V6: =regDebt_weighted -> 0.03586 | W6: =+U6-V6 -> 0.2137047593 | X6: =+((W6*(1-0.34))-Pfd_weighted)/Equity_percent -> 0.392020759 | Y6: =+C15 -> 0.25 | Z6: =+X6+Y6 -> 0.642020759 | AA6: =Z6*equityP -> 0.3158742134 | AB6: =+AA6/(1-taxrate) -> 0.3165072279 | AC6: =debtP*Debt_Rate -> 0.02028302025 | AD6: =AC6+AB6 -> 0.3367902481 | AE6: =AD6/(S6/100) -> 0.04412077952 | AF6: =1-AE6 -> 0.9558792205 | AG6: =expenses/(AF6) -> 7240353.902 | AH6: =+AG6-Revenue -> 303937.9464 | AI6: =+AH6/$J$49 -> 325780.9413 | AJ6: =+AI6*$J$47 -> 8234.11329 | AK6: =ROUND(+AJ6+AG6,5) -> 7248588.015
B7: Investment | C7: 908696.3792 | F7: 1 | H7: Operating Revenue | I7: =IF(A64=TRUE,C5,0) -> 6936415.956 | J7: =(+$I8/($R50))-I7 -> 286537.3496 | K7: =+I7+J7 -> 7222953.305 | L7: =((+J7/J49*K35)-J7) -> 7762.706256 | M7: =IFERROR(+K7+L7,0.00001) -> 7230716.012 | R7: 2 | S7: =Revenue/Investment*100 -> 763.3370303 | T7: =EXP(y_inter1-(slope*LN(+S7))) -> 3.269391492 | U7: =(+S7*T7/100)/100 -> 0.2495647593 | V7: =regDebt_weighted -> 0.03586 | W7: =+U7-V7 -> 0.2137047593 | X7: =+((W7*(1-0.34))-Pfd_weighted)/Equity_percent -> 0.392020759 | Y7: =+Y6 -> 0.25 | Z7: =+X7+Y7 -> 0.642020759 | AA7: =Z7*equityP -> 0.3158742134 | AB7: =+AA7/(1-taxrate) -> 0.3165072279 | AC7: =debtP*Debt_Rate -> 0.02028302025 | AD7: =AC7+AB7 -> 0.3367902481 | AE7: =AD7/(S7/100) -> 0.04412077952 | AF7: =1-AE7 -> 0.9558792205 | AG7: =expenses/(AF7) -> 7240353.902 | AH7: =+AG7-Revenue -> 303937.9464 | AI7: =+AH7/$J$49 -> 325780.9413 | AJ7: =+AI7*$J$47 -> 8234.11329 | AK7: =ROUND(+AJ7+AG7,5) -> 7248588.015
B8: Capital Structure-Debt % | C8: 0.508 | F8: =+F7+1 -> 2 | H8: Operating Expenses | I8: =IF(A64=TRUE,C6,0) -> 6920903.844 | K8: =+I8 -> 6920903.844 | L8: =+L7 -> 7762.706256 | M8: =IFERROR(+K8+L8,0.00001) -> 6928666.55 | R8: 3 | S8: =Revenue/Investment*100 -> 763.3370303 | T8: =EXP(y_inter1-(slope*LN(+S8))) -> 3.269391492 | U8: 0.2495647593 | V8: =regDebt_weighted -> 0.03586 | W8: 0.2137047593 | X8: =+((W8*(1-0.34))-Pfd_weighted)/Equity_percent -> 0.392020759 | Y8: =+Y7 -> 0.25 | Z8: =+X8+Y8 -> 0.642020759 | AA8: =Z8*equityP -> 0.3158742134 | AB8: =+AA8/(1-taxrate) -> 0.3165072279 | AC8: =debtP*Debt_Rate -> 0.02028302025 | AD8: 0.3367902481 | AE8: 0.04412077952 | AF8: 0.9558792205 | AG8: =expenses/(AF8) -> 7240353.902 | AH8: =+AG8-Revenue -> 303937.9464 | AI8: =+AH8/$J$49 -> 325780.9413 | AJ8: =+AI8*$J$47 -> 8234.11329 | AK8: 7248588.015
B9: Capital Structure-Debt Rate | C9: 0.03992720522 | F9: =+F8+1 -> 3 | H9: Operating Income | I9: =+I7-I8 -> 15512.11177 | K9: =+K7-K8 -> 302049.4613 | M9: =+M7-M8 -> 302049.4613 | R9: 4 | S9: =Revenue/Investment*100 -> 763.3370303 | T9: =EXP(y_inter1-(slope*LN(+S9))) -> 3.269391492 | U9: 0.2495647593 | V9: =regDebt_weighted -> 0.03586 | W9: 0.2137047593 | X9: =+((W9*(1-0.34))-Pfd_weighted)/Equity_percent -> 0.392020759 | Y9: =+Y8 -> 0.25 | Z9: 0.642020759 | AA9: =Z9*equityP -> 0.3158742134 | AB9: =+AA9/(1-taxrate) -> 0.3165072279 | AC9: =debtP*Debt_Rate -> 0.02028302025 | AD9: 0.3367902481 | AE9: 0.04412077952 | AF9: 0.9558792205 | AG9: =expenses/(AF9) -> 7240353.902 | AH9: =+AG9-Revenue -> 303937.9464 | AI9: =+AH9/$J$49 -> 325780.9413 | AJ9: =+AI9*$J$47 -> 8234.11329 | AK9: 7248588.015
B10: Federal Income Tax Rate | C10: 0.002 | F10: 4 | R10: 2nd Iteration
B11: B&O Tax Rate | C11: 0.015 | F11: 5 | H11: Interest Expense | I11: =+K11 -> 18431.10706 | K11: =+M27 -> 18431.10706 | M11: =+K11 -> 18431.10706 | R11: 1 | S11: =IF((AK6/Investment*100)>0,(AK6/Investment*100),0) -> 797.6908658 | T11: =EXP(y_inter1-(slope*LN(S11))) -> 3.172461265 | U11: =(+S11*T11/100)/100 -> 0.2530643373 | V11: =regDebt_weighted -> 0.03586 | W11: =+U11-V11 -> 0.2172043373 | X11: =+((W11*(1-0.34))-Pfd_weighted)/Equity_percent -> 0.3987350658 | Y11: =+Y9 -> 0.25 | Z11: =+X11+Y11 -> 0.6487350658 | AA11: =Z11*equityP -> 0.3191776524 | AB11: =+AA11/(1-taxrate) -> 0.3198172869 | AC11: =debtP*Debt_Rate -> 0.02028302025 | AD11: =+AC11+AB11 -> 0.3401003072 | AE11: =+AD11/(S11/100) -> 0.04263560255 | AF11: =1-AE11 -> 0.9573643974 | AG11: =expenses/(AF11) -> 7229121.808 | AH11: =+AG11-Revenue -> 292705.8525 | AI11: =+AH11/$J$49 -> 313741.6346 | AJ11: =+AI11*$J$47 -> 7929.819815 | AK11: =ROUND(+AJ11+AG11,5) -> 7237051.628
B12: WUTC Fee | C12: 0.004275 | F12: 6 | H12: Income Tax Expense | I12: =IF(I14<0,0,+J38*I14) -> 0 | J12: =+K12-I12 -> 567.2367085 | K12: =+(K9-K11)*taxrate -> 567.2367085 | M12: =+K12 -> 567.2367085 | R12: 2 | S12: =IF((AK7/Investment*100)>0,(AK7/Investment*100),0) -> 797.6908658 | T12: =EXP(y_inter2-(slope*LN(+S12))) -> 3.127324075 | U12: =(+S12*T12/100)/100 -> 0.2494637849 | V12: =regDebt_weighted -> 0.03586 | W12: =+U12-V12 -> 0.2136037849 | X12: =+((W12*(1-0.34))-Pfd_weighted)/Equity_percent -> 0.3918270292 | Y12: =+Y11 -> 0.25 | Z12: =+X12+Y12 -> 0.6418270292 | AA12: =Z12*equityP -> 0.3157788984 | AB12: =+AA12/(1-taxrate) -> 0.3164117218 | AC12: =debtP*Debt_Rate -> 0.02028302025 | AD12: =+AC12+AB12 -> 0.3366947421 | AE12: =+AD12/(S12/100) -> 0.04220867462 | AF12: =1-AE12 -> 0.9577913254 | AG12: =expenses/(AF12) -> 7225899.484 | AH12: =+AG12-Revenue -> 289483.5284 | AI12: =+AH12/$J$49 -> 310287.733 | AJ12: =+AI12*$J$47 -> 7842.522452 | AK12: =ROUND(+AJ12+AG12,5) -> 7233742.007
B13: City Tax | C13: 0 | F13: 7 | R13: 3 | S13: =IF((AK8/Investment*100)>0,(AK8/Investment*100),0) -> 797.6908658 | T13: =EXP(y_inter3-(slope*LN(S13))) -> 3.09691889 | U13: =(+S13*T13/100)/100 -> 0.2470383911 | V13: =regDebt_weighted -> 0.03586 | W13: =+U13-V13 -> 0.2111783911 | X13: =+((W13*(1-0.34))-Pfd_weighted)/Equity_percent -> 0.3871736573 | Y13: =+Y12 -> 0.25 | Z13: =+X13+Y13 -> 0.6371736573 | AA13: =Z13*equityP -> 0.3134894394 | AB13: =+AA13/(1-taxrate) -> 0.3141176747 | AC13: =debtP*Debt_Rate -> 0.02028302025 | AD13: =+AC13+AB13 -> 0.334400695 | AE13: =+AD13/(S13/100) -> 0.04192108865 | AF13: =1-AE13 -> 0.9580789114 | AG13: =expenses/(AF13) -> 7223730.49 | AH13: =+AG13-Revenue -> 287314.5345 | AI13: =+AH13/$J$49 -> 307962.8608 | AJ13: =+AI13*$J$47 -> 7783.761306 | AK13: 7231514.252
B14: Bad Debts | C14: 0.006 | F14: 8 | H14: Net Income | I14: =+I9-SUM(I11:I13) -> -2918.995293 | K14: =+K9-SUM(K11:K13) -> 283051.1176 | M14: =+M9-SUM(M11:M13) -> 283051.1176 | R14: 4 | S14: =IF((AK9/Investment*100)>0,(AK9/Investment*100),0) -> 797.6908658 | T14: =EXP(y_inter4-(slope*LN(S14))) -> 3.07746963 | U14: =(+S14*T14/100)/100 -> 0.2454869414 | V14: =regDebt_weighted -> 0.03586 | W14: =+U14-V14 -> 0.2096269414 | X14: =+((W14*(1-0.34))-Pfd_weighted)/Equity_percent -> 0.3841970388 | Y14: =+Y13 -> 0.25 | Z14: 0.6341970388 | AA14: =Z14*equityP -> 0.3120249431 | AB14: =+AA14/(1-taxrate) -> 0.3126502436 | AC14: =debtP*Debt_Rate -> 0.02028302025 | AD14: =+AC14+AB14 -> 0.3329332638 | AE14: =+AD14/(S14/100) -> 0.04173712876 | AF14: =1-AE14 -> 0.9582628712 | AG14: =expenses/(AF14) -> 7222343.734 | AH14: =+AG14-Revenue -> 285927.7786 | AI14: =+AH14/$J$49 -> 306476.4435 | AJ14: =+AI14*$J$47 -> 7746.192109 | AK14: 7230089.927
B15: Basis Points - Flotation | C15: 0.25 | F15: 9 | R15: 3rd Iteration
D16: Yes | F16: 10 | H16: Operating Ratio | I16: =+I8/I7 -> 0.9977636705 | K16: =+K8/K7 -> 0.958182 | M16: =+M8/M7 -> 0.9582268947 | R16: 1 | S16: =AK11/Investment*100 -> 796.4213123 | T16: =EXP(y_inter1-(slope*LN(+S16))) -> 3.175917805 | U16: =(+S16*T16/100)/100 -> 0.2529368626 | V16: =regDebt_weighted -> 0.03586 | W16: =+U16-V16 -> 0.2170768626 | X16: =+((W16*(1-0.34))-Pfd_weighted)/Equity_percent -> 0.3984904921 | Y16: =+Y14 -> 0.25 | Z16: =+X16+Y16 -> 0.6484904921 | AA16: =Z16*equityP -> 0.3190573221 | AB16: =+AA16/(1-taxrate) -> 0.3196967155 | AC16: =debtP*Debt_Rate -> 0.02028302025 | AD16: =+AC16+AB16 -> 0.3399797358 | AE16: =+AD16/(S16/100) -> 0.04268842767 | AF16: =1-AE16 -> 0.9573115723 | AG16: =expenses/(AF16) -> 7229520.716 | AH16: =+AG16-Revenue -> 293104.7604 | AI16: =+AH16/$J$49 -> 314169.2107 | AJ16: =+AI16*$J$47 -> 7940.6268 | AK16: =ROUND(+AJ16+AG16,5) -> 7237461.343
B17: Check when input is complete | D17: No | F17: 11 | R17: 2 | S17: =AK12/Investment*100 -> 796.0570958 | T17: =EXP(y_inter2-(slope*LN(+S17))) -> 3.131710647 | U17: =(+S17*T17/100)/100 -> 0.2493020483 | V17: =regDebt_weighted -> 0.03586 | W17: =+U17-V17 -> 0.2134420483 | X17: =+((W17*(1-0.34))-Pfd_weighted)/Equity_percent -> 0.3915167205 | Y17: =+Y16 -> 0.25 | Z17: =+X17+Y17 -> 0.6415167205 | AA17: =Z17*equityP -> 0.3156262265 | AB17: =+AA17/(1-taxrate) -> 0.316258744 | AC17: =debtP*Debt_Rate -> 0.02028302025 | AD17: =+AC17+AB17 -> 0.3365417642 | AE17: =+AD17/(S17/100) -> 0.04227608371 | AF17: =1-AE17 -> 0.9577239163 | AG17: =expenses/(AF17) -> 7226408.077 | AH17: =+AG17-Revenue -> 289992.121 | AI17: =+AH17/$J$49 -> 310832.8764 | AJ17: =+AI17*$J$47 -> 7856.300952 | AK17: =ROUND(+AJ17+AG17,5) -> 7234264.378
F18: 12 | H18: Revenue Requirement | R18: 3 | S18: =AK13/Investment*100 -> 795.8119364 | T18: =EXP(y_inter3-(slope*LN(S18))) -> 3.101915947 | U18: =(+S18*T18/100)/100 -> 0.2468541737 | V18: =regDebt_weighted -> 0.03586 | W18: =+U18-V18 -> 0.2109941737 | X18: =+((W18*(1-0.34))-Pfd_weighted)/Equity_percent -> 0.3868202169 | Y18: =+Y17 -> 0.25 | Z18: =+X18+Y18 -> 0.6368202169 | AA18: =Z18*equityP -> 0.3133155467 | AB18: =+AA18/(1-taxrate) -> 0.3139434336 | AC18: =debtP*Debt_Rate -> 0.02028302025 | AD18: =+AC18+AB18 -> 0.3342264538 | AE18: =+AD18/(S18/100) -> 0.04199817049 | AF18: =1-AE18 -> 0.9580018295 | AG18: =expenses/(AF18) -> 7224311.719 | AH18: =+AG18-Revenue -> 287895.7635 | AI18: =+AH18/$J$49 -> 308585.8608 | AJ18: =+AI18*$J$47 -> 7799.507631 | AK18: 7232111.227
B19: For Intial input: Uncheck Checkbox Until Completed | F19: 13 | I19: Historical Revenue | J19: =+Revenue -> 6936415.956 | L19: Revenue Increase before taxes | M19: =+J7 -> 286537.3496 | R19: 4 | S19: =AK14/Investment*100 -> 795.6551926 | T19: =EXP(y_inter4-(slope*LN(S19))) -> 3.082850443 | U19: =(+S19*T19/100)/100 -> 0.2452885963 | V19: =regDebt_weighted -> 0.03586 | W19: =+U19-V19 -> 0.2094285963 | X19: =+((W19*(1-0.34))-Pfd_weighted)/Equity_percent -> 0.3838164929 | Y19: =+Y18 -> 0.25 | Z19: 0.6338164929 | AA19: =Z19*equityP -> 0.3118377145 | AB19: =+AA19/(1-taxrate) -> 0.3124626398 | AC19: =debtP*Debt_Rate -> 0.02028302025 | AD19: =+AC19+AB19 -> 0.3327456601 | AE19: =+AD19/(S19/100) -> 0.04182033413 | AF19: =1-AE19 -> 0.9581796659 | AG19: =expenses/(AF19) -> 7222970.9 | AH19: =+AG19-Revenue -> 286554.9447 | AI19: =+AH19/$J$49 -> 307148.6818 | AJ19: =+AI19*$J$47 -> 7763.182934 | AK19: 7230734.083
F20: 14 | I20: Rate Increase | J20: =+J21-J19 -> 294300.0558 | L20: Rev Sensitive Taxes | M20: =+L8 -> 7762.706256 | R20: 4th Iteration
F21: 15 | I21: Revenue Requirement | J21: =+M7 -> 7230716.012 | L21: Rate Increase | M21: =+M19+M20 -> 294300.0558 | R21: 1 | S21: =AK16/Investment*100 -> 796.4664005 | T21: =EXP(y_inter1-(slope*LN(+S21))) -> 3.175794887 | U21: =(+S21*T21/100)/100 -> 0.2529413922 | V21: =regDebt_weighted -> 0.03586 | W21: =+U21-V21 -> 0.2170813922 | X21: =+((W21*(1-0.34))-Pfd_weighted)/Equity_percent -> 0.3984991827 | Y21: =+Y19 -> 0.25 | Z21: =+X21+Y21 -> 0.6484991827 | AA21: =Z21*equityP -> 0.3190615979 | AB21: =+AA21/(1-taxrate) -> 0.3197009999 | AC21: =debtP*Debt_Rate -> 0.02028302025 | AD21: =+AC21+AB21 -> 0.3399840201 | AE21: =+AD21/(S21/100) -> 0.04268654898 | AF21: =1-AE21 -> 0.957313451 | AG21: =expenses/(AF21) -> 7229506.529 | AH21: =+AG21-Revenue -> 293090.5728 | AI21: =+AH21/$J$49 -> 314154.0035 | AJ21: =+AI21*$J$47 -> 7940.242437 | AK21: =ROUND(+AJ21+AG21,5) -> 7237446.771
F22: 16 | R22: 2 | S22: =AK17/Investment*100 -> 796.1145816 | T22: =EXP(y_inter2-(slope*LN(+S22))) -> 3.131556044 | U22: =(+S22*T22/100)/100 -> 0.249307743 | V22: =regDebt_weighted -> 0.03586 | W22: =+U22-V22 -> 0.213447743 | X22: =+((W22*(1-0.34))-Pfd_weighted)/Equity_percent -> 0.3915276464 | Y22: =+Y21 -> 0.25 | Z22: =+X22+Y22 -> 0.6415276464 | AA22: =Z22*equityP -> 0.315631602 | AB22: =+AA22/(1-taxrate) -> 0.3162641303 | AC22: =debtP*Debt_Rate -> 0.02028302025 | AD22: =+AC22+AB22 -> 0.3365471505 | AE22: =+AD22/(S22/100) -> 0.04227370762 | AF22: =1-AE22 -> 0.9577262924 | AG22: =expenses/(AF22) -> 7226390.148 | AH22: =+AG22-Revenue -> 289974.1925 | AI22: =+AH22/$J$49 -> 310813.6595 | AJ22: =+AI22*$J$47 -> 7855.815243 | AK22: =ROUND(+AJ22+AG22,5) -> 7234245.964
B23: 2018 Version Update Changes | F23: 17 | R23: 3 | S23: =AK18/Investment*100 -> 795.8776322 | T23: =EXP(y_inter3-(slope*LN(S23))) -> 3.101740893 | U23: =(+S23*T23/100)/100 -> 0.2468606197 | V23: =regDebt_weighted -> 0.03586 | W23: =+U23-V23 -> 0.2110006197 | X23: =+((W23*(1-0.34))-Pfd_weighted)/Equity_percent -> 0.3868325844 | Y23: =+Y22 -> 0.25 | Z23: =+X23+Y23 -> 0.6368325844 | AA23: =Z23*equityP -> 0.3133216315 | AB23: =+AA23/(1-taxrate) -> 0.3139495306 | AC23: =debtP*Debt_Rate -> 0.02028302025 | AD23: =+AC23+AB23 -> 0.3342325508 | AE23: =+AD23/(S23/100) -> 0.04199546982 | AF23: =1-AE23 -> 0.9580045302 | AG23: =expenses/(AF23) -> 7224291.354 | AH23: =+AG23-Revenue -> 287875.3977 | AI23: =+AH23/$J$49 -> 308564.0314 | AJ23: =+AI23*$J$47 -> 7798.955894 | AK23: 7232090.309
B24: ● Allows Income Tax Rate Changes, | F24: 18 | H24: Captial Structure Financing Investment | K24: Financing Cost | R24: 4 | S24: =AK19/Investment*100 -> 795.7260806 | T24: =EXP(y_inter4-(slope*LN(S24))) -> 3.082662678 | U24: =(+S24*T24/100)/100 -> 0.2452955091 | V24: =regDebt_weighted -> 0.03586 | W24: =+U24-V24 -> 0.2094355091 | X24: =+((W24*(1-0.34))-Pfd_weighted)/Equity_percent -> 0.3838297558 | Y24: =+Y23 -> 0.25 | Z24: 0.6338297558 | AA24: =Z24*equityP -> 0.3118442399 | AB24: =+AA24/(1-taxrate) -> 0.3124691782 | AC24: =debtP*Debt_Rate -> 0.02028302025 | AD24: =+AC24+AB24 -> 0.3327521985 | AE24: =+AD24/(S24/100) -> 0.04181743022 | AF24: =1-AE24 -> 0.9581825698 | AG24: =expenses/(AF24) -> 7222949.01 | AH24: =+AG24-Revenue -> 286533.0544 | AI24: =+AH24/$J$49 -> 307125.2184 | AJ24: =+AI24*$J$47 -> 7762.589895 | AK24: 7230711.6
B25: ● Minimizes impact of changes in test-year revenue from | F25: 19 | H25: Type | I25: Percent | J25: Amount | K25: Cost of Capital | L25: Weighted | M25: Amount | R25: 5th Iteration
B26: resulting revenue requirment, | F26: 20 | H26: Equity | I26: =1-I27 -> 0.492 | J26: =+I26*J28 -> 447078.6186 | K26: =+K34 -> 0.6331126245 | L26: =+K26*I26 -> 0.3114914112 | M26: =+J26*K26 -> 283051.1176 | R26: 1 | S26: =AK21/Investment*100 -> 796.4647969 | T26: =EXP(y_inter1-(slope*LN(+S26))) -> 3.175799258 | U26: =(+S26*T26/100)/100 -> 0.2529412311 | V26: =regDebt_weighted -> 0.03586 | W26: =+U26-V26 -> 0.2170812311 | X26: =+((W26*(1-0.34))-Pfd_weighted)/Equity_percent -> 0.3984988736 | Y26: =+Y24 -> 0.25 | Z26: =+X26+Y26 -> 0.6484988736 | AA26: =Z26*equityP -> 0.3190614458 | AB26: =+AA26/(1-taxrate) -> 0.3197008475 | AC26: =debtP*Debt_Rate -> 0.02028302025 | AD26: =+AC26+AB26 -> 0.3399838678 | AE26: =+AD26/(S26/100) -> 0.04268661579 | AF26: =1-AE26 -> 0.9573133842 | AG26: =expenses/(AF26) -> 7229507.033 | AH26: =+AG26-Revenue -> 293091.0773 | AI26: =+AH26/$J$49 -> 314154.5443 | AJ26: =+AI26*$J$47 -> 7940.256107 | AK26: =ROUND(+AJ26+AG26,5) -> 7237447.289
B27: ● Corrects interest rate transposition in LG. | F27: 21 | H27: Debt | I27: =IF(A64=TRUE,C8,0) -> 0.508 | J27: =+I27*J28 -> 461617.7607 | K27: =IF(A64=TRUE,C9,0) -> 0.03992720522 | L27: =+K27*I27 -> 0.02028302025 | M27: =+K27*J27 -> 18431.10706 | R27: 2 | S27: =AK22/Investment*100 -> 796.1125552 | T27: =EXP(y_inter2-(slope*LN(+S27))) -> 3.131561493 | U27: =(+S27*T27/100)/100 -> 0.2493075422 | V27: =regDebt_weighted -> 0.03586 | W27: =+U27-V27 -> 0.2134475422 | X27: =+((W27*(1-0.34))-Pfd_weighted)/Equity_percent -> 0.3915272612 | Y27: =+Y26 -> 0.25 | Z27: =+X27+Y27 -> 0.6415272612 | AA27: =Z27*equityP -> 0.3156314125 | AB27: =+AA27/(1-taxrate) -> 0.3162639404 | AC27: =debtP*Debt_Rate -> 0.02028302025 | AD27: =+AC27+AB27 -> 0.3365469607 | AE27: =+AD27/(S27/100) -> 0.04227379137 | AF27: =1-AE27 -> 0.9577262086 | AG27: =expenses/(AF27) -> 7226390.78 | AH27: =+AG27-Revenue -> 289974.8244 | AI27: =+AH27/$J$49 -> 310814.3368 | AJ27: =+AI27*$J$47 -> 7855.832363 | AK27: =ROUND(+AJ27+AG27,5) -> 7234246.613
F28: 22 | H28: Total | I28: =SUM(I26:I27) -> 1 | J28: =IF(A64=TRUE,C7,0) -> 908696.3792 | L28: =SUM(L26:L27) -> 0.3317744315 | M28: =SUM(M26:M27) -> 301482.2246 | R28: 3 | S28: =AK23/Investment*100 -> 795.8753303 | T28: =EXP(y_inter3-(slope*LN(S28))) -> 3.101747026 | U28: =(+S28*T28/100)/100 -> 0.2468603939 | V28: =regDebt_weighted -> 0.03586 | W28: =+U28-V28 -> 0.2110003939 | X28: =+((W28*(1-0.34))-Pfd_weighted)/Equity_percent -> 0.3868321511 | Y28: =+Y27 -> 0.25 | Z28: =+X28+Y28 -> 0.6368321511 | AA28: =Z28*equityP -> 0.3133214183 | AB28: =+AA28/(1-taxrate) -> 0.313949317 | AC28: =debtP*Debt_Rate -> 0.02028302025 | AD28: =+AC28+AB28 -> 0.3342323372 | AE28: =+AD28/(S28/100) -> 0.04199556444 | AF28: =1-AE28 -> 0.9580044356 | AG28: =expenses/(AF28) -> 7224292.067 | AH28: =+AG28-Revenue -> 287876.1113 | AI28: =+AH28/$J$49 -> 308564.7962 | AJ28: =+AI28*$J$47 -> 7798.975225 | AK28: 7232091.042
F29: 23 | R29: 4 | S29: =AK24/Investment*100 -> 795.7236064 | T29: =EXP(y_inter4-(slope*LN(S29))) -> 3.082669232 | U29: =(+S29*T29/100)/100 -> 0.2452952678 | V29: =regDebt_weighted -> 0.03586 | W29: =+U29-V29 -> 0.2094352678 | X29: =+((W29*(1-0.34))-Pfd_weighted)/Equity_percent -> 0.3838292929 | Y29: =+Y28 -> 0.25 | Z29: 0.6338292929 | AA29: =Z29*equityP -> 0.3118440121 | AB29: =+AA29/(1-taxrate) -> 0.31246895 | AC29: =debtP*Debt_Rate -> 0.02028302025 | AD29: =+AC29+AB29 -> 0.3327519703 | AE29: =+AD29/(S29/100) -> 0.04181753156 | AF29: =1-AE29 -> 0.9581824684 | AG29: =expenses/(AF29) -> 7222949.774 | AH29: =+AG29-Revenue -> 286533.8184 | AI29: =+AH29/$J$49 -> 307126.0373 | AJ29: =+AI29*$J$47 -> 7762.610592 | AK29: 7230712.385
F30: 24 | J30: Before | K30: After | R30: 6th Iteration
F31: 25 | H31: Operating Statistics | J31: Income Tax | K31: Income Tax | R31: 1 | S31: =AK26/Investment*100 -> 796.4648539 | T31: =EXP(y_inter1-(slope*LN(+S31))) -> 3.175799103 | U31: =(+S31*T31/100)/100 -> 0.2529412368 | V31: =regDebt_weighted -> 0.03586 | W31: =+U31-V31 -> 0.2170812368 | X31: =+((W31*(1-0.34))-Pfd_weighted)/Equity_percent -> 0.3984988846 | Y31: =+Y29 -> 0.25 | Z31: =+X31+Y31 -> 0.6484988846 | AA31: =Z31*equityP -> 0.3190614512 | AB31: =+AA31/(1-taxrate) -> 0.3197008529 | AC31: =debtP*Debt_Rate -> 0.02028302025 | AD31: =+AC31+AB31 -> 0.3399838732 | AE31: =+AD31/(S31/100) -> 0.04268661342 | AF31: =1-AE31 -> 0.9573133866 | AG31: =expenses/(AF31) -> 7229507.015 | AH31: =+AG31-Revenue -> 293091.0594 | AI31: =+AH31/$J$49 -> 314154.5251 | AJ31: =+AI31*$J$47 -> 7940.255621 | AK31: =ROUND(+AJ31+AG31,5) -> 7237447.271
F32: 26 | R32: 2 | S32: =AK27/Investment*100 -> 796.1126266 | T32: =EXP(y_inter2-(slope*LN(+S32))) -> 3.131561301 | U32: =(+S32*T32/100)/100 -> 0.2493075493 | V32: =regDebt_weighted -> 0.03586 | W32: =+U32-V32 -> 0.2134475493 | X32: =+((W32*(1-0.34))-Pfd_weighted)/Equity_percent -> 0.3915272748 | Y32: =+Y31 -> 0.25 | Z32: =+X32+Y32 -> 0.6415272748 | AA32: =Z32*equityP -> 0.3156314192 | AB32: =+AA32/(1-taxrate) -> 0.3162639471 | AC32: =debtP*Debt_Rate -> 0.02028302025 | AD32: =+AC32+AB32 -> 0.3365469674 | AE32: =+AD32/(S32/100) -> 0.04227378842 | AF32: =1-AE32 -> 0.9577262116 | AG32: =expenses/(AF32) -> 7226390.758 | AH32: =+AG32-Revenue -> 289974.8022 | AI32: =+AH32/$J$49 -> 310814.313 | AJ32: =+AI32*$J$47 -> 7855.83176 | AK32: =ROUND(+AJ32+AG32,5) -> 7234246.59
F33: 27 | H33: Return on Investment | J33: =+K9/J28 -> 0.3323986628 | K33: =+(M14+M11)/J28 -> 0.3317744315 | R33: 3 | S33: =AK28/Investment*100 -> 795.8754109 | T33: =EXP(y_inter3-(slope*LN(S33))) -> 3.101746811 | U33: =(+S33*T33/100)/100 -> 0.2468604018 | V33: =regDebt_weighted -> 0.03586 | W33: =+U33-V33 -> 0.2110004018 | X33: =+((W33*(1-0.34))-Pfd_weighted)/Equity_percent -> 0.3868321662 | Y33: =+Y32 -> 0.25 | Z33: =+X33+Y33 -> 0.6368321662 | AA33: =Z33*equityP -> 0.3133214258 | AB33: =+AA33/(1-taxrate) -> 0.3139493244 | AC33: =debtP*Debt_Rate -> 0.02028302025 | AD33: =+AC33+AB33 -> 0.3342323447 | AE33: =+AD33/(S33/100) -> 0.04199556113 | AF33: =1-AE33 -> 0.9580044389 | AG33: =expenses/(AF33) -> 7224292.042 | AH33: =+AG33-Revenue -> 287876.0863 | AI33: =+AH33/$J$49 -> 308564.7694 | AJ33: =+AI33*$J$47 -> 7798.974548 | AK33: 7232091.017
F34: 28 | H34: Return on Equity | J34: =+(M9-M11)/J26 -> 0.6343813872 | K34: =+M14/J26 -> 0.6331126245 | R34: 4 | S34: =AK29/Investment*100 -> 795.7236928 | T34: =EXP(y_inter4-(slope*LN(S34))) -> 3.082669003 | U34: =(+S34*T34/100)/100 -> 0.2452952762 | V34: =regDebt_weighted -> 0.03586 | W34: =+U34-V34 -> 0.2094352762 | X34: =+((W34*(1-0.34))-Pfd_weighted)/Equity_percent -> 0.3838293091 | Y34: =+Y33 -> 0.25 | Z34: 0.6338293091 | AA34: =Z34*equityP -> 0.3118440201 | AB34: =+AA34/(1-taxrate) -> 0.312468958 | AC34: =debtP*Debt_Rate -> 0.02028302025 | AD34: =+AC34+AB34 -> 0.3327519782 | AE34: =+AD34/(S34/100) -> 0.04181752803 | AF34: =1-AE34 -> 0.958182472 | AG34: =expenses/(AF34) -> 7222949.748 | AH34: =+AG34-Revenue -> 286533.7917 | AI34: =+AH34/$J$49 -> 307126.0087 | AJ34: =+AI34*$J$47 -> 7762.60987 | AK34: 7230712.357
F35: 29 | H35: Operating Ratio | J35: =+K8/K7 -> 0.958182 | K35: =+M8/M7 -> 0.9582268947 | R35: 7th Iteration
F36: 30 | H36: Profit Margin | J36: =+K9/K7 -> 0.041818 | K36: =+J36 -> 0.041818 | R36: 1 | S36: =AK31/Investment*100 -> 796.4648519 | T36: =EXP(y_inter1-(slope*LN(+S36))) -> 3.175799108 | U36: =(+S36*T36/100)/100 -> 0.2529412366 | V36: =regDebt_weighted -> 0.03586 | W36: =+U36-V36 -> 0.2170812366 | X36: =+((W36*(1-0.34))-Pfd_weighted)/Equity_percent -> 0.3984988842 | Y36: =+Y34 -> 0.25 | Z36: =+X36+Y36 -> 0.6484988842 | AA36: =Z36*equityP -> 0.319061451 | AB36: =+AA36/(1-taxrate) -> 0.3197008527 | AC36: =debtP*Debt_Rate -> 0.02028302025 | AD36: =+AC36+AB36 -> 0.339983873 | AE36: =+AD36/(S36/100) -> 0.0426866135 | AF36: =1-AE36 -> 0.9573133865 | AG36: =expenses/(AF36) -> 7229507.016 | AH36: =+AG36-Revenue -> 293091.06 | AI36: =+AH36/$J$49 -> 314154.5257 | AJ36: =+AI36*$J$47 -> 7940.255638 | AK36: =ROUND(+AJ36+AG36,5) -> 7237447.271
F37: 31 | H37: Final turnover | J37: =+S39/100 -> 7.957236897 | K37: =+J37 -> 7.957236897 | R37: 2 | S37: =AK32/Investment*100 -> 796.1126241 | T37: =EXP(y_inter2-(slope*LN(+S37))) -> 3.131561308 | U37: =(+S37*T37/100)/100 -> 0.249307549 | V37: =regDebt_weighted -> 0.03586 | W37: =+U37-V37 -> 0.213447549 | X37: =+((W37*(1-0.34))-Pfd_weighted)/Equity_percent -> 0.3915272743 | Y37: =+Y36 -> 0.25 | Z37: =+X37+Y37 -> 0.6415272743 | AA37: =Z37*equityP -> 0.315631419 | AB37: =+AA37/(1-taxrate) -> 0.3162639469 | AC37: =debtP*Debt_Rate -> 0.02028302025 | AD37: =+AC37+AB37 -> 0.3365469671 | AE37: =+AD37/(S37/100) -> 0.04227378852 | AF37: =1-AE37 -> 0.9577262115 | AG37: =expenses/(AF37) -> 7226390.759 | AH37: =+AG37-Revenue -> 289974.803 | AI37: =+AH37/$J$49 -> 310814.3138 | AJ37: =+AI37*$J$47 -> 7855.831781 | AK37: =ROUND(+AJ37+AG37,5) -> 7234246.591
F38: 32 | H38: Tax Rate | J38: =+C10 -> 0.002 | K38: =+J38 -> 0.002 | R38: 3 | S38: =AK33/Investment*100 -> 795.8754081 | T38: =EXP(y_inter3-(slope*LN(S38))) -> 3.101746819 | U38: =(+S38*T38/100)/100 -> 0.2468604015 | V38: =regDebt_weighted -> 0.03586 | W38: =+U38-V38 -> 0.2110004015 | X38: =+((W38*(1-0.34))-Pfd_weighted)/Equity_percent -> 0.3868321657 | Y38: =+Y37 -> 0.25 | Z38: =+X38+Y38 -> 0.6368321657 | AA38: =Z38*equityP -> 0.3133214255 | AB38: =+AA38/(1-taxrate) -> 0.3139493242 | AC38: =debtP*Debt_Rate -> 0.02028302025 | AD38: =+AC38+AB38 -> 0.3342323444 | AE38: =+AD38/(S38/100) -> 0.04199556124 | AF38: =1-AE38 -> 0.9580044388 | AG38: =expenses/(AF38) -> 7224292.043 | AH38: =+AG38-Revenue -> 287876.0872 | AI38: =+AH38/$J$49 -> 308564.7704 | AJ38: =+AI38*$J$47 -> 7798.974571 | AK38: 7232091.018
F39: 33 | R39: 4 | S39: =AK34/Investment*100 -> 795.7236897 | T39: =EXP(y_inter4-(slope*LN(S39))) -> 3.082669011 | U39: =(+S39*T39/100)/100 -> 0.245295276 | V39: =regDebt_weighted -> 0.03586 | W39: =+U39-V39 -> 0.209435276 | X39: =+((W39*(1-0.34))-Pfd_weighted)/Equity_percent -> 0.3838293085 | Y39: =+Y38 -> 0.25 | Z39: 0.6338293085 | AA39: =Z39*equityP -> 0.3118440198 | AB39: =+AA39/(1-taxrate) -> 0.3124689577 | AC39: =debtP*Debt_Rate -> 0.02028302025 | AD39: =+AC39+AB39 -> 0.332751978 | AE39: =+AD39/(S39/100) -> 0.04181752815 | AF39: =1-AE39 -> 0.9581824718 | AG39: =expenses/(AF39) -> 7222949.748 | AH39: =+AG39-Revenue -> 286533.7927 | AI39: =+AH39/$J$49 -> 307126.0097 | AJ39: =+AI39*$J$47 -> 7762.609895 | AK39: 7230712.358
F40: 34
F41: 35 | H41: Revenue Sensitive Taxes Charges | R41: Curve
F42: 36 | J42: Rate | K42: Taxes | R42: Lookup Table
F43: 37 | H43: B & O Tax | J43: =IF(A64=TRUE,C11,0) -> 0.015 | K43: =+J43*($J$7/$J$49) -> 4606.947333 | R43: 0 | S43: 1 | U43: Profit Margin | V43: =VLOOKUP(R48,R36:AG39,14) -> 0.04181752815
F44: 38 | H44: WUTC Fee | J44: =IF(A64=TRUE,C12,0) -> 0.004275 | K44: =+J44*($J$7/$J$49) -> 1312.97999 | R44: 50 | S44: 2 | U44: Operating Ratio | V44: =ROUND(1-V43,6) -> 0.958182
F45: 39 | H45: City Tax | J45: =IF(A64=TRUE,C13,0) -> 0 | K45: =+J45*($J$7/$J$49) -> 0 | R45: 125 | S45: 3 | U45: Percent Chg | V45: =+M7/Revenue-1 -> 0.04242825945
F46: 40 | H46: Bad Debts | J46: =IF(A64=TRUE,C14,0) -> 0.006 | K46: =+J46*($J$7/$J$49) -> 1842.778933 | R46: 401 | S46: 4
F47: 41 | H47: Revenue Sensitive | J47: =SUM(J43:J46) -> 0.025275 | K47: =+K43+K44+K45+K46 -> 7762.706256 | R47: =VLOOKUP(R48,R36:S39,2) -> 795.7236897 | S47: Curve turnover | X47: @EXP(5.72260-(.68367*@LN(T)))
F48: 42 | R48: =VLOOKUP(S36,R43:S46,2) -> 4 | S48: Curve No. Used | X48: @EXP(5.70827-(.68367*@LN(T)))
F49: 43 | H49: Conversion Factor | J49: =((K35)-J47) -> 0.9329518947 | X49: @EXP(5.69850-(.68367*@LN(T)))
R50: =+V44 -> 0.958182 | S50: Operating Ratio | X50: @EXP(5.69220-(.68367*@LN(T)))
S53: Base Utility from LG Sample Study | W53: Regression Results
S54: Percent | T54: Cost | U54: Weighted | W54: Y intercept (1) | X54: 5.7226 | Y54: Y intercept (3) | Z54: 5.6985
R55: Debt | S55: 0.562 | T55: 0.0638 | U55: =ROUND(+S55*T55,5) -> 0.03586 | W55: Y intercept (2) | X55: 5.70827 | Y55: Y intercept (4) | Z55: 5.6922
R56: Pfd. | S56: 0.094 | T56: 0.0659 | U56: =ROUND(+S56*T56,5) -> 0.00619
R57: Equity | S57: 0.344 | X57: Slope | Y57: 0.68367
S58: =SUM(S55:S57) -> 1
X60: Operating Statistics | Y60: Pre-tax | Z60: After Tax
X62: Return on Investment | Y62: =+J33 -> 0.3323986628 | Z62: 0.3317744315
X63: Return on Equity | Y63: 0.6343813872 | Z63: 0.6331126245
A64: TRUE | X64: Operating Ratio | Y64: 0.958182 | Z64: 0.9582268947
X65: Profit Margin | Y65: 0.041818 | Z65: 0.041818
X66: Final turnover | Y66: 7.957236897 | Z66: 7.957236897
X67: Tax Rate | Y67: 0.002 | Z67: 0.002

Sheet MSW
B1: NEW IMPROVED LURITO - GALLAGHER FORMULA | AE1: !??! | AF1: OP/RATIO | AI1: curve
G2: NOTE: | N2: FORMULAS | U2: 1st Revenue | V2: 1st Turnover | W2: M | X2: ROR | Y2: ROE | AA2: Adj ROE | AB2: Pre Tax ROE | AC2: Adj M | AD2: Revenues | AE2: Decision | AI2: lookup table
B3: !!! | C3: Revenue Requirement | E3: =E5+E4 -> 7230712.728 | F3: !!!<-- | H3: Red numbers are input/linked fields. | N3: 1. less than 50 | Q3: @EXP(5.72260-(.68367*@LN(T))) | U3: =$E$6*1.25 -> 8651129.805 | V3: =100*(+$E$5/$E$7) -> 763.3370303 | W3: =EXP(5.7226-(0.68367*LN(+V3))) -> 3.269391492 | X3: =(+W3*V3)/100 -> 24.95647593 | Y3: ='MSW LG 2018 V5.0C'!X6*100 -> 39.2020759 | Z3: ='MSW LG 2018 V5.0C'!Y6*100 -> 25 | AA3: =Y3+Z3 -> 64.2020759 | AB3: =100*($E$15*$E$17+($E$16*(AA3/100))/(1-$E$19)) -> 33.69607642 | AC3: ='MSW LG 2018 V5.0C'!AE6 -> 0.04412077952 | AD3: =$E$6/(1-AC3) -> 7240353.902 | AE3: =IF(AD3=$U$3,"yes","not yet") -> not yet | AF3: =100*(1-AC3) -> 95.58792205 | AI3: 0 | AJ3: 1
B4: !!! | C4: Revenue Deficiency | E4: =(+E6-((H13/100)*E5))/H23 -> 294296.7722 | F4: !!!<-- | H4: Black are formula calculations | N4: 2. Between 50 and 125 | Q4: @EXP(5.70827-(.68367*@LN(T))) | U4: =$E$6*1.25 -> 8651129.805 | V4: =100*(+$E$5/$E$7) -> 763.3370303 | W4: ='MSW LG 2018 V5.0C'!T7 -> 3.269391492 | X4: =(+W4*V4)/100 -> 24.95647593 | Y4: ='MSW LG 2018 V5.0C'!X7*100 -> 39.2020759 | Z4: ='MSW LG 2018 V5.0C'!Y7*100 -> 25 | AA4: =Y4+Z4 -> 64.2020759 | AB4: =100*($E$15*$E$17+($E$16*(AA4/100))/(1-$E$19)) -> 33.69607642 | AC4: ='MSW LG 2018 V5.0C'!AE7 -> 0.04412077952 | AD4: 7240353.902 | AE4: =IF(AD4=$U$4,"yes","not yet") -> not yet | AF4: =100*(1-AC4) -> 95.58792205 | AI4: 50 | AJ4: 2
B5: * | C5: Revenue | E5: =Proforma!O26 -> 6936415.956 | F5: * p/f before rates | N5: 3. Between 125 and 140 | Q5: @EXP(5.69850-(.68367*@LN(T))) | U5: =$E$6*1.25 -> 8651129.805 | V5: 763.3370303 | W5: ='MSW LG 2018 V5.0C'!T8 -> 3.269391492 | X5: =(+W5*V5)/100 -> 24.95647593 | Y5: ='MSW LG 2018 V5.0C'!X8*100 -> 39.2020759 | Z5: ='MSW LG 2018 V5.0C'!Y8*100 -> 25 | AA5: =Y5+Z5 -> 64.2020759 | AB5: =100*($E$15*$E$17+($E$16*(AA5/100))/(1-$E$19)) -> 33.69607642 | AC5: ='MSW LG 2018 V5.0C'!AE8 -> 0.04412077952 | AD5: 7240353.902 | AE5: =IF(AD5=$U$5,"yes","not yet") -> not yet | AF5: =100*(1-AC5) -> 95.58792205 | AI5: 125 | AJ5: 3
B6: * | C6: Expenses | E6: =+Proforma!O381 -> 6920903.844 | F6: * p/f before rates | N6: 4. greater than 400 | Q6: @EXP(5.69220-(.68367*@LN(T))) | U6: =$E$6*1.25 -> 8651129.805 | V6: 763.3370303 | W6: ='MSW LG 2018 V5.0C'!T9 -> 3.269391492 | X6: =(+W6*V6)/100 -> 24.95647593 | Y6: ='MSW LG 2018 V5.0C'!X9*100 -> 39.2020759 | Z6: ='MSW LG 2018 V5.0C'!Y9*100 -> 25 | AA6: =Y6+Z6 -> 64.2020759 | AB6: =100*($E$15*$E$17+($E$16*(AA6/100))/(1-$E$19)) -> 33.69607642 | AC6: ='MSW LG 2018 V5.0C'!AE9 -> 0.04412077952 | AD6: 7240353.902 | AE6: =IF(AD6=$U$6,"yes","not yet") -> not yet | AF6: =100*(1-AC6) -> 95.58792205 | AI6: 401 | AJ6: 4
B7: * | C7: Avg. Investment - | E7: =SUM('Ave Inv. Summary'!I66:J66) -> 908696.3792 | F7: * p/f before rates
C8: curve turnover | E8: =V3 -> 763.3370303 | F8: (calculated) | V8: 2nd Turnover | W8: M | X8: ROR | Y8: ROE | AI8: lookup tables
C9: final turnover | E9: =HLOOKUP($AJ$32,$AJ$26:$AR$30,$E$10+1) -> 795.7236897 | F9: (calculated) | V9: ='MSW LG 2018 V5.0C'!S11 -> 797.6908658 | W9: ='MSW LG 2018 V5.0C'!T11 -> 3.172461265 | X9: =(+W9*V9)/100 -> 25.30643373 | Y9: ='MSW LG 2018 V5.0C'!X11*100 -> 39.87350658 | Z9: ='MSW LG 2018 V5.0C'!Y11*100 -> 25 | AA9: =Y9+Z9 -> 64.87350658 | AB9: =100*($E$15*$E$17+($E$16*(AA9/100))/(1-$E$19)) -> 34.02727245 | AC9: ='MSW LG 2018 V5.0C'!AE11 -> 0.04263560255 | AD9: =$E$6/(1-AC9) -> 7229121.808 | AE9: =IF(OR(OR(AD9=AD3,AD9=(AD3+1)),AD9=(AD8187-1)),"yes","not yet") -> not yet | AF9: =100*(1-AC9) -> 95.73643974
C10: curve No. used | E10: =VLOOKUP(E8,AI3:AJ6,2) -> 4 | F10: (calculated) | V10: ='MSW LG 2018 V5.0C'!S12 -> 797.6908658 | W10: ='MSW LG 2018 V5.0C'!T12 -> 3.127324075 | X10: =(+W10*V10)/100 -> 24.94637849 | Y10: ='MSW LG 2018 V5.0C'!X12*100 -> 39.18270292 | Z10: ='MSW LG 2018 V5.0C'!Y12*100 -> 25 | AA10: =Y10+Z10 -> 64.18270292 | AB10: =100*($E$15*$E$17+($E$16*(AA10/100))/(1-$E$19)) -> 33.68652032 | AC10: ='MSW LG 2018 V5.0C'!AE12 -> 0.04220867462 | AD10: =$E$6/(1-AC10) -> 7225899.484 | AE10: =IF(OR(OR(AD10=AD4,AD10=(AD4+1)),AD10=(AD4-1)),"yes","not yet") -> not yet | AF10: =100*(1-AC10) -> 95.77913254
V11: ='MSW LG 2018 V5.0C'!S13 -> 797.6908658 | W11: ='MSW LG 2018 V5.0C'!T13 -> 3.09691889 | X11: =(+W11*V11)/100 -> 24.70383911 | Y11: ='MSW LG 2018 V5.0C'!X13*100 -> 38.71736573 | Z11: ='MSW LG 2018 V5.0C'!Y13*100 -> 25 | AA11: =Y11+Z11 -> 63.71736573 | AB11: =100*($E$15*$E$17+($E$16*(AA11/100))/(1-$E$19)) -> 33.45698385 | AC11: ='MSW LG 2018 V5.0C'!AE13 -> 0.04192108865 | AD11: =$E$6/(1-AC11) -> 7223730.49 | AE11: =IF(OR(OR(AD11=AD5,AD11=(AD5+1)),AD11=(AD5-1)),"yes","not yet") -> not yet | AF11: =100*(1-AC11) -> 95.80789114 | AJ11: 1 | AK11: 2 | AL11: 3 | AM11: 4 | AN11: 5 | AO11: 6 | AP11: 7 | AQ11: 8 | AR11: 9
C12: Company actual | V12: ='MSW LG 2018 V5.0C'!S14 -> 797.6908658 | W12: ='MSW LG 2018 V5.0C'!T14 -> 3.07746963 | X12: =(+W12*V12)/100 -> 24.54869414 | Y12: ='MSW LG 2018 V5.0C'!X14*100 -> 38.41970388 | Z12: ='MSW LG 2018 V5.0C'!Y14*100 -> 25 | AA12: =Y12+Z12 -> 63.41970388 | AB12: =100*($E$15*$E$17+($E$16*(AA12/100))/(1-$E$19)) -> 33.31015644 | AC12: ='MSW LG 2018 V5.0C'!AE14 -> 0.04173712876 | AD12: =$E$6/(1-AC12) -> 7222343.734 | AE12: =IF(OR(OR(AD12=AD6,AD12=(AD6+1)),AD12=(AD6-1)),"yes","not yet") -> not yet | AF12: =100*(1-AC12) -> 95.82628712 | AJ12: =AE3 -> not yet | AK12: =AE9 -> not yet | AL12: =AE15 -> not yet | AM12: =AE21 -> not yet | AN12: =AE27 -> not yet | AO12: =AE33 -> not yet | AP12: =AE39 -> not yet | AQ12: =AE45 -> 0 | AR12: =AE51 -> 0
C13: capital structure: | E13: !!! | F13: OPERATING RATIO -> | H13: =HLOOKUP($AJ$23,$AJ$17:$AR$21,$E$10+1) -> 95.81824718 | I13: !!!<-- | AJ13: =AE4 -> not yet | AK13: =AE10 -> not yet | AL13: =AE16 -> not yet | AM13: =AE22 -> not yet | AN13: =AE28 -> not yet | AO13: =AE34 -> not yet | AP13: =AE40 -> yes | AQ13: =AE46 -> 0 | AR13: =AE52 -> 0
C14: - | D14: - | H14: = | V14: 3rd Turnover | W14: M | X14: ROR | Y14: ROE | AJ14: =AE5 -> not yet | AK14: =AE11 -> not yet | AL14: =AE17 -> not yet | AM14: =AE23 -> not yet | AN14: =AE29 -> not yet | AO14: =AE35 -> not yet | AP14: =AE41 -> yes | AQ14: =AE47 -> 0 | AR14: =AE53 -> 0
B15: * | C15: Actual Debt Ratio | E15: =+'Combined LG'!E15 -> 0.5077173987 | F15: Conversion factor data: | V15: ='MSW LG 2018 V5.0C'!S16 -> 796.4213123 | W15: =EXP(5.7226-(0.68367*LN(+V15))) -> 3.175917805 | X15: =(+W15*V15)/100 -> 25.29368626 | Y15: ='MSW LG 2018 V5.0C'!X16*100 -> 39.84904921 | Z15: ='MSW LG 2018 V5.0C'!Y16*100 -> 25 | AA15: =Y15+Z15 -> 64.84904921 | AB15: =100*($E$15*$E$17+($E$16*(AA15/100))/(1-$E$19)) -> 34.01520838 | AC15: ='MSW LG 2018 V5.0C'!AE16 -> 0.04268842767 | AD15: =$E$6/(1-AC15) -> 7229520.716 | AE15: =IF(OR(OR(AD15=AD9,AD15=(AD9+1)),AD15=(AD1-1)),"yes","not yet") -> not yet | AF15: =100*(1-AC15) -> 95.73115723 | AJ15: =AE6 -> not yet | AK15: =AE12 -> not yet | AL15: =AE18 -> not yet | AM15: =AE24 -> not yet | AN15: =AE30 -> not yet | AO15: =AE36 -> not yet | AP15: =AE42 -> yes | AQ15: =AE48 -> 0 | AR15: =AE54 -> 0
B16: * | C16: Actual Equity Ratio | E16: =+'Combined LG'!E16 -> 0.4922826013 | F16: B & O Tax | H16: =+'Combined LG'!H16 -> 0.015 | I16: * | V16: ='MSW LG 2018 V5.0C'!S17 -> 796.0570958 | W16: =EXP(5.70827-(0.68367*LN(+V16))) -> 3.131710647 | X16: =(+W16*V16)/100 -> 24.93020483 | Y16: ='MSW LG 2018 V5.0C'!X17*100 -> 39.15167205 | Z16: ='MSW LG 2018 V5.0C'!Y17*100 -> 25 | AA16: =Y16+Z16 -> 64.15167205 | AB16: =100*($E$15*$E$17+($E$16*(AA16/100))/(1-$E$19)) -> 33.67121375 | AC16: ='MSW LG 2018 V5.0C'!AE17 -> 0.04227608371 | AD16: =$E$6/(1-AC16) -> 7226408.077 | AE16: =IF(OR(OR(AD16=AD10,AD16=(AD10+1)),AD16=(AD10-1)),"yes","not yet") -> not yet | AF16: =100*(1-AC16) -> 95.77239163
B17: * | C17: Actual Cost of Debt | E17: =+'Combined LG'!E17 -> 0.03992720522 | F17: WUTC Fee | H17: =+'Combined LG'!H17 -> 0.004275 | I17: * | V17: ='MSW LG 2018 V5.0C'!S18 -> 795.8119364 | W17: =EXP(5.6985-(0.68367*LN(V17))) -> 3.101915947 | X17: =(+W17*V17)/100 -> 24.68541737 | Y17: ='MSW LG 2018 V5.0C'!X18*100 -> 38.68202169 | Z17: ='MSW LG 2018 V5.0C'!Y18*100 -> 25 | AA17: =Y17+Z17 -> 63.68202169 | AB17: =100*($E$15*$E$17+($E$16*(AA17/100))/(1-$E$19)) -> 33.43954972 | AC17: ='MSW LG 2018 V5.0C'!AE18 -> 0.04199817049 | AD17: =$E$6/(1-AC17) -> 7224311.719 | AE17: =IF(OR(OR(AD17=AD11,AD17=(AD11+1)),AD17=(AD11-1)),"yes","not yet") -> not yet | AF17: =100*(1-AC17) -> 95.80018295 | AJ17: =HLOOKUP(1,$AJ$11:$AR$15,$E$10+1) -> not yet | AK17: =HLOOKUP(2,$AJ$11:$AR$15,$E$10+1) -> not yet | AL17: =HLOOKUP(3,$AJ$11:$AR$15,$E$10+1) -> not yet | AM17: =HLOOKUP(4,$AJ$11:$AR$15,$E$10+1) -> not yet | AN17: =HLOOKUP(5,$AJ$11:$AR$15,$E$10+1) -> not yet | AO17: =HLOOKUP(6,$AJ$11:$AR$15,$E$10+1) -> not yet | AP17: =HLOOKUP(7,$AJ$11:$AR$15,$E$10+1) -> yes | AQ17: =HLOOKUP(8,$AJ$11:$AR$15,$E$10+1) -> 0 | AR17: =HLOOKUP(9,$AJ$11:$AR$15,$E$10+1) -> 0
B18: * | C18: Basis Points | E18: 0.25 | F18: City Tax | H18: =+'Combined LG'!H18 -> 0 | I18: * | V18: ='MSW LG 2018 V5.0C'!S19 -> 795.6551926 | W18: =EXP(5.6922-(0.68367*LN(V18))) -> 3.082850443 | X18: =(+W18*V18)/100 -> 24.52885963 | Y18: ='MSW LG 2018 V5.0C'!X19*100 -> 38.38164929 | Z18: ='MSW LG 2018 V5.0C'!Y19*100 -> 25 | AA18: =Y18+Z18 -> 63.38164929 | AB18: =100*($E$15*$E$17+($E$16*(AA18/100))/(1-$E$19)) -> 33.29138529 | AC18: ='MSW LG 2018 V5.0C'!AE19 -> 0.04182033413 | AD18: =$E$6/(1-AC18) -> 7222970.9 | AE18: =IF(OR(OR(AD18=AD12,AD18=(AD12+1)),AD18=(AD12-1)),"yes","not yet") -> not yet | AF18: =100*(1-AC18) -> 95.81796659 | AI18: 1 | AJ18: =AF3 -> 95.58792205 | AK18: =AF9 -> 95.73643974 | AL18: =AF15 -> 95.73115723 | AM18: =AF21 -> 95.7313451 | AN18: =AF27 -> 95.73133842 | AO18: =AF33 -> 95.73133866 | AP18: =AF39 -> 95.73133865 | AQ18: =AF45 -> 0 | AR18: =AF51 -> 0
B19: * | C19: Tax Rate | E19: =+'Combined LG'!E19 -> 0.002 | F19: Bad Debts | H19: =+'Combined LG'!H19 -> 0.006 | I19: * | AI19: 2 | AJ19: =AF4 -> 95.58792205 | AK19: =AF10 -> 95.77913254 | AL19: =AF16 -> 95.77239163 | AM19: =AF22 -> 95.77262924 | AN19: =AF28 -> 95.77262086 | AO19: =AF34 -> 95.77262116 | AP19: =AF40 -> 95.77262115 | AQ19: =AF46 -> 0 | AR19: =AF52 -> 0
H20: - | V20: 4th Turnover | W20: M | X20: ROR | Y20: ROE | AI20: 3 | AJ20: =AF5 -> 95.58792205 | AK20: =AF11 -> 95.80789114 | AL20: =AF17 -> 95.80018295 | AM20: =AF23 -> 95.80045302 | AN20: =AF29 -> 95.80044356 | AO20: =AF35 -> 95.80044389 | AP20: =AF41 -> 95.80044388 | AQ20: =AF47 -> 0 | AR20: =AF53 -> 0
F21: Revenue Sensitive | H21: =SUM(H16:H19) -> 0.025275 | V21: ='MSW LG 2018 V5.0C'!S21 -> 796.4664005 | W21: =EXP(5.7226-(0.68367*LN(+V21))) -> 3.175794887 | X21: =(+W21*V21)/100 -> 25.29413922 | Y21: ='MSW LG 2018 V5.0C'!X21*100 -> 39.84991827 | Z21: ='MSW LG 2018 V5.0C'!Y21*100 -> 25 | AA21: =Y21+Z21 -> 64.84991827 | AB21: =100*($E$15*$E$17+($E$16*(AA21/100))/(1-$E$19)) -> 34.01563706 | AC21: ='MSW LG 2018 V5.0C'!AE21 -> 0.04268654898 | AD21: =$E$6/(1-AC21) -> 7229506.529 | AE21: =IF(OR(OR(AD21=AD15,AD21=(AD15+1)),AD21=(AD7-1)),"yes","not yet") -> not yet | AF21: =100*(1-AC21) -> 95.7313451 | AI21: 4 | AJ21: =AF6 -> 95.58792205 | AK21: =AF12 -> 95.82628712 | AL21: =AF18 -> 95.81796659 | AM21: =AF24 -> 95.81825698 | AN21: =AF30 -> 95.81824684 | AO21: =AF36 -> 95.8182472 | AP21: =AF42 -> 95.81824718 | AQ21: =AF48 -> 0 | AR21: =AF54 -> 0
V22: ='MSW LG 2018 V5.0C'!S22 -> 796.1145816 | W22: =EXP(5.70827-(0.68367*LN(+V22))) -> 3.131556044 | X22: =(+W22*V22)/100 -> 24.9307743 | Y22: ='MSW LG 2018 V5.0C'!X22*100 -> 39.15276464 | Z22: ='MSW LG 2018 V5.0C'!Y22*100 -> 25 | AA22: =Y22+Z22 -> 64.15276464 | AB22: =100*($E$15*$E$17+($E$16*(AA22/100))/(1-$E$19)) -> 33.67175269 | AC22: ='MSW LG 2018 V5.0C'!AE22 -> 0.04227370762 | AD22: =$E$6/(1-AC22) -> 7226390.148 | AE22: =IF(OR(OR(AD22=AD16,AD22=(AD16+1)),AD22=(AD16-1)),"yes","not yet") -> not yet | AF22: =100*(1-AC22) -> 95.77262924
F23: Conversion Factor | H23: =((+H13/100)-H21) -> 0.9329074718 | V23: ='MSW LG 2018 V5.0C'!S23 -> 795.8776322 | W23: =EXP(5.6985-(0.68367*LN(V23))) -> 3.101740893 | X23: =(+W23*V23)/100 -> 24.68606197 | Y23: ='MSW LG 2018 V5.0C'!X23*100 -> 38.68325844 | Z23: ='MSW LG 2018 V5.0C'!Y23*100 -> 25 | AA23: =Y23+Z23 -> 63.68325844 | AB23: =100*($E$15*$E$17+($E$16*(AA23/100))/(1-$E$19)) -> 33.44015977 | AC23: ='MSW LG 2018 V5.0C'!AE23 -> 0.04199546982 | AD23: =$E$6/(1-AC23) -> 7224291.354 | AE23: =IF(OR(OR(AD23=AD17,AD23=(AD17+1)),AD23=(AD17-1)),"yes","not yet") -> not yet | AF23: =100*(1-AC23) -> 95.80045302 | AJ23: yes
V24: ='MSW LG 2018 V5.0C'!S24 -> 795.7260806 | W24: =EXP(5.6922-(0.68367*LN(V24))) -> 3.082662678 | X24: =(+W24*V24)/100 -> 24.52955091 | Y24: ='MSW LG 2018 V5.0C'!X24*100 -> 38.38297558 | Z24: ='MSW LG 2018 V5.0C'!Y24*100 -> 25 | AA24: =Y24+Z24 -> 63.38297558 | AB24: =100*($E$15*$E$17+($E$16*(AA24/100))/(1-$E$19)) -> 33.29203951 | AC24: ='MSW LG 2018 V5.0C'!AE24 -> 0.04181743022 | AD24: =$E$6/(1-AC24) -> 7222949.01 | AE24: =IF(OR(OR(AD24=AD18,AD24=(AD18+1)),AD24=(AD18-1)),"yes","not yet") -> not yet | AF24: =100*(1-AC24) -> 95.81825698 | AJ24: =HLOOKUP($AJ$23,$AJ$17:$AR$21,$E$10+1) -> 95.81824718
C26: Company Reference | V26: 5th Turnover | W26: M | X26: ROR | Y26: ROE | AJ26: =HLOOKUP(1,$AJ$11:$AR$15,$E$10+1) -> not yet | AK26: =HLOOKUP(2,$AJ$11:$AR$15,$E$10+1) -> not yet | AL26: =HLOOKUP(3,$AJ$11:$AR$15,$E$10+1) -> not yet | AM26: =HLOOKUP(4,$AJ$11:$AR$15,$E$10+1) -> not yet | AN26: =HLOOKUP(5,$AJ$11:$AR$15,$E$10+1) -> not yet | AO26: =HLOOKUP(6,$AJ$11:$AR$15,$E$10+1) -> not yet | AP26: =HLOOKUP(7,$AJ$11:$AR$15,$E$10+1) -> yes | AQ26: =HLOOKUP(8,$AJ$11:$AR$15,$E$10+1) -> 0 | AR26: =HLOOKUP(9,$AJ$11:$AR$15,$E$10+1) -> 0
C27: Annl Price Increase (PI) $ | E27: =+E4 -> 294296.7722 | V27: ='MSW LG 2018 V5.0C'!S26 -> 796.4647969 | W27: =EXP(5.7226-(0.68367*LN(+V27))) -> 3.175799258 | X27: =(+W27*V27)/100 -> 25.29412311 | Y27: ='MSW LG 2018 V5.0C'!X26*100 -> 39.84988736 | Z27: ='MSW LG 2018 V5.0C'!Y26*100 -> 25 | AA27: =Y27+Z27 -> 64.84988736 | AB27: =100*($E$15*$E$17+($E$16*(AA27/100))/(1-$E$19)) -> 34.01562182 | AC27: ='MSW LG 2018 V5.0C'!AE26 -> 0.04268661579 | AD27: =$E$6/(1-AC27) -> 7229507.033 | AE27: =IF(OR(OR(AD27=AD21,AD27=(AD21+1)),AD27=(AD13-1)),"yes","not yet") -> not yet | AF27: =100*(1-AC27) -> 95.73133842 | AI27: 1 | AJ27: =V3 -> 763.3370303 | AK27: =V9 -> 797.6908658 | AL27: =V15 -> 796.4213123 | AM27: =V21 -> 796.4664005 | AN27: =V27 -> 796.4647969 | AO27: =V33 -> 796.4648539 | AP27: =V39 -> 796.4648519 | AQ27: =V45 -> 0 | AR27: =V51 -> 0
C28: Monthly PI $ | E28: =+E27/12 -> 24524.73102 | V28: ='MSW LG 2018 V5.0C'!S27 -> 796.1125552 | W28: =EXP(5.70827-(0.68367*LN(+V28))) -> 3.131561493 | X28: =(+W28*V28)/100 -> 24.93075422 | Y28: ='MSW LG 2018 V5.0C'!X27*100 -> 39.15272612 | Z28: ='MSW LG 2018 V5.0C'!Y27*100 -> 25 | AA28: =Y28+Z28 -> 64.15272612 | AB28: =100*($E$15*$E$17+($E$16*(AA28/100))/(1-$E$19)) -> 33.67173369 | AC28: ='MSW LG 2018 V5.0C'!AE27 -> 0.04227379137 | AD28: =$E$6/(1-AC28) -> 7226390.78 | AE28: =IF(OR(OR(AD28=AD22,AD28=(AD22+1)),AD28=(AD22-1)),"yes","not yet") -> not yet | AF28: =100*(1-AC28) -> 95.77262086 | AI28: 2 | AJ28: =V4 -> 763.3370303 | AK28: =V10 -> 797.6908658 | AL28: =V16 -> 796.0570958 | AM28: =V22 -> 796.1145816 | AN28: =V28 -> 796.1125552 | AO28: =V34 -> 796.1126266 | AP28: =V40 -> 796.1126241 | AQ28: =V46 -> 0 | AR28: =V52 -> 0
C29: Percentage PI | E29: =+E4/(E5-Proforma!O12) -> 0.04466699207 | V29: ='MSW LG 2018 V5.0C'!S28 -> 795.8753303 | W29: =EXP(5.6985-(0.68367*LN(V29))) -> 3.101747026 | X29: =(+W29*V29)/100 -> 24.68603939 | Y29: ='MSW LG 2018 V5.0C'!X28*100 -> 38.68321511 | Z29: ='MSW LG 2018 V5.0C'!Y28*100 -> 25 | AA29: =Y29+Z29 -> 63.68321511 | AB29: =100*($E$15*$E$17+($E$16*(AA29/100))/(1-$E$19)) -> 33.4401384 | AC29: ='MSW LG 2018 V5.0C'!AE28 -> 0.04199556444 | AD29: =$E$6/(1-AC29) -> 7224292.067 | AE29: =IF(OR(OR(AD29=AD23,AD29=(AD23+1)),AD29=(AD23-1)),"yes","not yet") -> not yet | AF29: =100*(1-AC29) -> 95.80044356 | AI29: 3 | AJ29: =V5 -> 763.3370303 | AK29: =V11 -> 797.6908658 | AL29: =V17 -> 795.8119364 | AM29: =V23 -> 795.8776322 | AN29: =V29 -> 795.8753303 | AO29: =V35 -> 795.8754109 | AP29: =V41 -> 795.8754081 | AQ29: =V47 -> 0 | AR29: =V53 -> 0
V30: ='MSW LG 2018 V5.0C'!S29 -> 795.7236064 | W30: =EXP(5.6922-(0.68367*LN(V30))) -> 3.082669232 | X30: =(+W30*V30)/100 -> 24.52952678 | Y30: ='MSW LG 2018 V5.0C'!X29*100 -> 38.38292929 | Z30: ='MSW LG 2018 V5.0C'!Y29*100 -> 25 | AA30: =Y30+Z30 -> 63.38292929 | AB30: =100*($E$15*$E$17+($E$16*(AA30/100))/(1-$E$19)) -> 33.29201667 | AC30: ='MSW LG 2018 V5.0C'!AE29 -> 0.04181753156 | AD30: =$E$6/(1-AC30) -> 7222949.774 | AE30: =IF(OR(OR(AD30=AD24,AD30=(AD24+1)),AD30=(AD24-1)),"yes","not yet") -> not yet | AF30: =100*(1-AC30) -> 95.81824684 | AI30: 4 | AJ30: =V6 -> 763.3370303 | AK30: =V12 -> 797.6908658 | AL30: =V18 -> 795.6551926 | AM30: =V24 -> 795.7260806 | AN30: =V30 -> 795.7236064 | AO30: =V36 -> 795.7236928 | AP30: =V42 -> 795.7236897 | AQ30: =V48 -> 0 | AR30: =V54 -> 0
V32: 6th Turnover | W32: M | X32: ROR | Y32: ROE | AJ32: yes
V33: ='MSW LG 2018 V5.0C'!S31 -> 796.4648539 | W33: =EXP(5.7226-(0.68367*LN(+V33))) -> 3.175799103 | X33: =(+W33*V33)/100 -> 25.29412368 | Y33: ='MSW LG 2018 V5.0C'!X31*100 -> 39.84988846 | Z33: ='MSW LG 2018 V5.0C'!Y31*100 -> 25 | AA33: =Y33+Z33 -> 64.84988846 | AB33: =100*($E$15*$E$17+($E$16*(AA33/100))/(1-$E$19)) -> 34.01562236 | AC33: ='MSW LG 2018 V5.0C'!AE31 -> 0.04268661342 | AD33: =$E$6/(1-AC33) -> 7229507.015 | AE33: =IF(OR(OR(AD33=AD27,AD33=(AD27+1)),AD33=(AD19-1)),"yes","not yet") -> not yet | AF33: =100*(1-AC33) -> 95.73133866 | AJ33: =HLOOKUP($AJ$32,$AJ$26:$AR$30,$E$10+1) -> 795.7236897
V34: ='MSW LG 2018 V5.0C'!S32 -> 796.1126266 | W34: =EXP(5.70827-(0.68367*LN(+V34))) -> 3.131561301 | X34: =(+W34*V34)/100 -> 24.93075493 | Y34: ='MSW LG 2018 V5.0C'!X32*100 -> 39.15272748 | Z34: ='MSW LG 2018 V5.0C'!Y32*100 -> 25 | AA34: =Y34+Z34 -> 64.15272748 | AB34: =100*($E$15*$E$17+($E$16*(AA34/100))/(1-$E$19)) -> 33.67173436 | AC34: ='MSW LG 2018 V5.0C'!AE32 -> 0.04227378842 | AD34: =ROUND($E$6/(1-AC34),0) -> 7226391 | AE34: =IF(OR(OR(AD34=AD28,AD34=(AD28+1)),AD34=(AD28-1)),"yes","not yet") -> not yet | AF34: =100*(1-AC34) -> 95.77262116
V35: ='MSW LG 2018 V5.0C'!S33 -> 795.8754109 | W35: =EXP(5.6985-(0.68367*LN(V35))) -> 3.101746811 | X35: =(+W35*V35)/100 -> 24.68604018 | Y35: ='MSW LG 2018 V5.0C'!X33*100 -> 38.68321662 | Z35: ='MSW LG 2018 V5.0C'!Y33*100 -> 25 | AA35: =Y35+Z35 -> 63.68321662 | AB35: =100*($E$15*$E$17+($E$16*(AA35/100))/(1-$E$19)) -> 33.44013915 | AC35: ='MSW LG 2018 V5.0C'!AE33 -> 0.04199556113 | AD35: =ROUND($E$6/(1-AC35),0) -> 7224292 | AE35: =IF(OR(OR(AD35=AD29,AD35=(AD29+1)),AD35=(AD29-1)),"yes","not yet") -> not yet | AF35: =100*(1-AC35) -> 95.80044389 | AJ35: =HLOOKUP(1,$AJ$11:$AR$15,$E$10+1) -> not yet | AK35: =HLOOKUP(2,$AJ$11:$AR$15,$E$10+1) -> not yet | AL35: =HLOOKUP(3,$AJ$11:$AR$15,$E$10+1) -> not yet | AM35: =HLOOKUP(4,$AJ$11:$AR$15,$E$10+1) -> not yet | AN35: =HLOOKUP(5,$AJ$11:$AR$15,$E$10+1) -> not yet | AO35: =HLOOKUP(6,$AJ$11:$AR$15,$E$10+1) -> not yet | AP35: =HLOOKUP(7,$AJ$11:$AR$15,$E$10+1) -> yes | AQ35: =HLOOKUP(8,$AJ$11:$AR$15,$E$10+1) -> 0 | AR35: =HLOOKUP(9,$AJ$11:$AR$15,$E$10+1) -> 0
V36: ='MSW LG 2018 V5.0C'!S34 -> 795.7236928 | W36: =EXP(5.6922-(0.68367*LN(V36))) -> 3.082669003 | X36: =(+W36*V36)/100 -> 24.52952762 | Y36: ='MSW LG 2018 V5.0C'!X34*100 -> 38.38293091 | Z36: ='MSW LG 2018 V5.0C'!Y34*100 -> 25 | AA36: =Y36+Z36 -> 63.38293091 | AB36: =100*($E$15*$E$17+($E$16*(AA36/100))/(1-$E$19)) -> 33.29201747 | AC36: ='MSW LG 2018 V5.0C'!AE34 -> 0.04181752803 | AD36: =ROUND($E$6/(1-AC36),0) -> 7222950 | AE36: =IF(OR(OR(AD36=AD30,AD36=(AD30+1)),AD36=(AD30-1)),"yes","not yet") -> not yet | AF36: =100*(1-AC36) -> 95.8182472 | AI36: 1 | AJ36: =AD3 -> 7240353.902 | AK36: =AD9 -> 7229121.808 | AL36: =AD15 -> 7229520.716 | AM36: =AD21 -> 7229506.529 | AN36: =AD27 -> 7229507.033 | AO36: =AD33 -> 7229507.015 | AP36: =AD39 -> 7229507 | AQ36: =AD45 -> 0 | AR36: =AD51 -> 0
AI37: 2 | AJ37: =AD4 -> 7240353.902 | AK37: =AD10 -> 7225899.484 | AL37: =AD16 -> 7226408.077 | AM37: =AD22 -> 7226390.148 | AN37: =AD28 -> 7226390.78 | AO37: =AD34 -> 7226391 | AP37: =AD40 -> 7226391 | AQ37: =AD46 -> 0 | AR37: =AD52 -> 0
V38: 7th turnover | W38: M | X38: ROR | Y38: ROE | AI38: 3 | AJ38: =AD5 -> 7240353.902 | AK38: =AD11 -> 7223730.49 | AL38: =AD17 -> 7224311.719 | AM38: =AD23 -> 7224291.354 | AN38: =AD29 -> 7224292.067 | AO38: =AD35 -> 7224292 | AP38: =AD41 -> 7224292 | AQ38: =AD47 -> 0 | AR38: =AD53 -> 0
V39: ='MSW LG 2018 V5.0C'!S36 -> 796.4648519 | W39: =EXP(5.7226-(0.68367*LN(+V39))) -> 3.175799108 | X39: =(+W39*V39)/100 -> 25.29412366 | Y39: ='MSW LG 2018 V5.0C'!X36*100 -> 39.84988842 | Z39: ='MSW LG 2018 V5.0C'!Y36*100 -> 25 | AA39: =Y39+Z39 -> 64.84988842 | AB39: =100*($E$15*$E$17+($E$16*(AA39/100))/(1-$E$19)) -> 34.01562234 | AC39: ='MSW LG 2018 V5.0C'!AE36 -> 0.0426866135 | AD39: =ROUND($E$6/(1-AC39),0) -> 7229507 | AE39: =IF(OR(OR(AD39=AD33,AD39=(AD33+1)),AD39=(AD25-1)),"yes","not yet") -> not yet | AF39: =100*(1-AC39) -> 95.73133865 | AI39: 4 | AJ39: =AD6 -> 7240353.902 | AK39: =AD12 -> 7222343.734 | AL39: =AD18 -> 7222970.9 | AM39: =AD24 -> 7222949.01 | AN39: =AD30 -> 7222949.774 | AO39: =AD36 -> 7222950 | AP39: =AD42 -> 7222950 | AQ39: =AD48 -> 0 | AR39: =AD54 -> 0
V40: ='MSW LG 2018 V5.0C'!S37 -> 796.1126241 | W40: =EXP(5.70827-(0.68367*LN(+V40))) -> 3.131561308 | X40: =(+W40*V40)/100 -> 24.9307549 | Y40: ='MSW LG 2018 V5.0C'!X37*100 -> 39.15272743 | Z40: ='MSW LG 2018 V5.0C'!Y37*100 -> 25 | AA40: =Y40+Z40 -> 64.15272743 | AB40: =100*($E$15*$E$17+($E$16*(AA40/100))/(1-$E$19)) -> 33.67173434 | AC40: ='MSW LG 2018 V5.0C'!AE37 -> 0.04227378852 | AD40: =ROUND($E$6/(1-AC40),0) -> 7226391 | AE40: =IF(OR(OR(AD40=AD34,AD40=(AD34+1)),AD40=(AD34-1)),"yes","not yet") -> yes | AF40: =100*(1-AC40) -> 95.77262115
V41: ='MSW LG 2018 V5.0C'!S38 -> 795.8754081 | W41: =EXP(5.6985-(0.68367*LN(V41))) -> 3.101746819 | X41: =(+W41*V41)/100 -> 24.68604015 | Y41: ='MSW LG 2018 V5.0C'!X38*100 -> 38.68321657 | Z41: ='MSW LG 2018 V5.0C'!Y38*100 -> 25 | AA41: =Y41+Z41 -> 63.68321657 | AB41: =100*($E$15*$E$17+($E$16*(AA41/100))/(1-$E$19)) -> 33.44013912 | AC41: ='MSW LG 2018 V5.0C'!AE38 -> 0.04199556124 | AD41: =ROUND($E$6/(1-AC41),0) -> 7224292 | AE41: =IF(OR(OR(AD41=AD35,AD41=(AD35+1)),AD41=(AD35-1)),"yes","not yet") -> yes | AF41: =100*(1-AC41) -> 95.80044388 | AJ41: yes
V42: ='MSW LG 2018 V5.0C'!S39 -> 795.7236897 | W42: =EXP(5.6922-(0.68367*LN(V42))) -> 3.082669011 | X42: =(+W42*V42)/100 -> 24.5295276 | Y42: ='MSW LG 2018 V5.0C'!X39*100 -> 38.38293085 | Z42: ='MSW LG 2018 V5.0C'!Y39*100 -> 25 | AA42: =Y42+Z42 -> 63.38293085 | AB42: =100*($E$15*$E$17+($E$16*(AA42/100))/(1-$E$19)) -> 33.29201744 | AC42: ='MSW LG 2018 V5.0C'!AE39 -> 0.04181752815 | AD42: =ROUND($E$6/(1-AC42),0) -> 7222950 | AE42: =IF(OR(OR(AD42=AD36,AD42=(AD36+1)),AD42=(AD36-1)),"yes","not yet") -> yes | AF42: =100*(1-AC42) -> 95.81824718 | AJ42: =HLOOKUP($AJ$32,$AJ$35:$AR$39,$E$10+1) -> 7222950

Sheet RCY LG 2018 V5.0c
B2: Public Companies | F2: Public Co | I2: LURITO - GALLAGHER FORMULA MODEL 2018 V5.0a | M2: Public Co | R2: CALCULATION TABLES | AH2: Revenue Senstive Taxes (RevS)
K3: (b) + (c) | M3: (d) + (e) | T3: Regession | V3: Regession | W3: Regession | X3: Regession | Z3: Adjusted | AA3: Hauler | AB3: Hauler | AC3: Hauler | AD3: Hauler | AE3: Hauler | AF3: Hauler | AG3: Revenue Req | AH3: Revenue | AI3: Revenue
B4: INPUTS - Test Year | H4: (a) | I4: (b) | J4: (c) | K4: (d) | L4: (e) | M4: (f) | T4: Before Tax | V4: Less | W4: Adjusted | X4: After Tax | Y4: Flotation Costs | Z4: After Tax | AA4: Weighted Cost | AB4: Weighted Cost | AC4: Weighted Cost | AD4: Adjusted | AE4: Before Tax | AF4: Before Tax | AG4: Before RevS | AH4: Increase Before | AI4: Increase After | AJ4: RevS | AK4: Total
B5: Operating Revenue | C5: 1971915.439 | F5: Line | I5: Historical | J5: Revenue | K5: Proforma | L5: Add: Revenue | M5: Revenue | T5: Profit Ratio | U5: BTROI | V5: WCDebt | W5: BTROE | X5: ROE | Y5: Basis Points | Z5: ROE | AA5: Equity | AB5: Equity BFT | AC5: Debt | AD5: BTROR | AE5: Profit Ratio | AF5: Operating Ratio | AG5: Taxes | AH5: RevS Taxes | AI5: RevS Taxes | AJ5: Taxes | AK5: Revenue Req
B6: Operating Expenses | C6: 2446983.015 | F6: No. | J6: Change | L6: Sensitive Taxes | M6: Requirement | R6: 1 | S6: =Revenue/Investment*100 -> 372.3306677 | T6: =EXP(y_inter1-(slope*LN(+S6))) -> 5.341050732 | U6: =(+S6*T6/100)/100 -> 0.1988636986 | V6: =regDebt_weighted -> 0.03586 | W6: =+U6-V6 -> 0.1630036986 | X6: =+((W6*(1-0.34))-Pfd_weighted)/Equity_percent -> 0.2947454682 | Y6: =+C15 -> 0.25 | Z6: =+X6+Y6 -> 0.5447454682 | AA6: =Z6*equityP -> 0.2680147703 | AB6: =+AA6/(1-taxrate) -> 0.2685518741 | AC6: =debtP*Debt_Rate -> 0.02028302025 | AD6: =AC6+AB6 -> 0.2888348943 | AE6: =AD6/(S6/100) -> 0.07757483317 | AF6: =1-AE6 -> 0.9224251668 | AG6: =expenses/(AF6) -> 2652771.306 | AH6: =+AG6-Revenue -> 680855.8677 | AI6: =+AH6/$J$49 -> 744544.3226 | AJ6: =+AI6*$J$47 -> 18818.35775 | AK6: =ROUND(+AJ6+AG6,5) -> 2671589.664
B7: Investment | C7: 529614.0258 | F7: 1 | H7: Operating Revenue | I7: =IF(A64=TRUE,C5,0) -> 1971915.439 | J7: =(+$I8/($R50))-I7 -> 633114.7582 | K7: =+I7+J7 -> 2605030.197 | L7: =((+J7/J49*K35)-J7) -> 17498.82844 | M7: =IFERROR(+K7+L7,0.00001) -> 2622529.025 | R7: 2 | S7: =Revenue/Investment*100 -> 372.3306677 | T7: =EXP(y_inter1-(slope*LN(+S7))) -> 5.341050732 | U7: =(+S7*T7/100)/100 -> 0.1988636986 | V7: =regDebt_weighted -> 0.03586 | W7: =+U7-V7 -> 0.1630036986 | X7: =+((W7*(1-0.34))-Pfd_weighted)/Equity_percent -> 0.2947454682 | Y7: =+Y6 -> 0.25 | Z7: =+X7+Y7 -> 0.5447454682 | AA7: =Z7*equityP -> 0.2680147703 | AB7: =+AA7/(1-taxrate) -> 0.2685518741 | AC7: =debtP*Debt_Rate -> 0.02028302025 | AD7: =AC7+AB7 -> 0.2888348943 | AE7: =AD7/(S7/100) -> 0.07757483317 | AF7: =1-AE7 -> 0.9224251668 | AG7: =expenses/(AF7) -> 2652771.306 | AH7: =+AG7-Revenue -> 680855.8677 | AI7: =+AH7/$J$49 -> 744544.3226 | AJ7: =+AI7*$J$47 -> 18818.35775 | AK7: =ROUND(+AJ7+AG7,5) -> 2671589.664
B8: Capital Structure-Debt % | C8: 0.508 | F8: =+F7+1 -> 2 | H8: Operating Expenses | I8: =IF(A64=TRUE,C6,0) -> 2446983.015 | K8: =+I8 -> 2446983.015 | L8: =+L7 -> 17498.82844 | M8: =IFERROR(+K8+L8,0.00001) -> 2464481.843 | R8: 3 | S8: =Revenue/Investment*100 -> 372.3306677 | T8: =EXP(y_inter1-(slope*LN(+S8))) -> 5.341050732 | U8: 0.1988636986 | V8: =regDebt_weighted -> 0.03586 | W8: 0.1630036986 | X8: =+((W8*(1-0.34))-Pfd_weighted)/Equity_percent -> 0.2947454682 | Y8: =+Y7 -> 0.25 | Z8: =+X8+Y8 -> 0.5447454682 | AA8: =Z8*equityP -> 0.2680147703 | AB8: =+AA8/(1-taxrate) -> 0.2685518741 | AC8: =debtP*Debt_Rate -> 0.02028302025 | AD8: 0.2888348943 | AE8: 0.07757483317 | AF8: 0.9224251668 | AG8: =expenses/(AF8) -> 2652771.306 | AH8: =+AG8-Revenue -> 680855.8677 | AI8: =+AH8/$J$49 -> 744544.3226 | AJ8: =+AI8*$J$47 -> 18818.35775 | AK8: 2671589.664
B9: Capital Structure-Debt Rate | C9: 0.03992720522 | F9: =+F8+1 -> 3 | H9: Operating Income | I9: =+I7-I8 -> -475067.5762 | K9: =+K7-K8 -> 158047.182 | M9: =+M7-M8 -> 158047.182 | R9: 4 | S9: =Revenue/Investment*100 -> 372.3306677 | T9: =EXP(y_inter1-(slope*LN(+S9))) -> 5.341050732 | U9: 0.1988636986 | V9: =regDebt_weighted -> 0.03586 | W9: 0.1630036986 | X9: =+((W9*(1-0.34))-Pfd_weighted)/Equity_percent -> 0.2947454682 | Y9: =+Y8 -> 0.25 | Z9: 0.5447454682 | AA9: =Z9*equityP -> 0.2680147703 | AB9: =+AA9/(1-taxrate) -> 0.2685518741 | AC9: =debtP*Debt_Rate -> 0.02028302025 | AD9: 0.2888348943 | AE9: 0.07757483317 | AF9: 0.9224251668 | AG9: =expenses/(AF9) -> 2652771.306 | AH9: =+AG9-Revenue -> 680855.8677 | AI9: =+AH9/$J$49 -> 744544.3226 | AJ9: =+AI9*$J$47 -> 18818.35775 | AK9: 2671589.664
B10: Federal Income Tax Rate | C10: 0.002 | F10: 4 | R10: 2nd Iteration
B11: B&O Tax Rate | C11: 0.015 | F11: 5 | H11: Interest Expense | I11: =+K11 -> 10742.17201 | K11: =+M27 -> 10742.17201 | M11: =+K11 -> 10742.17201 | R11: 1 | S11: =IF((AK6/Investment*100)>0,(AK6/Investment*100),0) -> 504.4408822 | T11: =EXP(y_inter1-(slope*LN(S11))) -> 4.339735896 | U11: =(+S11*T11/100)/100 -> 0.2189140204 | V11: =regDebt_weighted -> 0.03586 | W11: =+U11-V11 -> 0.1830540204 | X11: =+((W11*(1-0.34))-Pfd_weighted)/Equity_percent -> 0.3332141089 | Y11: =+Y9 -> 0.25 | Z11: =+X11+Y11 -> 0.5832141089 | AA11: =Z11*equityP -> 0.2869413416 | AB11: =+AA11/(1-taxrate) -> 0.2875163743 | AC11: =debtP*Debt_Rate -> 0.02028302025 | AD11: =+AC11+AB11 -> 0.3077993946 | AE11: =+AD11/(S11/100) -> 0.06101793201 | AF11: =1-AE11 -> 0.938982068 | AG11: =expenses/(AF11) -> 2605995.469 | AH11: =+AG11-Revenue -> 634080.0305 | AI11: =+AH11/$J$49 -> 693392.9914 | AJ11: =+AI11*$J$47 -> 17525.50786 | AK11: =ROUND(+AJ11+AG11,5) -> 2623520.977
B12: WUTC Fee | C12: 0.004275 | F12: 6 | H12: Income Tax Expense | I12: =IF(I14<0,0,+J38*I14) -> 0 | J12: =+K12-I12 -> 294.6100201 | K12: =+(K9-K11)*taxrate -> 294.6100201 | M12: =+K12 -> 294.6100201 | R12: 2 | S12: =IF((AK7/Investment*100)>0,(AK7/Investment*100),0) -> 504.4408822 | T12: =EXP(y_inter2-(slope*LN(+S12))) -> 4.277990939 | U12: =(+S12*T12/100)/100 -> 0.2157993524 | V12: =regDebt_weighted -> 0.03586 | W12: =+U12-V12 -> 0.1799393524 | X12: =+((W12*(1-0.34))-Pfd_weighted)/Equity_percent -> 0.3272382923 | Y12: =+Y11 -> 0.25 | Z12: =+X12+Y12 -> 0.5772382923 | AA12: =Z12*equityP -> 0.2840012398 | AB12: =+AA12/(1-taxrate) -> 0.2845703806 | AC12: =debtP*Debt_Rate -> 0.02028302025 | AD12: =+AC12+AB12 -> 0.3048534008 | AE12: =+AD12/(S12/100) -> 0.06043392032 | AF12: =1-AE12 -> 0.9395660797 | AG12: =expenses/(AF12) -> 2604375.645 | AH12: =+AG12-Revenue -> 632460.2064 | AI12: =+AH12/$J$49 -> 691621.646 | AJ12: =+AI12*$J$47 -> 17480.7371 | AK12: =ROUND(+AJ12+AG12,5) -> 2621856.382
B13: City Tax | C13: 0 | F13: 7 | R13: 3 | S13: =IF((AK8/Investment*100)>0,(AK8/Investment*100),0) -> 504.4408822 | T13: =EXP(y_inter3-(slope*LN(S13))) -> 4.236398478 | U13: =(+S13*T13/100)/100 -> 0.2137012586 | V13: =regDebt_weighted -> 0.03586 | W13: =+U13-V13 -> 0.1778412586 | X13: =+((W13*(1-0.34))-Pfd_weighted)/Equity_percent -> 0.3232128798 | Y13: =+Y12 -> 0.25 | Z13: =+X13+Y13 -> 0.5732128798 | AA13: =Z13*equityP -> 0.2820207369 | AB13: =+AA13/(1-taxrate) -> 0.2825859087 | AC13: =debtP*Debt_Rate -> 0.02028302025 | AD13: =+AC13+AB13 -> 0.3028689289 | AE13: =+AD13/(S13/100) -> 0.06004052003 | AF13: =1-AE13 -> 0.93995948 | AG13: =expenses/(AF13) -> 2603285.638 | AH13: =+AG13-Revenue -> 631370.1997 | AI13: =+AH13/$J$49 -> 690429.6782 | AJ13: =+AI13*$J$47 -> 17450.61012 | AK13: 2620736.248
B14: Bad Debts | C14: 0.006 | F14: 8 | H14: Net Income | I14: =+I9-SUM(I11:I13) -> -485809.7482 | K14: =+K9-SUM(K11:K13) -> 147010.4 | M14: =+M9-SUM(M11:M13) -> 147010.4 | R14: 4 | S14: =IF((AK9/Investment*100)>0,(AK9/Investment*100),0) -> 504.4408822 | T14: =EXP(y_inter4-(slope*LN(S14))) -> 4.209793063 | U14: =(+S14*T14/100)/100 -> 0.2123591727 | V14: =regDebt_weighted -> 0.03586 | W14: =+U14-V14 -> 0.1764991727 | X14: =+((W14*(1-0.34))-Pfd_weighted)/Equity_percent -> 0.3206379475 | Y14: =+Y13 -> 0.25 | Z14: 0.5706379475 | AA14: =Z14*equityP -> 0.2807538702 | AB14: =+AA14/(1-taxrate) -> 0.2813165032 | AC14: =debtP*Debt_Rate -> 0.02028302025 | AD14: =+AC14+AB14 -> 0.3015995234 | AE14: =+AD14/(S14/100) -> 0.05978887399 | AF14: =1-AE14 -> 0.940211126 | AG14: =expenses/(AF14) -> 2602588.873 | AH14: =+AG14-Revenue -> 630673.4344 | AI14: =+AH14/$J$49 -> 689667.7362 | AJ14: =+AI14*$J$47 -> 17431.35203 | AK14: 2620020.225
B15: Basis Points - Flotation | C15: 0.25 | F15: 9 | R15: 3rd Iteration
D16: Yes | F16: 10 | H16: Operating Ratio | I16: =+I8/I7 -> 1.24091681 | K16: =+K8/K7 -> 0.93933 | M16: =+M8/M7 -> 0.9397348207 | R16: 1 | S16: =AK11/Investment*100 -> 495.3647089 | T16: =EXP(y_inter1-(slope*LN(+S16))) -> 4.393940628 | U16: =(+S16*T16/100)/100 -> 0.217660312 | V16: =regDebt_weighted -> 0.03586 | W16: =+U16-V16 -> 0.181800312 | X16: =+((W16*(1-0.34))-Pfd_weighted)/Equity_percent -> 0.3308087381 | Y16: =+Y14 -> 0.25 | Z16: =+X16+Y16 -> 0.5808087381 | AA16: =Z16*equityP -> 0.2857578991 | AB16: =+AA16/(1-taxrate) -> 0.2863305603 | AC16: =debtP*Debt_Rate -> 0.02028302025 | AD16: =+AC16+AB16 -> 0.3066135805 | AE16: =+AD16/(S16/100) -> 0.061896533 | AF16: =1-AE16 -> 0.938103467 | AG16: =expenses/(AF16) -> 2608436.17 | AH16: =+AG16-Revenue -> 636520.7317 | AI16: =+AH16/$J$49 -> 696062 | AJ16: =+AI16*$J$47 -> 17592.96705 | AK16: =ROUND(+AJ16+AG16,5) -> 2626029.137
B17: Check when input is complete | D17: No | F17: 11 | R17: 2 | S17: =AK12/Investment*100 -> 495.0504055 | T17: =EXP(y_inter2-(slope*LN(+S17))) -> 4.33330435 | U17: =(+S17*T17/100)/100 -> 0.2145204076 | V17: =regDebt_weighted -> 0.03586 | W17: =+U17-V17 -> 0.1786604076 | X17: =+((W17*(1-0.34))-Pfd_weighted)/Equity_percent -> 0.3247845029 | Y17: =+Y16 -> 0.25 | Z17: =+X17+Y17 -> 0.5747845029 | AA17: =Z17*equityP -> 0.2827939754 | AB17: =+AA17/(1-taxrate) -> 0.2833606968 | AC17: =debtP*Debt_Rate -> 0.02028302025 | AD17: =+AC17+AB17 -> 0.3036437171 | AE17: =+AD17/(S17/100) -> 0.06133591927 | AF17: =1-AE17 -> 0.9386640807 | AG17: =expenses/(AF17) -> 2606878.291 | AH17: =+AG17-Revenue -> 634962.8526 | AI17: =+AH17/$J$49 -> 694358.3942 | AJ17: =+AI17*$J$47 -> 17549.90841 | AK17: =ROUND(+AJ17+AG17,5) -> 2624428.2
F18: 12 | H18: Revenue Requirement | R18: 3 | S18: =AK13/Investment*100 -> 494.8389055 | T18: =EXP(y_inter3-(slope*LN(S18))) -> 4.292427942 | U18: =(+S18*T18/100)/100 -> 0.2124060345 | V18: =regDebt_weighted -> 0.03586 | W18: =+U18-V18 -> 0.1765460345 | X18: =+((W18*(1-0.34))-Pfd_weighted)/Equity_percent -> 0.3207278568 | Y18: =+Y17 -> 0.25 | Z18: =+X18+Y18 -> 0.5707278568 | AA18: =Z18*equityP -> 0.2807981055 | AB18: =+AA18/(1-taxrate) -> 0.2813608272 | AC18: =debtP*Debt_Rate -> 0.02028302025 | AD18: =+AC18+AB18 -> 0.3016438474 | AE18: =+AD18/(S18/100) -> 0.06095798938 | AF18: =1-AE18 -> 0.9390420106 | AG18: =expenses/(AF18) -> 2605829.119 | AH18: =+AG18-Revenue -> 633913.6799 | AI18: =+AH18/$J$49 -> 693211.08 | AJ18: =+AI18*$J$47 -> 17520.91005 | AK18: 2623350.029
B19: For Intial input: Uncheck Checkbox Until Completed | F19: 13 | I19: Historical Revenue | J19: =+Revenue -> 1971915.439 | L19: Revenue Increase before taxes | M19: =+J7 -> 633114.7582 | R19: 4 | S19: =AK14/Investment*100 -> 494.7037083 | T19: =EXP(y_inter4-(slope*LN(S19))) -> 4.266267575 | U19: =(+S19*T19/100)/100 -> 0.211053839 | V19: =regDebt_weighted -> 0.03586 | W19: =+U19-V19 -> 0.175193839 | X19: =+((W19*(1-0.34))-Pfd_weighted)/Equity_percent -> 0.3181335283 | Y19: =+Y18 -> 0.25 | Z19: 0.5681335283 | AA19: =Z19*equityP -> 0.2795216959 | AB19: =+AA19/(1-taxrate) -> 0.2800818596 | AC19: =debtP*Debt_Rate -> 0.02028302025 | AD19: =+AC19+AB19 -> 0.3003648799 | AE19: =+AD19/(S19/100) -> 0.06071611651 | AF19: =1-AE19 -> 0.9392838835 | AG19: =expenses/(AF19) -> 2605158.097 | AH19: =+AG19-Revenue -> 633242.6587 | AI19: =+AH19/$J$49 -> 692477.2903 | AJ19: =+AI19*$J$47 -> 17502.36351 | AK19: 2622660.461
F20: 14 | I20: Rate Increase | J20: =+J21-J19 -> 650613.5867 | L20: Rev Sensitive Taxes | M20: =+L8 -> 17498.82844 | R20: 4th Iteration
F21: 15 | I21: Revenue Requirement | J21: =+M7 -> 2622529.025 | L21: Rate Increase | M21: =+M19+M20 -> 650613.5867 | R21: 1 | S21: =AK16/Investment*100 -> 495.8382916 | T21: =EXP(y_inter1-(slope*LN(+S21))) -> 4.391071023 | U21: =(+S21*T21/100)/100 -> 0.2177261154 | V21: =regDebt_weighted -> 0.03586 | W21: =+U21-V21 -> 0.1818661154 | X21: =+((W21*(1-0.34))-Pfd_weighted)/Equity_percent -> 0.3309349889 | Y21: =+Y19 -> 0.25 | Z21: =+X21+Y21 -> 0.5809349889 | AA21: =Z21*equityP -> 0.2858200145 | AB21: =+AA21/(1-taxrate) -> 0.2863928001 | AC21: =debtP*Debt_Rate -> 0.02028302025 | AD21: =+AC21+AB21 -> 0.3066758204 | AE21: =+AD21/(S21/100) -> 0.06184996713 | AF21: =1-AE21 -> 0.9381500329 | AG21: =expenses/(AF21) -> 2608306.698 | AH21: =+AG21-Revenue -> 636391.2597 | AI21: =+AH21/$J$49 -> 695920.417 | AJ21: =+AI21*$J$47 -> 17589.38854 | AK21: =ROUND(+AJ21+AG21,5) -> 2625896.087
F22: 16 | R22: 2 | S22: =AK17/Investment*100 -> 495.5360077 | T22: =EXP(y_inter2-(slope*LN(+S22))) -> 4.330400739 | U22: =(+S22*T22/100)/100 -> 0.2145869494 | V22: =regDebt_weighted -> 0.03586 | W22: =+U22-V22 -> 0.1787269494 | X22: =+((W22*(1-0.34))-Pfd_weighted)/Equity_percent -> 0.3249121704 | Y22: =+Y21 -> 0.25 | Z22: =+X22+Y22 -> 0.5749121704 | AA22: =Z22*equityP -> 0.2828567878 | AB22: =+AA22/(1-taxrate) -> 0.2834236351 | AC22: =debtP*Debt_Rate -> 0.02028302025 | AD22: =+AC22+AB22 -> 0.3037066553 | AE22: =+AD22/(S22/100) -> 0.06128851397 | AF22: =1-AE22 -> 0.938711486 | AG22: =expenses/(AF22) -> 2606746.643 | AH22: =+AG22-Revenue -> 634831.2042 | AI22: =+AH22/$J$49 -> 694214.4312 | AJ22: =+AI22*$J$47 -> 17546.26975 | AK22: =ROUND(+AJ22+AG22,5) -> 2624292.913
B23: 2018 Version Update Changes | F23: 17 | R23: 3 | S23: =AK18/Investment*100 -> 495.332431 | T23: =EXP(y_inter3-(slope*LN(S23))) -> 4.289503582 | U23: =(+S23*T23/100)/100 -> 0.2124730237 | V23: =regDebt_weighted -> 0.03586 | W23: =+U23-V23 -> 0.1766130237 | X23: =+((W23*(1-0.34))-Pfd_weighted)/Equity_percent -> 0.3208563826 | Y23: =+Y22 -> 0.25 | Z23: =+X23+Y23 -> 0.5708563826 | AA23: =Z23*equityP -> 0.2808613403 | AB23: =+AA23/(1-taxrate) -> 0.2814241886 | AC23: =debtP*Debt_Rate -> 0.02028302025 | AD23: =+AC23+AB23 -> 0.3017072089 | AE23: =+AD23/(S23/100) -> 0.06091004546 | AF23: =1-AE23 -> 0.9390899545 | AG23: =expenses/(AF23) -> 2605696.082 | AH23: =+AG23-Revenue -> 633780.643 | AI23: =+AH23/$J$49 -> 693065.5986 | AJ23: =+AI23*$J$47 -> 17517.233 | AK23: 2623213.315
B24: ● Allows Income Tax Rate Changes, | F24: 18 | H24: Captial Structure Financing Investment | K24: Financing Cost | R24: 4 | S24: =AK19/Investment*100 -> 495.202229 | T24: =EXP(y_inter4-(slope*LN(S24))) -> 4.263330842 | U24: =(+S24*T24/100)/100 -> 0.2111210936 | V24: =regDebt_weighted -> 0.03586 | W24: =+U24-V24 -> 0.1752610936 | X24: =+((W24*(1-0.34))-Pfd_weighted)/Equity_percent -> 0.3182625633 | Y24: =+Y23 -> 0.25 | Z24: 0.5682625633 | AA24: =Z24*equityP -> 0.2795851812 | AB24: =+AA24/(1-taxrate) -> 0.2801454721 | AC24: =debtP*Debt_Rate -> 0.02028302025 | AD24: =+AC24+AB24 -> 0.3004284923 | AE24: =+AD24/(S24/100) -> 0.06066783927 | AF24: =1-AE24 -> 0.9393321607 | AG24: =expenses/(AF24) -> 2605024.205 | AH24: =+AG24-Revenue -> 633108.7659 | AI24: =+AH24/$J$49 -> 692330.8729 | AJ24: =+AI24*$J$47 -> 17498.66281 | AK24: 2622522.867
B25: ● Minimizes impact of changes in test-year revenue from | F25: 19 | H25: Type | I25: Percent | J25: Amount | K25: Cost of Capital | L25: Weighted | M25: Amount | R25: 5th Iteration
B26: resulting revenue requirment, | F26: 20 | H26: Equity | I26: =1-I27 -> 0.492 | J26: =+I26*J28 -> 260570.1007 | K26: =+K34 -> 0.5641875243 | L26: =+K26*I26 -> 0.277580262 | M26: =+J26*K26 -> 147010.4 | R26: 1 | S26: =AK21/Investment*100 -> 495.8131694 | T26: =EXP(y_inter1-(slope*LN(+S26))) -> 4.391223131 | U26: =(+S26*T26/100)/100 -> 0.2177226258 | V26: =regDebt_weighted -> 0.03586 | W26: =+U26-V26 -> 0.1818626258 | X26: =+((W26*(1-0.34))-Pfd_weighted)/Equity_percent -> 0.3309282937 | Y26: =+Y24 -> 0.25 | Z26: =+X26+Y26 -> 0.5809282937 | AA26: =Z26*equityP -> 0.2858167205 | AB26: =+AA26/(1-taxrate) -> 0.2863894995 | AC26: =debtP*Debt_Rate -> 0.02028302025 | AD26: =+AC26+AB26 -> 0.3066725198 | AE26: =+AD26/(S26/100) -> 0.06185243529 | AF26: =1-AE26 -> 0.9381475647 | AG26: =expenses/(AF26) -> 2608313.561 | AH26: =+AG26-Revenue -> 636398.1219 | AI26: =+AH26/$J$49 -> 695927.9211 | AJ26: =+AI26*$J$47 -> 17589.5782 | AK26: =ROUND(+AJ26+AG26,5) -> 2625903.139
B27: ● Corrects interest rate transposition in LG. | F27: 21 | H27: Debt | I27: =IF(A64=TRUE,C8,0) -> 0.508 | J27: =+I27*J28 -> 269043.9251 | K27: =IF(A64=TRUE,C9,0) -> 0.03992720522 | L27: =+K27*I27 -> 0.02028302025 | M27: =+K27*J27 -> 10742.17201 | R27: 2 | S27: =AK22/Investment*100 -> 495.5104633 | T27: =EXP(y_inter2-(slope*LN(+S27))) -> 4.33055336 | U27: =(+S27*T27/100)/100 -> 0.2145834502 | V27: =regDebt_weighted -> 0.03586 | W27: =+U27-V27 -> 0.1787234502 | X27: =+((W27*(1-0.34))-Pfd_weighted)/Equity_percent -> 0.3249054567 | Y27: =+Y26 -> 0.25 | Z27: =+X27+Y27 -> 0.5749054567 | AA27: =Z27*equityP -> 0.2828534847 | AB27: =+AA27/(1-taxrate) -> 0.2834203254 | AC27: =debtP*Debt_Rate -> 0.02028302025 | AD27: =+AC27+AB27 -> 0.3037033456 | AE27: =+AD27/(S27/100) -> 0.06129100556 | AF27: =1-AE27 -> 0.9387089944 | AG27: =expenses/(AF27) -> 2606753.562 | AH27: =+AG27-Revenue -> 634838.1232 | AI27: =+AH27/$J$49 -> 694221.9974 | AJ27: =+AI27*$J$47 -> 17546.46098 | AK27: =ROUND(+AJ27+AG27,5) -> 2624300.023
F28: 22 | H28: Total | I28: =SUM(I26:I27) -> 1 | J28: =IF(A64=TRUE,C7,0) -> 529614.0258 | L28: =SUM(L26:L27) -> 0.2978632822 | M28: =SUM(M26:M27) -> 157752.572 | R28: 3 | S28: =AK23/Investment*100 -> 495.3066171 | T28: =EXP(y_inter3-(slope*LN(S28))) -> 4.289656419 | U28: =(+S28*T28/100)/100 -> 0.2124695209 | V28: =regDebt_weighted -> 0.03586 | W28: =+U28-V28 -> 0.1766095209 | X28: =+((W28*(1-0.34))-Pfd_weighted)/Equity_percent -> 0.3208496623 | Y28: =+Y27 -> 0.25 | Z28: =+X28+Y28 -> 0.5708496623 | AA28: =Z28*equityP -> 0.2808580338 | AB28: =+AA28/(1-taxrate) -> 0.2814208756 | AC28: =debtP*Debt_Rate -> 0.02028302025 | AD28: =+AC28+AB28 -> 0.3017038958 | AE28: =+AD28/(S28/100) -> 0.06091255102 | AF28: =1-AE28 -> 0.939087449 | AG28: =expenses/(AF28) -> 2605703.034 | AH28: =+AG28-Revenue -> 633787.5952 | AI28: =+AH28/$J$49 -> 693073.2011 | AJ28: =+AI28*$J$47 -> 17517.42516 | AK28: 2623220.459
F29: 23 | R29: 4 | S29: =AK24/Investment*100 -> 495.1762491 | T29: =EXP(y_inter4-(slope*LN(S29))) -> 4.263483764 | U29: =(+S29*T29/100)/100 -> 0.2111175898 | V29: =regDebt_weighted -> 0.03586 | W29: =+U29-V29 -> 0.1752575898 | X29: =+((W29*(1-0.34))-Pfd_weighted)/Equity_percent -> 0.318255841 | Y29: =+Y28 -> 0.25 | Z29: 0.568255841 | AA29: =Z29*equityP -> 0.2795818738 | AB29: =+AA29/(1-taxrate) -> 0.2801421581 | AC29: =debtP*Debt_Rate -> 0.02028302025 | AD29: =+AC29+AB29 -> 0.3004251783 | AE29: =+AD29/(S29/100) -> 0.06067035301 | AF29: =1-AE29 -> 0.939329647 | AG29: =expenses/(AF29) -> 2605031.176 | AH29: =+AG29-Revenue -> 633115.7372 | AI29: =+AH29/$J$49 -> 692338.4964 | AJ29: =+AI29*$J$47 -> 17498.8555 | AK29: 2622530.031
F30: 24 | J30: Before | K30: After | R30: 6th Iteration
F31: 25 | H31: Operating Statistics | J31: Income Tax | K31: Income Tax | R31: 1 | S31: =AK26/Investment*100 -> 495.8145009 | T31: =EXP(y_inter1-(slope*LN(+S31))) -> 4.391215069 | U31: =(+S31*T31/100)/100 -> 0.2177228108 | V31: =regDebt_weighted -> 0.03586 | W31: =+U31-V31 -> 0.1818628108 | X31: =+((W31*(1-0.34))-Pfd_weighted)/Equity_percent -> 0.3309286486 | Y31: =+Y29 -> 0.25 | Z31: =+X31+Y31 -> 0.5809286486 | AA31: =Z31*equityP -> 0.2858168951 | AB31: =+AA31/(1-taxrate) -> 0.2863896744 | AC31: =debtP*Debt_Rate -> 0.02028302025 | AD31: =+AC31+AB31 -> 0.3066726947 | AE31: =+AD31/(S31/100) -> 0.06185230447 | AF31: =1-AE31 -> 0.9381476955 | AG31: =expenses/(AF31) -> 2608313.197 | AH31: =+AG31-Revenue -> 636397.7582 | AI31: =+AH31/$J$49 -> 695927.5233 | AJ31: =+AI31*$J$47 -> 17589.56815 | AK31: =ROUND(+AJ31+AG31,5) -> 2625902.765
F32: 26 | R32: 2 | S32: =AK27/Investment*100 -> 495.5118058 | T32: =EXP(y_inter2-(slope*LN(+S32))) -> 4.330545338 | U32: =(+S32*T32/100)/100 -> 0.2145836341 | V32: =regDebt_weighted -> 0.03586 | W32: =+U32-V32 -> 0.1787236341 | X32: =+((W32*(1-0.34))-Pfd_weighted)/Equity_percent -> 0.3249058096 | Y32: =+Y31 -> 0.25 | Z32: =+X32+Y32 -> 0.5749058096 | AA32: =Z32*equityP -> 0.2828536583 | AB32: =+AA32/(1-taxrate) -> 0.2834204993 | AC32: =debtP*Debt_Rate -> 0.02028302025 | AD32: =+AC32+AB32 -> 0.3037035196 | AE32: =+AD32/(S32/100) -> 0.06129087461 | AF32: =1-AE32 -> 0.9387091254 | AG32: =expenses/(AF32) -> 2606753.198 | AH32: =+AG32-Revenue -> 634837.7596 | AI32: =+AH32/$J$49 -> 694221.5997 | AJ32: =+AI32*$J$47 -> 17546.45093 | AK32: =ROUND(+AJ32+AG32,5) -> 2624299.649
F33: 27 | H33: Return on Investment | J33: =+K9/J28 -> 0.2984195553 | K33: =+(M14+M11)/J28 -> 0.2978632822 | R33: 3 | S33: =AK28/Investment*100 -> 495.307966 | T33: =EXP(y_inter3-(slope*LN(S33))) -> 4.289648432 | U33: =(+S33*T33/100)/100 -> 0.212469704 | V33: =regDebt_weighted -> 0.03586 | W33: =+U33-V33 -> 0.176609704 | X33: =+((W33*(1-0.34))-Pfd_weighted)/Equity_percent -> 0.3208500135 | Y33: =+Y32 -> 0.25 | Z33: =+X33+Y33 -> 0.5708500135 | AA33: =Z33*equityP -> 0.2808582066 | AB33: =+AA33/(1-taxrate) -> 0.2814210487 | AC33: =debtP*Debt_Rate -> 0.02028302025 | AD33: =+AC33+AB33 -> 0.301704069 | AE33: =+AD33/(S33/100) -> 0.06091242008 | AF33: =1-AE33 -> 0.9390875799 | AG33: =expenses/(AF33) -> 2605702.67 | AH33: =+AG33-Revenue -> 633787.2318 | AI33: =+AH33/$J$49 -> 693072.8038 | AJ33: =+AI33*$J$47 -> 17517.41512 | AK33: 2623220.086
F34: 28 | H34: Return on Equity | J34: =+(M9-M11)/J26 -> 0.5653181606 | K34: =+M14/J26 -> 0.5641875243 | R34: 4 | S34: =AK29/Investment*100 -> 495.1776017 | T34: =EXP(y_inter4-(slope*LN(S34))) -> 4.263475802 | U34: =(+S34*T34/100)/100 -> 0.2111177723 | V34: =regDebt_weighted -> 0.03586 | W34: =+U34-V34 -> 0.1752577723 | X34: =+((W34*(1-0.34))-Pfd_weighted)/Equity_percent -> 0.318256191 | Y34: =+Y33 -> 0.25 | Z34: 0.568256191 | AA34: =Z34*equityP -> 0.279582046 | AB34: =+AA34/(1-taxrate) -> 0.2801423306 | AC34: =debtP*Debt_Rate -> 0.02028302025 | AD34: =+AC34+AB34 -> 0.3004253509 | AE34: =+AD34/(S34/100) -> 0.06067022212 | AF34: =1-AE34 -> 0.9393297779 | AG34: =expenses/(AF34) -> 2605030.813 | AH34: =+AG34-Revenue -> 633115.3742 | AI34: =+AH34/$J$49 -> 692338.0994 | AJ34: =+AI34*$J$47 -> 17498.84546 | AK34: 2622529.658
F35: 29 | H35: Operating Ratio | J35: =+K8/K7 -> 0.93933 | K35: =+M8/M7 -> 0.9397348207 | R35: 7th Iteration
F36: 30 | H36: Profit Margin | J36: =+K9/K7 -> 0.06067 | K36: =+J36 -> 0.06067 | R36: 1 | S36: =AK31/Investment*100 -> 495.8144304 | T36: =EXP(y_inter1-(slope*LN(+S36))) -> 4.391215496 | U36: =(+S36*T36/100)/100 -> 0.217722801 | V36: =regDebt_weighted -> 0.03586 | W36: =+U36-V36 -> 0.181862801 | X36: =+((W36*(1-0.34))-Pfd_weighted)/Equity_percent -> 0.3309286298 | Y36: =+Y34 -> 0.25 | Z36: =+X36+Y36 -> 0.5809286298 | AA36: =Z36*equityP -> 0.2858168858 | AB36: =+AA36/(1-taxrate) -> 0.2863896652 | AC36: =debtP*Debt_Rate -> 0.02028302025 | AD36: =+AC36+AB36 -> 0.3066726854 | AE36: =+AD36/(S36/100) -> 0.0618523114 | AF36: =1-AE36 -> 0.9381476886 | AG36: =expenses/(AF36) -> 2608313.216 | AH36: =+AG36-Revenue -> 636397.7774 | AI36: =+AH36/$J$49 -> 695927.5444 | AJ36: =+AI36*$J$47 -> 17589.56868 | AK36: =ROUND(+AJ36+AG36,5) -> 2625902.785
F37: 31 | H37: Final turnover | J37: =+S39/100 -> 4.951775313 | K37: =+J37 -> 4.951775313 | R37: 2 | S37: =AK32/Investment*100 -> 495.5117352 | T37: =EXP(y_inter2-(slope*LN(+S37))) -> 4.33054576 | U37: =(+S37*T37/100)/100 -> 0.2145836244 | V37: =regDebt_weighted -> 0.03586 | W37: =+U37-V37 -> 0.1787236244 | X37: =+((W37*(1-0.34))-Pfd_weighted)/Equity_percent -> 0.324905791 | Y37: =+Y36 -> 0.25 | Z37: =+X37+Y37 -> 0.574905791 | AA37: =Z37*equityP -> 0.2828536492 | AB37: =+AA37/(1-taxrate) -> 0.2834204902 | AC37: =debtP*Debt_Rate -> 0.02028302025 | AD37: =+AC37+AB37 -> 0.3037035104 | AE37: =+AD37/(S37/100) -> 0.06129088149 | AF37: =1-AE37 -> 0.9387091185 | AG37: =expenses/(AF37) -> 2606753.217 | AH37: =+AG37-Revenue -> 634837.7787 | AI37: =+AH37/$J$49 -> 694221.6206 | AJ37: =+AI37*$J$47 -> 17546.45146 | AK37: =ROUND(+AJ37+AG37,5) -> 2624299.669
F38: 32 | H38: Tax Rate | J38: =+C10 -> 0.002 | K38: =+J38 -> 0.002 | R38: 3 | S38: =AK33/Investment*100 -> 495.3078955 | T38: =EXP(y_inter3-(slope*LN(S38))) -> 4.289648849 | U38: =(+S38*T38/100)/100 -> 0.2124696944 | V38: =regDebt_weighted -> 0.03586 | W38: =+U38-V38 -> 0.1766096944 | X38: =+((W38*(1-0.34))-Pfd_weighted)/Equity_percent -> 0.3208499951 | Y38: =+Y37 -> 0.25 | Z38: =+X38+Y38 -> 0.5708499951 | AA38: =Z38*equityP -> 0.2808581976 | AB38: =+AA38/(1-taxrate) -> 0.2814210397 | AC38: =debtP*Debt_Rate -> 0.02028302025 | AD38: =+AC38+AB38 -> 0.3017040599 | AE38: =+AD38/(S38/100) -> 0.06091242692 | AF38: =1-AE38 -> 0.9390875731 | AG38: =expenses/(AF38) -> 2605702.689 | AH38: =+AG38-Revenue -> 633787.2508 | AI38: =+AH38/$J$49 -> 693072.8245 | AJ38: =+AI38*$J$47 -> 17517.41564 | AK38: 2623220.105
F39: 33 | R39: 4 | S39: =AK34/Investment*100 -> 495.1775313 | T39: =EXP(y_inter4-(slope*LN(S39))) -> 4.263476216 | U39: =(+S39*T39/100)/100 -> 0.2111177628 | V39: =regDebt_weighted -> 0.03586 | W39: =+U39-V39 -> 0.1752577628 | X39: =+((W39*(1-0.34))-Pfd_weighted)/Equity_percent -> 0.3182561728 | Y39: =+Y38 -> 0.25 | Z39: 0.5682561728 | AA39: =Z39*equityP -> 0.279582037 | AB39: =+AA39/(1-taxrate) -> 0.2801423216 | AC39: =debtP*Debt_Rate -> 0.02028302025 | AD39: =+AC39+AB39 -> 0.3004253419 | AE39: =+AD39/(S39/100) -> 0.06067022894 | AF39: =1-AE39 -> 0.9393297711 | AG39: =expenses/(AF39) -> 2605030.832 | AH39: =+AG39-Revenue -> 633115.3931 | AI39: =+AH39/$J$49 -> 692338.1201 | AJ39: =+AI39*$J$47 -> 17498.84599 | AK39: 2622529.678
F40: 34
F41: 35 | H41: Revenue Sensitive Taxes Charges | R41: Curve
F42: 36 | J42: Rate | K42: Taxes | R42: Lookup Table
F43: 37 | H43: B & O Tax | J43: =IF(A64=TRUE,C11,0) -> 0.015 | K43: =+J43*($J$7/$J$49) -> 10385.06139 | R43: 0 | S43: 1 | U43: Profit Margin | V43: =VLOOKUP(R48,R36:AG39,14) -> 0.06067022894
F44: 38 | H44: WUTC Fee | J44: =IF(A64=TRUE,C12,0) -> 0.004275 | K44: =+J44*($J$7/$J$49) -> 2959.742495 | R44: 50 | S44: 2 | U44: Operating Ratio | V44: =ROUND(1-V43,6) -> 0.93933
F45: 39 | H45: City Tax | J45: =IF(A64=TRUE,C13,0) -> 0 | K45: =+J45*($J$7/$J$49) -> 0 | R45: 125 | S45: 3 | U45: Percent Chg | V45: =+M7/Revenue-1 -> 0.329939902
F46: 40 | H46: Bad Debts | J46: =IF(A64=TRUE,C14,0) -> 0.006 | K46: =+J46*($J$7/$J$49) -> 4154.024555 | R46: 401 | S46: 4
F47: 41 | H47: Revenue Sensitive | J47: =SUM(J43:J46) -> 0.025275 | K47: =+K43+K44+K45+K46 -> 17498.82844 | R47: =VLOOKUP(R48,R36:S39,2) -> 495.1775313 | S47: Curve turnover | X47: @EXP(5.72260-(.68367*@LN(T)))
F48: 42 | R48: =VLOOKUP(S36,R43:S46,2) -> 4 | S48: Curve No. Used | X48: @EXP(5.70827-(.68367*@LN(T)))
F49: 43 | H49: Conversion Factor | J49: =((K35)-J47) -> 0.9144598207 | X49: @EXP(5.69850-(.68367*@LN(T)))
R50: =+V44 -> 0.93933 | S50: Operating Ratio | X50: @EXP(5.69220-(.68367*@LN(T)))
S53: Base Utility from LG Sample Study | W53: Regression Results
S54: Percent | T54: Cost | U54: Weighted | W54: Y intercept (1) | X54: 5.7226 | Y54: Y intercept (3) | Z54: 5.6985
R55: Debt | S55: 0.562 | T55: 0.0638 | U55: =ROUND(+S55*T55,5) -> 0.03586 | W55: Y intercept (2) | X55: 5.70827 | Y55: Y intercept (4) | Z55: 5.6922
R56: Pfd. | S56: 0.094 | T56: 0.0659 | U56: =ROUND(+S56*T56,5) -> 0.00619
R57: Equity | S57: 0.344 | X57: Slope | Y57: 0.68367
S58: =SUM(S55:S57) -> 1
X60: Operating Statistics | Y60: Pre-tax | Z60: After Tax
X62: Return on Investment | Y62: =+J33 -> 0.2984195553 | Z62: 0.2978632822
X63: Return on Equity | Y63: 0.5653181606 | Z63: 0.5641875243
A64: TRUE | X64: Operating Ratio | Y64: 0.93933 | Z64: 0.9397348207
X65: Profit Margin | Y65: 0.06067 | Z65: 0.06067
X66: Final turnover | Y66: 4.951775313 | Z66: 4.951775313
X67: Tax Rate | Y67: 0.002 | Z67: 0.002

Sheet RCY
B1: NEW IMPROVED LURITO - GALLAGHER FORMULA | AE1: !??! | AF1: OP/RATIO | AI1: curve
G2: NOTE: | N2: FORMULAS | U2: 1st Revenue | V2: 1st Turnover | W2: M | X2: ROR | Y2: ROE | AA2: Adj ROE | AB2: Pre Tax ROE | AC2: Adj M | AD2: Revenues | AE2: Decision | AI2: lookup table
B3: !!! | C3: Revenue Requirement | E3: =E5+E4 -> 2623232.513 | F3: !!!<-- | H3: Red numbers are input/linked fields. | N3: 1. less than 50 | Q3: @EXP(5.72260-(.68367*@LN(T))) | U3: =$E$6*1.25 -> 3058728.769 | V3: ='RCY LG 2018 V5.0c'!S6 -> 372.3306677 | W3: =EXP(5.7226-(0.68367*LN(+V3))) -> 5.341050732 | X3: =(+W3*V3)/100 -> 19.88636986 | Y3: ='RCY LG 2018 V5.0c'!X6*100 -> 29.47454682 | Z3: ='RCY LG 2018 V5.0c'!Y6*100 -> 25 | AA3: =Y3+Z3 -> 54.47454682 | AB3: =100*($E$15*$E$17+($E$16*(AA3/100))/(1-$E$19)) -> 28.89778651 | AC3: ='RCY LG 2018 V5.0c'!AE6 -> 0.07757483317 | AD3: =$E$6/(1-AC3) -> 2652771.306 | AE3: =IF(AD3=$U$3,"yes","not yet") -> not yet | AF3: =100*(1-AC3) -> 92.24251668 | AI3: 0 | AJ3: 1
B4: !!! | C4: Revenue Deficiency | E4: =(+E6-((H13/100)*E5))/H23 -> 651317.0739 | F4: !!!<-- | H4: Black are formula calculations | N4: 2. Between 50 and 125 | Q4: @EXP(5.70827-(.68367*@LN(T))) | U4: =$E$6*1.25 -> 3058728.769 | V4: ='RCY LG 2018 V5.0c'!S7 -> 372.3306677 | W4: ='RCY LG 2018 V5.0c'!T7 -> 5.341050732 | X4: =(+W4*V4)/100 -> 19.88636986 | Y4: ='RCY LG 2018 V5.0c'!X7*100 -> 29.47454682 | Z4: ='RCY LG 2018 V5.0c'!Y7*100 -> 25 | AA4: =Y4+Z4 -> 54.47454682 | AB4: =100*($E$15*$E$17+($E$16*(AA4/100))/(1-$E$19)) -> 28.89778651 | AC4: ='RCY LG 2018 V5.0c'!AE7 -> 0.07757483317 | AD4: =$E$6/(1-AC4) -> 2652771.306 | AE4: =IF(AD4=$U$4,"yes","not yet") -> not yet | AF4: =100*(1-AC4) -> 92.24251668 | AI4: 50 | AJ4: 2
B5: * | C5: Revenue | E5: =Proforma!P26 -> 1971915.439 | F5: * p/f before rates | N5: 3. Between 125 and 140 | Q5: @EXP(5.69850-(.68367*@LN(T))) | U5: =$E$6*1.25 -> 3058728.769 | V5: ='RCY LG 2018 V5.0c'!S8 -> 372.3306677 | W5: ='RCY LG 2018 V5.0c'!T8 -> 5.341050732 | X5: =(+W5*V5)/100 -> 19.88636986 | Y5: ='RCY LG 2018 V5.0c'!X8*100 -> 29.47454682 | Z5: ='RCY LG 2018 V5.0c'!Y8*100 -> 25 | AA5: =Y5+Z5 -> 54.47454682 | AB5: =100*($E$15*$E$17+($E$16*(AA5/100))/(1-$E$19)) -> 28.89778651 | AC5: ='RCY LG 2018 V5.0c'!AE8 -> 0.07757483317 | AD5: =$E$6/(1-AC5) -> 2652771.306 | AE5: =IF(AD5=$U$5,"yes","not yet") -> not yet | AF5: =100*(1-AC5) -> 92.24251668 | AI5: 125 | AJ5: 3
B6: * | C6: Expenses | E6: =+Proforma!P381 -> 2446983.015 | F6: * p/f before rates | N6: 4. greater than 400 | Q6: @EXP(5.69220-(.68367*@LN(T))) | U6: =$E$6*1.25 -> 3058728.769 | V6: ='RCY LG 2018 V5.0c'!S9 -> 372.3306677 | W6: ='RCY LG 2018 V5.0c'!T9 -> 5.341050732 | X6: =(+W6*V6)/100 -> 19.88636986 | Y6: ='RCY LG 2018 V5.0c'!X9*100 -> 29.47454682 | Z6: ='RCY LG 2018 V5.0c'!Y9*100 -> 25 | AA6: =Y6+Z6 -> 54.47454682 | AB6: =100*($E$15*$E$17+($E$16*(AA6/100))/(1-$E$19)) -> 28.89778651 | AC6: ='RCY LG 2018 V5.0c'!AE9 -> 0.07757483317 | AD6: =$E$6/(1-AC6) -> 2652771.306 | AE6: =IF(AD6=$U$6,"yes","not yet") -> not yet | AF6: =100*(1-AC6) -> 92.24251668 | AI6: 401 | AJ6: 4
B7: * | C7: Avg. Investment - | E7: ='Ave Inv. Summary'!K66 -> 529614.0258 | F7: * p/f before rates
C8: curve turnover | E8: =V3 -> 372.3306677 | F8: (calculated) | V8: 2nd Turnover | W8: M | X8: ROR | Y8: ROE | AI8: lookup tables
C9: final turnover | E9: =HLOOKUP($AJ$32,$AJ$26:$AR$30,$E$10+1) -> 495.3078955 | F9: (calculated) | V9: ='RCY LG 2018 V5.0c'!S11 -> 504.4408822 | W9: ='RCY LG 2018 V5.0c'!T11 -> 4.339735896 | X9: =(+W9*V9)/100 -> 21.89140204 | Y9: ='RCY LG 2018 V5.0c'!X11*100 -> 33.32141089 | Z9: ='RCY LG 2018 V5.0c'!Y11*100 -> 25 | AA9: =Y9+Z9 -> 58.32141089 | AB9: =100*($E$15*$E$17+($E$16*(AA9/100))/(1-$E$19)) -> 30.79532584 | AC9: ='RCY LG 2018 V5.0c'!AE11 -> 0.06101793201 | AD9: =$E$6/(1-AC9) -> 2605995.469 | AE9: =IF(OR(OR(AD9=AD3,AD9=(AD3+1)),AD9=(AD8187-1)),"yes","not yet") -> not yet | AF9: =100*(1-AC9) -> 93.8982068
C10: curve No. used | E10: =VLOOKUP(E8,AI3:AJ6,2) -> 3 | F10: (calculated) | V10: ='RCY LG 2018 V5.0c'!S12 -> 504.4408822 | W10: ='RCY LG 2018 V5.0c'!T12 -> 4.277990939 | X10: =(+W10*V10)/100 -> 21.57993524 | Y10: ='RCY LG 2018 V5.0c'!X12*100 -> 32.72382923 | Z10: ='RCY LG 2018 V5.0c'!Y12*100 -> 25 | AA10: =Y10+Z10 -> 57.72382923 | AB10: =100*($E$15*$E$17+($E$16*(AA10/100))/(1-$E$19)) -> 30.50055726 | AC10: ='RCY LG 2018 V5.0c'!AE12 -> 0.06043392032 | AD10: =$E$6/(1-AC10) -> 2604375.645 | AE10: =IF(OR(OR(AD10=AD4,AD10=(AD4+1)),AD10=(AD4-1)),"yes","not yet") -> not yet | AF10: =100*(1-AC10) -> 93.95660797
V11: ='RCY LG 2018 V5.0c'!S13 -> 504.4408822 | W11: ='RCY LG 2018 V5.0c'!T13 -> 4.236398478 | X11: =(+W11*V11)/100 -> 21.37012586 | Y11: ='RCY LG 2018 V5.0c'!X13*100 -> 32.32128798 | Z11: ='RCY LG 2018 V5.0c'!Y13*100 -> 25 | AA11: =Y11+Z11 -> 57.32128798 | AB11: =100*($E$15*$E$17+($E$16*(AA11/100))/(1-$E$19)) -> 30.30199608 | AC11: ='RCY LG 2018 V5.0c'!AE13 -> 0.06004052003 | AD11: =$E$6/(1-AC11) -> 2603285.638 | AE11: =IF(OR(OR(AD11=AD5,AD11=(AD5+1)),AD11=(AD5-1)),"yes","not yet") -> not yet | AF11: =100*(1-AC11) -> 93.995948 | AJ11: 1 | AK11: 2 | AL11: 3 | AM11: 4 | AN11: 5 | AO11: 6 | AP11: 7 | AQ11: 8 | AR11: 9
C12: Company actual | V12: ='RCY LG 2018 V5.0c'!S14 -> 504.4408822 | W12: ='RCY LG 2018 V5.0c'!T14 -> 4.209793063 | X12: =(+W12*V12)/100 -> 21.23591727 | Y12: ='RCY LG 2018 V5.0c'!X14*100 -> 32.06379475 | Z12: ='RCY LG 2018 V5.0c'!Y14*100 -> 25 | AA12: =Y12+Z12 -> 57.06379475 | AB12: =100*($E$15*$E$17+($E$16*(AA12/100))/(1-$E$19)) -> 30.17498262 | AC12: ='RCY LG 2018 V5.0c'!AE14 -> 0.05978887399 | AD12: =$E$6/(1-AC12) -> 2602588.873 | AE12: =IF(OR(OR(AD12=AD6,AD12=(AD6+1)),AD12=(AD6-1)),"yes","not yet") -> not yet | AF12: =100*(1-AC12) -> 94.0211126 | AJ12: =AE3 -> not yet | AK12: =AE9 -> not yet | AL12: =AE15 -> not yet | AM12: =AE21 -> not yet | AN12: =AE27 -> not yet | AO12: =AE33 -> not yet | AP12: =AE39 -> yes | AQ12: =AE45 -> 0 | AR12: =AE51 -> 0
C13: capital structure: | E13: !!! | F13: OPERATING RATIO -> | H13: =HLOOKUP($AJ$23,$AJ$17:$AR$21,$E$10+1) -> 93.90875731 | I13: !!!<-- | AJ13: =AE4 -> not yet | AK13: =AE10 -> not yet | AL13: =AE16 -> not yet | AM13: =AE22 -> not yet | AN13: =AE28 -> not yet | AO13: =AE34 -> not yet | AP13: =AE40 -> yes | AQ13: =AE46 -> 0 | AR13: =AE52 -> 0
C14: - | D14: - | H14: = | V14: 3rd Turnover | W14: M | X14: ROR | Y14: ROE | AJ14: =AE5 -> not yet | AK14: =AE11 -> not yet | AL14: =AE17 -> not yet | AM14: =AE23 -> not yet | AN14: =AE29 -> not yet | AO14: =AE35 -> not yet | AP14: =AE41 -> yes | AQ14: =AE47 -> 0 | AR14: =AE53 -> 0
B15: * | C15: Actual Debt Ratio | E15: =+'Combined LG'!E15 -> 0.5077173987 | F15: Conversion factor data: | V15: ='RCY LG 2018 V5.0c'!S16 -> 495.3647089 | W15: ='RCY LG 2018 V5.0c'!T16 -> 4.393940628 | X15: =(+W15*V15)/100 -> 21.7660312 | Y15: ='RCY LG 2018 V5.0c'!X16*100 -> 33.08087381 | Z15: ='RCY LG 2018 V5.0c'!Y16*100 -> 25 | AA15: =Y15+Z15 -> 58.08087381 | AB15: =100*($E$15*$E$17+($E$16*(AA15/100))/(1-$E$19)) -> 30.67667633 | AC15: ='RCY LG 2018 V5.0c'!AE16 -> 0.061896533 | AD15: =$E$6/(1-AC15) -> 2608436.17 | AE15: =IF(OR(OR(AD15=AD9,AD15=(AD9+1)),AD15=(AD1-1)),"yes","not yet") -> not yet | AF15: =100*(1-AC15) -> 93.8103467 | AJ15: =AE6 -> not yet | AK15: =AE12 -> not yet | AL15: =AE18 -> not yet | AM15: =AE24 -> not yet | AN15: =AE30 -> not yet | AO15: =AE36 -> not yet | AP15: =AE42 -> yes | AQ15: =AE48 -> 0 | AR15: =AE54 -> 0
B16: * | C16: Actual Equity Ratio | E16: =+'Combined LG'!E16 -> 0.4922826013 | F16: B & O Tax | H16: =+'Combined LG'!H16 -> 0.015 | I16: * | V16: ='RCY LG 2018 V5.0c'!S17 -> 495.0504055 | W16: ='RCY LG 2018 V5.0c'!T17 -> 4.33330435 | X16: =(+W16*V16)/100 -> 21.45204076 | Y16: ='RCY LG 2018 V5.0c'!X17*100 -> 32.47845029 | Z16: ='RCY LG 2018 V5.0c'!Y17*100 -> 25 | AA16: =Y16+Z16 -> 57.47845029 | AB16: =100*($E$15*$E$17+($E$16*(AA16/100))/(1-$E$19)) -> 30.3795194 | AC16: ='RCY LG 2018 V5.0c'!AE17 -> 0.06133591927 | AD16: =$E$6/(1-AC16) -> 2606878.291 | AE16: =IF(OR(OR(AD16=AD10,AD16=(AD10+1)),AD16=(AD10-1)),"yes","not yet") -> not yet | AF16: =100*(1-AC16) -> 93.86640807
B17: * | C17: Actual Cost of Debt | E17: =+'Combined LG'!E17 -> 0.03992720522 | F17: WUTC Fee | H17: =+'Combined LG'!H17 -> 0.004275 | I17: * | V17: ='RCY LG 2018 V5.0c'!S18 -> 494.8389055 | W17: ='RCY LG 2018 V5.0c'!T18 -> 4.292427942 | X17: =(+W17*V17)/100 -> 21.24060345 | Y17: ='RCY LG 2018 V5.0c'!X18*100 -> 32.07278568 | Z17: ='RCY LG 2018 V5.0c'!Y18*100 -> 25 | AA17: =Y17+Z17 -> 57.07278568 | AB17: =100*($E$15*$E$17+($E$16*(AA17/100))/(1-$E$19)) -> 30.17941756 | AC17: ='RCY LG 2018 V5.0c'!AE18 -> 0.06095798938 | AD17: =$E$6/(1-AC17) -> 2605829.119 | AE17: =IF(OR(OR(AD17=AD11,AD17=(AD11+1)),AD17=(AD11-1)),"yes","not yet") -> not yet | AF17: =100*(1-AC17) -> 93.90420106 | AJ17: =HLOOKUP(1,$AJ$11:$AR$15,$E$10+1) -> not yet | AK17: =HLOOKUP(2,$AJ$11:$AR$15,$E$10+1) -> not yet | AL17: =HLOOKUP(3,$AJ$11:$AR$15,$E$10+1) -> not yet | AM17: =HLOOKUP(4,$AJ$11:$AR$15,$E$10+1) -> not yet | AN17: =HLOOKUP(5,$AJ$11:$AR$15,$E$10+1) -> not yet | AO17: =HLOOKUP(6,$AJ$11:$AR$15,$E$10+1) -> not yet | AP17: =HLOOKUP(7,$AJ$11:$AR$15,$E$10+1) -> yes | AQ17: =HLOOKUP(8,$AJ$11:$AR$15,$E$10+1) -> 0 | AR17: =HLOOKUP(9,$AJ$11:$AR$15,$E$10+1) -> 0
B18: * | C18: Basis Points | E18: 0.25 | F18: City Tax | H18: =+'Combined LG'!H18 -> 0 | I18: * | V18: ='RCY LG 2018 V5.0c'!S19 -> 494.7037083 | W18: ='RCY LG 2018 V5.0c'!T19 -> 4.266267575 | X18: =(+W18*V18)/100 -> 21.1053839 | Y18: ='RCY LG 2018 V5.0c'!X19*100 -> 31.81335283 | Z18: ='RCY LG 2018 V5.0c'!Y19*100 -> 25 | AA18: =Y18+Z18 -> 56.81335283 | AB18: =100*($E$15*$E$17+($E$16*(AA18/100))/(1-$E$19)) -> 30.05144734 | AC18: ='RCY LG 2018 V5.0c'!AE19 -> 0.06071611651 | AD18: =$E$6/(1-AC18) -> 2605158.097 | AE18: =IF(OR(OR(AD18=AD12,AD18=(AD12+1)),AD18=(AD12-1)),"yes","not yet") -> not yet | AF18: =100*(1-AC18) -> 93.92838835 | AI18: 1 | AJ18: =AF3 -> 92.24251668 | AK18: =AF9 -> 93.8982068 | AL18: =AF15 -> 93.8103467 | AM18: =AF21 -> 93.81500329 | AN18: =AF27 -> 93.81475647 | AO18: =AF33 -> 93.81476955 | AP18: =AF39 -> 93.81476886 | AQ18: =AF45 -> 0 | AR18: =AF51 -> 0
B19: * | C19: Tax Rate | E19: =+'Combined LG'!E19 -> 0.002 | F19: Bad Debts | H19: =+'Combined LG'!H19 -> 0.006 | I19: * | AI19: 2 | AJ19: =AF4 -> 92.24251668 | AK19: =AF10 -> 93.95660797 | AL19: =AF16 -> 93.86640807 | AM19: =AF22 -> 93.8711486 | AN19: =AF28 -> 93.87089944 | AO19: =AF34 -> 93.87091254 | AP19: =AF40 -> 93.87091185 | AQ19: =AF46 -> 0 | AR19: =AF52 -> 0
H20: - | V20: 4th Turnover | W20: M | X20: ROR | Y20: ROE | AI20: 3 | AJ20: =AF5 -> 92.24251668 | AK20: =AF11 -> 93.995948 | AL20: =AF17 -> 93.90420106 | AM20: =AF23 -> 93.90899545 | AN20: =AF29 -> 93.9087449 | AO20: =AF35 -> 93.90875799 | AP20: =AF41 -> 93.90875731 | AQ20: =AF47 -> 0 | AR20: =AF53 -> 0
F21: Revenue Sensitive | H21: =SUM(H16:H19) -> 0.025275 | V21: ='RCY LG 2018 V5.0c'!S21 -> 495.8382916 | W21: ='RCY LG 2018 V5.0c'!T21 -> 4.391071023 | X21: =(+W21*V21)/100 -> 21.77261154 | Y21: ='RCY LG 2018 V5.0c'!X21*100 -> 33.09349889 | Z21: ='RCY LG 2018 V5.0c'!Y21*100 -> 25 | AA21: =Y21+Z21 -> 58.09349889 | AB21: =100*($E$15*$E$17+($E$16*(AA21/100))/(1-$E$19)) -> 30.68290389 | AC21: ='RCY LG 2018 V5.0c'!AE21 -> 0.06184996713 | AD21: =$E$6/(1-AC21) -> 2608306.698 | AE21: =IF(OR(OR(AD21=AD15,AD21=(AD15+1)),AD21=(AD7-1)),"yes","not yet") -> not yet | AF21: =100*(1-AC21) -> 93.81500329 | AI21: 4 | AJ21: =AF6 -> 92.24251668 | AK21: =AF12 -> 94.0211126 | AL21: =AF18 -> 93.92838835 | AM21: =AF24 -> 93.93321607 | AN21: =AF30 -> 93.9329647 | AO21: =AF36 -> 93.93297779 | AP21: =AF42 -> 93.93297711 | AQ21: =AF48 -> 0 | AR21: =AF54 -> 0
V22: ='RCY LG 2018 V5.0c'!S22 -> 495.5360077 | W22: ='RCY LG 2018 V5.0c'!T22 -> 4.330400739 | X22: =(+W22*V22)/100 -> 21.45869494 | Y22: ='RCY LG 2018 V5.0c'!X22*100 -> 32.49121704 | Z22: ='RCY LG 2018 V5.0c'!Y22*100 -> 25 | AA22: =Y22+Z22 -> 57.49121704 | AB22: =100*($E$15*$E$17+($E$16*(AA22/100))/(1-$E$19)) -> 30.38581684 | AC22: ='RCY LG 2018 V5.0c'!AE22 -> 0.06128851397 | AD22: =$E$6/(1-AC22) -> 2606746.643 | AE22: =IF(OR(OR(AD22=AD16,AD22=(AD16+1)),AD22=(AD16-1)),"yes","not yet") -> not yet | AF22: =100*(1-AC22) -> 93.8711486
F23: Conversion Factor | H23: =((+H13/100)-H21) -> 0.9138125731 | V23: ='RCY LG 2018 V5.0c'!S23 -> 495.332431 | W23: ='RCY LG 2018 V5.0c'!T23 -> 4.289503582 | X23: =(+W23*V23)/100 -> 21.24730237 | Y23: ='RCY LG 2018 V5.0c'!X23*100 -> 32.08563826 | Z23: ='RCY LG 2018 V5.0c'!Y23*100 -> 25 | AA23: =Y23+Z23 -> 57.08563826 | AB23: =100*($E$15*$E$17+($E$16*(AA23/100))/(1-$E$19)) -> 30.18575734 | AC23: ='RCY LG 2018 V5.0c'!AE23 -> 0.06091004546 | AD23: =$E$6/(1-AC23) -> 2605696.082 | AE23: =IF(OR(OR(AD23=AD17,AD23=(AD17+1)),AD23=(AD17-1)),"yes","not yet") -> not yet | AF23: =100*(1-AC23) -> 93.90899545 | AJ23: yes
V24: ='RCY LG 2018 V5.0c'!S24 -> 495.202229 | W24: ='RCY LG 2018 V5.0c'!T24 -> 4.263330842 | X24: =(+W24*V24)/100 -> 21.11210936 | Y24: ='RCY LG 2018 V5.0c'!X24*100 -> 31.82625633 | Z24: ='RCY LG 2018 V5.0c'!Y24*100 -> 25 | AA24: =Y24+Z24 -> 56.82625633 | AB24: =100*($E$15*$E$17+($E$16*(AA24/100))/(1-$E$19)) -> 30.05781224 | AC24: ='RCY LG 2018 V5.0c'!AE24 -> 0.06066783927 | AD24: =$E$6/(1-AC24) -> 2605024.205 | AE24: =IF(OR(OR(AD24=AD18,AD24=(AD18+1)),AD24=(AD18-1)),"yes","not yet") -> not yet | AF24: =100*(1-AC24) -> 93.93321607 | AJ24: =HLOOKUP($AJ$23,$AJ$17:$AR$21,$E$10+1) -> 93.90875731
C26: Company Reference | V26: 5th Turnover | W26: M | X26: ROR | Y26: ROE | AJ26: =HLOOKUP(1,$AJ$11:$AR$15,$E$10+1) -> not yet | AK26: =HLOOKUP(2,$AJ$11:$AR$15,$E$10+1) -> not yet | AL26: =HLOOKUP(3,$AJ$11:$AR$15,$E$10+1) -> not yet | AM26: =HLOOKUP(4,$AJ$11:$AR$15,$E$10+1) -> not yet | AN26: =HLOOKUP(5,$AJ$11:$AR$15,$E$10+1) -> not yet | AO26: =HLOOKUP(6,$AJ$11:$AR$15,$E$10+1) -> not yet | AP26: =HLOOKUP(7,$AJ$11:$AR$15,$E$10+1) -> yes | AQ26: =HLOOKUP(8,$AJ$11:$AR$15,$E$10+1) -> 0 | AR26: =HLOOKUP(9,$AJ$11:$AR$15,$E$10+1) -> 0
C27: Annl Price Increase (PI) $ | E27: =+E4 -> 651317.0739 | V27: ='RCY LG 2018 V5.0c'!S26 -> 495.8131694 | W27: ='RCY LG 2018 V5.0c'!T26 -> 4.391223131 | X27: =(+W27*V27)/100 -> 21.77226258 | Y27: ='RCY LG 2018 V5.0c'!X26*100 -> 33.09282937 | Z27: ='RCY LG 2018 V5.0c'!Y26*100 -> 25 | AA27: =Y27+Z27 -> 58.09282937 | AB27: =100*($E$15*$E$17+($E$16*(AA27/100))/(1-$E$19)) -> 30.68257364 | AC27: ='RCY LG 2018 V5.0c'!AE26 -> 0.06185243529 | AD27: =$E$6/(1-AC27) -> 2608313.561 | AE27: =IF(OR(OR(AD27=AD21,AD27=(AD21+1)),AD27=(AD13-1)),"yes","not yet") -> not yet | AF27: =100*(1-AC27) -> 93.81475647 | AI27: 1 | AJ27: =V3 -> 372.3306677 | AK27: =V9 -> 504.4408822 | AL27: =V15 -> 495.3647089 | AM27: =V21 -> 495.8382916 | AN27: =V27 -> 495.8131694 | AO27: =V33 -> 495.8145009 | AP27: =V39 -> 495.8144304 | AQ27: =V45 -> 0 | AR27: =V51 -> 0
C28: Monthly PI $ | E28: =+E27/12 -> 54276.42283 | V28: ='RCY LG 2018 V5.0c'!S27 -> 495.5104633 | W28: ='RCY LG 2018 V5.0c'!T27 -> 4.33055336 | X28: =(+W28*V28)/100 -> 21.45834502 | Y28: ='RCY LG 2018 V5.0c'!X27*100 -> 32.49054567 | Z28: ='RCY LG 2018 V5.0c'!Y27*100 -> 25 | AA28: =Y28+Z28 -> 57.49054567 | AB28: =100*($E$15*$E$17+($E$16*(AA28/100))/(1-$E$19)) -> 30.38548567 | AC28: ='RCY LG 2018 V5.0c'!AE27 -> 0.06129100556 | AD28: =$E$6/(1-AC28) -> 2606753.562 | AE28: =IF(OR(OR(AD28=AD22,AD28=(AD22+1)),AD28=(AD22-1)),"yes","not yet") -> not yet | AF28: =100*(1-AC28) -> 93.87089944 | AI28: 2 | AJ28: =V4 -> 372.3306677 | AK28: =V10 -> 504.4408822 | AL28: =V16 -> 495.0504055 | AM28: =V22 -> 495.5360077 | AN28: =V28 -> 495.5104633 | AO28: =V34 -> 495.5118058 | AP28: =V40 -> 495.5117352 | AQ28: =V46 -> 0 | AR28: =V52 -> 0
C29: Percentage PI | E29: =+E4/E5 -> 0.3302966553 | V29: ='RCY LG 2018 V5.0c'!S28 -> 495.3066171 | W29: ='RCY LG 2018 V5.0c'!T28 -> 4.289656419 | X29: =(+W29*V29)/100 -> 21.24695209 | Y29: ='RCY LG 2018 V5.0c'!X28*100 -> 32.08496623 | Z29: ='RCY LG 2018 V5.0c'!Y28*100 -> 25 | AA29: =Y29+Z29 -> 57.08496623 | AB29: =100*($E$15*$E$17+($E$16*(AA29/100))/(1-$E$19)) -> 30.18542585 | AC29: ='RCY LG 2018 V5.0c'!AE28 -> 0.06091255102 | AD29: =$E$6/(1-AC29) -> 2605703.034 | AE29: =IF(OR(OR(AD29=AD23,AD29=(AD23+1)),AD29=(AD23-1)),"yes","not yet") -> not yet | AF29: =100*(1-AC29) -> 93.9087449 | AI29: 3 | AJ29: =V5 -> 372.3306677 | AK29: =V11 -> 504.4408822 | AL29: =V17 -> 494.8389055 | AM29: =V23 -> 495.332431 | AN29: =V29 -> 495.3066171 | AO29: =V35 -> 495.307966 | AP29: =V41 -> 495.3078955 | AQ29: =V47 -> 0 | AR29: =V53 -> 0
V30: ='RCY LG 2018 V5.0c'!S29 -> 495.1762491 | W30: ='RCY LG 2018 V5.0c'!T29 -> 4.263483764 | X30: =(+W30*V30)/100 -> 21.11175898 | Y30: ='RCY LG 2018 V5.0c'!X29*100 -> 31.8255841 | Z30: ='RCY LG 2018 V5.0c'!Y29*100 -> 25 | AA30: =Y30+Z30 -> 56.8255841 | AB30: =100*($E$15*$E$17+($E$16*(AA30/100))/(1-$E$19)) -> 30.05748065 | AC30: ='RCY LG 2018 V5.0c'!AE29 -> 0.06067035301 | AD30: =$E$6/(1-AC30) -> 2605031.176 | AE30: =IF(OR(OR(AD30=AD24,AD30=(AD24+1)),AD30=(AD24-1)),"yes","not yet") -> not yet | AF30: =100*(1-AC30) -> 93.9329647 | AI30: 4 | AJ30: =V6 -> 372.3306677 | AK30: =V12 -> 504.4408822 | AL30: =V18 -> 494.7037083 | AM30: =V24 -> 495.202229 | AN30: =V30 -> 495.1762491 | AO30: =V36 -> 495.1776017 | AP30: =V42 -> 495.1775313 | AQ30: =V48 -> 0 | AR30: =V54 -> 0
V32: 6th Turnover | W32: M | X32: ROR | Y32: ROE | AJ32: yes
V33: ='RCY LG 2018 V5.0c'!S31 -> 495.8145009 | W33: =EXP(5.7226-(0.68367*LN(+V33))) -> 4.391215069 | X33: =(+W33*V33)/100 -> 21.77228108 | Y33: ='RCY LG 2018 V5.0c'!X31*100 -> 33.09286486 | Z33: ='RCY LG 2018 V5.0c'!Y31*100 -> 25 | AA33: =Y33+Z33 -> 58.09286486 | AB33: =100*($E$15*$E$17+($E$16*(AA33/100))/(1-$E$19)) -> 30.68259114 | AC33: ='RCY LG 2018 V5.0c'!AE31 -> 0.06185230447 | AD33: =ROUND($E$6/(1-AC33),0) -> 2608313 | AE33: =IF(OR(OR(AD33=AD27,AD33=(AD27+1)),AD33=(AD19-1)),"yes","not yet") -> not yet | AF33: =100*(1-AC33) -> 93.81476955 | AJ33: =HLOOKUP($AJ$32,$AJ$26:$AR$30,$E$10+1) -> 495.3078955
V34: ='RCY LG 2018 V5.0c'!S32 -> 495.5118058 | W34: =EXP(5.70827-(0.68367*LN(+V34))) -> 4.330545338 | X34: =(+W34*V34)/100 -> 21.45836341 | Y34: ='RCY LG 2018 V5.0c'!X32*100 -> 32.49058096 | Z34: ='RCY LG 2018 V5.0c'!Y32*100 -> 25 | AA34: =Y34+Z34 -> 57.49058096 | AB34: =100*($E$15*$E$17+($E$16*(AA34/100))/(1-$E$19)) -> 30.38550308 | AC34: ='RCY LG 2018 V5.0c'!AE32 -> 0.06129087461 | AD34: =ROUND($E$6/(1-AC34),0) -> 2606753 | AE34: =IF(OR(OR(AD34=AD28,AD34=(AD28+1)),AD34=(AD28-1)),"yes","not yet") -> not yet | AF34: =100*(1-AC34) -> 93.87091254
V35: ='RCY LG 2018 V5.0c'!S33 -> 495.307966 | W35: =EXP(5.6985-(0.68367*LN(V35))) -> 4.289648432 | X35: =(+W35*V35)/100 -> 21.2469704 | Y35: ='RCY LG 2018 V5.0c'!X33*100 -> 32.08500135 | Z35: ='RCY LG 2018 V5.0c'!Y33*100 -> 25 | AA35: =Y35+Z35 -> 57.08500135 | AB35: =100*($E$15*$E$17+($E$16*(AA35/100))/(1-$E$19)) -> 30.18544317 | AC35: ='RCY LG 2018 V5.0c'!AE33 -> 0.06091242008 | AD35: =ROUND($E$6/(1-AC35),0) -> 2605703 | AE35: =IF(OR(OR(AD35=AD29,AD35=(AD29+1)),AD35=(AD29-1)),"yes","not yet") -> not yet | AF35: =100*(1-AC35) -> 93.90875799 | AJ35: =HLOOKUP(1,$AJ$11:$AR$15,$E$10+1) -> not yet | AK35: =HLOOKUP(2,$AJ$11:$AR$15,$E$10+1) -> not yet | AL35: =HLOOKUP(3,$AJ$11:$AR$15,$E$10+1) -> not yet | AM35: =HLOOKUP(4,$AJ$11:$AR$15,$E$10+1) -> not yet | AN35: =HLOOKUP(5,$AJ$11:$AR$15,$E$10+1) -> not yet | AO35: =HLOOKUP(6,$AJ$11:$AR$15,$E$10+1) -> not yet | AP35: =HLOOKUP(7,$AJ$11:$AR$15,$E$10+1) -> yes | AQ35: =HLOOKUP(8,$AJ$11:$AR$15,$E$10+1) -> 0 | AR35: =HLOOKUP(9,$AJ$11:$AR$15,$E$10+1) -> 0
V36: ='RCY LG 2018 V5.0c'!S34 -> 495.1776017 | W36: =EXP(5.6922-(0.68367*LN(V36))) -> 4.263475802 | X36: =(+W36*V36)/100 -> 21.11177723 | Y36: ='RCY LG 2018 V5.0c'!X34*100 -> 31.8256191 | Z36: ='RCY LG 2018 V5.0c'!Y34*100 -> 25 | AA36: =Y36+Z36 -> 56.8256191 | AB36: =100*($E$15*$E$17+($E$16*(AA36/100))/(1-$E$19)) -> 30.05749791 | AC36: ='RCY LG 2018 V5.0c'!AE34 -> 0.06067022212 | AD36: =ROUND($E$6/(1-AC36),0) -> 2605031 | AE36: =IF(OR(OR(AD36=AD30,AD36=(AD30+1)),AD36=(AD30-1)),"yes","not yet") -> not yet | AF36: =100*(1-AC36) -> 93.93297779 | AI36: 1 | AJ36: =AD3 -> 2652771.306 | AK36: =AD9 -> 2605995.469 | AL36: =AD15 -> 2608436.17 | AM36: =AD21 -> 2608306.698 | AN36: =AD27 -> 2608313.561 | AO36: =AD33 -> 2608313 | AP36: =AD39 -> 2608313 | AQ36: =AD45 -> 0 | AR36: =AD51 -> 0
AI37: 2 | AJ37: =AD4 -> 2652771.306 | AK37: =AD10 -> 2604375.645 | AL37: =AD16 -> 2606878.291 | AM37: =AD22 -> 2606746.643 | AN37: =AD28 -> 2606753.562 | AO37: =AD34 -> 2606753 | AP37: =AD40 -> 2606753 | AQ37: =AD46 -> 0 | AR37: =AD52 -> 0
V38: 7th turnover | W38: M | X38: ROR | Y38: ROE | AI38: 3 | AJ38: =AD5 -> 2652771.306 | AK38: =AD11 -> 2603285.638 | AL38: =AD17 -> 2605829.119 | AM38: =AD23 -> 2605696.082 | AN38: =AD29 -> 2605703.034 | AO38: =AD35 -> 2605703 | AP38: =AD41 -> 2605703 | AQ38: =AD47 -> 0 | AR38: =AD53 -> 0
V39: ='RCY LG 2018 V5.0c'!S36 -> 495.8144304 | W39: =EXP(5.7226-(0.68367*LN(+V39))) -> 4.391215496 | X39: =(+W39*V39)/100 -> 21.7722801 | Y39: ='RCY LG 2018 V5.0c'!X36*100 -> 33.09286298 | Z39: ='RCY LG 2018 V5.0c'!Y36*100 -> 25 | AA39: =Y39+Z39 -> 58.09286298 | AB39: =100*($E$15*$E$17+($E$16*(AA39/100))/(1-$E$19)) -> 30.68259021 | AC39: ='RCY LG 2018 V5.0c'!AE36 -> 0.0618523114 | AD39: =ROUND($E$6/(1-AC39),0) -> 2608313 | AE39: =IF(OR(OR(AD39=AD33,AD39=(AD33+1)),AD39=(AD25-1)),"yes","not yet") -> yes | AF39: =100*(1-AC39) -> 93.81476886 | AI39: 4 | AJ39: =AD6 -> 2652771.306 | AK39: =AD12 -> 2602588.873 | AL39: =AD18 -> 2605158.097 | AM39: =AD24 -> 2605024.205 | AN39: =AD30 -> 2605031.176 | AO39: =AD36 -> 2605031 | AP39: =AD42 -> 2605031 | AQ39: =AD48 -> 0 | AR39: =AD54 -> 0
V40: ='RCY LG 2018 V5.0c'!S37 -> 495.5117352 | W40: =EXP(5.70827-(0.68367*LN(+V40))) -> 4.33054576 | X40: =(+W40*V40)/100 -> 21.45836244 | Y40: ='RCY LG 2018 V5.0c'!X37*100 -> 32.4905791 | Z40: ='RCY LG 2018 V5.0c'!Y37*100 -> 25 | AA40: =Y40+Z40 -> 57.4905791 | AB40: =100*($E$15*$E$17+($E$16*(AA40/100))/(1-$E$19)) -> 30.38550216 | AC40: ='RCY LG 2018 V5.0c'!AE37 -> 0.06129088149 | AD40: =ROUND($E$6/(1-AC40),0) -> 2606753 | AE40: =IF(OR(OR(AD40=AD34,AD40=(AD34+1)),AD40=(AD34-1)),"yes","not yet") -> yes | AF40: =100*(1-AC40) -> 93.87091185
V41: ='RCY LG 2018 V5.0c'!S38 -> 495.3078955 | W41: =EXP(5.6985-(0.68367*LN(V41))) -> 4.289648849 | X41: =(+W41*V41)/100 -> 21.24696944 | Y41: ='RCY LG 2018 V5.0c'!X38*100 -> 32.08499951 | Z41: ='RCY LG 2018 V5.0c'!Y38*100 -> 25 | AA41: =Y41+Z41 -> 57.08499951 | AB41: =100*($E$15*$E$17+($E$16*(AA41/100))/(1-$E$19)) -> 30.18544227 | AC41: ='RCY LG 2018 V5.0c'!AE38 -> 0.06091242692 | AD41: =ROUND($E$6/(1-AC41),0) -> 2605703 | AE41: =IF(OR(OR(AD41=AD35,AD41=(AD35+1)),AD41=(AD35-1)),"yes","not yet") -> yes | AF41: =100*(1-AC41) -> 93.90875731 | AJ41: yes
V42: ='RCY LG 2018 V5.0c'!S39 -> 495.1775313 | W42: =EXP(5.6922-(0.68367*LN(V42))) -> 4.263476216 | X42: =(+W42*V42)/100 -> 21.11177628 | Y42: ='RCY LG 2018 V5.0c'!X39*100 -> 31.82561728 | Z42: ='RCY LG 2018 V5.0c'!Y39*100 -> 25 | AA42: =Y42+Z42 -> 56.82561728 | AB42: =100*($E$15*$E$17+($E$16*(AA42/100))/(1-$E$19)) -> 30.05749702 | AC42: ='RCY LG 2018 V5.0c'!AE39 -> 0.06067022894 | AD42: =ROUND($E$6/(1-AC42),0) -> 2605031 | AE42: =IF(OR(OR(AD42=AD36,AD42=(AD36+1)),AD42=(AD36-1)),"yes","not yet") -> yes | AF42: =100*(1-AC42) -> 93.93297711 | AJ42: =HLOOKUP($AJ$32,$AJ$35:$AR$39,$E$10+1) -> 2605703

Sheet YW LG 2018 V5.0c
B2: Public Companies | F2: Public Co | I2: LURITO - GALLAGHER FORMULA MODEL 2018 V5.0a | M2: Public Co | R2: CALCULATION TABLES | AH2: Revenue Senstive Taxes (RevS)
K3: (b) + (c) | M3: (d) + (e) | T3: Regession | V3: Regession | W3: Regession | X3: Regession | Z3: Adjusted | AA3: Hauler | AB3: Hauler | AC3: Hauler | AD3: Hauler | AE3: Hauler | AF3: Hauler | AG3: Revenue Req | AH3: Revenue | AI3: Revenue
B4: INPUTS - Test Year | H4: (a) | I4: (b) | J4: (c) | K4: (d) | L4: (e) | M4: (f) | T4: Before Tax | V4: Less | W4: Adjusted | X4: After Tax | Y4: Flotation Costs | Z4: After Tax | AA4: Weighted Cost | AB4: Weighted Cost | AC4: Weighted Cost | AD4: Adjusted | AE4: Before Tax | AF4: Before Tax | AG4: Before RevS | AH4: Increase Before | AI4: Increase After | AJ4: RevS | AK4: Total
B5: Operating Revenue | C5: 1124932.34 | F5: Line | I5: Historical | J5: Revenue | K5: Proforma | L5: Add: Revenue | M5: Revenue | T5: Profit Ratio | U5: BTROI | V5: WCDebt | W5: BTROE | X5: ROE | Y5: Basis Points | Z5: ROE | AA5: Equity | AB5: Equity BFT | AC5: Debt | AD5: BTROR | AE5: Profit Ratio | AF5: Operating Ratio | AG5: Taxes | AH5: RevS Taxes | AI5: RevS Taxes | AJ5: Taxes | AK5: Revenue Req
B6: Operating Expenses | C6: 1018698.818 | F6: No. | J6: Change | L6: Sensitive Taxes | M6: Requirement | R6: 1 | S6: =Revenue/Investment*100 -> 486.4565377 | T6: =EXP(y_inter1-(slope*LN(+S6))) -> 4.448793016 | U6: =(+S6*T6/100)/100 -> 0.2164144447 | V6: =regDebt_weighted -> 0.03586 | W6: =+U6-V6 -> 0.1805544447 | X6: =+((W6*(1-0.34))-Pfd_weighted)/Equity_percent -> 0.3284184114 | Y6: =+C15 -> 0.25 | Z6: =+X6+Y6 -> 0.5784184114 | AA6: =Z6*equityP -> 0.2845818584 | AB6: =+AA6/(1-taxrate) -> 0.2851521628 | AC6: =debtP*Debt_Rate -> 0.02028302025 | AD6: =AC6+AB6 -> 0.305435183 | AE6: =AD6/(S6/100) -> 0.06278776403 | AF6: =1-AE6 -> 0.937212236 | AG6: =expenses/(AF6) -> 1086945.708 | AH6: =+AG6-Revenue -> -37986.63181 | AI6: =+AH6/$J$49 -> -41678.53598 | AJ6: =+AI6*$J$47 -> -1053.424997 | AK6: =ROUND(+AJ6+AG6,5) -> 1085892.283
B7: Investment | C7: 231250.3282 | F7: 1 | H7: Operating Revenue | I7: =IF(A64=TRUE,C5,0) -> 1124932.34 | J7: =(+$I8/($R50))-I7 -> -37456.08682 | K7: =+I7+J7 -> 1087476.253 | L7: =((+J7/J49*K35)-J7) -> -1038.712206 | M7: =IFERROR(+K7+L7,0.00001) -> 1086437.541 | R7: 2 | S7: =Revenue/Investment*100 -> 486.4565377 | T7: =EXP(y_inter1-(slope*LN(+S7))) -> 4.448793016 | U7: =(+S7*T7/100)/100 -> 0.2164144447 | V7: =regDebt_weighted -> 0.03586 | W7: =+U7-V7 -> 0.1805544447 | X7: =+((W7*(1-0.34))-Pfd_weighted)/Equity_percent -> 0.3284184114 | Y7: =+Y6 -> 0.25 | Z7: =+X7+Y7 -> 0.5784184114 | AA7: =Z7*equityP -> 0.2845818584 | AB7: =+AA7/(1-taxrate) -> 0.2851521628 | AC7: =debtP*Debt_Rate -> 0.02028302025 | AD7: =AC7+AB7 -> 0.305435183 | AE7: =AD7/(S7/100) -> 0.06278776403 | AF7: =1-AE7 -> 0.937212236 | AG7: =expenses/(AF7) -> 1086945.708 | AH7: =+AG7-Revenue -> -37986.63181 | AI7: =+AH7/$J$49 -> -41678.53598 | AJ7: =+AI7*$J$47 -> -1053.424997 | AK7: =ROUND(+AJ7+AG7,5) -> 1085892.283
B8: Capital Structure-Debt % | C8: 0.508 | F8: =+F7+1 -> 2 | H8: Operating Expenses | I8: =IF(A64=TRUE,C6,0) -> 1018698.818 | K8: =+I8 -> 1018698.818 | L8: =+L7 -> -1038.712206 | M8: =IFERROR(+K8+L8,0.00001) -> 1017660.105 | R8: 3 | S8: =Revenue/Investment*100 -> 486.4565377 | T8: =EXP(y_inter1-(slope*LN(+S8))) -> 4.448793016 | U8: 0.2164144447 | V8: =regDebt_weighted -> 0.03586 | W8: 0.1805544447 | X8: =+((W8*(1-0.34))-Pfd_weighted)/Equity_percent -> 0.3284184114 | Y8: =+Y7 -> 0.25 | Z8: =+X8+Y8 -> 0.5784184114 | AA8: =Z8*equityP -> 0.2845818584 | AB8: =+AA8/(1-taxrate) -> 0.2851521628 | AC8: =debtP*Debt_Rate -> 0.02028302025 | AD8: 0.305435183 | AE8: 0.06278776403 | AF8: 0.937212236 | AG8: =expenses/(AF8) -> 1086945.708 | AH8: =+AG8-Revenue -> -37986.63181 | AI8: =+AH8/$J$49 -> -41678.53598 | AJ8: =+AI8*$J$47 -> -1053.424997 | AK8: 1085892.283
B9: Capital Structure-Debt Rate | C9: 0.03992720522 | F9: =+F8+1 -> 3 | H9: Operating Income | I9: =+I7-I8 -> 106233.5224 | K9: =+K7-K8 -> 68777.43563 | M9: =+M7-M8 -> 68777.43563 | R9: 4 | S9: =Revenue/Investment*100 -> 486.4565377 | T9: =EXP(y_inter1-(slope*LN(+S9))) -> 4.448793016 | U9: 0.2164144447 | V9: =regDebt_weighted -> 0.03586 | W9: 0.1805544447 | X9: =+((W9*(1-0.34))-Pfd_weighted)/Equity_percent -> 0.3284184114 | Y9: =+Y8 -> 0.25 | Z9: 0.5784184114 | AA9: =Z9*equityP -> 0.2845818584 | AB9: =+AA9/(1-taxrate) -> 0.2851521628 | AC9: =debtP*Debt_Rate -> 0.02028302025 | AD9: 0.305435183 | AE9: 0.06278776403 | AF9: 0.937212236 | AG9: =expenses/(AF9) -> 1086945.708 | AH9: =+AG9-Revenue -> -37986.63181 | AI9: =+AH9/$J$49 -> -41678.53598 | AJ9: =+AI9*$J$47 -> -1053.424997 | AK9: 1085892.283
B10: Federal Income Tax Rate | C10: 0.002 | F10: 4 | R10: 2nd Iteration
B11: B&O Tax Rate | C11: 0.015 | F11: 5 | H11: Interest Expense | I11: =+K11 -> 4690.45509 | K11: =+M27 -> 4690.45509 | M11: =+K11 -> 4690.45509 | R11: 1 | S11: =IF((AK6/Investment*100)>0,(AK6/Investment*100),0) -> 469.574375 | T11: =EXP(y_inter1-(slope*LN(S11))) -> 4.557529227 | U11: =(+S11*T11/100)/100 -> 0.2140098938 | V11: =regDebt_weighted -> 0.03586 | W11: =+U11-V11 -> 0.1781498938 | X11: =+((W11*(1-0.34))-Pfd_weighted)/Equity_percent -> 0.3238050288 | Y11: =+Y9 -> 0.25 | Z11: =+X11+Y11 -> 0.5738050288 | AA11: =Z11*equityP -> 0.2823120742 | AB11: =+AA11/(1-taxrate) -> 0.2828778299 | AC11: =debtP*Debt_Rate -> 0.02028302025 | AD11: =+AC11+AB11 -> 0.3031608501 | AE11: =+AD11/(S11/100) -> 0.06456077381 | AF11: =1-AE11 -> 0.9354392262 | AG11: =expenses/(AF11) -> 1089005.88 | AH11: =+AG11-Revenue -> -35926.46016 | AI11: =+AH11/$J$49 -> -39418.13714 | AJ11: =+AI11*$J$47 -> -996.2934163 | AK11: =ROUND(+AJ11+AG11,5) -> 1088009.586
B12: WUTC Fee | C12: 0.004275 | F12: 6 | H12: Income Tax Expense | I12: =IF(I14<0,0,+J38*I14) -> 202.6807732 | J12: =+K12-I12 -> -74.50681209 | K12: =+(K9-K11)*taxrate -> 128.1739611 | M12: =+K12 -> 128.1739611 | R12: 2 | S12: =IF((AK7/Investment*100)>0,(AK7/Investment*100),0) -> 469.574375 | T12: =EXP(y_inter2-(slope*LN(+S12))) -> 4.492685548 | U12: =(+S12*T12/100)/100 -> 0.2109650008 | V12: =regDebt_weighted -> 0.03586 | W12: =+U12-V12 -> 0.1751050008 | X12: =+((W12*(1-0.34))-Pfd_weighted)/Equity_percent -> 0.3179630829 | Y12: =+Y11 -> 0.25 | Z12: =+X12+Y12 -> 0.5679630829 | AA12: =Z12*equityP -> 0.2794378368 | AB12: =+AA12/(1-taxrate) -> 0.2799978325 | AC12: =debtP*Debt_Rate -> 0.02028302025 | AD12: =+AC12+AB12 -> 0.3002808527 | AE12: =+AD12/(S12/100) -> 0.063947453 | AF12: =1-AE12 -> 0.936052547 | AG12: =expenses/(AF12) -> 1088292.341 | AH12: =+AG12-Revenue -> -36639.99913 | AI12: =+AH12/$J$49 -> -40201.02466 | AJ12: =+AI12*$J$47 -> -1016.080898 | AK12: =ROUND(+AJ12+AG12,5) -> 1087276.26
B13: City Tax | C13: 0 | F13: 7 | R13: 3 | S13: =IF((AK8/Investment*100)>0,(AK8/Investment*100),0) -> 469.574375 | T13: =EXP(y_inter3-(slope*LN(S13))) -> 4.449005734 | U13: =(+S13*T13/100)/100 -> 0.2089139086 | V13: =regDebt_weighted -> 0.03586 | W13: =+U13-V13 -> 0.1730539086 | X13: =+((W13*(1-0.34))-Pfd_weighted)/Equity_percent -> 0.314027848 | Y13: =+Y12 -> 0.25 | Z13: =+X13+Y13 -> 0.564027848 | AA13: =Z13*equityP -> 0.2775017012 | AB13: =+AA13/(1-taxrate) -> 0.2780578168 | AC13: =debtP*Debt_Rate -> 0.02028302025 | AD13: =+AC13+AB13 -> 0.2983408371 | AE13: =+AD13/(S13/100) -> 0.06353430958 | AF13: =1-AE13 -> 0.9364656904 | AG13: =expenses/(AF13) -> 1087812.216 | AH13: =+AG13-Revenue -> -37120.12437 | AI13: =+AH13/$J$49 -> -40727.81307 | AJ13: =+AI13*$J$47 -> -1029.395475 | AK13: 1086782.82
B14: Bad Debts | C14: 0.006 | F14: 8 | H14: Net Income | I14: =+I9-SUM(I11:I13) -> 101340.3866 | K14: =+K9-SUM(K11:K13) -> 63958.80658 | M14: =+M9-SUM(M11:M13) -> 63958.80658 | R14: 4 | S14: =IF((AK9/Investment*100)>0,(AK9/Investment*100),0) -> 469.574375 | T14: =EXP(y_inter4-(slope*LN(S14))) -> 4.421065103 | U14: =(+S14*T14/100)/100 -> 0.2076018882 | V14: =regDebt_weighted -> 0.03586 | W14: =+U14-V14 -> 0.1717418882 | X14: =+((W14*(1-0.34))-Pfd_weighted)/Equity_percent -> 0.3115105995 | Y14: =+Y13 -> 0.25 | Z14: 0.5615105995 | AA14: =Z14*equityP -> 0.276263215 | AB14: =+AA14/(1-taxrate) -> 0.2768168487 | AC14: =debtP*Debt_Rate -> 0.02028302025 | AD14: =+AC14+AB14 -> 0.2970998689 | AE14: =+AD14/(S14/100) -> 0.06327003447 | AF14: =1-AE14 -> 0.9367299655 | AG14: =expenses/(AF14) -> 1087505.316 | AH14: =+AG14-Revenue -> -37427.02359 | AI14: =+AH14/$J$49 -> -41064.53968 | AJ14: =+AI14*$J$47 -> -1037.90624 | AK14: 1086467.41
B15: Basis Points - Flotation | C15: 0.25 | F15: 9 | R15: 3rd Iteration
D16: Yes | F16: 10 | H16: Operating Ratio | I16: =+I8/I7 -> 0.9055645227 | K16: =+K8/K7 -> 0.936755 | M16: =+M8/M7 -> 0.9366945332 | R16: 1 | S16: =AK11/Investment*100 -> 470.4899642 | T16: =EXP(y_inter1-(slope*LN(+S16))) -> 4.551463818 | U16: =(+S16*T16/100)/100 -> 0.2141418049 | V16: =regDebt_weighted -> 0.03586 | W16: =+U16-V16 -> 0.1782818049 | X16: =+((W16*(1-0.34))-Pfd_weighted)/Equity_percent -> 0.3240581141 | Y16: =+Y14 -> 0.25 | Z16: =+X16+Y16 -> 0.5740581141 | AA16: =Z16*equityP -> 0.2824365921 | AB16: =+AA16/(1-taxrate) -> 0.2830025973 | AC16: =debtP*Debt_Rate -> 0.02028302025 | AD16: =+AC16+AB16 -> 0.3032856176 | AE16: =+AD16/(S16/100) -> 0.064461655 | AF16: =1-AE16 -> 0.935538345 | AG16: =expenses/(AF16) -> 1088890.501 | AH16: =+AG16-Revenue -> -36041.83861 | AI16: =+AH16/$J$49 -> -39544.72918 | AJ16: =+AI16*$J$47 -> -999.4930301 | AK16: =ROUND(+AJ16+AG16,5) -> 1087891.008
B17: Check when input is complete | D17: No | F17: 11 | R17: 2 | S17: =AK12/Investment*100 -> 470.1728505 | T17: =EXP(y_inter2-(slope*LN(+S17))) -> 4.488775078 | U17: =(+S17*T17/100)/100 -> 0.2110500174 | V17: =regDebt_weighted -> 0.03586 | W17: =+U17-V17 -> 0.1751900174 | X17: =+((W17*(1-0.34))-Pfd_weighted)/Equity_percent -> 0.3181261962 | Y17: =+Y16 -> 0.25 | Z17: =+X17+Y17 -> 0.5681261962 | AA17: =Z17*equityP -> 0.2795180885 | AB17: =+AA17/(1-taxrate) -> 0.280078245 | AC17: =debtP*Debt_Rate -> 0.02028302025 | AD17: =+AC17+AB17 -> 0.3003612653 | AE17: =+AD17/(S17/100) -> 0.06388315806 | AF17: =1-AE17 -> 0.9361168419 | AG17: =expenses/(AF17) -> 1088217.594 | AH17: =+AG17-Revenue -> -36714.74588 | AI17: =+AH17/$J$49 -> -40283.03601 | AJ17: =+AI17*$J$47 -> -1018.153735 | AK17: =ROUND(+AJ17+AG17,5) -> 1087199.44
F18: 12 | H18: Revenue Requirement | R18: 3 | S18: =AK13/Investment*100 -> 469.9594715 | T18: =EXP(y_inter3-(slope*LN(S18))) -> 4.446513005 | U18: =(+S18*T18/100)/100 -> 0.2089680902 | V18: =regDebt_weighted -> 0.03586 | W18: =+U18-V18 -> 0.1731080902 | X18: =+((W18*(1-0.34))-Pfd_weighted)/Equity_percent -> 0.3141318009 | Y18: =+Y17 -> 0.25 | Z18: =+X18+Y18 -> 0.5641318009 | AA18: =Z18*equityP -> 0.2775528461 | AB18: =+AA18/(1-taxrate) -> 0.2781090642 | AC18: =debtP*Debt_Rate -> 0.02028302025 | AD18: =+AC18+AB18 -> 0.2983920844 | AE18: =+AD18/(S18/100) -> 0.06349315261 | AF18: =1-AE18 -> 0.9365068474 | AG18: =expenses/(AF18) -> 1087764.409 | AH18: =+AG18-Revenue -> -37167.93081 | AI18: =+AH18/$J$49 -> -40780.26579 | AJ18: =+AI18*$J$47 -> -1030.721218 | AK18: 1086733.688
B19: For Intial input: Uncheck Checkbox Until Completed | F19: 13 | I19: Historical Revenue | J19: =+Revenue -> 1124932.34 | L19: Revenue Increase before taxes | M19: =+J7 -> -37456.08682 | R19: 4 | S19: =AK14/Investment*100 -> 469.8230782 | T19: =EXP(y_inter4-(slope*LN(S19))) -> 4.419464967 | U19: =(+S19*T19/100)/100 -> 0.2076366635 | V19: =regDebt_weighted -> 0.03586 | W19: =+U19-V19 -> 0.1717766635 | X19: =+((W19*(1-0.34))-Pfd_weighted)/Equity_percent -> 0.3115773194 | Y19: =+Y18 -> 0.25 | Z19: 0.5615773194 | AA19: =Z19*equityP -> 0.2762960412 | AB19: =+AA19/(1-taxrate) -> 0.2768497406 | AC19: =debtP*Debt_Rate -> 0.02028302025 | AD19: =+AC19+AB19 -> 0.2971327609 | AE19: =+AD19/(S19/100) -> 0.06324354309 | AF19: =1-AE19 -> 0.9367564569 | AG19: =expenses/(AF19) -> 1087474.562 | AH19: =+AG19-Revenue -> -37457.77813 | AI19: =+AH19/$J$49 -> -41098.28325 | AJ19: =+AI19*$J$47 -> -1038.759109 | AK19: 1086435.803
F20: 14 | I20: Rate Increase | J20: =+J21-J19 -> -38494.79902 | L20: Rev Sensitive Taxes | M20: =+L8 -> -1038.712206 | R20: 4th Iteration
F21: 15 | I21: Revenue Requirement | J21: =+M7 -> 1086437.541 | L21: Rate Increase | M21: =+M19+M20 -> -38494.79902 | R21: 1 | S21: =AK16/Investment*100 -> 470.4386873 | T21: =EXP(y_inter1-(slope*LN(+S21))) -> 4.551802982 | U21: =(+S21*T21/100)/100 -> 0.214134422 | V21: =regDebt_weighted -> 0.03586 | W21: =+U21-V21 -> 0.178274422 | X21: =+((W21*(1-0.34))-Pfd_weighted)/Equity_percent -> 0.3240439491 | Y21: =+Y19 -> 0.25 | Z21: =+X21+Y21 -> 0.5740439491 | AA21: =Z21*equityP -> 0.282429623 | AB21: =+AA21/(1-taxrate) -> 0.2829956142 | AC21: =debtP*Debt_Rate -> 0.02028302025 | AD21: =+AC21+AB21 -> 0.3032786344 | AE21: =+AD21/(S21/100) -> 0.06446719682 | AF21: =1-AE21 -> 0.9355328032 | AG21: =expenses/(AF21) -> 1088896.952 | AH21: =+AG21-Revenue -> -36035.38836 | AI21: =+AH21/$J$49 -> -39537.65203 | AJ21: =+AI21*$J$47 -> -999.314155 | AK21: =ROUND(+AJ21+AG21,5) -> 1087897.637
F22: 16 | R22: 2 | S22: =AK17/Investment*100 -> 470.1396313 | T22: =EXP(y_inter2-(slope*LN(+S22))) -> 4.488991915 | U22: =(+S22*T22/100)/100 -> 0.2110453004 | V22: =regDebt_weighted -> 0.03586 | W22: =+U22-V22 -> 0.1751853004 | X22: =+((W22*(1-0.34))-Pfd_weighted)/Equity_percent -> 0.3181171461 | Y22: =+Y21 -> 0.25 | Z22: =+X22+Y22 -> 0.5681171461 | AA22: =Z22*equityP -> 0.2795136359 | AB22: =+AA22/(1-taxrate) -> 0.2800737834 | AC22: =debtP*Debt_Rate -> 0.02028302025 | AD22: =+AC22+AB22 -> 0.3003568037 | AE22: =+AD22/(S22/100) -> 0.06388672294 | AF22: =1-AE22 -> 0.9361132771 | AG22: =expenses/(AF22) -> 1088221.738 | AH22: =+AG22-Revenue -> -36710.60176 | AI22: =+AH22/$J$49 -> -40278.48913 | AJ22: =+AI22*$J$47 -> -1018.038813 | AK22: =ROUND(+AJ22+AG22,5) -> 1087203.699
B23: 2018 Version Update Changes | F23: 17 | R23: 3 | S23: =AK18/Investment*100 -> 469.9382252 | T23: =EXP(y_inter3-(slope*LN(S23))) -> 4.446650443 | U23: =(+S23*T23/100)/100 -> 0.2089651017 | V23: =regDebt_weighted -> 0.03586 | W23: =+U23-V23 -> 0.1731051017 | X23: =+((W23*(1-0.34))-Pfd_weighted)/Equity_percent -> 0.3141260672 | Y23: =+Y22 -> 0.25 | Z23: =+X23+Y23 -> 0.5641260672 | AA23: =Z23*equityP -> 0.2775500251 | AB23: =+AA23/(1-taxrate) -> 0.2781062375 | AC23: =debtP*Debt_Rate -> 0.02028302025 | AD23: =+AC23+AB23 -> 0.2983892578 | AE23: =+AD23/(S23/100) -> 0.0634954217 | AF23: =1-AE23 -> 0.9365045783 | AG23: =expenses/(AF23) -> 1087767.045 | AH23: =+AG23-Revenue -> -37165.29523 | AI23: =+AH23/$J$49 -> -40777.37406 | AJ23: =+AI23*$J$47 -> -1030.648129 | AK23: 1086736.397
B24: ● Allows Income Tax Rate Changes, | F24: 18 | H24: Captial Structure Financing Investment | K24: Financing Cost | R24: 4 | S24: =AK19/Investment*100 -> 469.8094101 | T24: =EXP(y_inter4-(slope*LN(S24))) -> 4.419552869 | U24: =(+S24*T24/100)/100 -> 0.2076347526 | V24: =regDebt_weighted -> 0.03586 | W24: =+U24-V24 -> 0.1717747526 | X24: =+((W24*(1-0.34))-Pfd_weighted)/Equity_percent -> 0.3115736533 | Y24: =+Y23 -> 0.25 | Z24: 0.5615736533 | AA24: =Z24*equityP -> 0.2762942374 | AB24: =+AA24/(1-taxrate) -> 0.2768479333 | AC24: =debtP*Debt_Rate -> 0.02028302025 | AD24: =+AC24+AB24 -> 0.2971309535 | AE24: =+AD24/(S24/100) -> 0.06324499832 | AF24: =1-AE24 -> 0.9367550017 | AG24: =expenses/(AF24) -> 1087476.251 | AH24: =+AG24-Revenue -> -37456.08876 | AI24: =+AH24/$J$49 -> -41096.42968 | AJ24: =+AI24*$J$47 -> -1038.71226 | AK24: 1086437.539
B25: ● Minimizes impact of changes in test-year revenue from | F25: 19 | H25: Type | I25: Percent | J25: Amount | K25: Cost of Capital | L25: Weighted | M25: Amount | R25: 5th Iteration
B26: resulting revenue requirment, | F26: 20 | H26: Equity | I26: =1-I27 -> 0.492 | J26: =+I26*J28 -> 113775.1615 | K26: =+K34 -> 0.5621508751 | L26: =+K26*I26 -> 0.2765782305 | M26: =+J26*K26 -> 63958.80658 | R26: 1 | S26: =AK21/Investment*100 -> 470.441554 | T26: =EXP(y_inter1-(slope*LN(+S26))) -> 4.551784019 | U26: =(+S26*T26/100)/100 -> 0.2141348347 | V26: =regDebt_weighted -> 0.03586 | W26: =+U26-V26 -> 0.1782748347 | X26: =+((W26*(1-0.34))-Pfd_weighted)/Equity_percent -> 0.324044741 | Y26: =+Y24 -> 0.25 | Z26: =+X26+Y26 -> 0.574044741 | AA26: =Z26*equityP -> 0.2824300126 | AB26: =+AA26/(1-taxrate) -> 0.2829960046 | AC26: =debtP*Debt_Rate -> 0.02028302025 | AD26: =+AC26+AB26 -> 0.3032790249 | AE26: =+AD26/(S26/100) -> 0.06446688697 | AF26: =1-AE26 -> 0.935533113 | AG26: =expenses/(AF26) -> 1088896.591 | AH26: =+AG26-Revenue -> -36035.74899 | AI26: =+AH26/$J$49 -> -39538.04772 | AJ26: =+AI26*$J$47 -> -999.324156 | AK26: =ROUND(+AJ26+AG26,5) -> 1087897.267
B27: ● Corrects interest rate transposition in LG. | F27: 21 | H27: Debt | I27: =IF(A64=TRUE,C8,0) -> 0.508 | J27: =+I27*J28 -> 117475.1667 | K27: =IF(A64=TRUE,C9,0) -> 0.03992720522 | L27: =+K27*I27 -> 0.02028302025 | M27: =+K27*J27 -> 4690.45509 | R27: 2 | S27: =AK22/Investment*100 -> 470.1414731 | T27: =EXP(y_inter2-(slope*LN(+S27))) -> 4.488979892 | U27: =(+S27*T27/100)/100 -> 0.2110455619 | V27: =regDebt_weighted -> 0.03586 | W27: =+U27-V27 -> 0.1751855619 | X27: =+((W27*(1-0.34))-Pfd_weighted)/Equity_percent -> 0.3181176478 | Y27: =+Y26 -> 0.25 | Z27: =+X27+Y27 -> 0.5681176478 | AA27: =Z27*equityP -> 0.2795138827 | AB27: =+AA27/(1-taxrate) -> 0.2800740308 | AC27: =debtP*Debt_Rate -> 0.02028302025 | AD27: =+AC27+AB27 -> 0.3003570511 | AE27: =+AD27/(S27/100) -> 0.06388652528 | AF27: =1-AE27 -> 0.9361134747 | AG27: =expenses/(AF27) -> 1088221.508 | AH27: =+AG27-Revenue -> -36710.83153 | AI27: =+AH27/$J$49 -> -40278.74123 | AJ27: =+AI27*$J$47 -> -1018.045185 | AK27: =ROUND(+AJ27+AG27,5) -> 1087203.463
F28: 22 | H28: Total | I28: =SUM(I26:I27) -> 1 | J28: =IF(A64=TRUE,C7,0) -> 231250.3282 | L28: =SUM(L26:L27) -> 0.2968612508 | M28: =SUM(M26:M27) -> 68649.26167 | R28: 3 | S28: =AK23/Investment*100 -> 469.9393965 | T28: =EXP(y_inter3-(slope*LN(S28))) -> 4.446642866 | U28: =(+S28*T28/100)/100 -> 0.2089652665 | V28: =regDebt_weighted -> 0.03586 | W28: =+U28-V28 -> 0.1731052665 | X28: =+((W28*(1-0.34))-Pfd_weighted)/Equity_percent -> 0.3141263833 | Y28: =+Y27 -> 0.25 | Z28: =+X28+Y28 -> 0.5641263833 | AA28: =Z28*equityP -> 0.2775501806 | AB28: =+AA28/(1-taxrate) -> 0.2781063934 | AC28: =debtP*Debt_Rate -> 0.02028302025 | AD28: =+AC28+AB28 -> 0.2983894136 | AE28: =+AD28/(S28/100) -> 0.0634952966 | AF28: =1-AE28 -> 0.9365047034 | AG28: =expenses/(AF28) -> 1087766.899 | AH28: =+AG28-Revenue -> -37165.44054 | AI28: =+AH28/$J$49 -> -40777.53348 | AJ28: =+AI28*$J$47 -> -1030.652159 | AK28: 1086736.247
F29: 23 | R29: 4 | S29: =AK24/Investment*100 -> 469.8101609 | T29: =EXP(y_inter4-(slope*LN(S29))) -> 4.41954804 | U29: =(+S29*T29/100)/100 -> 0.2076348576 | V29: =regDebt_weighted -> 0.03586 | W29: =+U29-V29 -> 0.1717748576 | X29: =+((W29*(1-0.34))-Pfd_weighted)/Equity_percent -> 0.3115738547 | Y29: =+Y28 -> 0.25 | Z29: 0.5615738547 | AA29: =Z29*equityP -> 0.2762943365 | AB29: =+AA29/(1-taxrate) -> 0.2768480326 | AC29: =debtP*Debt_Rate -> 0.02028302025 | AD29: =+AC29+AB29 -> 0.2971310528 | AE29: =+AD29/(S29/100) -> 0.06324491839 | AF29: =1-AE29 -> 0.9367550816 | AG29: =expenses/(AF29) -> 1087476.158 | AH29: =+AG29-Revenue -> -37456.18156 | AI29: =+AH29/$J$49 -> -41096.53151 | AJ29: =+AI29*$J$47 -> -1038.714834 | AK29: 1086437.444
F30: 24 | J30: Before | K30: After | R30: 6th Iteration
F31: 25 | H31: Operating Statistics | J31: Income Tax | K31: Income Tax | R31: 1 | S31: =AK26/Investment*100 -> 470.4413937 | T31: =EXP(y_inter1-(slope*LN(+S31))) -> 4.551785079 | U31: =(+S31*T31/100)/100 -> 0.2141348116 | V31: =regDebt_weighted -> 0.03586 | W31: =+U31-V31 -> 0.1782748116 | X31: =+((W31*(1-0.34))-Pfd_weighted)/Equity_percent -> 0.3240446968 | Y31: =+Y29 -> 0.25 | Z31: =+X31+Y31 -> 0.5740446968 | AA31: =Z31*equityP -> 0.2824299908 | AB31: =+AA31/(1-taxrate) -> 0.2829959828 | AC31: =debtP*Debt_Rate -> 0.02028302025 | AD31: =+AC31+AB31 -> 0.303279003 | AE31: =+AD31/(S31/100) -> 0.06446690429 | AF31: =1-AE31 -> 0.9355330957 | AG31: =expenses/(AF31) -> 1088896.611 | AH31: =+AG31-Revenue -> -36035.72883 | AI31: =+AH31/$J$49 -> -39538.02559 | AJ31: =+AI31*$J$47 -> -999.3235968 | AK31: =ROUND(+AJ31+AG31,5) -> 1087897.288
F32: 26 | R32: 2 | S32: =AK27/Investment*100 -> 470.1413709 | T32: =EXP(y_inter2-(slope*LN(+S32))) -> 4.488980559 | U32: =(+S32*T32/100)/100 -> 0.2110455474 | V32: =regDebt_weighted -> 0.03586 | W32: =+U32-V32 -> 0.1751855474 | X32: =+((W32*(1-0.34))-Pfd_weighted)/Equity_percent -> 0.31811762 | Y32: =+Y31 -> 0.25 | Z32: =+X32+Y32 -> 0.56811762 | AA32: =Z32*equityP -> 0.2795138691 | AB32: =+AA32/(1-taxrate) -> 0.2800740171 | AC32: =debtP*Debt_Rate -> 0.02028302025 | AD32: =+AC32+AB32 -> 0.3003570373 | AE32: =+AD32/(S32/100) -> 0.06388653624 | AF32: =1-AE32 -> 0.9361134638 | AG32: =expenses/(AF32) -> 1088221.521 | AH32: =+AG32-Revenue -> -36710.81879 | AI32: =+AH32/$J$49 -> -40278.72725 | AJ32: =+AI32*$J$47 -> -1018.044831 | AK32: =ROUND(+AJ32+AG32,5) -> 1087203.476
F33: 27 | H33: Return on Investment | J33: =+K9/J28 -> 0.2974155158 | K33: =+(M14+M11)/J28 -> 0.2968612508 | R33: 3 | S33: =AK28/Investment*100 -> 469.9393319 | T33: =EXP(y_inter3-(slope*LN(S33))) -> 4.446643283 | U33: =(+S33*T33/100)/100 -> 0.2089652574 | V33: =regDebt_weighted -> 0.03586 | W33: =+U33-V33 -> 0.1731052574 | X33: =+((W33*(1-0.34))-Pfd_weighted)/Equity_percent -> 0.3141263659 | Y33: =+Y32 -> 0.25 | Z33: =+X33+Y33 -> 0.5641263659 | AA33: =Z33*equityP -> 0.277550172 | AB33: =+AA33/(1-taxrate) -> 0.2781063848 | AC33: =debtP*Debt_Rate -> 0.02028302025 | AD33: =+AC33+AB33 -> 0.298389405 | AE33: =+AD33/(S33/100) -> 0.0634953035 | AF33: =1-AE33 -> 0.9365046965 | AG33: =expenses/(AF33) -> 1087766.907 | AH33: =+AG33-Revenue -> -37165.43252 | AI33: =+AH33/$J$49 -> -40777.5247 | AJ33: =+AI33*$J$47 -> -1030.651937 | AK33: 1086736.256
F34: 28 | H34: Return on Equity | J34: =+(M9-M11)/J26 -> 0.5632774299 | K34: =+M14/J26 -> 0.5621508751 | R34: 4 | S34: =AK29/Investment*100 -> 469.8101197 | T34: =EXP(y_inter4-(slope*LN(S34))) -> 4.419548306 | U34: =(+S34*T34/100)/100 -> 0.2076348518 | V34: =regDebt_weighted -> 0.03586 | W34: =+U34-V34 -> 0.1717748518 | X34: =+((W34*(1-0.34))-Pfd_weighted)/Equity_percent -> 0.3115738436 | Y34: =+Y33 -> 0.25 | Z34: 0.5615738436 | AA34: =Z34*equityP -> 0.2762943311 | AB34: =+AA34/(1-taxrate) -> 0.2768480271 | AC34: =debtP*Debt_Rate -> 0.02028302025 | AD34: =+AC34+AB34 -> 0.2971310474 | AE34: =+AD34/(S34/100) -> 0.06324492278 | AF34: =1-AE34 -> 0.9367550772 | AG34: =expenses/(AF34) -> 1087476.164 | AH34: =+AG34-Revenue -> -37456.17646 | AI34: =+AH34/$J$49 -> -41096.52591 | AJ34: =+AI34*$J$47 -> -1038.714692 | AK34: 1086437.449
F35: 29 | H35: Operating Ratio | J35: =+K8/K7 -> 0.936755 | K35: =+M8/M7 -> 0.9366945332 | R35: 7th Iteration
F36: 30 | H36: Profit Margin | J36: =+K9/K7 -> 0.063245 | K36: =+J36 -> 0.063245 | R36: 1 | S36: =AK31/Investment*100 -> 470.4414026 | T36: =EXP(y_inter1-(slope*LN(+S36))) -> 4.55178502 | U36: =(+S36*T36/100)/100 -> 0.2141348129 | V36: =regDebt_weighted -> 0.03586 | W36: =+U36-V36 -> 0.1782748129 | X36: =+((W36*(1-0.34))-Pfd_weighted)/Equity_percent -> 0.3240446992 | Y36: =+Y34 -> 0.25 | Z36: =+X36+Y36 -> 0.5740446992 | AA36: =Z36*equityP -> 0.282429992 | AB36: =+AA36/(1-taxrate) -> 0.282995984 | AC36: =debtP*Debt_Rate -> 0.02028302025 | AD36: =+AC36+AB36 -> 0.3032790042 | AE36: =+AD36/(S36/100) -> 0.06446690333 | AF36: =1-AE36 -> 0.9355330967 | AG36: =expenses/(AF36) -> 1088896.61 | AH36: =+AG36-Revenue -> -36035.72996 | AI36: =+AH36/$J$49 -> -39538.02683 | AJ36: =+AI36*$J$47 -> -999.3236281 | AK36: =ROUND(+AJ36+AG36,5) -> 1087897.286
F37: 31 | H37: Final turnover | J37: =+S39/100 -> 4.698101219 | K37: =+J37 -> 4.698101219 | R37: 2 | S37: =AK32/Investment*100 -> 470.1413766 | T37: =EXP(y_inter2-(slope*LN(+S37))) -> 4.488980522 | U37: =(+S37*T37/100)/100 -> 0.2110455482 | V37: =regDebt_weighted -> 0.03586 | W37: =+U37-V37 -> 0.1751855482 | X37: =+((W37*(1-0.34))-Pfd_weighted)/Equity_percent -> 0.3181176216 | Y37: =+Y36 -> 0.25 | Z37: =+X37+Y37 -> 0.5681176216 | AA37: =Z37*equityP -> 0.2795138698 | AB37: =+AA37/(1-taxrate) -> 0.2800740178 | AC37: =debtP*Debt_Rate -> 0.02028302025 | AD37: =+AC37+AB37 -> 0.3003570381 | AE37: =+AD37/(S37/100) -> 0.06388653564 | AF37: =1-AE37 -> 0.9361134644 | AG37: =expenses/(AF37) -> 1088221.52 | AH37: =+AG37-Revenue -> -36710.8195 | AI37: =+AH37/$J$49 -> -40278.72803 | AJ37: =+AI37*$J$47 -> -1018.044851 | AK37: =ROUND(+AJ37+AG37,5) -> 1087203.476
F38: 32 | H38: Tax Rate | J38: =+C10 -> 0.002 | K38: =+J38 -> 0.002 | R38: 3 | S38: =AK33/Investment*100 -> 469.9393355 | T38: =EXP(y_inter3-(slope*LN(S38))) -> 4.44664326 | U38: =(+S38*T38/100)/100 -> 0.2089652579 | V38: =regDebt_weighted -> 0.03586 | W38: =+U38-V38 -> 0.1731052579 | X38: =+((W38*(1-0.34))-Pfd_weighted)/Equity_percent -> 0.3141263668 | Y38: =+Y37 -> 0.25 | Z38: =+X38+Y38 -> 0.5641263668 | AA38: =Z38*equityP -> 0.2775501725 | AB38: =+AA38/(1-taxrate) -> 0.2781063853 | AC38: =debtP*Debt_Rate -> 0.02028302025 | AD38: =+AC38+AB38 -> 0.2983894055 | AE38: =+AD38/(S38/100) -> 0.06349530312 | AF38: =1-AE38 -> 0.9365046969 | AG38: =expenses/(AF38) -> 1087766.907 | AH38: =+AG38-Revenue -> -37165.43297 | AI38: =+AH38/$J$49 -> -40777.52518 | AJ38: =+AI38*$J$47 -> -1030.651949 | AK38: 1086736.255
F39: 33 | R39: 4 | S39: =AK34/Investment*100 -> 469.8101219 | T39: =EXP(y_inter4-(slope*LN(S39))) -> 4.419548291 | U39: =(+S39*T39/100)/100 -> 0.2076348522 | V39: =regDebt_weighted -> 0.03586 | W39: =+U39-V39 -> 0.1717748522 | X39: =+((W39*(1-0.34))-Pfd_weighted)/Equity_percent -> 0.3115738442 | Y39: =+Y38 -> 0.25 | Z39: 0.5615738442 | AA39: =Z39*equityP -> 0.2762943314 | AB39: =+AA39/(1-taxrate) -> 0.2768480274 | AC39: =debtP*Debt_Rate -> 0.02028302025 | AD39: =+AC39+AB39 -> 0.2971310477 | AE39: =+AD39/(S39/100) -> 0.06324492254 | AF39: =1-AE39 -> 0.9367550775 | AG39: =expenses/(AF39) -> 1087476.163 | AH39: =+AG39-Revenue -> -37456.17674 | AI39: =+AH39/$J$49 -> -41096.52622 | AJ39: =+AI39*$J$47 -> -1038.7147 | AK39: 1086437.449
F40: 34
F41: 35 | H41: Revenue Sensitive Taxes Charges | R41: Curve
F42: 36 | J42: Rate | K42: Taxes | R42: Lookup Table
F43: 37 | H43: B & O Tax | J43: =IF(A64=TRUE,C11,0) -> 0.015 | K43: =+J43*($J$7/$J$49) -> -616.4464133 | R43: 0 | S43: 1 | U43: Profit Margin | V43: =VLOOKUP(R48,R36:AG39,14) -> 0.06324492254
F44: 38 | H44: WUTC Fee | J44: =IF(A64=TRUE,C12,0) -> 0.004275 | K44: =+J44*($J$7/$J$49) -> -175.6872278 | R44: 50 | S44: 2 | U44: Operating Ratio | V44: =ROUND(1-V43,6) -> 0.936755
F45: 39 | H45: City Tax | J45: =IF(A64=TRUE,C13,0) -> 0 | K45: =+J45*($J$7/$J$49) -> 0 | R45: 125 | S45: 3 | U45: Percent Chg | V45: =+M7/Revenue-1 -> -0.03421965718
F46: 40 | H46: Bad Debts | J46: =IF(A64=TRUE,C14,0) -> 0.006 | K46: =+J46*($J$7/$J$49) -> -246.5785653 | R46: 401 | S46: 4
F47: 41 | H47: Revenue Sensitive | J47: =SUM(J43:J46) -> 0.025275 | K47: =+K43+K44+K45+K46 -> -1038.712206 | R47: =VLOOKUP(R48,R36:S39,2) -> 469.8101219 | S47: Curve turnover | X47: @EXP(5.72260-(.68367*@LN(T)))
F48: 42 | R48: =VLOOKUP(S36,R43:S46,2) -> 4 | S48: Curve No. Used | X48: @EXP(5.70827-(.68367*@LN(T)))
F49: 43 | H49: Conversion Factor | J49: =((K35)-J47) -> 0.9114195332 | X49: @EXP(5.69850-(.68367*@LN(T)))
R50: =+V44 -> 0.936755 | S50: Operating Ratio | X50: @EXP(5.69220-(.68367*@LN(T)))
S53: Base Utility from LG Sample Study | W53: Regression Results
S54: Percent | T54: Cost | U54: Weighted | W54: Y intercept (1) | X54: 5.7226 | Y54: Y intercept (3) | Z54: 5.6985
R55: Debt | S55: 0.562 | T55: 0.0638 | U55: =ROUND(+S55*T55,5) -> 0.03586 | W55: Y intercept (2) | X55: 5.70827 | Y55: Y intercept (4) | Z55: 5.6922
R56: Pfd. | S56: 0.094 | T56: 0.0659 | U56: =ROUND(+S56*T56,5) -> 0.00619
R57: Equity | S57: 0.344 | X57: Slope | Y57: 0.68367
S58: =SUM(S55:S57) -> 1
X60: Operating Statistics | Y60: Pre-tax | Z60: After Tax
X62: Return on Investment | Y62: =+J33 -> 0.2974155158 | Z62: 0.2968612508
X63: Return on Equity | Y63: 0.5632774299 | Z63: 0.5621508751
A64: TRUE | X64: Operating Ratio | Y64: 0.936755 | Z64: 0.9366945332
X65: Profit Margin | Y65: 0.063245 | Z65: 0.063245
X66: Final turnover | Y66: 4.698101219 | Z66: 4.698101219
X67: Tax Rate | Y67: 0.002 | Z67: 0.002

Sheet YW
B1: NEW IMPROVED LURITO - GALLAGHER FORMULA | AE1: !??! | AF1: OP/RATIO | AI1: curve
G2: NOTE: | N2: FORMULAS | U2: 1st Revenue | V2: 1st Turnover | W2: M | X2: ROR | Y2: ROE | AA2: Adj ROE | AB2: Pre Tax ROE | AC2: Adj M | AD2: Revenues | AE2: Decision | AI2: lookup table
B3: !!! | C3: Revenue Requirement | E3: =E5+E4 -> 1086437.518 | F3: !!!<-- | H3: Red numbers are input/linked fields. | N3: 1. less than 50 | Q3: @EXP(5.72260-(.68367*@LN(T))) | U3: =$E$6*1.25 -> 1273373.522 | V3: ='YW LG 2018 V5.0c'!S6 -> 486.4565377 | W3: =EXP(5.7226-(0.68367*LN(+V3))) -> 4.448793016 | X3: =(+W3*V3)/100 -> 21.64144447 | Y3: ='YW LG 2018 V5.0c'!X6*100 -> 32.84184114 | Z3: ='YW LG 2018 V5.0c'!Y6*100 -> 25 | AA3: =Y3+Z3 -> 57.84184114 | AB3: =100*($E$15*$E$17+($E$16*(AA3/100))/(1-$E$19)) -> 30.55876889 | AC3: ='YW LG 2018 V5.0c'!AE6 -> 0.06278776403 | AD3: =$E$6/(1-AC3) -> 1086945.708 | AE3: =IF(AD3=$U$3,"yes","not yet") -> not yet | AF3: =100*(1-AC3) -> 93.7212236 | AI3: 0 | AJ3: 1
B4: !!! | C4: Revenue Deficiency | E4: =(+E6-((H13/100)*E5))/H23 -> -38494.82245 | F4: !!!<-- | H4: Black are formula calculations | N4: 2. Between 50 and 125 | Q4: @EXP(5.70827-(.68367*@LN(T))) | U4: =$E$6*1.25 -> 1273373.522 | V4: ='YW LG 2018 V5.0c'!S7 -> 486.4565377 | W4: ='YW LG 2018 V5.0c'!T7 -> 4.448793016 | X4: =(+W4*V4)/100 -> 21.64144447 | Y4: ='YW LG 2018 V5.0c'!X7*100 -> 32.84184114 | Z4: ='YW LG 2018 V5.0c'!Y7*100 -> 25 | AA4: =Y4+Z4 -> 57.84184114 | AB4: =100*($E$15*$E$17+($E$16*(AA4/100))/(1-$E$19)) -> 30.55876889 | AC4: ='YW LG 2018 V5.0c'!AE7 -> 0.06278776403 | AD4: =$E$6/(1-AC4) -> 1086945.708 | AE4: =IF(AD4=$U$4,"yes","not yet") -> not yet | AF4: =100*(1-AC4) -> 93.7212236 | AI4: 50 | AJ4: 2
B5: * | C5: Revenue | E5: =Proforma!Q26 -> 1124932.34 | F5: * p/f before rates | N5: 3. Between 125 and 140 | Q5: @EXP(5.69850-(.68367*@LN(T))) | U5: =$E$6*1.25 -> 1273373.522 | V5: ='YW LG 2018 V5.0c'!S8 -> 486.4565377 | W5: ='YW LG 2018 V5.0c'!T8 -> 4.448793016 | X5: =(+W5*V5)/100 -> 21.64144447 | Y5: ='YW LG 2018 V5.0c'!X8*100 -> 32.84184114 | Z5: ='YW LG 2018 V5.0c'!Y8*100 -> 25 | AA5: =Y5+Z5 -> 57.84184114 | AB5: =100*($E$15*$E$17+($E$16*(AA5/100))/(1-$E$19)) -> 30.55876889 | AC5: ='YW LG 2018 V5.0c'!AE8 -> 0.06278776403 | AD5: =$E$6/(1-AC5) -> 1086945.708 | AE5: =IF(AD5=$U$5,"yes","not yet") -> not yet | AF5: =100*(1-AC5) -> 93.7212236 | AI5: 125 | AJ5: 3
B6: * | C6: Expenses | E6: =+Proforma!Q381 -> 1018698.818 | F6: * p/f before rates | N6: 4. greater than 400 | Q6: @EXP(5.69220-(.68367*@LN(T))) | U6: =$E$6*1.25 -> 1273373.522 | V6: ='YW LG 2018 V5.0c'!S9 -> 486.4565377 | W6: ='YW LG 2018 V5.0c'!T9 -> 4.448793016 | X6: =(+W6*V6)/100 -> 21.64144447 | Y6: ='YW LG 2018 V5.0c'!X9*100 -> 32.84184114 | Z6: ='YW LG 2018 V5.0c'!Y9*100 -> 25 | AA6: =Y6+Z6 -> 57.84184114 | AB6: =100*($E$15*$E$17+($E$16*(AA6/100))/(1-$E$19)) -> 30.55876889 | AC6: ='YW LG 2018 V5.0c'!AE9 -> 0.06278776403 | AD6: =$E$6/(1-AC6) -> 1086945.708 | AE6: =IF(AD6=$U$6,"yes","not yet") -> not yet | AF6: =100*(1-AC6) -> 93.7212236 | AI6: 401 | AJ6: 4
B7: * | C7: Avg. Investment - | E7: ='Ave Inv. Summary'!L66 -> 231250.3282 | F7: * p/f before rates
C8: curve turnover | E8: =V3 -> 486.4565377 | F8: (calculated) | V8: 2nd Turnover | W8: M | X8: ROR | Y8: ROE | AI8: lookup tables
C9: final turnover | E9: =HLOOKUP($AJ$32,$AJ$26:$AR$30,$E$10+1) -> 469.8101219 | F9: (calculated) | V9: ='YW LG 2018 V5.0c'!S11 -> 469.574375 | W9: ='YW LG 2018 V5.0c'!T11 -> 4.557529227 | X9: =(+W9*V9)/100 -> 21.40098938 | Y9: ='YW LG 2018 V5.0c'!X11*100 -> 32.38050288 | Z9: ='YW LG 2018 V5.0c'!Y11*100 -> 25 | AA9: =Y9+Z9 -> 57.38050288 | AB9: =100*($E$15*$E$17+($E$16*(AA9/100))/(1-$E$19)) -> 30.33120496 | AC9: ='YW LG 2018 V5.0c'!AE11 -> 0.06456077381 | AD9: =$E$6/(1-AC9) -> 1089005.88 | AE9: =IF(OR(OR(AD9=AD3,AD9=(AD3+1)),AD9=(AD8187-1)),"yes","not yet") -> not yet | AF9: =100*(1-AC9) -> 93.54392262
C10: curve No. used | E10: =VLOOKUP(E8,AI3:AJ6,2) -> 4 | F10: (calculated) | V10: ='YW LG 2018 V5.0c'!S12 -> 469.574375 | W10: =EXP(5.70827-(0.68367*LN(+V10))) -> 4.492685548 | X10: =(+W10*V10)/100 -> 21.09650008 | Y10: ='YW LG 2018 V5.0c'!X12*100 -> 31.79630829 | Z10: ='YW LG 2018 V5.0c'!Y12*100 -> 25 | AA10: =Y10+Z10 -> 56.79630829 | AB10: =100*($E$15*$E$17+($E$16*(AA10/100))/(1-$E$19)) -> 30.0430398 | AC10: ='YW LG 2018 V5.0c'!AE12 -> 0.063947453 | AD10: =$E$6/(1-AC10) -> 1088292.341 | AE10: =IF(OR(OR(AD10=AD4,AD10=(AD4+1)),AD10=(AD4-1)),"yes","not yet") -> not yet | AF10: =100*(1-AC10) -> 93.6052547
V11: ='YW LG 2018 V5.0c'!S13 -> 469.574375 | W11: =EXP(5.6985-(0.68367*LN(V11))) -> 4.449005734 | X11: =(+W11*V11)/100 -> 20.89139086 | Y11: ='YW LG 2018 V5.0c'!X13*100 -> 31.4027848 | Z11: ='YW LG 2018 V5.0c'!Y13*100 -> 25 | AA11: =Y11+Z11 -> 56.4027848 | AB11: =100*($E$15*$E$17+($E$16*(AA11/100))/(1-$E$19)) -> 29.8489268 | AC11: ='YW LG 2018 V5.0c'!AE13 -> 0.06353430958 | AD11: =$E$6/(1-AC11) -> 1087812.216 | AE11: =IF(OR(OR(AD11=AD5,AD11=(AD5+1)),AD11=(AD5-1)),"yes","not yet") -> not yet | AF11: =100*(1-AC11) -> 93.64656904 | AJ11: 1 | AK11: 2 | AL11: 3 | AM11: 4 | AN11: 5 | AO11: 6 | AP11: 7 | AQ11: 8 | AR11: 9
C12: Company actual | V12: ='YW LG 2018 V5.0c'!S14 -> 469.574375 | W12: =EXP(5.6922-(0.68367*LN(V12))) -> 4.421065103 | X12: =(+W12*V12)/100 -> 20.76018882 | Y12: ='YW LG 2018 V5.0c'!X14*100 -> 31.15105995 | Z12: ='YW LG 2018 V5.0c'!Y14*100 -> 25 | AA12: =Y12+Z12 -> 56.15105995 | AB12: =100*($E$15*$E$17+($E$16*(AA12/100))/(1-$E$19)) -> 29.7247587 | AC12: ='YW LG 2018 V5.0c'!AE14 -> 0.06327003447 | AD12: =$E$6/(1-AC12) -> 1087505.316 | AE12: =IF(OR(OR(AD12=AD6,AD12=(AD6+1)),AD12=(AD6-1)),"yes","not yet") -> not yet | AF12: =100*(1-AC12) -> 93.67299655 | AJ12: =AE3 -> not yet | AK12: =AE9 -> not yet | AL12: =AE15 -> not yet | AM12: =AE21 -> not yet | AN12: =AE27 -> not yet | AO12: =AE33 -> not yet | AP12: =AE39 -> yes | AQ12: =AE45 -> 0 | AR12: =AE51 -> 0
C13: capital structure: | E13: !!! | F13: OPERATING RATIO -> | H13: =HLOOKUP($AJ$23,$AJ$17:$AR$21,$E$10+1) -> 93.67550775 | I13: !!!<-- | AJ13: =AE4 -> not yet | AK13: =AE10 -> not yet | AL13: =AE16 -> not yet | AM13: =AE22 -> not yet | AN13: =AE28 -> not yet | AO13: =AE34 -> not yet | AP13: =AE40 -> yes | AQ13: =AE46 -> 0 | AR13: =AE52 -> 0
C14: - | D14: - | H14: = | V14: 3rd Turnover | W14: M | X14: ROR | Y14: ROE | AJ14: =AE5 -> not yet | AK14: =AE11 -> not yet | AL14: =AE17 -> not yet | AM14: =AE23 -> not yet | AN14: =AE29 -> not yet | AO14: =AE35 -> not yet | AP14: =AE41 -> yes | AQ14: =AE47 -> 0 | AR14: =AE53 -> 0
B15: * | C15: Actual Debt Ratio | E15: =+'Combined LG'!E15 -> 0.5077173987 | F15: Conversion factor data: | V15: ='YW LG 2018 V5.0c'!S16 -> 470.4899642 | W15: =EXP(5.7226-(0.68367*LN(+V15))) -> 4.551463818 | X15: =(+W15*V15)/100 -> 21.41418049 | Y15: ='YW LG 2018 V5.0c'!X16*100 -> 32.40581141 | Z15: ='YW LG 2018 V5.0c'!Y16*100 -> 25 | AA15: =Y15+Z15 -> 57.40581141 | AB15: =100*($E$15*$E$17+($E$16*(AA15/100))/(1-$E$19)) -> 30.34368888 | AC15: ='YW LG 2018 V5.0c'!AE16 -> 0.064461655 | AD15: =$E$6/(1-AC15) -> 1088890.501 | AE15: =IF(OR(OR(AD15=AD9,AD15=(AD9+1)),AD15=(AD1-1)),"yes","not yet") -> not yet | AF15: =100*(1-AC15) -> 93.5538345 | AJ15: =AE6 -> not yet | AK15: =AE12 -> not yet | AL15: =AE18 -> not yet | AM15: =AE24 -> not yet | AN15: =AE30 -> not yet | AO15: =AE36 -> not yet | AP15: =AE42 -> yes | AQ15: =AE48 -> 0 | AR15: =AE54 -> 0
B16: * | C16: Actual Equity Ratio | E16: =+'Combined LG'!E16 -> 0.4922826013 | F16: B & O Tax | H16: =+'Combined LG'!H16 -> 0.015 | I16: * | V16: ='YW LG 2018 V5.0c'!S17 -> 470.1728505 | W16: =EXP(5.70827-(0.68367*LN(+V16))) -> 4.488775078 | X16: =(+W16*V16)/100 -> 21.10500174 | Y16: ='YW LG 2018 V5.0c'!X17*100 -> 31.81261962 | Z16: ='YW LG 2018 V5.0c'!Y17*100 -> 25 | AA16: =Y16+Z16 -> 56.81261962 | AB16: =100*($E$15*$E$17+($E$16*(AA16/100))/(1-$E$19)) -> 30.05108567 | AC16: ='YW LG 2018 V5.0c'!AE17 -> 0.06388315806 | AD16: =$E$6/(1-AC16) -> 1088217.594 | AE16: =IF(OR(OR(AD16=AD10,AD16=(AD10+1)),AD16=(AD10-1)),"yes","not yet") -> not yet | AF16: =100*(1-AC16) -> 93.61168419
B17: * | C17: Actual Cost of Debt | E17: =+'Combined LG'!E17 -> 0.03992720522 | F17: WUTC Fee | H17: =+'Combined LG'!H17 -> 0.004275 | I17: * | V17: ='YW LG 2018 V5.0c'!S18 -> 469.9594715 | W17: =EXP(5.6985-(0.68367*LN(V17))) -> 4.446513005 | X17: =(+W17*V17)/100 -> 20.89680902 | Y17: ='YW LG 2018 V5.0c'!X18*100 -> 31.41318009 | Z17: ='YW LG 2018 V5.0c'!Y18*100 -> 25 | AA17: =Y17+Z17 -> 56.41318009 | AB17: =100*($E$15*$E$17+($E$16*(AA17/100))/(1-$E$19)) -> 29.85405448 | AC17: ='YW LG 2018 V5.0c'!AE18 -> 0.06349315261 | AD17: =$E$6/(1-AC17) -> 1087764.409 | AE17: =IF(OR(OR(AD17=AD11,AD17=(AD11+1)),AD17=(AD11-1)),"yes","not yet") -> not yet | AF17: =100*(1-AC17) -> 93.65068474 | AJ17: =HLOOKUP(1,$AJ$11:$AR$15,$E$10+1) -> not yet | AK17: =HLOOKUP(2,$AJ$11:$AR$15,$E$10+1) -> not yet | AL17: =HLOOKUP(3,$AJ$11:$AR$15,$E$10+1) -> not yet | AM17: =HLOOKUP(4,$AJ$11:$AR$15,$E$10+1) -> not yet | AN17: =HLOOKUP(5,$AJ$11:$AR$15,$E$10+1) -> not yet | AO17: =HLOOKUP(6,$AJ$11:$AR$15,$E$10+1) -> not yet | AP17: =HLOOKUP(7,$AJ$11:$AR$15,$E$10+1) -> yes | AQ17: =HLOOKUP(8,$AJ$11:$AR$15,$E$10+1) -> 0 | AR17: =HLOOKUP(9,$AJ$11:$AR$15,$E$10+1) -> 0
B18: * | C18: Basis Points | E18: 0.25 | F18: City Tax | H18: =+'Combined LG'!H18 -> 0 | I18: * | V18: ='YW LG 2018 V5.0c'!S19 -> 469.8230782 | W18: =EXP(5.6922-(0.68367*LN(V18))) -> 4.419464967 | X18: =(+W18*V18)/100 -> 20.76366635 | Y18: ='YW LG 2018 V5.0c'!X19*100 -> 31.15773194 | Z18: ='YW LG 2018 V5.0c'!Y19*100 -> 25 | AA18: =Y18+Z18 -> 56.15773194 | AB18: =100*($E$15*$E$17+($E$16*(AA18/100))/(1-$E$19)) -> 29.72804979 | AC18: ='YW LG 2018 V5.0c'!AE19 -> 0.06324354309 | AD18: =$E$6/(1-AC18) -> 1087474.562 | AE18: =IF(OR(OR(AD18=AD12,AD18=(AD12+1)),AD18=(AD12-1)),"yes","not yet") -> not yet | AF18: =100*(1-AC18) -> 93.67564569 | AI18: 1 | AJ18: =AF3 -> 93.7212236 | AK18: =AF9 -> 93.54392262 | AL18: =AF15 -> 93.5538345 | AM18: =AF21 -> 93.55328032 | AN18: =AF27 -> 93.5533113 | AO18: =AF33 -> 93.55330957 | AP18: =AF39 -> 93.55330967 | AQ18: =AF45 -> 0 | AR18: =AF51 -> 0
B19: * | C19: Tax Rate | E19: =+'Combined LG'!E19 -> 0.002 | F19: Bad Debts | H19: =+'Combined LG'!H19 -> 0.006 | I19: * | AI19: 2 | AJ19: =AF4 -> 93.7212236 | AK19: =AF10 -> 93.6052547 | AL19: =AF16 -> 93.61168419 | AM19: =AF22 -> 93.61132771 | AN19: =AF28 -> 93.61134747 | AO19: =AF34 -> 93.61134638 | AP19: =AF40 -> 93.61134644 | AQ19: =AF46 -> 0 | AR19: =AF52 -> 0
H20: - | V20: 4th Turnover | W20: M | X20: ROR | Y20: ROE | AI20: 3 | AJ20: =AF5 -> 93.7212236 | AK20: =AF11 -> 93.64656904 | AL20: =AF17 -> 93.65068474 | AM20: =AF23 -> 93.65045783 | AN20: =AF29 -> 93.65047034 | AO20: =AF35 -> 93.65046965 | AP20: =AF41 -> 93.65046969 | AQ20: =AF47 -> 0 | AR20: =AF53 -> 0
F21: Revenue Sensitive | H21: =SUM(H16:H19) -> 0.025275 | V21: ='YW LG 2018 V5.0c'!S21 -> 470.4386873 | W21: =EXP(5.7226-(0.68367*LN(+V21))) -> 4.551802982 | X21: =(+W21*V21)/100 -> 21.4134422 | Y21: ='YW LG 2018 V5.0c'!X21*100 -> 32.40439491 | Z21: ='YW LG 2018 V5.0c'!Y21*100 -> 25 | AA21: =Y21+Z21 -> 57.40439491 | AB21: =100*($E$15*$E$17+($E$16*(AA21/100))/(1-$E$19)) -> 30.34299016 | AC21: ='YW LG 2018 V5.0c'!AE21 -> 0.06446719682 | AD21: =$E$6/(1-AC21) -> 1088896.952 | AE21: =IF(OR(OR(AD21=AD15,AD21=(AD15+1)),AD21=(AD7-1)),"yes","not yet") -> not yet | AF21: =100*(1-AC21) -> 93.55328032 | AI21: 4 | AJ21: =AF6 -> 93.7212236 | AK21: =AF12 -> 93.67299655 | AL21: =AF18 -> 93.67564569 | AM21: =AF24 -> 93.67550017 | AN21: =AF30 -> 93.67550816 | AO21: =AF36 -> 93.67550772 | AP21: =AF42 -> 93.67550775 | AQ21: =AF48 -> 0 | AR21: =AF54 -> 0
V22: ='YW LG 2018 V5.0c'!S22 -> 470.1396313 | W22: =EXP(5.70827-(0.68367*LN(+V22))) -> 4.488991915 | X22: =(+W22*V22)/100 -> 21.10453004 | Y22: ='YW LG 2018 V5.0c'!X22*100 -> 31.81171461 | Z22: ='YW LG 2018 V5.0c'!Y22*100 -> 25 | AA22: =Y22+Z22 -> 56.81171461 | AB22: =100*($E$15*$E$17+($E$16*(AA22/100))/(1-$E$19)) -> 30.05063926 | AC22: ='YW LG 2018 V5.0c'!AE22 -> 0.06388672294 | AD22: =$E$6/(1-AC22) -> 1088221.738 | AE22: =IF(OR(OR(AD22=AD16,AD22=(AD16+1)),AD22=(AD16-1)),"yes","not yet") -> not yet | AF22: =100*(1-AC22) -> 93.61132771
F23: Conversion Factor | H23: =((+H13/100)-H21) -> 0.9114800775 | V23: ='YW LG 2018 V5.0c'!S23 -> 469.9382252 | W23: =EXP(5.6985-(0.68367*LN(V23))) -> 4.446650443 | X23: =(+W23*V23)/100 -> 20.89651017 | Y23: ='YW LG 2018 V5.0c'!X23*100 -> 31.41260672 | Z23: ='YW LG 2018 V5.0c'!Y23*100 -> 25 | AA23: =Y23+Z23 -> 56.41260672 | AB23: =100*($E$15*$E$17+($E$16*(AA23/100))/(1-$E$19)) -> 29.85377165 | AC23: ='YW LG 2018 V5.0c'!AE23 -> 0.0634954217 | AD23: =$E$6/(1-AC23) -> 1087767.045 | AE23: =IF(OR(OR(AD23=AD17,AD23=(AD17+1)),AD23=(AD17-1)),"yes","not yet") -> not yet | AF23: =100*(1-AC23) -> 93.65045783 | AJ23: yes
V24: ='YW LG 2018 V5.0c'!S24 -> 469.8094101 | W24: =EXP(5.6922-(0.68367*LN(V24))) -> 4.419552869 | X24: =(+W24*V24)/100 -> 20.76347526 | Y24: ='YW LG 2018 V5.0c'!X24*100 -> 31.15736533 | Z24: ='YW LG 2018 V5.0c'!Y24*100 -> 25 | AA24: =Y24+Z24 -> 56.15736533 | AB24: =100*($E$15*$E$17+($E$16*(AA24/100))/(1-$E$19)) -> 29.72786895 | AC24: ='YW LG 2018 V5.0c'!AE24 -> 0.06324499832 | AD24: =$E$6/(1-AC24) -> 1087476.251 | AE24: =IF(OR(OR(AD24=AD18,AD24=(AD18+1)),AD24=(AD18-1)),"yes","not yet") -> not yet | AF24: =100*(1-AC24) -> 93.67550017 | AJ24: =HLOOKUP($AJ$23,$AJ$17:$AR$21,$E$10+1) -> 93.67550775
C26: Company Reference | V26: 5th Turnover | W26: M | X26: ROR | Y26: ROE | AJ26: =HLOOKUP(1,$AJ$11:$AR$15,$E$10+1) -> not yet | AK26: =HLOOKUP(2,$AJ$11:$AR$15,$E$10+1) -> not yet | AL26: =HLOOKUP(3,$AJ$11:$AR$15,$E$10+1) -> not yet | AM26: =HLOOKUP(4,$AJ$11:$AR$15,$E$10+1) -> not yet | AN26: =HLOOKUP(5,$AJ$11:$AR$15,$E$10+1) -> not yet | AO26: =HLOOKUP(6,$AJ$11:$AR$15,$E$10+1) -> not yet | AP26: =HLOOKUP(7,$AJ$11:$AR$15,$E$10+1) -> yes | AQ26: =HLOOKUP(8,$AJ$11:$AR$15,$E$10+1) -> 0 | AR26: =HLOOKUP(9,$AJ$11:$AR$15,$E$10+1) -> 0
C27: Annl Price Increase (PI) $ | E27: =+E4 -> -38494.82245 | V27: ='YW LG 2018 V5.0c'!S26 -> 470.441554 | W27: =EXP(5.7226-(0.68367*LN(+V27))) -> 4.551784019 | X27: =(+W27*V27)/100 -> 21.41348347 | Y27: ='YW LG 2018 V5.0c'!X26*100 -> 32.4044741 | Z27: ='YW LG 2018 V5.0c'!Y26*100 -> 25 | AA27: =Y27+Z27 -> 57.4044741 | AB27: =100*($E$15*$E$17+($E$16*(AA27/100))/(1-$E$19)) -> 30.34302923 | AC27: ='YW LG 2018 V5.0c'!AE26 -> 0.06446688697 | AD27: =$E$6/(1-AC27) -> 1088896.591 | AE27: =IF(OR(OR(AD27=AD21,AD27=(AD21+1)),AD27=(AD13-1)),"yes","not yet") -> not yet | AF27: =100*(1-AC27) -> 93.5533113 | AI27: 1 | AJ27: =V3 -> 486.4565377 | AK27: =V9 -> 469.574375 | AL27: =V15 -> 470.4899642 | AM27: =V21 -> 470.4386873 | AN27: =V27 -> 470.441554 | AO27: =V33 -> 470.4413937 | AP27: =V39 -> 470.4414026 | AQ27: =V45 -> 0 | AR27: =V51 -> 0
C28: Monthly PI $ | E28: =+E27/12 -> -3207.901871 | V28: ='YW LG 2018 V5.0c'!S27 -> 470.1414731 | W28: =EXP(5.70827-(0.68367*LN(+V28))) -> 4.488979892 | X28: =(+W28*V28)/100 -> 21.10455619 | Y28: ='YW LG 2018 V5.0c'!X27*100 -> 31.81176478 | Z28: ='YW LG 2018 V5.0c'!Y27*100 -> 25 | AA28: =Y28+Z28 -> 56.81176478 | AB28: =100*($E$15*$E$17+($E$16*(AA28/100))/(1-$E$19)) -> 30.05066401 | AC28: ='YW LG 2018 V5.0c'!AE27 -> 0.06388652528 | AD28: =$E$6/(1-AC28) -> 1088221.508 | AE28: =IF(OR(OR(AD28=AD22,AD28=(AD22+1)),AD28=(AD22-1)),"yes","not yet") -> not yet | AF28: =100*(1-AC28) -> 93.61134747 | AI28: 2 | AJ28: =V4 -> 486.4565377 | AK28: =V10 -> 469.574375 | AL28: =V16 -> 470.1728505 | AM28: =V22 -> 470.1396313 | AN28: =V28 -> 470.1414731 | AO28: =V34 -> 470.1413709 | AP28: =V40 -> 470.1413766 | AQ28: =V46 -> 0 | AR28: =V52 -> 0
C29: Percentage PI | E29: =+E4/E5 -> -0.034219678 | V29: ='YW LG 2018 V5.0c'!S28 -> 469.9393965 | W29: =EXP(5.6985-(0.68367*LN(V29))) -> 4.446642866 | X29: =(+W29*V29)/100 -> 20.89652665 | Y29: ='YW LG 2018 V5.0c'!X28*100 -> 31.41263833 | Z29: ='YW LG 2018 V5.0c'!Y28*100 -> 25 | AA29: =Y29+Z29 -> 56.41263833 | AB29: =100*($E$15*$E$17+($E$16*(AA29/100))/(1-$E$19)) -> 29.85378725 | AC29: ='YW LG 2018 V5.0c'!AE28 -> 0.0634952966 | AD29: =$E$6/(1-AC29) -> 1087766.899 | AE29: =IF(OR(OR(AD29=AD23,AD29=(AD23+1)),AD29=(AD23-1)),"yes","not yet") -> not yet | AF29: =100*(1-AC29) -> 93.65047034 | AI29: 3 | AJ29: =V5 -> 486.4565377 | AK29: =V11 -> 469.574375 | AL29: =V17 -> 469.9594715 | AM29: =V23 -> 469.9382252 | AN29: =V29 -> 469.9393965 | AO29: =V35 -> 469.9393319 | AP29: =V41 -> 469.9393355 | AQ29: =V47 -> 0 | AR29: =V53 -> 0
V30: ='YW LG 2018 V5.0c'!S29 -> 469.8101609 | W30: =EXP(5.6922-(0.68367*LN(V30))) -> 4.41954804 | X30: =(+W30*V30)/100 -> 20.76348576 | Y30: ='YW LG 2018 V5.0c'!X29*100 -> 31.15738547 | Z30: ='YW LG 2018 V5.0c'!Y29*100 -> 25 | AA30: =Y30+Z30 -> 56.15738547 | AB30: =100*($E$15*$E$17+($E$16*(AA30/100))/(1-$E$19)) -> 29.72787889 | AC30: ='YW LG 2018 V5.0c'!AE29 -> 0.06324491839 | AD30: =$E$6/(1-AC30) -> 1087476.158 | AE30: =IF(OR(OR(AD30=AD24,AD30=(AD24+1)),AD30=(AD24-1)),"yes","not yet") -> not yet | AF30: =100*(1-AC30) -> 93.67550816 | AI30: 4 | AJ30: =V6 -> 486.4565377 | AK30: =V12 -> 469.574375 | AL30: =V18 -> 469.8230782 | AM30: =V24 -> 469.8094101 | AN30: =V30 -> 469.8101609 | AO30: =V36 -> 469.8101197 | AP30: =V42 -> 469.8101219 | AQ30: =V48 -> 0 | AR30: =V54 -> 0
V32: 6th Turnover | W32: M | X32: ROR | Y32: ROE | AJ32: yes
V33: ='YW LG 2018 V5.0c'!S31 -> 470.4413937 | W33: =EXP(5.7226-(0.68367*LN(+V33))) -> 4.551785079 | X33: =(+W33*V33)/100 -> 21.41348116 | Y33: ='YW LG 2018 V5.0c'!X31*100 -> 32.40446968 | Z33: ='YW LG 2018 V5.0c'!Y31*100 -> 25 | AA33: =Y33+Z33 -> 57.40446968 | AB33: =100*($E$15*$E$17+($E$16*(AA33/100))/(1-$E$19)) -> 30.34302704 | AC33: ='YW LG 2018 V5.0c'!AE31 -> 0.06446690429 | AD33: =ROUND($E$6/(1-AC33),0) -> 1088897 | AE33: =IF(OR(OR(AD33=AD27,AD33=(AD27+1)),AD33=(AD19-1)),"yes","not yet") -> not yet | AF33: =100*(1-AC33) -> 93.55330957 | AJ33: =HLOOKUP($AJ$32,$AJ$26:$AR$30,$E$10+1) -> 469.8101219
V34: ='YW LG 2018 V5.0c'!S32 -> 470.1413709 | W34: =EXP(5.70827-(0.68367*LN(+V34))) -> 4.488980559 | X34: =(+W34*V34)/100 -> 21.10455474 | Y34: ='YW LG 2018 V5.0c'!X32*100 -> 31.811762 | Z34: ='YW LG 2018 V5.0c'!Y32*100 -> 25 | AA34: =Y34+Z34 -> 56.811762 | AB34: =100*($E$15*$E$17+($E$16*(AA34/100))/(1-$E$19)) -> 30.05066264 | AC34: ='YW LG 2018 V5.0c'!AE32 -> 0.06388653624 | AD34: =ROUND($E$6/(1-AC34),0) -> 1088222 | AE34: =IF(OR(OR(AD34=AD28,AD34=(AD28+1)),AD34=(AD28-1)),"yes","not yet") -> not yet | AF34: =100*(1-AC34) -> 93.61134638
V35: ='YW LG 2018 V5.0c'!S33 -> 469.9393319 | W35: =EXP(5.6985-(0.68367*LN(V35))) -> 4.446643283 | X35: =(+W35*V35)/100 -> 20.89652574 | Y35: ='YW LG 2018 V5.0c'!X33*100 -> 31.41263659 | Z35: ='YW LG 2018 V5.0c'!Y33*100 -> 25 | AA35: =Y35+Z35 -> 56.41263659 | AB35: =100*($E$15*$E$17+($E$16*(AA35/100))/(1-$E$19)) -> 29.85378639 | AC35: ='YW LG 2018 V5.0c'!AE33 -> 0.0634953035 | AD35: =ROUND($E$6/(1-AC35),0) -> 1087767 | AE35: =IF(OR(OR(AD35=AD29,AD35=(AD29+1)),AD35=(AD29-1)),"yes","not yet") -> not yet | AF35: =100*(1-AC35) -> 93.65046965 | AJ35: =HLOOKUP(1,$AJ$11:$AR$15,$E$10+1) -> not yet | AK35: =HLOOKUP(2,$AJ$11:$AR$15,$E$10+1) -> not yet | AL35: =HLOOKUP(3,$AJ$11:$AR$15,$E$10+1) -> not yet | AM35: =HLOOKUP(4,$AJ$11:$AR$15,$E$10+1) -> not yet | AN35: =HLOOKUP(5,$AJ$11:$AR$15,$E$10+1) -> not yet | AO35: =HLOOKUP(6,$AJ$11:$AR$15,$E$10+1) -> not yet | AP35: =HLOOKUP(7,$AJ$11:$AR$15,$E$10+1) -> yes | AQ35: =HLOOKUP(8,$AJ$11:$AR$15,$E$10+1) -> 0 | AR35: =HLOOKUP(9,$AJ$11:$AR$15,$E$10+1) -> 0
V36: ='YW LG 2018 V5.0c'!S34 -> 469.8101197 | W36: =EXP(5.6922-(0.68367*LN(V36))) -> 4.419548306 | X36: =(+W36*V36)/100 -> 20.76348518 | Y36: ='YW LG 2018 V5.0c'!X34*100 -> 31.15738436 | Z36: ='YW LG 2018 V5.0c'!Y34*100 -> 25 | AA36: =Y36+Z36 -> 56.15738436 | AB36: =100*($E$15*$E$17+($E$16*(AA36/100))/(1-$E$19)) -> 29.72787834 | AC36: ='YW LG 2018 V5.0c'!AE34 -> 0.06324492278 | AD36: =ROUND($E$6/(1-AC36),0) -> 1087476 | AE36: =IF(OR(OR(AD36=AD30,AD36=(AD30+1)),AD36=(AD30-1)),"yes","not yet") -> not yet | AF36: =100*(1-AC36) -> 93.67550772 | AI36: 1 | AJ36: =AD3 -> 1086945.708 | AK36: =AD9 -> 1089005.88 | AL36: =AD15 -> 1088890.501 | AM36: =AD21 -> 1088896.952 | AN36: =AD27 -> 1088896.591 | AO36: =AD33 -> 1088897 | AP36: =AD39 -> 1088897 | AQ36: =AD45 -> 0 | AR36: =AD51 -> 0
AI37: 2 | AJ37: =AD4 -> 1086945.708 | AK37: =AD10 -> 1088292.341 | AL37: =AD16 -> 1088217.594 | AM37: =AD22 -> 1088221.738 | AN37: =AD28 -> 1088221.508 | AO37: =AD34 -> 1088222 | AP37: =AD40 -> 1088222 | AQ37: =AD46 -> 0 | AR37: =AD52 -> 0
V38: 7th turnover | W38: M | X38: ROR | Y38: ROE | AI38: 3 | AJ38: =AD5 -> 1086945.708 | AK38: =AD11 -> 1087812.216 | AL38: =AD17 -> 1087764.409 | AM38: =AD23 -> 1087767.045 | AN38: =AD29 -> 1087766.899 | AO38: =AD35 -> 1087767 | AP38: =AD41 -> 1087767 | AQ38: =AD47 -> 0 | AR38: =AD53 -> 0
V39: ='YW LG 2018 V5.0c'!S36 -> 470.4414026 | W39: =EXP(5.7226-(0.68367*LN(+V39))) -> 4.55178502 | X39: =(+W39*V39)/100 -> 21.41348129 | Y39: ='YW LG 2018 V5.0c'!X36*100 -> 32.40446992 | Z39: ='YW LG 2018 V5.0c'!Y36*100 -> 25 | AA39: =Y39+Z39 -> 57.40446992 | AB39: =100*($E$15*$E$17+($E$16*(AA39/100))/(1-$E$19)) -> 30.34302716 | AC39: ='YW LG 2018 V5.0c'!AE36 -> 0.06446690333 | AD39: =ROUND($E$6/(1-AC39),0) -> 1088897 | AE39: =IF(OR(OR(AD39=AD33,AD39=(AD33+1)),AD39=(AD25-1)),"yes","not yet") -> yes | AF39: =100*(1-AC39) -> 93.55330967 | AI39: 4 | AJ39: =AD6 -> 1086945.708 | AK39: =AD12 -> 1087505.316 | AL39: =AD18 -> 1087474.562 | AM39: =AD24 -> 1087476.251 | AN39: =AD30 -> 1087476.158 | AO39: =AD36 -> 1087476 | AP39: =AD42 -> 1087476 | AQ39: =AD48 -> 0 | AR39: =AD54 -> 0
V40: ='YW LG 2018 V5.0c'!S37 -> 470.1413766 | W40: =EXP(5.70827-(0.68367*LN(+V40))) -> 4.488980522 | X40: =(+W40*V40)/100 -> 21.10455482 | Y40: ='YW LG 2018 V5.0c'!X37*100 -> 31.81176216 | Z40: ='YW LG 2018 V5.0c'!Y37*100 -> 25 | AA40: =Y40+Z40 -> 56.81176216 | AB40: =100*($E$15*$E$17+($E$16*(AA40/100))/(1-$E$19)) -> 30.05066271 | AC40: ='YW LG 2018 V5.0c'!AE37 -> 0.06388653564 | AD40: =ROUND($E$6/(1-AC40),0) -> 1088222 | AE40: =IF(OR(OR(AD40=AD34,AD40=(AD34+1)),AD40=(AD34-1)),"yes","not yet") -> yes | AF40: =100*(1-AC40) -> 93.61134644
V41: ='YW LG 2018 V5.0c'!S38 -> 469.9393355 | W41: =EXP(5.6985-(0.68367*LN(V41))) -> 4.44664326 | X41: =(+W41*V41)/100 -> 20.89652579 | Y41: ='YW LG 2018 V5.0c'!X38*100 -> 31.41263668 | Z41: ='YW LG 2018 V5.0c'!Y38*100 -> 25 | AA41: =Y41+Z41 -> 56.41263668 | AB41: =100*($E$15*$E$17+($E$16*(AA41/100))/(1-$E$19)) -> 29.85378643 | AC41: ='YW LG 2018 V5.0c'!AE38 -> 0.06349530312 | AD41: =ROUND($E$6/(1-AC41),0) -> 1087767 | AE41: =IF(OR(OR(AD41=AD35,AD41=(AD35+1)),AD41=(AD35-1)),"yes","not yet") -> yes | AF41: =100*(1-AC41) -> 93.65046969 | AJ41: yes
V42: ='YW LG 2018 V5.0c'!S39 -> 469.8101219 | W42: =EXP(5.6922-(0.68367*LN(V42))) -> 4.419548291 | X42: =(+W42*V42)/100 -> 20.76348522 | Y42: ='YW LG 2018 V5.0c'!X39*100 -> 31.15738442 | Z42: ='YW LG 2018 V5.0c'!Y39*100 -> 25 | AA42: =Y42+Z42 -> 56.15738442 | AB42: =100*($E$15*$E$17+($E$16*(AA42/100))/(1-$E$19)) -> 29.72787837 | AC42: ='YW LG 2018 V5.0c'!AE39 -> 0.06324492254 | AD42: =ROUND($E$6/(1-AC42),0) -> 1087476 | AE42: =IF(OR(OR(AD42=AD36,AD42=(AD36+1)),AD42=(AD36-1)),"yes","not yet") -> yes | AF42: =100*(1-AC42) -> 93.67550775 | AJ42: =HLOOKUP($AJ$32,$AJ$35:$AR$39,$E$10+1) -> 1087476

Sheet MF RCY LG 2018 V5.0c
B2: Public Companies | F2: Public Co | I2: LURITO - GALLAGHER FORMULA MODEL 2018 V5.0a | M2: Public Co | R2: CALCULATION TABLES | AH2: Revenue Senstive Taxes (RevS)
K3: (b) + (c) | M3: (d) + (e) | T3: Regession | V3: Regession | W3: Regession | X3: Regession | Z3: Adjusted | AA3: Hauler | AB3: Hauler | AC3: Hauler | AD3: Hauler | AE3: Hauler | AF3: Hauler | AG3: Revenue Req | AH3: Revenue | AI3: Revenue
B4: INPUTS - Test Year | H4: (a) | I4: (b) | J4: (c) | K4: (d) | L4: (e) | M4: (f) | T4: Before Tax | V4: Less | W4: Adjusted | X4: After Tax | Y4: Flotation Costs | Z4: After Tax | AA4: Weighted Cost | AB4: Weighted Cost | AC4: Weighted Cost | AD4: Adjusted | AE4: Before Tax | AF4: Before Tax | AG4: Before RevS | AH4: Increase Before | AI4: Increase After | AJ4: RevS | AK4: Total
B5: Operating Revenue | C5: 17679.72152 | F5: Line | I5: Historical | J5: Revenue | K5: Proforma | L5: Add: Revenue | M5: Revenue | T5: Profit Ratio | U5: BTROI | V5: WCDebt | W5: BTROE | X5: ROE | Y5: Basis Points | Z5: ROE | AA5: Equity | AB5: Equity BFT | AC5: Debt | AD5: BTROR | AE5: Profit Ratio | AF5: Operating Ratio | AG5: Taxes | AH5: RevS Taxes | AI5: RevS Taxes | AJ5: Taxes | AK5: Revenue Req
B6: Operating Expenses | C6: 19758.40571 | F6: No. | J6: Change | L6: Sensitive Taxes | M6: Requirement | R6: 1 | S6: =Revenue/Investment*100 -> 244.5787824 | T6: =EXP(y_inter1-(slope*LN(+S6))) -> 7.118743352 | U6: =(+S6*T6/100)/100 -> 0.1741093581 | V6: =regDebt_weighted -> 0.03586 | W6: =+U6-V6 -> 0.1382493581 | X6: =+((W6*(1-0.34))-Pfd_weighted)/Equity_percent -> 0.2472516754 | Y6: =+C15 -> 0.25 | Z6: =+X6+Y6 -> 0.4972516754 | AA6: =Z6*equityP -> 0.2446478243 | AB6: =+AA6/(1-taxrate) -> 0.2451381005 | AC6: =debtP*Debt_Rate -> 0.02028302025 | AD6: =AC6+AB6 -> 0.2654211207 | AE6: =AD6/(S6/100) -> 0.1085217279 | AF6: =1-AE6 -> 0.8914782721 | AG6: =expenses/(AF6) -> 22163.64249 | AH6: =+AG6-Revenue -> 4483.920977 | AI6: =+AH6/$J$49 -> 5066.853319 | AJ6: =+AI6*$J$47 -> 128.0647176 | AK6: =ROUND(+AJ6+AG6,5) -> 22291.70721
B7: Investment | C7: 7228.640746 | F7: 1 | H7: Operating Revenue | I7: =IF(A64=TRUE,C5,0) -> 17679.72152 | J7: =(+$I8/($R50))-I7 -> 4038.778855 | K7: =+I7+J7 -> 21718.50037 | L7: =((+J7/J49*K35)-J7) -> 115.351068 | M7: =IFERROR(+K7+L7,0.00001) -> 21833.85144 | R7: 2 | S7: =Revenue/Investment*100 -> 244.5787824 | T7: =EXP(y_inter1-(slope*LN(+S7))) -> 7.118743352 | U7: =(+S7*T7/100)/100 -> 0.1741093581 | V7: =regDebt_weighted -> 0.03586 | W7: =+U7-V7 -> 0.1382493581 | X7: =+((W7*(1-0.34))-Pfd_weighted)/Equity_percent -> 0.2472516754 | Y7: =+Y6 -> 0.25 | Z7: =+X7+Y7 -> 0.4972516754 | AA7: =Z7*equityP -> 0.2446478243 | AB7: =+AA7/(1-taxrate) -> 0.2451381005 | AC7: =debtP*Debt_Rate -> 0.02028302025 | AD7: =AC7+AB7 -> 0.2654211207 | AE7: =AD7/(S7/100) -> 0.1085217279 | AF7: =1-AE7 -> 0.8914782721 | AG7: =expenses/(AF7) -> 22163.64249 | AH7: =+AG7-Revenue -> 4483.920977 | AI7: =+AH7/$J$49 -> 5066.853319 | AJ7: =+AI7*$J$47 -> 128.0647176 | AK7: =ROUND(+AJ7+AG7,5) -> 22291.70721
B8: Capital Structure-Debt % | C8: 0.508 | F8: =+F7+1 -> 2 | H8: Operating Expenses | I8: =IF(A64=TRUE,C6,0) -> 19758.40571 | K8: =+I8 -> 19758.40571 | L8: =+L7 -> 115.351068 | M8: =IFERROR(+K8+L8,0.00001) -> 19873.75678 | R8: 3 | S8: =Revenue/Investment*100 -> 244.5787824 | T8: =EXP(y_inter1-(slope*LN(+S8))) -> 7.118743352 | U8: 0.1741093581 | V8: =regDebt_weighted -> 0.03586 | W8: 0.1382493581 | X8: =+((W8*(1-0.34))-Pfd_weighted)/Equity_percent -> 0.2472516754 | Y8: =+Y7 -> 0.25 | Z8: =+X8+Y8 -> 0.4972516754 | AA8: =Z8*equityP -> 0.2446478243 | AB8: =+AA8/(1-taxrate) -> 0.2451381005 | AC8: =debtP*Debt_Rate -> 0.02028302025 | AD8: 0.2654211207 | AE8: 0.1085217279 | AF8: 0.8914782721 | AG8: =expenses/(AF8) -> 22163.64249 | AH8: =+AG8-Revenue -> 4483.920977 | AI8: =+AH8/$J$49 -> 5066.853319 | AJ8: =+AI8*$J$47 -> 128.0647176 | AK8: 22291.70721
B9: Capital Structure-Debt Rate | C9: 0.03992720522 | F9: =+F8+1 -> 3 | H9: Operating Income | I9: =+I7-I8 -> -2078.684197 | K9: =+K7-K8 -> 1960.094659 | M9: =+M7-M8 -> 1960.094659 | R9: 4 | S9: =Revenue/Investment*100 -> 244.5787824 | T9: =EXP(y_inter1-(slope*LN(+S9))) -> 7.118743352 | U9: 0.1741093581 | V9: =regDebt_weighted -> 0.03586 | W9: 0.1382493581 | X9: =+((W9*(1-0.34))-Pfd_weighted)/Equity_percent -> 0.2472516754 | Y9: =+Y8 -> 0.25 | Z9: 0.4972516754 | AA9: =Z9*equityP -> 0.2446478243 | AB9: =+AA9/(1-taxrate) -> 0.2451381005 | AC9: =debtP*Debt_Rate -> 0.02028302025 | AD9: 0.2654211207 | AE9: 0.1085217279 | AF9: 0.8914782721 | AG9: =expenses/(AF9) -> 22163.64249 | AH9: =+AG9-Revenue -> 4483.920977 | AI9: =+AH9/$J$49 -> 5066.853319 | AJ9: =+AI9*$J$47 -> 128.0647176 | AK9: 22291.70721
B10: Federal Income Tax Rate | C10: 0.002 | F10: 4 | R10: 2nd Iteration
B11: B&O Tax Rate | C11: 0.015 | F11: 5 | H11: Interest Expense | I11: =+K11 -> 146.6186666 | K11: =+M27 -> 146.6186666 | M11: =+K11 -> 146.6186666 | R11: 1 | S11: =IF((AK6/Investment*100)>0,(AK6/Investment*100),0) -> 308.3803442 | T11: =EXP(y_inter1-(slope*LN(S11))) -> 6.075467551 | U11: =(+S11*T11/100)/100 -> 0.1873554774 | V11: =regDebt_weighted -> 0.03586 | W11: =+U11-V11 -> 0.1514954774 | X11: =+((W11*(1-0.34))-Pfd_weighted)/Equity_percent -> 0.2726657416 | Y11: =+Y9 -> 0.25 | Z11: =+X11+Y11 -> 0.5226657416 | AA11: =Z11*equityP -> 0.2571515448 | AB11: =+AA11/(1-taxrate) -> 0.2576668786 | AC11: =debtP*Debt_Rate -> 0.02028302025 | AD11: =+AC11+AB11 -> 0.2779498989 | AE11: =+AD11/(S11/100) -> 0.09013217091 | AF11: =1-AE11 -> 0.9098678291 | AG11: =expenses/(AF11) -> 21715.6878 | AH11: =+AG11-Revenue -> 4035.966281 | AI11: =+AH11/$J$49 -> 4560.662253 | AJ11: =+AI11*$J$47 -> 115.2707384 | AK11: =ROUND(+AJ11+AG11,5) -> 21830.95854
B12: WUTC Fee | C12: 0.004275 | F12: 6 | H12: Income Tax Expense | I12: =IF(I14<0,0,+J38*I14) -> 0 | J12: =+K12-I12 -> 3.626951984 | K12: =+(K9-K11)*taxrate -> 3.626951984 | M12: =+K12 -> 3.626951984 | R12: 2 | S12: =IF((AK7/Investment*100)>0,(AK7/Investment*100),0) -> 308.3803442 | T12: =EXP(y_inter2-(slope*LN(+S12))) -> 5.989026927 | U12: =(+S12*T12/100)/100 -> 0.1846898185 | V12: =regDebt_weighted -> 0.03586 | W12: =+U12-V12 -> 0.1488298185 | X12: =+((W12*(1-0.34))-Pfd_weighted)/Equity_percent -> 0.2675513959 | Y12: =+Y11 -> 0.25 | Z12: =+X12+Y12 -> 0.5175513959 | AA12: =Z12*equityP -> 0.2546352868 | AB12: =+AA12/(1-taxrate) -> 0.255145578 | AC12: =debtP*Debt_Rate -> 0.02028302025 | AD12: =+AC12+AB12 -> 0.2754285982 | AE12: =+AD12/(S12/100) -> 0.08931457644 | AF12: =1-AE12 -> 0.9106854236 | AG12: =expenses/(AF12) -> 21696.1919 | AH12: =+AG12-Revenue -> 4016.470387 | AI12: =+AH12/$J$49 -> 4538.631794 | AJ12: =+AI12*$J$47 -> 114.7139186 | AK12: =ROUND(+AJ12+AG12,5) -> 21810.90582
B13: City Tax | C13: 0 | F13: 7 | R13: 3 | S13: =IF((AK8/Investment*100)>0,(AK8/Investment*100),0) -> 308.3803442 | T13: =EXP(y_inter3-(slope*LN(S13))) -> 5.93079904 | U13: =(+S13*T13/100)/100 -> 0.1828941849 | V13: =regDebt_weighted -> 0.03586 | W13: =+U13-V13 -> 0.1470341849 | X13: =+((W13*(1-0.34))-Pfd_weighted)/Equity_percent -> 0.264106285 | Y13: =+Y12 -> 0.25 | Z13: =+X13+Y13 -> 0.514106285 | AA13: =Z13*equityP -> 0.2529402922 | AB13: =+AA13/(1-taxrate) -> 0.2534471866 | AC13: =debtP*Debt_Rate -> 0.02028302025 | AD13: =+AC13+AB13 -> 0.2737302068 | AE13: =+AD13/(S13/100) -> 0.08876383078 | AF13: =1-AE13 -> 0.9112361692 | AG13: =expenses/(AF13) -> 21683.07886 | AH13: =+AG13-Revenue -> 4003.357339 | AI13: =+AH13/$J$49 -> 4523.813984 | AJ13: =+AI13*$J$47 -> 114.3393984 | AK13: 21797.41825
B14: Bad Debts | C14: 0.006 | F14: 8 | H14: Net Income | I14: =+I9-SUM(I11:I13) -> -2225.302863 | K14: =+K9-SUM(K11:K13) -> 1809.84904 | M14: =+M9-SUM(M11:M13) -> 1809.84904 | R14: 4 | S14: =IF((AK9/Investment*100)>0,(AK9/Investment*100),0) -> 308.3803442 | T14: =EXP(y_inter4-(slope*LN(S14))) -> 5.893552456 | U14: =(+S14*T14/100)/100 -> 0.1817455735 | V14: =regDebt_weighted -> 0.03586 | W14: =+U14-V14 -> 0.1458855735 | X14: =+((W14*(1-0.34))-Pfd_weighted)/Equity_percent -> 0.2619025538 | Y14: =+Y13 -> 0.25 | Z14: 0.5119025538 | AA14: =Z14*equityP -> 0.2518560565 | AB14: =+AA14/(1-taxrate) -> 0.252360778 | AC14: =debtP*Debt_Rate -> 0.02028302025 | AD14: =+AC14+AB14 -> 0.2726437983 | AE14: =+AD14/(S14/100) -> 0.08841153576 | AF14: =1-AE14 -> 0.9115884642 | AG14: =expenses/(AF14) -> 21674.69915 | AH14: =+AG14-Revenue -> 3994.977636 | AI14: =+AH14/$J$49 -> 4514.344877 | AJ14: =+AI14*$J$47 -> 114.1000668 | AK14: 21788.79922
B15: Basis Points - Flotation | C15: 0.25 | F15: 9 | R15: 3rd Iteration
D16: Yes | F16: 10 | H16: Operating Ratio | I16: =+I8/I7 -> 1.117574488 | K16: =+K8/K7 -> 0.90975 | M16: =+M8/M7 -> 0.9102268025 | R16: 1 | S16: =AK11/Investment*100 -> 302.0064118 | T16: =EXP(y_inter1-(slope*LN(+S16))) -> 6.162840837 | U16: =(+S16*T16/100)/100 -> 0.1861217448 | V16: =regDebt_weighted -> 0.03586 | W16: =+U16-V16 -> 0.1502617448 | X16: =+((W16*(1-0.34))-Pfd_weighted)/Equity_percent -> 0.2702986964 | Y16: =+Y14 -> 0.25 | Z16: =+X16+Y16 -> 0.5202986964 | AA16: =Z16*equityP -> 0.2559869586 | AB16: =+AA16/(1-taxrate) -> 0.2564999585 | AC16: =debtP*Debt_Rate -> 0.02028302025 | AD16: =+AC16+AB16 -> 0.2767829788 | AE16: =+AD16/(S16/100) -> 0.09164804718 | AF16: =1-AE16 -> 0.9083519528 | AG16: =expenses/(AF16) -> 21751.92738 | AH16: =+AG16-Revenue -> 4072.205863 | AI16: =+AH16/$J$49 -> 4601.613164 | AJ16: =+AI16*$J$47 -> 116.3057727 | AK16: =ROUND(+AJ16+AG16,5) -> 21868.23315
B17: Check when input is complete | D17: No | F17: 11 | R17: 2 | S17: =AK12/Investment*100 -> 301.7290053 | T17: =EXP(y_inter2-(slope*LN(+S17))) -> 6.078975122 | U17: =(+S17*T17/100)/100 -> 0.1834203117 | V17: =regDebt_weighted -> 0.03586 | W17: =+U17-V17 -> 0.1475603117 | X17: =+((W17*(1-0.34))-Pfd_weighted)/Equity_percent -> 0.2651157143 | Y17: =+Y16 -> 0.25 | Z17: =+X17+Y17 -> 0.5151157143 | AA17: =Z17*equityP -> 0.2534369314 | AB17: =+AA17/(1-taxrate) -> 0.2539448211 | AC17: =debtP*Debt_Rate -> 0.02028302025 | AD17: =+AC17+AB17 -> 0.2742278413 | AE17: =+AD17/(S17/100) -> 0.09088547554 | AF17: =1-AE17 -> 0.9091145245 | AG17: =expenses/(AF17) -> 21733.68171 | AH17: =+AG17-Revenue -> 4053.960194 | AI17: =+AH17/$J$49 -> 4580.995466 | AJ17: =+AI17*$J$47 -> 115.7846604 | AK17: =ROUND(+AJ17+AG17,5) -> 21849.46637
F18: 12 | H18: Revenue Requirement | R18: 3 | S18: =AK13/Investment*100 -> 301.5424202 | T18: =EXP(y_inter3-(slope*LN(S18))) -> 6.022419082 | U18: =(+S18*T18/100)/100 -> 0.1816014825 | V18: =regDebt_weighted -> 0.03586 | W18: =+U18-V18 -> 0.1457414825 | X18: =+((W18*(1-0.34))-Pfd_weighted)/Equity_percent -> 0.2616261002 | Y18: =+Y17 -> 0.25 | Z18: =+X18+Y18 -> 0.5116261002 | AA18: =Z18*equityP -> 0.2517200413 | AB18: =+AA18/(1-taxrate) -> 0.2522244903 | AC18: =debtP*Debt_Rate -> 0.02028302025 | AD18: =+AC18+AB18 -> 0.2725075105 | AE18: =+AD18/(S18/100) -> 0.09037120229 | AF18: =1-AE18 -> 0.9096287977 | AG18: =expenses/(AF18) -> 21721.39423 | AH18: =+AG18-Revenue -> 4041.672708 | AI18: =+AH18/$J$49 -> 4567.110544 | AJ18: =+AI18*$J$47 -> 115.433719 | AK18: 21836.82794
B19: For Intial input: Uncheck Checkbox Until Completed | F19: 13 | I19: Historical Revenue | J19: =+Revenue -> 17679.72152 | L19: Revenue Increase before taxes | M19: =+J7 -> 4038.778855 | R19: 4 | S19: =AK14/Investment*100 -> 301.4231857 | T19: =EXP(y_inter4-(slope*LN(S19))) -> 5.986215482 | U19: =(+S19*T19/100)/100 -> 0.1804384141 | V19: =regDebt_weighted -> 0.03586 | W19: =+U19-V19 -> 0.1445784141 | X19: =+((W19*(1-0.34))-Pfd_weighted)/Equity_percent -> 0.2593946317 | Y19: =+Y18 -> 0.25 | Z19: 0.5093946317 | AA19: =Z19*equityP -> 0.2506221588 | AB19: =+AA19/(1-taxrate) -> 0.2511244076 | AC19: =debtP*Debt_Rate -> 0.02028302025 | AD19: =+AC19+AB19 -> 0.2714074279 | AE19: =+AD19/(S19/100) -> 0.09004198772 | AF19: =1-AE19 -> 0.9099580123 | AG19: =expenses/(AF19) -> 21713.53562 | AH19: =+AG19-Revenue -> 4033.814104 | AI19: =+AH19/$J$49 -> 4558.230282 | AJ19: =+AI19*$J$47 -> 115.2092704 | AK19: 21828.74489
F20: 14 | I20: Rate Increase | J20: =+J21-J19 -> 4154.129923 | L20: Rev Sensitive Taxes | M20: =+L8 -> 115.351068 | R20: 4th Iteration
F21: 15 | I21: Revenue Requirement | J21: =+M7 -> 21833.85144 | L21: Rate Increase | M21: =+M19+M20 -> 4154.129923 | R21: 1 | S21: =AK16/Investment*100 -> 302.5220635 | T21: =EXP(y_inter1-(slope*LN(+S21))) -> 6.155657205 | U21: =(+S21*T21/100)/100 -> 0.186222212 | V21: =regDebt_weighted -> 0.03586 | W21: =+U21-V21 -> 0.150362212 | X21: =+((W21*(1-0.34))-Pfd_weighted)/Equity_percent -> 0.2704914533 | Y21: =+Y19 -> 0.25 | Z21: =+X21+Y21 -> 0.5204914533 | AA21: =Z21*equityP -> 0.256081795 | AB21: =+AA21/(1-taxrate) -> 0.256594985 | AC21: =debtP*Debt_Rate -> 0.02028302025 | AD21: =+AC21+AB21 -> 0.2768780052 | AE21: =+AD21/(S21/100) -> 0.09152324363 | AF21: =1-AE21 -> 0.9084767564 | AG21: =expenses/(AF21) -> 21748.93917 | AH21: =+AG21-Revenue -> 4069.217655 | AI21: =+AH21/$J$49 -> 4598.236473 | AJ21: =+AI21*$J$47 -> 116.2204269 | AK21: =ROUND(+AJ21+AG21,5) -> 21865.1596
F22: 16 | R22: 2 | S22: =AK17/Investment*100 -> 302.2624465 | T22: =EXP(y_inter2-(slope*LN(+S22))) -> 6.071638426 | U22: =(+S22*T22/100)/100 -> 0.1835228285 | V22: =regDebt_weighted -> 0.03586 | W22: =+U22-V22 -> 0.1476628285 | X22: =+((W22*(1-0.34))-Pfd_weighted)/Equity_percent -> 0.2653124035 | Y22: =+Y21 -> 0.25 | Z22: =+X22+Y22 -> 0.5153124035 | AA22: =Z22*equityP -> 0.2535337025 | AB22: =+AA22/(1-taxrate) -> 0.2540417861 | AC22: =debtP*Debt_Rate -> 0.02028302025 | AD22: =+AC22+AB22 -> 0.2743248064 | AE22: =+AD22/(S22/100) -> 0.09075715806 | AF22: =1-AE22 -> 0.9092428419 | AG22: =expenses/(AF22) -> 21730.61453 | AH22: =+AG22-Revenue -> 4050.893014 | AI22: =+AH22/$J$49 -> 4577.529537 | AJ22: =+AI22*$J$47 -> 115.697059 | AK22: =ROUND(+AJ22+AG22,5) -> 21846.31159
B23: 2018 Version Update Changes | F23: 17 | R23: 3 | S23: =AK18/Investment*100 -> 302.0876083 | T23: =EXP(y_inter3-(slope*LN(S23))) -> 6.014986238 | U23: =(+S23*T23/100)/100 -> 0.1817052806 | V23: =regDebt_weighted -> 0.03586 | W23: =+U23-V23 -> 0.1458452806 | X23: =+((W23*(1-0.34))-Pfd_weighted)/Equity_percent -> 0.2618252478 | Y23: =+Y22 -> 0.25 | Z23: =+X23+Y23 -> 0.5118252478 | AA23: =Z23*equityP -> 0.2518180219 | AB23: =+AA23/(1-taxrate) -> 0.2523226672 | AC23: =debtP*Debt_Rate -> 0.02028302025 | AD23: =+AC23+AB23 -> 0.2726056875 | AE23: =+AD23/(S23/100) -> 0.09024060571 | AF23: =1-AE23 -> 0.9097593943 | AG23: =expenses/(AF23) -> 21718.2761 | AH23: =+AG23-Revenue -> 4038.554587 | AI23: =+AH23/$J$49 -> 4563.587052 | AJ23: =+AI23*$J$47 -> 115.3446627 | AK23: 21833.62077
B24: ● Allows Income Tax Rate Changes, | F24: 18 | H24: Captial Structure Financing Investment | K24: Financing Cost | R24: 4 | S24: =AK19/Investment*100 -> 301.9757885 | T24: =EXP(y_inter4-(slope*LN(S24))) -> 5.978724037 | U24: =(+S24*T24/100)/100 -> 0.1805429905 | V24: =regDebt_weighted -> 0.03586 | W24: =+U24-V24 -> 0.1446829905 | X24: =+((W24*(1-0.34))-Pfd_weighted)/Equity_percent -> 0.2595952725 | Y24: =+Y23 -> 0.25 | Z24: 0.5095952725 | AA24: =Z24*equityP -> 0.2507208741 | AB24: =+AA24/(1-taxrate) -> 0.2512233207 | AC24: =debtP*Debt_Rate -> 0.02028302025 | AD24: =+AC24+AB24 -> 0.271506341 | AE24: =+AD24/(S24/100) -> 0.08990997004 | AF24: =1-AE24 -> 0.91009003 | AG24: =expenses/(AF24) -> 21710.38586 | AH24: =+AG24-Revenue -> 4030.664339 | AI24: =+AH24/$J$49 -> 4554.671031 | AJ24: =+AI24*$J$47 -> 115.1193103 | AK24: 21825.50517
B25: ● Minimizes impact of changes in test-year revenue from | F25: 19 | H25: Type | I25: Percent | J25: Amount | K25: Cost of Capital | L25: Weighted | M25: Amount | R25: 5th Iteration
B26: resulting revenue requirment, | F26: 20 | H26: Equity | I26: =1-I27 -> 0.492 | J26: =+I26*J28 -> 3556.491247 | K26: =+K34 -> 0.5088861224 | L26: =+K26*I26 -> 0.2503719722 | M26: =+J26*K26 -> 1809.84904 | R26: 1 | S26: =AK21/Investment*100 -> 302.4795445 | T26: =EXP(y_inter1-(slope*LN(+S26))) -> 6.156248766 | U26: =(+S26*T26/100)/100 -> 0.1862139322 | V26: =regDebt_weighted -> 0.03586 | W26: =+U26-V26 -> 0.1503539322 | X26: =+((W26*(1-0.34))-Pfd_weighted)/Equity_percent -> 0.2704755677 | Y26: =+Y24 -> 0.25 | Z26: =+X26+Y26 -> 0.5204755677 | AA26: =Z26*equityP -> 0.2560739793 | AB26: =+AA26/(1-taxrate) -> 0.2565871536 | AC26: =debtP*Debt_Rate -> 0.02028302025 | AD26: =+AC26+AB26 -> 0.2768701738 | AE26: =+AD26/(S26/100) -> 0.09153351984 | AF26: =1-AE26 -> 0.9084664802 | AG26: =expenses/(AF26) -> 21749.18519 | AH26: =+AG26-Revenue -> 4069.46367 | AI26: =+AH26/$J$49 -> 4598.514472 | AJ26: =+AI26*$J$47 -> 116.2274533 | AK26: =ROUND(+AJ26+AG26,5) -> 21865.41264
B27: ● Corrects interest rate transposition in LG. | F27: 21 | H27: Debt | I27: =IF(A64=TRUE,C8,0) -> 0.508 | J27: =+I27*J28 -> 3672.149499 | K27: =IF(A64=TRUE,C9,0) -> 0.03992720522 | L27: =+K27*I27 -> 0.02028302025 | M27: =+K27*J27 -> 146.6186666 | R27: 2 | S27: =AK22/Investment*100 -> 302.2188038 | T27: =EXP(y_inter2-(slope*LN(+S27))) -> 6.072237849 | U27: =(+S27*T27/100)/100 -> 0.1835144459 | V27: =regDebt_weighted -> 0.03586 | W27: =+U27-V27 -> 0.1476544459 | X27: =+((W27*(1-0.34))-Pfd_weighted)/Equity_percent -> 0.2652963206 | Y27: =+Y26 -> 0.25 | Z27: =+X27+Y27 -> 0.5152963206 | AA27: =Z27*equityP -> 0.2535257897 | AB27: =+AA27/(1-taxrate) -> 0.2540338574 | AC27: =debtP*Debt_Rate -> 0.02028302025 | AD27: =+AC27+AB27 -> 0.2743168777 | AE27: =+AD27/(S27/100) -> 0.09076764062 | AF27: =1-AE27 -> 0.9092323594 | AG27: =expenses/(AF27) -> 21730.86506 | AH27: =+AG27-Revenue -> 4051.143547 | AI27: =+AH27/$J$49 -> 4577.81264 | AJ27: =+AI27*$J$47 -> 115.7042145 | AK27: =ROUND(+AJ27+AG27,5) -> 21846.56928
F28: 22 | H28: Total | I28: =SUM(I26:I27) -> 1 | J28: =IF(A64=TRUE,C7,0) -> 7228.640746 | L28: =SUM(L26:L27) -> 0.2706549925 | M28: =SUM(M26:M27) -> 1956.467707 | R28: 3 | S28: =AK23/Investment*100 -> 302.0432407 | T28: =EXP(y_inter3-(slope*LN(S28))) -> 6.01559028 | U28: =(+S28*T28/100)/100 -> 0.1816968383 | V28: =regDebt_weighted -> 0.03586 | W28: =+U28-V28 -> 0.1458368383 | X28: =+((W28*(1-0.34))-Pfd_weighted)/Equity_percent -> 0.2618090503 | Y28: =+Y27 -> 0.25 | Z28: =+X28+Y28 -> 0.5118090503 | AA28: =Z28*equityP -> 0.2518100527 | AB28: =+AA28/(1-taxrate) -> 0.2523146821 | AC28: =debtP*Debt_Rate -> 0.02028302025 | AD28: =+AC28+AB28 -> 0.2725977023 | AE28: =+AD28/(S28/100) -> 0.09025121757 | AF28: =1-AE28 -> 0.9097487824 | AG28: =expenses/(AF28) -> 21718.52944 | AH28: =+AG28-Revenue -> 4038.807922 | AI28: =+AH28/$J$49 -> 4563.873322 | AJ28: =+AI28*$J$47 -> 115.3518982 | AK28: 21833.88134
F29: 23 | R29: 4 | S29: =AK24/Investment*100 -> 301.9309707 | T29: =EXP(y_inter4-(slope*LN(S29))) -> 5.979330756 | U29: =(+S29*T29/100)/100 -> 0.1805345139 | V29: =regDebt_weighted -> 0.03586 | W29: =+U29-V29 -> 0.1446745139 | X29: =+((W29*(1-0.34))-Pfd_weighted)/Equity_percent -> 0.2595790093 | Y29: =+Y28 -> 0.25 | Z29: 0.5095790093 | AA29: =Z29*equityP -> 0.2507128726 | AB29: =+AA29/(1-taxrate) -> 0.2512153032 | AC29: =debtP*Debt_Rate -> 0.02028302025 | AD29: =+AC29+AB29 -> 0.2714983234 | AE29: =+AD29/(S29/100) -> 0.08992066061 | AF29: =1-AE29 -> 0.9100793394 | AG29: =expenses/(AF29) -> 21710.64088 | AH29: =+AG29-Revenue -> 4030.919367 | AI29: =+AH29/$J$49 -> 4554.959215 | AJ29: =+AI29*$J$47 -> 115.1265942 | AK29: 21825.76748
F30: 24 | J30: Before | K30: After | R30: 6th Iteration
F31: 25 | H31: Operating Statistics | J31: Income Tax | K31: Income Tax | R31: 1 | S31: =AK26/Investment*100 -> 302.483045 | T31: =EXP(y_inter1-(slope*LN(+S31))) -> 6.156200058 | U31: =(+S31*T31/100)/100 -> 0.1862146139 | V31: =regDebt_weighted -> 0.03586 | W31: =+U31-V31 -> 0.1503546139 | X31: =+((W31*(1-0.34))-Pfd_weighted)/Equity_percent -> 0.2704768755 | Y31: =+Y29 -> 0.25 | Z31: =+X31+Y31 -> 0.5204768755 | AA31: =Z31*equityP -> 0.2560746228 | AB31: =+AA31/(1-taxrate) -> 0.2565877984 | AC31: =debtP*Debt_Rate -> 0.02028302025 | AD31: =+AC31+AB31 -> 0.2768708186 | AE31: =+AD31/(S31/100) -> 0.09153267371 | AF31: =1-AE31 -> 0.9084673263 | AG31: =expenses/(AF31) -> 21749.16493 | AH31: =+AG31-Revenue -> 4069.443414 | AI31: =+AH31/$J$49 -> 4598.491582 | AJ31: =+AI31*$J$47 -> 116.2268747 | AK31: =ROUND(+AJ31+AG31,5) -> 21865.39181
F32: 26 | R32: 2 | S32: =AK27/Investment*100 -> 302.2223686 | T32: =EXP(y_inter2-(slope*LN(+S32))) -> 6.072188881 | U32: =(+S32*T32/100)/100 -> 0.1835151306 | V32: =regDebt_weighted -> 0.03586 | W32: =+U32-V32 -> 0.1476551306 | X32: =+((W32*(1-0.34))-Pfd_weighted)/Equity_percent -> 0.2652976343 | Y32: =+Y31 -> 0.25 | Z32: =+X32+Y32 -> 0.5152976343 | AA32: =Z32*equityP -> 0.2535264361 | AB32: =+AA32/(1-taxrate) -> 0.2540345051 | AC32: =debtP*Debt_Rate -> 0.02028302025 | AD32: =+AC32+AB32 -> 0.2743175253 | AE32: =+AD32/(S32/100) -> 0.09076678428 | AF32: =1-AE32 -> 0.9092332157 | AG32: =expenses/(AF32) -> 21730.8446 | AH32: =+AG32-Revenue -> 4051.12308 | AI32: =+AH32/$J$49 -> 4577.789513 | AJ32: =+AI32*$J$47 -> 115.7036299 | AK32: =ROUND(+AJ32+AG32,5) -> 21846.54823
F33: 27 | H33: Return on Investment | J33: =+K9/J28 -> 0.2711567399 | K33: =+(M14+M11)/J28 -> 0.2706549925 | R33: 3 | S33: =AK28/Investment*100 -> 302.0468454 | T33: =EXP(y_inter3-(slope*LN(S33))) -> 6.015541199 | U33: =(+S33*T33/100)/100 -> 0.1816975243 | V33: =regDebt_weighted -> 0.03586 | W33: =+U33-V33 -> 0.1458375243 | X33: =+((W33*(1-0.34))-Pfd_weighted)/Equity_percent -> 0.2618103663 | Y33: =+Y32 -> 0.25 | Z33: =+X33+Y33 -> 0.5118103663 | AA33: =Z33*equityP -> 0.2518107002 | AB33: =+AA33/(1-taxrate) -> 0.2523153309 | AC33: =debtP*Debt_Rate -> 0.02028302025 | AD33: =+AC33+AB33 -> 0.2725983511 | AE33: =+AD33/(S33/100) -> 0.09025035529 | AF33: =1-AE33 -> 0.9097496447 | AG33: =expenses/(AF33) -> 21718.50885 | AH33: =+AG33-Revenue -> 4038.787337 | AI33: =+AH33/$J$49 -> 4563.850061 | AJ33: =+AI33*$J$47 -> 115.3513103 | AK33: 21833.86016
F34: 28 | H34: Return on Equity | J34: =+(M9-M11)/J26 -> 0.5099059343 | K34: =+M14/J26 -> 0.5088861224 | R34: 4 | S34: =AK29/Investment*100 -> 301.9345994 | T34: =EXP(y_inter4-(slope*LN(S34))) -> 5.979281627 | U34: =(+S34*T34/100)/100 -> 0.1805352003 | V34: =regDebt_weighted -> 0.03586 | W34: =+U34-V34 -> 0.1446752003 | X34: =+((W34*(1-0.34))-Pfd_weighted)/Equity_percent -> 0.2595803261 | Y34: =+Y33 -> 0.25 | Z34: 0.5095803261 | AA34: =Z34*equityP -> 0.2507135204 | AB34: =+AA34/(1-taxrate) -> 0.2512159524 | AC34: =debtP*Debt_Rate -> 0.02028302025 | AD34: =+AC34+AB34 -> 0.2714989726 | AE34: =+AD34/(S34/100) -> 0.08991979492 | AF34: =1-AE34 -> 0.9100802051 | AG34: =expenses/(AF34) -> 21710.62023 | AH34: =+AG34-Revenue -> 4030.898716 | AI34: =+AH34/$J$49 -> 4554.935878 | AJ34: =+AI34*$J$47 -> 115.1260043 | AK34: 21825.74624
F35: 29 | H35: Operating Ratio | J35: =+K8/K7 -> 0.90975 | K35: =+M8/M7 -> 0.9102268025 | R35: 7th Iteration
F36: 30 | H36: Profit Margin | J36: =+K9/K7 -> 0.09025 | K36: =+J36 -> 0.09025 | R36: 1 | S36: =AK31/Investment*100 -> 302.4827568 | T36: =EXP(y_inter1-(slope*LN(+S36))) -> 6.156204068 | U36: =(+S36*T36/100)/100 -> 0.1862145578 | V36: =regDebt_weighted -> 0.03586 | W36: =+U36-V36 -> 0.1503545578 | X36: =+((W36*(1-0.34))-Pfd_weighted)/Equity_percent -> 0.2704767679 | Y36: =+Y34 -> 0.25 | Z36: =+X36+Y36 -> 0.5204767679 | AA36: =Z36*equityP -> 0.2560745698 | AB36: =+AA36/(1-taxrate) -> 0.2565877453 | AC36: =debtP*Debt_Rate -> 0.02028302025 | AD36: =+AC36+AB36 -> 0.2768707655 | AE36: =+AD36/(S36/100) -> 0.09153274337 | AF36: =1-AE36 -> 0.9084672566 | AG36: =expenses/(AF36) -> 21749.1666 | AH36: =+AG36-Revenue -> 4069.445081 | AI36: =+AH36/$J$49 -> 4598.493466 | AJ36: =+AI36*$J$47 -> 116.2269224 | AK36: =ROUND(+AJ36+AG36,5) -> 21865.39352
F37: 31 | H37: Final turnover | J37: =+S39/100 -> 3.019343056 | K37: =+J37 -> 3.019343056 | R37: 2 | S37: =AK32/Investment*100 -> 302.2220774 | T37: =EXP(y_inter2-(slope*LN(+S37))) -> 6.072192881 | U37: =(+S37*T37/100)/100 -> 0.1835150747 | V37: =regDebt_weighted -> 0.03586 | W37: =+U37-V37 -> 0.1476550747 | X37: =+((W37*(1-0.34))-Pfd_weighted)/Equity_percent -> 0.265297527 | Y37: =+Y36 -> 0.25 | Z37: =+X37+Y37 -> 0.515297527 | AA37: =Z37*equityP -> 0.2535263833 | AB37: =+AA37/(1-taxrate) -> 0.2540344522 | AC37: =debtP*Debt_Rate -> 0.02028302025 | AD37: =+AC37+AB37 -> 0.2743174724 | AE37: =+AD37/(S37/100) -> 0.09076685423 | AF37: =1-AE37 -> 0.9092331458 | AG37: =expenses/(AF37) -> 21730.84627 | AH37: =+AG37-Revenue -> 4051.124752 | AI37: =+AH37/$J$49 -> 4577.791402 | AJ37: =+AI37*$J$47 -> 115.7036777 | AK37: =ROUND(+AJ37+AG37,5) -> 21846.54995
F38: 32 | H38: Tax Rate | J38: =+C10 -> 0.002 | K38: =+J38 -> 0.002 | R38: 3 | S38: =AK33/Investment*100 -> 302.0465524 | T38: =EXP(y_inter3-(slope*LN(S38))) -> 6.015545188 | U38: =(+S38*T38/100)/100 -> 0.1816974685 | V38: =regDebt_weighted -> 0.03586 | W38: =+U38-V38 -> 0.1458374685 | X38: =+((W38*(1-0.34))-Pfd_weighted)/Equity_percent -> 0.2618102593 | Y38: =+Y37 -> 0.25 | Z38: =+X38+Y38 -> 0.5118102593 | AA38: =Z38*equityP -> 0.2518106476 | AB38: =+AA38/(1-taxrate) -> 0.2523152781 | AC38: =debtP*Debt_Rate -> 0.02028302025 | AD38: =+AC38+AB38 -> 0.2725982984 | AE38: =+AD38/(S38/100) -> 0.09025042538 | AF38: =1-AE38 -> 0.9097495746 | AG38: =expenses/(AF38) -> 21718.51053 | AH38: =+AG38-Revenue -> 4038.78901 | AI38: =+AH38/$J$49 -> 4563.851951 | AJ38: =+AI38*$J$47 -> 115.3513581 | AK38: 21833.86189
F39: 33 | R39: 4 | S39: =AK34/Investment*100 -> 301.9343056 | T39: =EXP(y_inter4-(slope*LN(S39))) -> 5.979285605 | U39: =(+S39*T39/100)/100 -> 0.1805351447 | V39: =regDebt_weighted -> 0.03586 | W39: =+U39-V39 -> 0.1446751447 | X39: =+((W39*(1-0.34))-Pfd_weighted)/Equity_percent -> 0.2595802195 | Y39: =+Y38 -> 0.25 | Z39: 0.5095802195 | AA39: =Z39*equityP -> 0.250713468 | AB39: =+AA39/(1-taxrate) -> 0.2512158998 | AC39: =debtP*Debt_Rate -> 0.02028302025 | AD39: =+AC39+AB39 -> 0.27149892 | AE39: =+AD39/(S39/100) -> 0.08991986502 | AF39: =1-AE39 -> 0.910080135 | AG39: =expenses/(AF39) -> 21710.6219 | AH39: =+AG39-Revenue -> 4030.900388 | AI39: =+AH39/$J$49 -> 4554.937768 | AJ39: =+AI39*$J$47 -> 115.1260521 | AK39: 21825.74796
F40: 34
F41: 35 | H41: Revenue Sensitive Taxes Charges | R41: Curve
F42: 36 | J42: Rate | K42: Taxes | R42: Lookup Table
F43: 37 | H43: B & O Tax | J43: =IF(A64=TRUE,C11,0) -> 0.015 | K43: =+J43*($J$7/$J$49) -> 68.45760714 | R43: 0 | S43: 1 | U43: Profit Margin | V43: =VLOOKUP(R48,R36:AG39,14) -> 0.09025042538
F44: 38 | H44: WUTC Fee | J44: =IF(A64=TRUE,C12,0) -> 0.004275 | K44: =+J44*($J$7/$J$49) -> 19.51041803 | R44: 50 | S44: 2 | U44: Operating Ratio | V44: =ROUND(1-V43,6) -> 0.90975
F45: 39 | H45: City Tax | J45: =IF(A64=TRUE,C13,0) -> 0 | K45: =+J45*($J$7/$J$49) -> 0 | R45: 125 | S45: 3 | U45: Percent Chg | V45: =+M7/Revenue-1 -> 0.2349658008
F46: 40 | H46: Bad Debts | J46: =IF(A64=TRUE,C14,0) -> 0.006 | K46: =+J46*($J$7/$J$49) -> 27.38304286 | R46: 401 | S46: 4
F47: 41 | H47: Revenue Sensitive | J47: =SUM(J43:J46) -> 0.025275 | K47: =+K43+K44+K45+K46 -> 115.351068 | R47: =VLOOKUP(R48,R36:S39,2) -> 302.0465524 | S47: Curve turnover | X47: @EXP(5.72260-(.68367*@LN(T)))
F48: 42 | R48: =VLOOKUP(S36,R43:S46,2) -> 3 | S48: Curve No. Used | X48: @EXP(5.70827-(.68367*@LN(T)))
F49: 43 | H49: Conversion Factor | J49: =((K35)-J47) -> 0.8849518025 | X49: @EXP(5.69850-(.68367*@LN(T)))
R50: =+V44 -> 0.90975 | S50: Operating Ratio | X50: @EXP(5.69220-(.68367*@LN(T)))
S53: Base Utility from LG Sample Study | W53: Regression Results
S54: Percent | T54: Cost | U54: Weighted | W54: Y intercept (1) | X54: 5.7226 | Y54: Y intercept (3) | Z54: 5.6985
R55: Debt | S55: 0.562 | T55: 0.0638 | U55: =ROUND(+S55*T55,5) -> 0.03586 | W55: Y intercept (2) | X55: 5.70827 | Y55: Y intercept (4) | Z55: 5.6922
R56: Pfd. | S56: 0.094 | T56: 0.0659 | U56: =ROUND(+S56*T56,5) -> 0.00619
R57: Equity | S57: 0.344 | X57: Slope | Y57: 0.68367
S58: =SUM(S55:S57) -> 1
X60: Operating Statistics | Y60: Pre-tax | Z60: After Tax
X62: Return on Investment | Y62: =+J33 -> 0.2711567399 | Z62: 0.2706549925
X63: Return on Equity | Y63: 0.5099059343 | Z63: 0.5088861224
A64: TRUE | X64: Operating Ratio | Y64: 0.90975 | Z64: 0.9102268025
X65: Profit Margin | Y65: 0.09025 | Z65: 0.09025
X66: Final turnover | Y66: 3.019343056 | Z66: 3.019343056
X67: Tax Rate | Y67: 0.002 | Z67: 0.002

Sheet MF RCY
B1: NEW IMPROVED LURITO - GALLAGHER FORMULA | AE1: !??! | AF1: OP/RATIO | AI1: curve
G2: NOTE: | N2: FORMULAS | U2: 1st Revenue | V2: 1st Turnover | W2: M | X2: ROR | Y2: ROE | AA2: Adj ROE | AB2: Pre Tax ROE | AC2: Adj M | AD2: Revenues | AE2: Decision | AI2: lookup table
B3: !!! | C3: Revenue Requirement | E3: =E5+E4 -> 21833.92412 | F3: !!!<-- | H3: Red numbers are input/linked fields. | N3: 1. less than 50 | Q3: @EXP(5.72260-(.68367*@LN(T))) | U3: =$E$6*1.25 -> 24698.00714 | V3: ='MF RCY LG 2018 V5.0c'!S6 -> 244.5787824 | W3: =EXP(5.7226-(0.68367*LN(+V3))) -> 7.118743352 | X3: =(+W3*V3)/100 -> 17.41093581 | Y3: ='MF RCY LG 2018 V5.0c'!X6*100 -> 24.72516754 | Z3: ='MF RCY LG 2018 V5.0c'!Y6*100 -> 25 | AA3: =Y3+Z3 -> 49.72516754 | AB3: =100*($E$15*$E$17+($E$16*(AA3/100))/(1-$E$19)) -> 26.55506428 | AC3: ='MF RCY LG 2018 V5.0c'!AE6 -> 0.1085217279 | AD3: =$E$6/(1-AC3) -> 22163.64249 | AE3: =IF(AD3=$U$3,"yes","not yet") -> not yet | AF3: =100*(1-AC3) -> 89.14782721 | AI3: 0 | AJ3: 1
B4: !!! | C4: Revenue Deficiency | E4: =(+E6-((H13/100)*E5))/H23 -> 4154.202608 | F4: !!!<-- | H4: Black are formula calculations | N4: 2. Between 50 and 125 | Q4: @EXP(5.70827-(.68367*@LN(T))) | U4: =$E$6*1.25 -> 24698.00714 | V4: ='MF RCY LG 2018 V5.0c'!S7 -> 244.5787824 | W4: ='MF RCY LG 2018 V5.0c'!T7 -> 7.118743352 | X4: =(+W4*V4)/100 -> 17.41093581 | Y4: ='MF RCY LG 2018 V5.0c'!X7*100 -> 24.72516754 | Z4: ='MF RCY LG 2018 V5.0c'!Y7*100 -> 25 | AA4: =Y4+Z4 -> 49.72516754 | AB4: =100*($E$15*$E$17+($E$16*(AA4/100))/(1-$E$19)) -> 26.55506428 | AC4: ='MF RCY LG 2018 V5.0c'!AE7 -> 0.1085217279 | AD4: =$E$6/(1-AC4) -> 22163.64249 | AE4: =IF(AD4=$U$4,"yes","not yet") -> not yet | AF4: =100*(1-AC4) -> 89.14782721 | AI4: 50 | AJ4: 2
B5: * | C5: Revenue | E5: =Proforma!R26 -> 17679.72152 | F5: * p/f before rates | N5: 3. Between 125 and 140 | Q5: @EXP(5.69850-(.68367*@LN(T))) | U5: =$E$6*1.25 -> 24698.00714 | V5: ='MF RCY LG 2018 V5.0c'!S8 -> 244.5787824 | W5: ='MF RCY LG 2018 V5.0c'!T8 -> 7.118743352 | X5: =(+W5*V5)/100 -> 17.41093581 | Y5: ='MF RCY LG 2018 V5.0c'!X8*100 -> 24.72516754 | Z5: ='MF RCY LG 2018 V5.0c'!Y8*100 -> 25 | AA5: =Y5+Z5 -> 49.72516754 | AB5: =100*($E$15*$E$17+($E$16*(AA5/100))/(1-$E$19)) -> 26.55506428 | AC5: ='MF RCY LG 2018 V5.0c'!AE8 -> 0.1085217279 | AD5: =$E$6/(1-AC5) -> 22163.64249 | AE5: =IF(AD5=$U$5,"yes","not yet") -> not yet | AF5: =100*(1-AC5) -> 89.14782721 | AI5: 125 | AJ5: 3
B6: * | C6: Expenses | E6: =+Proforma!R381 -> 19758.40571 | F6: * p/f before rates | N6: 4. greater than 400 | Q6: @EXP(5.69220-(.68367*@LN(T))) | U6: =$E$6*1.25 -> 24698.00714 | V6: ='MF RCY LG 2018 V5.0c'!S9 -> 244.5787824 | W6: ='MF RCY LG 2018 V5.0c'!T9 -> 7.118743352 | X6: =(+W6*V6)/100 -> 17.41093581 | Y6: ='MF RCY LG 2018 V5.0c'!X9*100 -> 24.72516754 | Z6: ='MF RCY LG 2018 V5.0c'!Y9*100 -> 25 | AA6: =Y6+Z6 -> 49.72516754 | AB6: =100*($E$15*$E$17+($E$16*(AA6/100))/(1-$E$19)) -> 26.55506428 | AC6: ='MF RCY LG 2018 V5.0c'!AE9 -> 0.1085217279 | AD6: =$E$6/(1-AC6) -> 22163.64249 | AE6: =IF(AD6=$U$6,"yes","not yet") -> not yet | AF6: =100*(1-AC6) -> 89.14782721 | AI6: 401 | AJ6: 4
B7: * | C7: Avg. Investment - | E7: ='Ave Inv. Summary'!M66 -> 7228.640746 | F7: * p/f before rates
C8: curve turnover | E8: =V3 -> 244.5787824 | F8: (calculated) | V8: 2nd Turnover | W8: M | X8: ROR | Y8: ROE | AI8: lookup tables
C9: final turnover | E9: =HLOOKUP($AJ$32,$AJ$26:$AR$30,$E$10+1) -> 302.0465524 | F9: (calculated) | V9: ='MF RCY LG 2018 V5.0c'!S11 -> 308.3803442 | W9: =EXP(5.7226-(0.68367*LN(+V9))) -> 6.075467551 | X9: =(+W9*V9)/100 -> 18.73554774 | Y9: ='MF RCY LG 2018 V5.0c'!X11*100 -> 27.26657416 | Z9: ='MF RCY LG 2018 V5.0c'!Y11*100 -> 25 | AA9: =Y9+Z9 -> 52.26657416 | AB9: =100*($E$15*$E$17+($E$16*(AA9/100))/(1-$E$19)) -> 27.80866174 | AC9: ='MF RCY LG 2018 V5.0c'!AE11 -> 0.09013217091 | AD9: =$E$6/(1-AC9) -> 21715.6878 | AE9: =IF(OR(OR(AD9=AD3,AD9=(AD3+1)),AD9=(AD8187-1)),"yes","not yet") -> not yet | AF9: =100*(1-AC9) -> 90.98678291
C10: curve No. used | E10: =VLOOKUP(E8,AI3:AJ6,2) -> 3 | F10: (calculated) | V10: ='MF RCY LG 2018 V5.0c'!S12 -> 308.3803442 | W10: =EXP(5.70827-(0.68367*LN(+V10))) -> 5.989026927 | X10: =(+W10*V10)/100 -> 18.46898185 | Y10: ='MF RCY LG 2018 V5.0c'!X12*100 -> 26.75513959 | Z10: ='MF RCY LG 2018 V5.0c'!Y12*100 -> 25 | AA10: =Y10+Z10 -> 51.75513959 | AB10: =100*($E$15*$E$17+($E$16*(AA10/100))/(1-$E$19)) -> 27.55638685 | AC10: ='MF RCY LG 2018 V5.0c'!AE12 -> 0.08931457644 | AD10: =$E$6/(1-AC10) -> 21696.1919 | AE10: =IF(OR(OR(AD10=AD4,AD10=(AD4+1)),AD10=(AD4-1)),"yes","not yet") -> not yet | AF10: =100*(1-AC10) -> 91.06854236
V11: ='MF RCY LG 2018 V5.0c'!S13 -> 308.3803442 | W11: =EXP(5.6985-(0.68367*LN(V11))) -> 5.93079904 | X11: =(+W11*V11)/100 -> 18.28941849 | Y11: ='MF RCY LG 2018 V5.0c'!X13*100 -> 26.4106285 | Z11: ='MF RCY LG 2018 V5.0c'!Y13*100 -> 25 | AA11: =Y11+Z11 -> 51.4106285 | AB11: =100*($E$15*$E$17+($E$16*(AA11/100))/(1-$E$19)) -> 27.38645016 | AC11: ='MF RCY LG 2018 V5.0c'!AE13 -> 0.08876383078 | AD11: =$E$6/(1-AC11) -> 21683.07886 | AE11: =IF(OR(OR(AD11=AD5,AD11=(AD5+1)),AD11=(AD5-1)),"yes","not yet") -> not yet | AF11: =100*(1-AC11) -> 91.12361692 | AJ11: 1 | AK11: 2 | AL11: 3 | AM11: 4 | AN11: 5 | AO11: 6 | AP11: 7 | AQ11: 8 | AR11: 9
C12: Company actual | V12: ='MF RCY LG 2018 V5.0c'!S14 -> 308.3803442 | W12: =EXP(5.6922-(0.68367*LN(V12))) -> 5.893552456 | X12: =(+W12*V12)/100 -> 18.17455735 | Y12: ='MF RCY LG 2018 V5.0c'!X14*100 -> 26.19025538 | Z12: ='MF RCY LG 2018 V5.0c'!Y14*100 -> 25 | AA12: =Y12+Z12 -> 51.19025538 | AB12: =100*($E$15*$E$17+($E$16*(AA12/100))/(1-$E$19)) -> 27.2777469 | AC12: ='MF RCY LG 2018 V5.0c'!AE14 -> 0.08841153576 | AD12: =$E$6/(1-AC12) -> 21674.69915 | AE12: =IF(OR(OR(AD12=AD6,AD12=(AD6+1)),AD12=(AD6-1)),"yes","not yet") -> not yet | AF12: =100*(1-AC12) -> 91.15884642 | AJ12: =AE3 -> not yet | AK12: =AE9 -> not yet | AL12: =AE15 -> not yet | AM12: =AE21 -> not yet | AN12: =AE27 -> not yet | AO12: =AE33 -> not yet | AP12: =AE39 -> yes | AQ12: =AE45 -> 0 | AR12: =AE51 -> 0
C13: capital structure: | E13: !!! | F13: OPERATING RATIO -> | H13: =HLOOKUP($AJ$23,$AJ$17:$AR$21,$E$10+1) -> 90.97495746 | I13: !!!<-- | AJ13: =AE4 -> not yet | AK13: =AE10 -> not yet | AL13: =AE16 -> not yet | AM13: =AE22 -> not yet | AN13: =AE28 -> not yet | AO13: =AE34 -> not yet | AP13: =AE40 -> yes | AQ13: =AE46 -> 0 | AR13: =AE52 -> 0
C14: - | D14: - | H14: = | V14: 3rd Turnover | W14: M | X14: ROR | Y14: ROE | AJ14: =AE5 -> not yet | AK14: =AE11 -> not yet | AL14: =AE17 -> not yet | AM14: =AE23 -> not yet | AN14: =AE29 -> not yet | AO14: =AE35 -> not yet | AP14: =AE41 -> yes | AQ14: =AE47 -> 0 | AR14: =AE53 -> 0
B15: * | C15: Actual Debt Ratio | E15: =+'Combined LG'!E15 -> 0.5077173987 | F15: Conversion factor data: | V15: ='MF RCY LG 2018 V5.0c'!S16 -> 302.0064118 | W15: =EXP(5.7226-(0.68367*LN(+V15))) -> 6.162840837 | X15: =(+W15*V15)/100 -> 18.61217448 | Y15: ='MF RCY LG 2018 V5.0c'!X16*100 -> 27.02986964 | Z15: ='MF RCY LG 2018 V5.0c'!Y16*100 -> 25 | AA15: =Y15+Z15 -> 52.02986964 | AB15: =100*($E$15*$E$17+($E$16*(AA15/100))/(1-$E$19)) -> 27.6919027 | AC15: ='MF RCY LG 2018 V5.0c'!AE16 -> 0.09164804718 | AD15: =$E$6/(1-AC15) -> 21751.92738 | AE15: =IF(OR(OR(AD15=AD9,AD15=(AD9+1)),AD15=(AD1-1)),"yes","not yet") -> not yet | AF15: =100*(1-AC15) -> 90.83519528 | AJ15: =AE6 -> not yet | AK15: =AE12 -> not yet | AL15: =AE18 -> not yet | AM15: =AE24 -> not yet | AN15: =AE30 -> not yet | AO15: =AE36 -> not yet | AP15: =AE42 -> yes | AQ15: =AE48 -> 0 | AR15: =AE54 -> 0
B16: * | C16: Actual Equity Ratio | E16: =+'Combined LG'!E16 -> 0.4922826013 | F16: B & O Tax | H16: =+'Combined LG'!H16 -> 0.015 | I16: * | V16: ='MF RCY LG 2018 V5.0c'!S17 -> 301.7290053 | W16: =EXP(5.70827-(0.68367*LN(+V16))) -> 6.078975122 | X16: =(+W16*V16)/100 -> 18.34203117 | Y16: ='MF RCY LG 2018 V5.0c'!X17*100 -> 26.51157143 | Z16: ='MF RCY LG 2018 V5.0c'!Y17*100 -> 25 | AA16: =Y16+Z16 -> 51.51157143 | AB16: =100*($E$15*$E$17+($E$16*(AA16/100))/(1-$E$19)) -> 27.43624219 | AC16: ='MF RCY LG 2018 V5.0c'!AE17 -> 0.09088547554 | AD16: =$E$6/(1-AC16) -> 21733.68171 | AE16: =IF(OR(OR(AD16=AD10,AD16=(AD10+1)),AD16=(AD10-1)),"yes","not yet") -> not yet | AF16: =100*(1-AC16) -> 90.91145245
B17: * | C17: Actual Cost of Debt | E17: =+'Combined LG'!E17 -> 0.03992720522 | F17: WUTC Fee | H17: =+'Combined LG'!H17 -> 0.004275 | I17: * | V17: ='MF RCY LG 2018 V5.0c'!S18 -> 301.5424202 | W17: =EXP(5.6985-(0.68367*LN(V17))) -> 6.022419082 | X17: =(+W17*V17)/100 -> 18.16014825 | Y17: ='MF RCY LG 2018 V5.0c'!X18*100 -> 26.16261002 | Z17: ='MF RCY LG 2018 V5.0c'!Y18*100 -> 25 | AA17: =Y17+Z17 -> 51.16261002 | AB17: =100*($E$15*$E$17+($E$16*(AA17/100))/(1-$E$19)) -> 27.2641103 | AC17: ='MF RCY LG 2018 V5.0c'!AE18 -> 0.09037120229 | AD17: =$E$6/(1-AC17) -> 21721.39423 | AE17: =IF(OR(OR(AD17=AD11,AD17=(AD11+1)),AD17=(AD11-1)),"yes","not yet") -> not yet | AF17: =100*(1-AC17) -> 90.96287977 | AJ17: =HLOOKUP(1,$AJ$11:$AR$15,$E$10+1) -> not yet | AK17: =HLOOKUP(2,$AJ$11:$AR$15,$E$10+1) -> not yet | AL17: =HLOOKUP(3,$AJ$11:$AR$15,$E$10+1) -> not yet | AM17: =HLOOKUP(4,$AJ$11:$AR$15,$E$10+1) -> not yet | AN17: =HLOOKUP(5,$AJ$11:$AR$15,$E$10+1) -> not yet | AO17: =HLOOKUP(6,$AJ$11:$AR$15,$E$10+1) -> not yet | AP17: =HLOOKUP(7,$AJ$11:$AR$15,$E$10+1) -> yes | AQ17: =HLOOKUP(8,$AJ$11:$AR$15,$E$10+1) -> 0 | AR17: =HLOOKUP(9,$AJ$11:$AR$15,$E$10+1) -> 0
B18: * | C18: Basis Points | E18: 0.25 | F18: City Tax | H18: =+'Combined LG'!H18 -> 0 | I18: * | V18: ='MF RCY LG 2018 V5.0c'!S19 -> 301.4231857 | W18: =EXP(5.6922-(0.68367*LN(V18))) -> 5.986215482 | X18: =(+W18*V18)/100 -> 18.04384141 | Y18: ='MF RCY LG 2018 V5.0c'!X19*100 -> 25.93946317 | Z18: ='MF RCY LG 2018 V5.0c'!Y19*100 -> 25 | AA18: =Y18+Z18 -> 50.93946317 | AB18: =100*($E$15*$E$17+($E$16*(AA18/100))/(1-$E$19)) -> 27.15403884 | AC18: ='MF RCY LG 2018 V5.0c'!AE19 -> 0.09004198772 | AD18: =$E$6/(1-AC18) -> 21713.53562 | AE18: =IF(OR(OR(AD18=AD12,AD18=(AD12+1)),AD18=(AD12-1)),"yes","not yet") -> not yet | AF18: =100*(1-AC18) -> 90.99580123 | AI18: 1 | AJ18: =AF3 -> 89.14782721 | AK18: =AF9 -> 90.98678291 | AL18: =AF15 -> 90.83519528 | AM18: =AF21 -> 90.84767564 | AN18: =AF27 -> 90.84664802 | AO18: =AF33 -> 90.84673263 | AP18: =AF39 -> 90.84672566 | AQ18: =AF45 -> 0 | AR18: =AF51 -> 0
B19: * | C19: Tax Rate | E19: =+'Combined LG'!E19 -> 0.002 | F19: Bad Debts | H19: =+'Combined LG'!H19 -> 0.006 | I19: * | AI19: 2 | AJ19: =AF4 -> 89.14782721 | AK19: =AF10 -> 91.06854236 | AL19: =AF16 -> 90.91145245 | AM19: =AF22 -> 90.92428419 | AN19: =AF28 -> 90.92323594 | AO19: =AF34 -> 90.92332157 | AP19: =AF40 -> 90.92331458 | AQ19: =AF46 -> 0 | AR19: =AF52 -> 0
H20: - | V20: 4th Turnover | W20: M | X20: ROR | Y20: ROE | AI20: 3 | AJ20: =AF5 -> 89.14782721 | AK20: =AF11 -> 91.12361692 | AL20: =AF17 -> 90.96287977 | AM20: =AF23 -> 90.97593943 | AN20: =AF29 -> 90.97487824 | AO20: =AF35 -> 90.97496447 | AP20: =AF41 -> 90.97495746 | AQ20: =AF47 -> 0 | AR20: =AF53 -> 0
F21: Revenue Sensitive | H21: =SUM(H16:H19) -> 0.025275 | V21: ='MF RCY LG 2018 V5.0c'!S21 -> 302.5220635 | W21: =EXP(5.7226-(0.68367*LN(+V21))) -> 6.155657205 | X21: =(+W21*V21)/100 -> 18.6222212 | Y21: ='MF RCY LG 2018 V5.0c'!X21*100 -> 27.04914533 | Z21: ='MF RCY LG 2018 V5.0c'!Y21*100 -> 25 | AA21: =Y21+Z21 -> 52.04914533 | AB21: =100*($E$15*$E$17+($E$16*(AA21/100))/(1-$E$19)) -> 27.70141081 | AC21: ='MF RCY LG 2018 V5.0c'!AE21 -> 0.09152324363 | AD21: =$E$6/(1-AC21) -> 21748.93917 | AE21: =IF(OR(OR(AD21=AD15,AD21=(AD15+1)),AD21=(AD7-1)),"yes","not yet") -> not yet | AF21: =100*(1-AC21) -> 90.84767564 | AI21: 4 | AJ21: =AF6 -> 89.14782721 | AK21: =AF12 -> 91.15884642 | AL21: =AF18 -> 90.99580123 | AM21: =AF24 -> 91.009003 | AN21: =AF30 -> 91.00793394 | AO21: =AF36 -> 91.00802051 | AP21: =AF42 -> 91.0080135 | AQ21: =AF48 -> 0 | AR21: =AF54 -> 0
V22: ='MF RCY LG 2018 V5.0c'!S22 -> 302.2624465 | W22: =EXP(5.70827-(0.68367*LN(+V22))) -> 6.071638426 | X22: =(+W22*V22)/100 -> 18.35228285 | Y22: ='MF RCY LG 2018 V5.0c'!X22*100 -> 26.53124035 | Z22: ='MF RCY LG 2018 V5.0c'!Y22*100 -> 25 | AA22: =Y22+Z22 -> 51.53124035 | AB22: =100*($E$15*$E$17+($E$16*(AA22/100))/(1-$E$19)) -> 27.44594427 | AC22: ='MF RCY LG 2018 V5.0c'!AE22 -> 0.09075715806 | AD22: =$E$6/(1-AC22) -> 21730.61453 | AE22: =IF(OR(OR(AD22=AD16,AD22=(AD16+1)),AD22=(AD16-1)),"yes","not yet") -> not yet | AF22: =100*(1-AC22) -> 90.92428419
F23: Conversion Factor | H23: =((+H13/100)-H21) -> 0.8844745746 | V23: ='MF RCY LG 2018 V5.0c'!S23 -> 302.0876083 | W23: =EXP(5.6985-(0.68367*LN(V23))) -> 6.014986238 | X23: =(+W23*V23)/100 -> 18.17052806 | Y23: ='MF RCY LG 2018 V5.0c'!X23*100 -> 26.18252478 | Z23: ='MF RCY LG 2018 V5.0c'!Y23*100 -> 25 | AA23: =Y23+Z23 -> 51.18252478 | AB23: =100*($E$15*$E$17+($E$16*(AA23/100))/(1-$E$19)) -> 27.27393363 | AC23: ='MF RCY LG 2018 V5.0c'!AE23 -> 0.09024060571 | AD23: =$E$6/(1-AC23) -> 21718.2761 | AE23: =IF(OR(OR(AD23=AD17,AD23=(AD17+1)),AD23=(AD17-1)),"yes","not yet") -> not yet | AF23: =100*(1-AC23) -> 90.97593943 | AJ23: yes
V24: ='MF RCY LG 2018 V5.0c'!S24 -> 301.9757885 | W24: =EXP(5.6922-(0.68367*LN(V24))) -> 5.978724037 | X24: =(+W24*V24)/100 -> 18.05429905 | Y24: ='MF RCY LG 2018 V5.0c'!X24*100 -> 25.95952725 | Z24: ='MF RCY LG 2018 V5.0c'!Y24*100 -> 25 | AA24: =Y24+Z24 -> 50.95952725 | AB24: =100*($E$15*$E$17+($E$16*(AA24/100))/(1-$E$19)) -> 27.16393584 | AC24: ='MF RCY LG 2018 V5.0c'!AE24 -> 0.08990997004 | AD24: =$E$6/(1-AC24) -> 21710.38586 | AE24: =IF(OR(OR(AD24=AD18,AD24=(AD18+1)),AD24=(AD18-1)),"yes","not yet") -> not yet | AF24: =100*(1-AC24) -> 91.009003 | AJ24: =HLOOKUP($AJ$23,$AJ$17:$AR$21,$E$10+1) -> 90.97495746
C25: Company Reference
C26: Annl Price Increase (PI) $ | E26: =+E4 -> 4154.202608 | V26: 5th Turnover | W26: M | X26: ROR | Y26: ROE | AJ26: =HLOOKUP(1,$AJ$11:$AR$15,$E$10+1) -> not yet | AK26: =HLOOKUP(2,$AJ$11:$AR$15,$E$10+1) -> not yet | AL26: =HLOOKUP(3,$AJ$11:$AR$15,$E$10+1) -> not yet | AM26: =HLOOKUP(4,$AJ$11:$AR$15,$E$10+1) -> not yet | AN26: =HLOOKUP(5,$AJ$11:$AR$15,$E$10+1) -> not yet | AO26: =HLOOKUP(6,$AJ$11:$AR$15,$E$10+1) -> not yet | AP26: =HLOOKUP(7,$AJ$11:$AR$15,$E$10+1) -> yes | AQ26: =HLOOKUP(8,$AJ$11:$AR$15,$E$10+1) -> 0 | AR26: =HLOOKUP(9,$AJ$11:$AR$15,$E$10+1) -> 0
C27: Monthly PI $ | E27: =+E26/12 -> 346.1835506 | V27: ='MF RCY LG 2018 V5.0c'!S26 -> 302.4795445 | W27: =EXP(5.7226-(0.68367*LN(+V27))) -> 6.156248766 | X27: =(+W27*V27)/100 -> 18.62139322 | Y27: ='MF RCY LG 2018 V5.0c'!X26*100 -> 27.04755677 | Z27: ='MF RCY LG 2018 V5.0c'!Y26*100 -> 25 | AA27: =Y27+Z27 -> 52.04755677 | AB27: =100*($E$15*$E$17+($E$16*(AA27/100))/(1-$E$19)) -> 27.70062722 | AC27: ='MF RCY LG 2018 V5.0c'!AE26 -> 0.09153351984 | AD27: =$E$6/(1-AC27) -> 21749.18519 | AE27: =IF(OR(OR(AD27=AD21,AD27=(AD21+1)),AD27=(AD13-1)),"yes","not yet") -> not yet | AF27: =100*(1-AC27) -> 90.84664802 | AI27: 1 | AJ27: =V3 -> 244.5787824 | AK27: =V9 -> 308.3803442 | AL27: =V15 -> 302.0064118 | AM27: =V21 -> 302.5220635 | AN27: =V27 -> 302.4795445 | AO27: =V33 -> 302.483045 | AP27: =V39 -> 302.4827568 | AQ27: =V45 -> 0 | AR27: =V51 -> 0
C28: Percentage PI | E28: =+E4/E5 -> 0.2349699119 | V28: ='MF RCY LG 2018 V5.0c'!S27 -> 302.2188038 | W28: =EXP(5.70827-(0.68367*LN(+V28))) -> 6.072237849 | X28: =(+W28*V28)/100 -> 18.35144459 | Y28: ='MF RCY LG 2018 V5.0c'!X27*100 -> 26.52963206 | Z28: ='MF RCY LG 2018 V5.0c'!Y27*100 -> 25 | AA28: =Y28+Z28 -> 51.52963206 | AB28: =100*($E$15*$E$17+($E$16*(AA28/100))/(1-$E$19)) -> 27.44515094 | AC28: ='MF RCY LG 2018 V5.0c'!AE27 -> 0.09076764062 | AD28: =$E$6/(1-AC28) -> 21730.86506 | AE28: =IF(OR(OR(AD28=AD22,AD28=(AD22+1)),AD28=(AD22-1)),"yes","not yet") -> not yet | AF28: =100*(1-AC28) -> 90.92323594 | AI28: 2 | AJ28: =V4 -> 244.5787824 | AK28: =V10 -> 308.3803442 | AL28: =V16 -> 301.7290053 | AM28: =V22 -> 302.2624465 | AN28: =V28 -> 302.2188038 | AO28: =V34 -> 302.2223686 | AP28: =V40 -> 302.2220774 | AQ28: =V46 -> 0 | AR28: =V52 -> 0
V29: ='MF RCY LG 2018 V5.0c'!S28 -> 302.0432407 | W29: =EXP(5.6985-(0.68367*LN(V29))) -> 6.01559028 | X29: =(+W29*V29)/100 -> 18.16968383 | Y29: ='MF RCY LG 2018 V5.0c'!X28*100 -> 26.18090503 | Z29: ='MF RCY LG 2018 V5.0c'!Y28*100 -> 25 | AA29: =Y29+Z29 -> 51.18090503 | AB29: =100*($E$15*$E$17+($E$16*(AA29/100))/(1-$E$19)) -> 27.27313466 | AC29: ='MF RCY LG 2018 V5.0c'!AE28 -> 0.09025121757 | AD29: =$E$6/(1-AC29) -> 21718.52944 | AE29: =IF(OR(OR(AD29=AD23,AD29=(AD23+1)),AD29=(AD23-1)),"yes","not yet") -> not yet | AF29: =100*(1-AC29) -> 90.97487824 | AI29: 3 | AJ29: =V5 -> 244.5787824 | AK29: =V11 -> 308.3803442 | AL29: =V17 -> 301.5424202 | AM29: =V23 -> 302.0876083 | AN29: =V29 -> 302.0432407 | AO29: =V35 -> 302.0468454 | AP29: =V41 -> 302.0465524 | AQ29: =V47 -> 0 | AR29: =V53 -> 0
C30: Annual MF RCY Yards | E30: =SUMIFS('Com Lifts'!$A:$A,'Com Lifts'!$F:$F,"U") -> 7955.12802 | V30: ='MF RCY LG 2018 V5.0c'!S29 -> 301.9309707 | W30: =EXP(5.6922-(0.68367*LN(V30))) -> 5.979330756 | X30: =(+W30*V30)/100 -> 18.05345139 | Y30: ='MF RCY LG 2018 V5.0c'!X29*100 -> 25.95790093 | Z30: ='MF RCY LG 2018 V5.0c'!Y29*100 -> 25 | AA30: =Y30+Z30 -> 50.95790093 | AB30: =100*($E$15*$E$17+($E$16*(AA30/100))/(1-$E$19)) -> 27.16313362 | AC30: ='MF RCY LG 2018 V5.0c'!AE29 -> 0.08992066061 | AD30: =$E$6/(1-AC30) -> 21710.64088 | AE30: =IF(OR(OR(AD30=AD24,AD30=(AD24+1)),AD30=(AD24-1)),"yes","not yet") -> not yet | AF30: =100*(1-AC30) -> 91.00793394 | AI30: 4 | AJ30: =V6 -> 244.5787824 | AK30: =V12 -> 308.3803442 | AL30: =V18 -> 301.4231857 | AM30: =V24 -> 301.9757885 | AN30: =V30 -> 301.9309707 | AO30: =V36 -> 301.9345994 | AP30: =V42 -> 301.9343056 | AQ30: =V48 -> 0 | AR30: =V54 -> 0
C31: MF RCY Revenue/Yd | E31: =E3/E30 -> 2.744635167
V32: 6th Turnover | W32: M | X32: ROR | Y32: ROE | AJ32: yes
V33: ='MF RCY LG 2018 V5.0c'!S31 -> 302.483045 | W33: =EXP(5.7226-(0.68367*LN(+V33))) -> 6.156200058 | X33: =(+W33*V33)/100 -> 18.62146139 | Y33: ='MF RCY LG 2018 V5.0c'!X31*100 -> 27.04768755 | Z33: ='MF RCY LG 2018 V5.0c'!Y31*100 -> 25 | AA33: =Y33+Z33 -> 52.04768755 | AB33: =100*($E$15*$E$17+($E$16*(AA33/100))/(1-$E$19)) -> 27.70069173 | AC33: ='MF RCY LG 2018 V5.0c'!AE31 -> 0.09153267371 | AD33: =ROUND($E$6/(1-AC33),0) -> 21749 | AE33: =IF(OR(OR(AD33=AD27,AD33=(AD27+1)),AD33=(AD19-1)),"yes","not yet") -> not yet | AF33: =100*(1-AC33) -> 90.84673263 | AJ33: =HLOOKUP($AJ$32,$AJ$26:$AR$30,$E$10+1) -> 302.0465524
V34: ='MF RCY LG 2018 V5.0c'!S32 -> 302.2223686 | W34: =EXP(5.70827-(0.68367*LN(+V34))) -> 6.072188881 | X34: =(+W34*V34)/100 -> 18.35151306 | Y34: ='MF RCY LG 2018 V5.0c'!X32*100 -> 26.52976343 | Z34: ='MF RCY LG 2018 V5.0c'!Y32*100 -> 25 | AA34: =Y34+Z34 -> 51.52976343 | AB34: =100*($E$15*$E$17+($E$16*(AA34/100))/(1-$E$19)) -> 27.44521575 | AC34: ='MF RCY LG 2018 V5.0c'!AE32 -> 0.09076678428 | AD34: =ROUND($E$6/(1-AC34),0) -> 21731 | AE34: =IF(OR(OR(AD34=AD28,AD34=(AD28+1)),AD34=(AD28-1)),"yes","not yet") -> not yet | AF34: =100*(1-AC34) -> 90.92332157
V35: ='MF RCY LG 2018 V5.0c'!S33 -> 302.0468454 | W35: =EXP(5.6985-(0.68367*LN(V35))) -> 6.015541199 | X35: =(+W35*V35)/100 -> 18.16975243 | Y35: ='MF RCY LG 2018 V5.0c'!X33*100 -> 26.18103663 | Z35: ='MF RCY LG 2018 V5.0c'!Y33*100 -> 25 | AA35: =Y35+Z35 -> 51.18103663 | AB35: =100*($E$15*$E$17+($E$16*(AA35/100))/(1-$E$19)) -> 27.27319958 | AC35: ='MF RCY LG 2018 V5.0c'!AE33 -> 0.09025035529 | AD35: =ROUND($E$6/(1-AC35),0) -> 21719 | AE35: =IF(OR(OR(AD35=AD29,AD35=(AD29+1)),AD35=(AD29-1)),"yes","not yet") -> not yet | AF35: =100*(1-AC35) -> 90.97496447 | AJ35: =HLOOKUP(1,$AJ$11:$AR$15,$E$10+1) -> not yet | AK35: =HLOOKUP(2,$AJ$11:$AR$15,$E$10+1) -> not yet | AL35: =HLOOKUP(3,$AJ$11:$AR$15,$E$10+1) -> not yet | AM35: =HLOOKUP(4,$AJ$11:$AR$15,$E$10+1) -> not yet | AN35: =HLOOKUP(5,$AJ$11:$AR$15,$E$10+1) -> not yet | AO35: =HLOOKUP(6,$AJ$11:$AR$15,$E$10+1) -> not yet | AP35: =HLOOKUP(7,$AJ$11:$AR$15,$E$10+1) -> yes | AQ35: =HLOOKUP(8,$AJ$11:$AR$15,$E$10+1) -> 0 | AR35: =HLOOKUP(9,$AJ$11:$AR$15,$E$10+1) -> 0
V36: ='MF RCY LG 2018 V5.0c'!S34 -> 301.9345994 | W36: =EXP(5.6922-(0.68367*LN(V36))) -> 5.979281627 | X36: =(+W36*V36)/100 -> 18.05352003 | Y36: ='MF RCY LG 2018 V5.0c'!X34*100 -> 25.95803261 | Z36: ='MF RCY LG 2018 V5.0c'!Y34*100 -> 25 | AA36: =Y36+Z36 -> 50.95803261 | AB36: =100*($E$15*$E$17+($E$16*(AA36/100))/(1-$E$19)) -> 27.16319858 | AC36: ='MF RCY LG 2018 V5.0c'!AE34 -> 0.08991979492 | AD36: =ROUND($E$6/(1-AC36),0) -> 21711 | AE36: =IF(OR(OR(AD36=AD30,AD36=(AD30+1)),AD36=(AD30-1)),"yes","not yet") -> not yet | AF36: =100*(1-AC36) -> 91.00802051 | AI36: 1 | AJ36: =AD3 -> 22163.64249 | AK36: =AD9 -> 21715.6878 | AL36: =AD15 -> 21751.92738 | AM36: =AD21 -> 21748.93917 | AN36: =AD27 -> 21749.18519 | AO36: =AD33 -> 21749 | AP36: =AD39 -> 21749 | AQ36: =AD45 -> 0 | AR36: =AD51 -> 0
AI37: 2 | AJ37: =AD4 -> 22163.64249 | AK37: =AD10 -> 21696.1919 | AL37: =AD16 -> 21733.68171 | AM37: =AD22 -> 21730.61453 | AN37: =AD28 -> 21730.86506 | AO37: =AD34 -> 21731 | AP37: =AD40 -> 21731 | AQ37: =AD46 -> 0 | AR37: =AD52 -> 0
V38: 7th turnover | W38: M | X38: ROR | Y38: ROE | AI38: 3 | AJ38: =AD5 -> 22163.64249 | AK38: =AD11 -> 21683.07886 | AL38: =AD17 -> 21721.39423 | AM38: =AD23 -> 21718.2761 | AN38: =AD29 -> 21718.52944 | AO38: =AD35 -> 21719 | AP38: =AD41 -> 21719 | AQ38: =AD47 -> 0 | AR38: =AD53 -> 0
V39: ='MF RCY LG 2018 V5.0c'!S36 -> 302.4827568 | W39: =EXP(5.7226-(0.68367*LN(+V39))) -> 6.156204068 | X39: =(+W39*V39)/100 -> 18.62145578 | Y39: ='MF RCY LG 2018 V5.0c'!X36*100 -> 27.04767679 | Z39: ='MF RCY LG 2018 V5.0c'!Y36*100 -> 25 | AA39: =Y39+Z39 -> 52.04767679 | AB39: =100*($E$15*$E$17+($E$16*(AA39/100))/(1-$E$19)) -> 27.70068642 | AC39: ='MF RCY LG 2018 V5.0c'!AE36 -> 0.09153274337 | AD39: =ROUND($E$6/(1-AC39),0) -> 21749 | AE39: =IF(OR(OR(AD39=AD33,AD39=(AD33+1)),AD39=(AD25-1)),"yes","not yet") -> yes | AF39: =100*(1-AC39) -> 90.84672566 | AI39: 4 | AJ39: =AD6 -> 22163.64249 | AK39: =AD12 -> 21674.69915 | AL39: =AD18 -> 21713.53562 | AM39: =AD24 -> 21710.38586 | AN39: =AD30 -> 21710.64088 | AO39: =AD36 -> 21711 | AP39: =AD42 -> 21711 | AQ39: =AD48 -> 0 | AR39: =AD54 -> 0
V40: ='MF RCY LG 2018 V5.0c'!S37 -> 302.2220774 | W40: =EXP(5.70827-(0.68367*LN(+V40))) -> 6.072192881 | X40: =(+W40*V40)/100 -> 18.35150747 | Y40: ='MF RCY LG 2018 V5.0c'!X37*100 -> 26.5297527 | Z40: ='MF RCY LG 2018 V5.0c'!Y37*100 -> 25 | AA40: =Y40+Z40 -> 51.5297527 | AB40: =100*($E$15*$E$17+($E$16*(AA40/100))/(1-$E$19)) -> 27.44521045 | AC40: ='MF RCY LG 2018 V5.0c'!AE37 -> 0.09076685423 | AD40: =ROUND($E$6/(1-AC40),0) -> 21731 | AE40: =IF(OR(OR(AD40=AD34,AD40=(AD34+1)),AD40=(AD34-1)),"yes","not yet") -> yes | AF40: =100*(1-AC40) -> 90.92331458
V41: ='MF RCY LG 2018 V5.0c'!S38 -> 302.0465524 | W41: =EXP(5.6985-(0.68367*LN(V41))) -> 6.015545188 | X41: =(+W41*V41)/100 -> 18.16974685 | Y41: ='MF RCY LG 2018 V5.0c'!X38*100 -> 26.18102593 | Z41: ='MF RCY LG 2018 V5.0c'!Y38*100 -> 25 | AA41: =Y41+Z41 -> 51.18102593 | AB41: =100*($E$15*$E$17+($E$16*(AA41/100))/(1-$E$19)) -> 27.2731943 | AC41: ='MF RCY LG 2018 V5.0c'!AE38 -> 0.09025042538 | AD41: =ROUND($E$6/(1-AC41),0) -> 21719 | AE41: =IF(OR(OR(AD41=AD35,AD41=(AD35+1)),AD41=(AD35-1)),"yes","not yet") -> yes | AF41: =100*(1-AC41) -> 90.97495746 | AJ41: yes
V42: ='MF RCY LG 2018 V5.0c'!S39 -> 301.9343056 | W42: =EXP(5.6922-(0.68367*LN(V42))) -> 5.979285605 | X42: =(+W42*V42)/100 -> 18.05351447 | Y42: ='MF RCY LG 2018 V5.0c'!X39*100 -> 25.95802195 | Z42: ='MF RCY LG 2018 V5.0c'!Y39*100 -> 25 | AA42: =Y42+Z42 -> 50.95802195 | AB42: =100*($E$15*$E$17+($E$16*(AA42/100))/(1-$E$19)) -> 27.16319332 | AC42: ='MF RCY LG 2018 V5.0c'!AE39 -> 0.08991986502 | AD42: =ROUND($E$6/(1-AC42),0) -> 21711 | AE42: =IF(OR(OR(AD42=AD36,AD42=(AD36+1)),AD42=(AD36-1)),"yes","not yet") -> yes | AF42: =100*(1-AC42) -> 91.0080135 | AJ42: =HLOOKUP($AJ$32,$AJ$35:$AR$39,$E$10+1) -> 21719

Sheet Alloc Summary
B8: Allocations
C9: Truck Hours | D9: Actual | E9: =+Proforma!J5 -> Pay Diff Adj | F9: Container Count | G9: Revenue | H9: =+Proforma!J6 -> Prev Alloc Costs
B10: Regulated | C10: ='Truck Hrs Sum'!E29 -> 0.2722078055 | D10: =SUMIF(Proforma!$H$8:$H$383,$D$9,Proforma!$K$8:$K$383)/SUMIF(Proforma!$H$8:$H$383,$D$9,Proforma!$F$8:$F$383) -> 0.2217120196 | F10: ='Container Counts'!$H$116 -> 0.3447 | G10: =+Proforma!K26/Proforma!F26 -> 0.2320406511 | H10: =(SUMIF(Proforma!$H$8:$H$383,$C$9,Proforma!$K$8:$K$383)+SUMIF(Proforma!$H$8:$H$383,$D$9,Proforma!$K$8:$K$383)+SUMIF(Proforma!$H$8:$H$383,$F$9,Proforma!$K$8:$K$383)+SUMIF(Proforma!$H$8:$H$383,$G$9,Proforma!$K$8:$K$383))/(SUMIF(Proforma!$H$8:$H$383,$C$9,Proforma!$F$8:$F$383)+SUMIF(Proforma!$H$8:$H$383,$D$9,Proforma!$F$8:$F$383)+SUMIF(Proforma!$H$8:$H$383,$F$9,Proforma!$F$8:$F$383)+SUMIF(Proforma!$H$8:$H$383,$G$9,Proforma!$F$8:$F$383)) -> 0.2301732435
B11: Unregulated | C11: =1-C10 -> 0.7277921945 | D11: =1-D10 -> 0.7782879804 | F11: =1-F10 -> 0.6553 | G11: =1-G10 -> 0.7679593489 | H11: =1-H10 -> 0.7698267565
B12: Of Total $ | C12: =SUMIF(Proforma!$H$8:$H$383,C$9,Proforma!$F$8:$F$383)/1000 -> 13064.84909 | D12: =SUMIF(Proforma!$H$8:$H$383,D$9,Proforma!$F$8:$F$383)/1000 -> 70842.54675 | E12: =SUMIF(Proforma!$H$8:$H$383,E$9,Proforma!$F$8:$F$383)/1000 -> 0 | F12: =SUMIF(Proforma!$H$8:$H$383,F$9,Proforma!$F$8:$F$383)/1000 -> 379.73494 | G12: =SUMIF(Proforma!$H$8:$H$383,G$9,Proforma!$F$8:$F$383)/1000 -> 3614.434333 | H12: =SUMIF(Proforma!$H$8:$H$383,H$9,Proforma!$F$8:$F$383)/1000 -> 976.2176893
B13: Of Non-Regulated | C13: =SUMIF(Proforma!$H$8:$H$383,C$9,Proforma!$J$8:$J$383)/1000 -> 9508.49519 | D13: =SUMIF(Proforma!$H$8:$H$383,D$9,Proforma!$J$8:$J$383)/1000 -> 55135.90263 | E13: =SUMIF(Proforma!$H$8:$H$383,E$9,Proforma!$J$8:$J$383)/1000 -> 0 | F13: =SUMIF(Proforma!$H$8:$H$383,F$9,Proforma!$J$8:$J$383)/1000 -> 248.8403062 | G13: =SUMIF(Proforma!$H$8:$H$383,G$9,Proforma!$J$8:$J$383)/1000 -> 2775.738637 | H13: =SUMIF(Proforma!$H$8:$H$383,H$9,Proforma!$J$8:$J$383)/1000 -> 751.5184974
B14: Of Regulated | C14: =SUMIF(Proforma!$H$8:$H$383,C$9,Proforma!$K$8:$K$383)/1000 -> 3556.353899 | D14: =SUMIF(Proforma!$H$8:$H$383,D$9,Proforma!$K$8:$K$383)/1000 -> 15706.64412 | E14: =SUMIF(Proforma!$H$8:$H$383,E$9,Proforma!$K$8:$K$383)/1000 -> 0 | F14: =SUMIF(Proforma!$H$8:$H$383,F$9,Proforma!$K$8:$K$383)/1000 -> 130.8946338 | G14: =SUMIF(Proforma!$H$8:$H$383,G$9,Proforma!$K$8:$K$383)/1000 -> 838.6956961 | H14: =SUMIF(Proforma!$H$8:$H$383,H$9,Proforma!$K$8:$K$383)/1000 -> 224.6991919
C16: =+C9 -> Truck Hours | D16: Actual | E16: Pay Diff Adj | F16: Container Count | G16: Revenue | H16: Prev Alloc Costs
B17: Garbage | C17: ='Truck Hrs Sum'!H25 -> 0.5962584796 | D17: =SUMIF(Proforma!$M$8:$M$3698,D$16,Proforma!$O$8:$O$383)/SUMIF(Proforma!$M$8:$M$3698,D$16,Proforma!$K$8:$K$383) -> 0.6942934879 | E17: ='Truck Hrs Sum'!E43 -> 0.6273571872 | F17: ='Container Counts'!H119 -> 0.4111870274 | G17: =+Proforma!O$26/Proforma!$K$26 -> 0.690125856 | H17: =(SUMIF(Proforma!$M$8:$M$383,$C$16,Proforma!$O$8:$O$383)+SUMIF(Proforma!$M$8:$M$383,$D$16,Proforma!$O$8:$O$383)+SUMIF(Proforma!$M$8:$M$383,$E$16,Proforma!$O$8:$O$383)+SUMIF(Proforma!$M$8:$M$383,$F$16,Proforma!$O$8:$O$383)+SUMIF(Proforma!$M$8:$M$383,$G$16,Proforma!$O$8:$O$383))/(SUMIF(Proforma!$M$8:$M$383,$C$16,Proforma!$K$8:$K$383)+SUMIF(Proforma!$M$8:$M$383,$D$16,Proforma!$K$8:$K$383)+SUMIF(Proforma!$M$8:$M$383,$E$16,Proforma!$K$8:$K$383)+SUMIF(Proforma!$M$8:$M$383,$F$16,Proforma!$K$8:$K$383)+SUMIF(Proforma!$M$8:$M$383,$G$16,Proforma!$K$8:$K$383)) -> 0.6773781604
B18: Recycle | C18: ='Truck Hrs Sum'!H26 -> 0.2687639545 | D18: =SUMIF(Proforma!$M$8:$M$3698,D$16,Proforma!$P$8:$P$383)/SUMIF(Proforma!$M$8:$M$3698,D$16,Proforma!$K$8:$K$383) -> 0.2057669982 | E18: ='Truck Hrs Sum'!E44 -> 0.244872877 | F18: ='Container Counts'!H120 -> 0.4137924752 | G18: =+Proforma!P$26/Proforma!$K$26 -> 0.1961920736 | H18: =(SUMIF(Proforma!$M$8:$M$383,$C$16,Proforma!$P$8:$P$383)+SUMIF(Proforma!$M$8:$M$383,$D$16,Proforma!$P$8:$P$383)+SUMIF(Proforma!$M$8:$M$383,$E$16,Proforma!$P$8:$P$383)+SUMIF(Proforma!$M$8:$M$383,$F$16,Proforma!$P$8:$P$383)+SUMIF(Proforma!$M$8:$M$383,$G$16,Proforma!$P$8:$P$383))/(SUMIF(Proforma!$M$8:$M$383,$C$16,Proforma!$K$8:$K$383)+SUMIF(Proforma!$M$8:$M$383,$D$16,Proforma!$K$8:$K$383)+SUMIF(Proforma!$M$8:$M$383,$E$16,Proforma!$K$8:$K$383)+SUMIF(Proforma!$M$8:$M$383,$F$16,Proforma!$K$8:$K$383)+SUMIF(Proforma!$M$8:$M$383,$G$16,Proforma!$K$8:$K$383)) -> 0.2160060783
B19: Yardwaste | C19: ='Truck Hrs Sum'!H27 -> 0.1343323297 | D19: =SUMIF(Proforma!$M$8:$M$3698,D$16,Proforma!$Q$8:$Q$383)/SUMIF(Proforma!$M$8:$M$3698,D$16,Proforma!$K$8:$K$383) -> 0.0978531362 | E19: ='Truck Hrs Sum'!E45 -> 0.1271591543 | F19: ='Container Counts'!H121 -> 0.1709027968 | G19: =+Proforma!Q$26/Proforma!$K$26 -> 0.1119230593 | H19: =(SUMIF(Proforma!$M$8:$M$383,$C$16,Proforma!$Q$8:$Q$383)+SUMIF(Proforma!$M$8:$M$383,$D$16,Proforma!$Q$8:$Q$383)+SUMIF(Proforma!$M$8:$M$383,$E$16,Proforma!$Q$8:$Q$383)+SUMIF(Proforma!$M$8:$M$383,$F$16,Proforma!$Q$8:$Q$383)+SUMIF(Proforma!$M$8:$M$383,$G$16,Proforma!$Q$8:$Q$383))/(SUMIF(Proforma!$M$8:$M$383,$C$16,Proforma!$K$8:$K$383)+SUMIF(Proforma!$M$8:$M$383,$D$16,Proforma!$K$8:$K$383)+SUMIF(Proforma!$M$8:$M$383,$E$16,Proforma!$K$8:$K$383)+SUMIF(Proforma!$M$8:$M$383,$F$16,Proforma!$K$8:$K$383)+SUMIF(Proforma!$M$8:$M$383,$G$16,Proforma!$K$8:$K$383)) -> 0.1047856982
B20: Multi-family Recycle | C20: ='Truck Hrs Sum'!H28 -> 0.0006452362824 | D20: =SUMIF(Proforma!$M$8:$M$3698,D$16,Proforma!$R$8:$R$383)/SUMIF(Proforma!$M$8:$M$3698,D$16,Proforma!$K$8:$K$383) -> 0.002086377664 | E20: ='Truck Hrs Sum'!E46 -> 0.0006107814863 | F20: ='Container Counts'!H122 -> 0.004117700647 | G20: =+Proforma!R$26/Proforma!$K$26 -> 0.001759011141 | H20: =(SUMIF(Proforma!$M$8:$M$383,$C$16,Proforma!$R$8:$R$383)+SUMIF(Proforma!$M$8:$M$383,$D$16,Proforma!$R$8:$R$383)+SUMIF(Proforma!$M$8:$M$383,$E$16,Proforma!$R$8:$R$383)+SUMIF(Proforma!$M$8:$M$383,$F$16,Proforma!$R$8:$R$383)+SUMIF(Proforma!$M$8:$M$383,$G$16,Proforma!$R$8:$R$383))/(SUMIF(Proforma!$M$8:$M$383,$C$16,Proforma!$K$8:$K$383)+SUMIF(Proforma!$M$8:$M$383,$D$16,Proforma!$K$8:$K$383)+SUMIF(Proforma!$M$8:$M$383,$E$16,Proforma!$K$8:$K$383)+SUMIF(Proforma!$M$8:$M$383,$F$16,Proforma!$K$8:$K$383)+SUMIF(Proforma!$M$8:$M$383,$G$16,Proforma!$K$8:$K$383)) -> 0.001830063109
B21: =+B14 -> Of Regulated | C21: =SUMIF(Proforma!$M$8:$M$3698,C$16,Proforma!$K$8:$K$383)/1000 -> 2046.361304 | D21: =SUMIF(Proforma!$M$8:$M$3698,D$16,Proforma!$K$8:$K$383)/1000 -> 15706.64412 | E21: =SUMIF(Proforma!$M$8:$M$3698,E$16,Proforma!$K$8:$K$383)/1000 -> 1509.992595 | F21: =SUMIF(Proforma!$M$8:$M$3698,F$16,Proforma!$K$8:$K$383)/1000 -> 130.8946338 | G21: =SUMIF(Proforma!$M$8:$M$3698,G$16,Proforma!$K$8:$K$383)/1000 -> 838.6956961 | H21: =SUMIF(Proforma!$M$8:$M$3698,H$16,Proforma!$K$8:$K$383)/1000 -> 224.6991919
B22: Of MSW | C22: =SUMIF(Proforma!$M$8:$M$3698,C$16,Proforma!$O$8:$O$383)/1000 -> 1220.16028 | D22: =SUMIF(Proforma!$M$8:$M$3698,D$16,Proforma!$O$8:$O$383)/1000 -> 10905.02073 | E22: =SUMIF(Proforma!$M$8:$M$3698,E$16,Proforma!$O$8:$O$383)/1000 -> 947.3047074 | F22: =SUMIF(Proforma!$M$8:$M$3698,F$16,Proforma!$O$8:$O$383)/1000 -> 53.82217538 | G22: =SUMIF(Proforma!$M$8:$M$3698,G$16,Proforma!$O$8:$O$383)/1000 -> 578.8055851 | H22: =SUMIF(Proforma!$M$8:$M$3698,H$16,Proforma!$O$8:$O$383)/1000 -> 152.2063252
B23: Of RCY | C23: =SUMIF(Proforma!$M$8:$M$3698,C$16,Proforma!$P$8:$P$383)/1000 -> 549.9881563 | D23: =SUMIF(Proforma!$M$8:$M$3698,D$16,Proforma!$P$8:$P$383)/1000 -> 3231.909012 | E23: =SUMIF(Proforma!$M$8:$M$3698,E$16,Proforma!$P$8:$P$383)/1000 -> 369.7562311 | F23: =SUMIF(Proforma!$M$8:$M$3698,F$16,Proforma!$P$8:$P$383)/1000 -> 54.16321451 | G23: =SUMIF(Proforma!$M$8:$M$3698,G$16,Proforma!$P$8:$P$383)/1000 -> 164.5454478 | H23: =SUMIF(Proforma!$M$8:$M$3698,H$16,Proforma!$P$8:$P$383)/1000 -> 48.53639123
B24: Of YW | C24: =SUMIF(Proforma!$M$8:$M$3698,C$16,Proforma!$Q$8:$Q$383)/1000 -> 274.8924813 | D24: =SUMIF(Proforma!$M$8:$M$3698,D$16,Proforma!$Q$8:$Q$383)/1000 -> 1536.944386 | E24: =SUMIF(Proforma!$M$8:$M$3698,E$16,Proforma!$Q$8:$Q$383)/1000 -> 192.0093814 | F24: =SUMIF(Proforma!$M$8:$M$3698,F$16,Proforma!$Q$8:$Q$383)/1000 -> 22.370259 | G24: =SUMIF(Proforma!$M$8:$M$3698,G$16,Proforma!$Q$8:$Q$383)/1000 -> 93.86938809 | H24: =SUMIF(Proforma!$M$8:$M$3698,H$16,Proforma!$Q$8:$Q$383)/1000 -> 23.5452617
B25: Of MF RCY | C25: =SUMIF(Proforma!$M$8:$M$3698,C$16,Proforma!$R$8:$R$383)/1000 -> 1.32038656 | D25: =SUMIF(Proforma!$M$8:$M$3698,D$16,Proforma!$R$8:$R$383)/1000 -> 32.76999146 | E25: =SUMIF(Proforma!$M$8:$M$3698,E$16,Proforma!$R$8:$R$383)/1000 -> 0.9222755217 | F25: =SUMIF(Proforma!$M$8:$M$3698,F$16,Proforma!$R$8:$R$383)/1000 -> 0.5389849183 | G25: =SUMIF(Proforma!$M$8:$M$3698,G$16,Proforma!$R$8:$R$383)/1000 -> 1.475275073 | H25: =SUMIF(Proforma!$M$8:$M$3698,H$16,Proforma!$R$8:$R$383)/1000 -> 0.4112137016

Sheet Proforma
A1: Allocation Worksheet
A2: General Rate Case | J2: Revenue | K2: =+'Alloc Summary'!G10 -> 0.2320406511 | O2: =+'Alloc Summary'!$G17 -> 0.690125856 | P2: =+'Alloc Summary'!$G18 -> 0.1961920736 | Q2: =+'Alloc Summary'!$G19 -> 0.1119230593 | R2: =+'Alloc Summary'!$G20 -> 0.001759011141
J3: Truck Hours | K3: =+'Alloc Summary'!C10 -> 0.2722078055 | O3: =+'Alloc Summary'!$C17 -> 0.5962584796 | P3: =+'Alloc Summary'!$C18 -> 0.2687639545 | Q3: =+'Alloc Summary'!$C19 -> 0.1343323297 | R3: =+'Alloc Summary'!$C20 -> 0.0006452362824
J4: Container Count | K4: =+'Alloc Summary'!F10 -> 0.3447 | O4: =+'Alloc Summary'!$F17 -> 0.4111870274 | P4: =+'Alloc Summary'!$F18 -> 0.4137924752 | Q4: =+'Alloc Summary'!$F19 -> 0.1709027968 | R4: =+'Alloc Summary'!$F20 -> 0.004117700647
J5: Pay Diff Adj | K5: =+'Alloc Summary'!E10 -> 0 | O5: ='Alloc Summary'!E17 -> 0.6273571872 | P5: ='Alloc Summary'!E18 -> 0.244872877 | Q5: ='Alloc Summary'!E19 -> 0.1271591543 | R5: ='Alloc Summary'!E20 -> 0.0006107814863
J6: Prev Alloc Costs | K6: =+'Alloc Summary'!H10 -> 0.2301732435 | O6: =+'Alloc Summary'!$H17 -> 0.6773781604 | P6: =+'Alloc Summary'!$H18 -> 0.2160060783 | Q6: =+'Alloc Summary'!$H19 -> 0.1047856982 | R6: =+'Alloc Summary'!$H20 -> 0.001830063109
C8: Division | D8: Restating | E8: Proforma | F8: Adjusted | H8: Allocation | J8: Unregulated | K8: Regulated | M8: Allocation | O8: Regulated | P8: Regulated | Q8: Regulated | R8: =+Q8 -> Regulated
A9: Account # | B9: Account Description | C9: Total | D9: Adjustment | E9: Adjustment | F9: Proforma | H9: Methodology | J9: Operations | K9: Operations | M9: Methodology | O9: Garbage | P9: Recycle | Q9: Yardwaste | R9: MF Recycle
A10: REVENUE
A11: 3011** | B11: =+'P&L - ITD3 (Acct Desc)'!$A$89 -> Ind O/S | C11: =+VLOOKUP($B11,'P&L - ITD3 (Acct Desc)'!A$1:N$1417,2,FALSE) -> 11231507.03 | D11: =+'PR Restate'!$G11 -> -4168662.03 | E11: =+'PF Adj'!$G11 -> 3363.339216 | F11: =SUM(C11:E11) -> 7066208.339 | H11: Actual | J11: =F11-K11 -> 6902828.33 | K11: ='Revenue Lookup'!Q100+E11 -> 163380.0092 | M11: =H11 -> Actual | O11: =K11-SUM(P11:R11) -> 163380.0092 | P11: 0 | Q11: 0 | R11: =SUM('IND (+MF) Price Out'!J8:J9) -> 0
B12: Disposal Pass Through | D12: =+'PR Restate'!$G12 -> 6489890.03 | E12: =+'PF Adj'!$G12 -> 0 | F12: =SUM(C12:E12) -> 6489890.03 | H12: Actual | J12: =F12-K12 -> 6142159.78 | K12: =-'Revenue Lookup'!Q77 -> 347730.25 | M12: Actual | O12: =K12-SUM(P12:R12) -> 347730.25 | P12: 0 | Q12: 0 | R12: 0
B13: Franchise Fee | D13: ='PR Restate'!C13 -> -2321228 | E13: =+'PF Adj'!$G13 -> 0 | F13: -2321228 | H13: Actual | J13: =F13-K13 -> -2321228 | M13: Actual
A14: 3012** | B14: =+'P&L - ITD3 (Acct Desc)'!$A$173 -> Com O/S | C14: =+VLOOKUP($B14,'P&L - ITD3 (Acct Desc)'!A$1:N$1417,2,FALSE) -> 13752442.07 | D14: =+'PR Restate'!$G14 -> 2597464 | E14: =+'PF Adj'!$G14 -> 34756.48671 | F14: 16384662.56 | H14: Actual | J14: =F14-K14 -> 15113368.05 | K14: =+'Revenue Lookup'!Q70-SUM('Revenue Lookup'!Q47:Q67)+E14 -> 1271294.507 | M14: Actual | O14: =K14-SUM(P14:R14) -> 1253614.785 | P14: 0 | Q14: 0 | R14: =SUM('Comm (+MF) Price Out'!O8:O9) -> 17679.72152
B15: Franchise Fee | D15: ='PR Restate'!C15 -> -2597464 | E15: =+'PF Adj'!$G15 -> 0 | F15: -2597464 | H15: Actual | J15: -2597464 | M15: Actual
A16: 3013** | B16: =+'P&L - ITD3 (Acct Desc)'!$A$251 -> Resi O/S | C16: =+VLOOKUP($B16,'P&L - ITD3 (Acct Desc)'!A$1:N$1417,2,FALSE) -> 17846290.64 | D16: =+'PR Restate'!$G16 -> 2120463 | E16: =+'PF Adj'!$G16 -> 103379.51 | F16: 20070133.15 | H16: Actual | J16: 11801594.46 | K16: ='Revenue Lookup'!Q35+E16 -> 8268538.69 | M16: Actual | O16: =K16-SUM(P16:R16) -> 5171690.911 | P16: =+'Price Out Summ'!C11 -> 1971915.439 | Q16: =+'Price Out Summ'!C13 -> 1124932.34 | R16: 0
B17: Franchise Fee | D17: ='PR Restate'!C17 -> -2120463 | E17: =+'PF Adj'!$G17 -> 0 | F17: -2120463 | H17: Actual | J17: -2120463 | M17: Actual
A19: 3111** | B19: =+'P&L - ITD3 (Acct Desc)'!$A$430 -> Ind I/C | C19: =+VLOOKUP($B19,'P&L - ITD3 (Acct Desc)'!A$1:N$1417,2,FALSE) -> -2078752.84 | D19: =+'PR Restate'!$G19+'PR Restate'!C20 -> 2078753 | E19: =+'PF Adj'!$G19 -> 0 | F19: =SUM(C19:E19) -> 0.1599999999 | H19: Actual | J19: =F19-K19 -> 0.1599999999 | K19: 0 | M19: =H19 -> Actual | O19: =K19-SUM(P19:R19) -> 0 | P19: =K19 -> 0 | Q19: 0 | R19: 0
